{"text_format":"1","workbook":"xlsx","n_sheets":3,"sheets":["Curriculum Vitae","Explication des termes utilisés","Base de données"],"not_rendered":{"charts":2,"images":2,"macros":1,"external_links":0,"defined_names":2,"comments":0,"pivot_tables":1},"unopened":[],"bounds":{"document_bytes":16777216,"sheet_cells":100000,"rows_first":2000,"rows_last":500,"rows_between":2000,"halvings":0,"cell_chars":16384,"cell_head_chars":4096},"cells_cut":0,"cells_raw":0,"read":"row_number_cap","date_system":"1900"}

{"sheet":"Curriculum Vitae","index":0,"n_rows":112,"n_cols":6,"rows_kept":112,"cut":false,"hidden":false,"merged":[[6,2,7,5]]}
[]
[null,null,"Guillaume KOCH"]
[null,null,"guillaume.koch@myicn.fr"]
[null,null,"06 04 13 87 21"]
[]
[]
[null,null,"Recherche un poste de contrôleur de gestion junior"]
[]
[]
[]
[]
[]
[]
[]
[]
[]
[]
[]
[]
[]
[null,"Axe d'analyse"]
[null,"En durée"]
[]
[]
[]
[]
[]
[]
[]
[null,"Étiquettes de lignes","Durée (en mois)","Compétence 1","Compétence 2","Compétence 3"]
[null,"Eastern Michigan University",4.5,{"$f":"IF(IFERROR(IFERROR(IFERROR(IFERROR(VLOOKUP($B30&$B31,'Base de données'!$F:$I,2,FALSE),VLOOKUP($B29&$B31,'Base de données'!$F:$I,2,FALSE)),VLOOKUP($B28&$B31,'Base de données'!$F:$I,2,FALSE)),VLOOKUP($B27&$B31,'Base de données'!$F:$I,2,FALSE)),\"\")=0,\"\",IFERROR(IFERROR(IFERROR(IFERROR(VLOOKUP($B30&$B31,'Base de données'!$F:$I,2,FALSE),VLOOKUP($B29&$B31,'Base de données'!$F:$I,2,FALSE)),VLOOKUP($B28&$B31,'Base de données'!$F:$I,2,FALSE)),VLOOKUP($B27&$B31,'Base de données'!$F:$I,2,FALSE)),\"\"))","v":""},{"$f":"IF(IFERROR(IFERROR(IFERROR(IFERROR(VLOOKUP($B30&$B31,'Base de données'!$F:$I,3,FALSE),VLOOKUP($B29&$B31,'Base de données'!$F:$I,3,FALSE)),VLOOKUP($B28&$B31,'Base de données'!$F:$I,3,FALSE)),VLOOKUP($B27&$B31,'Base de données'!$F:$I,3,FALSE)),\"\")=0,\"\",IFERROR(IFERROR(IFERROR(IFERROR(VLOOKUP($B30&$B31,'Base de données'!$F:$I,3,FALSE),VLOOKUP($B29&$B31,'Base de données'!$F:$I,3,FALSE)),VLOOKUP($B28&$B31,'Base de données'!$F:$I,3,FALSE)),VLOOKUP($B27&$B31,'Base de données'!$F:$I,3,FALSE)),\"\"))","v":""},{"$f":"IF(IFERROR(IFERROR(IFERROR(IFERROR(VLOOKUP($B30&$B31,'Base de données'!$F:$I,4,FALSE),VLOOKUP($B29&$B31,'Base de données'!$F:$I,4,FALSE)),VLOOKUP($B28&$B31,'Base de données'!$F:$I,4,FALSE)),VLOOKUP($B27&$B31,'Base de données'!$F:$I,4,FALSE)),\"\")=0,\"\",IFERROR(IFERROR(IFERROR(IFERROR(VLOOKUP($B30&$B31,'Base de données'!$F:$I,4,FALSE),VLOOKUP($B29&$B31,'Base de données'!$F:$I,4,FALSE)),VLOOKUP($B28&$B31,'Base de données'!$F:$I,4,FALSE)),VLOOKUP($B27&$B31,'Base de données'!$F:$I,4,FALSE)),\"\"))","v":""}]
[null,"Cours généraux de Management",4.5,{"$f":"IF(IFERROR(IFERROR(IFERROR(IFERROR(VLOOKUP($B31&$B32,'Base de données'!$F:$I,2,FALSE),VLOOKUP($B30&$B32,'Base de données'!$F:$I,2,FALSE)),VLOOKUP($B29&$B32,'Base de données'!$F:$I,2,FALSE)),VLOOKUP($B28&$B32,'Base de données'!$F:$I,2,FALSE)),\"\")=0,\"\",IFERROR(IFERROR(IFERROR(IFERROR(VLOOKUP($B31&$B32,'Base de données'!$F:$I,2,FALSE),VLOOKUP($B30&$B32,'Base de données'!$F:$I,2,FALSE)),VLOOKUP($B29&$B32,'Base de données'!$F:$I,2,FALSE)),VLOOKUP($B28&$B32,'Base de données'!$F:$I,2,FALSE)),\"\"))","v":"Management"},{"$f":"IF(IFERROR(IFERROR(IFERROR(IFERROR(VLOOKUP($B31&$B32,'Base de données'!$F:$I,3,FALSE),VLOOKUP($B30&$B32,'Base de données'!$F:$I,3,FALSE)),VLOOKUP($B29&$B32,'Base de données'!$F:$I,3,FALSE)),VLOOKUP($B28&$B32,'Base de données'!$F:$I,3,FALSE)),\"\")=0,\"\",IFERROR(IFERROR(IFERROR(IFERROR(VLOOKUP($B31&$B32,'Base de données'!$F:$I,3,FALSE),VLOOKUP($B30&$B32,'Base de données'!$F:$I,3,FALSE)),VLOOKUP($B29&$B32,'Base de données'!$F:$I,3,FALSE)),VLOOKUP($B28&$B32,'Base de données'!$F:$I,3,FALSE)),\"\"))","v":"Langues"},{"$f":"IF(IFERROR(IFERROR(IFERROR(IFERROR(VLOOKUP($B31&$B32,'Base de données'!$F:$I,4,FALSE),VLOOKUP($B30&$B32,'Base de données'!$F:$I,4,FALSE)),VLOOKUP($B29&$B32,'Base de données'!$F:$I,4,FALSE)),VLOOKUP($B28&$B32,'Base de données'!$F:$I,4,FALSE)),\"\")=0,\"\",IFERROR(IFERROR(IFERROR(IFERROR(VLOOKUP($B31&$B32,'Base de données'!$F:$I,4,FALSE),VLOOKUP($B30&$B32,'Base de données'!$F:$I,4,FALSE)),VLOOKUP($B29&$B32,'Base de données'!$F:$I,4,FALSE)),VLOOKUP($B28&$B32,'Base de données'!$F:$I,4,FALSE)),\"\"))","v":"Adaptation à une nouvelle culture"}]
[null,"Radio Campus Lorraine",26,{"$f":"IF(IFERROR(IFERROR(IFERROR(IFERROR(VLOOKUP($B32&$B33,'Base de données'!$F:$I,2,FALSE),VLOOKUP($B31&$B33,'Base de données'!$F:$I,2,FALSE)),VLOOKUP($B30&$B33,'Base de données'!$F:$I,2,FALSE)),VLOOKUP($B29&$B33,'Base de données'!$F:$I,2,FALSE)),\"\")=0,\"\",IFERROR(IFERROR(IFERROR(IFERROR(VLOOKUP($B32&$B33,'Base de données'!$F:$I,2,FALSE),VLOOKUP($B31&$B33,'Base de données'!$F:$I,2,FALSE)),VLOOKUP($B30&$B33,'Base de données'!$F:$I,2,FALSE)),VLOOKUP($B29&$B33,'Base de données'!$F:$I,2,FALSE)),\"\"))","v":""},{"$f":"IF(IFERROR(IFERROR(IFERROR(IFERROR(VLOOKUP($B32&$B33,'Base de données'!$F:$I,3,FALSE),VLOOKUP($B31&$B33,'Base de données'!$F:$I,3,FALSE)),VLOOKUP($B30&$B33,'Base de données'!$F:$I,3,FALSE)),VLOOKUP($B29&$B33,'Base de données'!$F:$I,3,FALSE)),\"\")=0,\"\",IFERROR(IFERROR(IFERROR(IFERROR(VLOOKUP($B32&$B33,'Base de données'!$F:$I,3,FALSE),VLOOKUP($B31&$B33,'Base de données'!$F:$I,3,FALSE)),VLOOKUP($B30&$B33,'Base de données'!$F:$I,3,FALSE)),VLOOKUP($B29&$B33,'Base de données'!$F:$I,3,FALSE)),\"\"))","v":""},{"$f":"IF(IFERROR(IFERROR(IFERROR(IFERROR(VLOOKUP($B32&$B33,'Base de données'!$F:$I,4,FALSE),VLOOKUP($B31&$B33,'Base de données'!$F:$I,4,FALSE)),VLOOKUP($B30&$B33,'Base de données'!$F:$I,4,FALSE)),VLOOKUP($B29&$B33,'Base de données'!$F:$I,4,FALSE)),\"\")=0,\"\",IFERROR(IFERROR(IFERROR(IFERROR(VLOOKUP($B32&$B33,'Base de données'!$F:$I,4,FALSE),VLOOKUP($B31&$B33,'Base de données'!$F:$I,4,FALSE)),VLOOKUP($B30&$B33,'Base de données'!$F:$I,4,FALSE)),VLOOKUP($B29&$B33,'Base de données'!$F:$I,4,FALSE)),\"\"))","v":""}]
[null,"Animation d'émission de radio",26,{"$f":"IF(IFERROR(IFERROR(IFERROR(IFERROR(VLOOKUP($B33&$B34,'Base de données'!$F:$I,2,FALSE),VLOOKUP($B32&$B34,'Base de données'!$F:$I,2,FALSE)),VLOOKUP($B31&$B34,'Base de données'!$F:$I,2,FALSE)),VLOOKUP($B30&$B34,'Base de données'!$F:$I,2,FALSE)),\"\")=0,\"\",IFERROR(IFERROR(IFERROR(IFERROR(VLOOKUP($B33&$B34,'Base de données'!$F:$I,2,FALSE),VLOOKUP($B32&$B34,'Base de données'!$F:$I,2,FALSE)),VLOOKUP($B31&$B34,'Base de données'!$F:$I,2,FALSE)),VLOOKUP($B30&$B34,'Base de données'!$F:$I,2,FALSE)),\"\"))","v":"Management"},{"$f":"IF(IFERROR(IFERROR(IFERROR(IFERROR(VLOOKUP($B33&$B34,'Base de données'!$F:$I,3,FALSE),VLOOKUP($B32&$B34,'Base de données'!$F:$I,3,FALSE)),VLOOKUP($B31&$B34,'Base de données'!$F:$I,3,FALSE)),VLOOKUP($B30&$B34,'Base de données'!$F:$I,3,FALSE)),\"\")=0,\"\",IFERROR(IFERROR(IFERROR(IFERROR(VLOOKUP($B33&$B34,'Base de données'!$F:$I,3,FALSE),VLOOKUP($B32&$B34,'Base de données'!$F:$I,3,FALSE)),VLOOKUP($B31&$B34,'Base de données'!$F:$I,3,FALSE)),VLOOKUP($B30&$B34,'Base de données'!$F:$I,3,FALSE)),\"\"))","v":"Recherche d'informations"},{"$f":"IF(IFERROR(IFERROR(IFERROR(IFERROR(VLOOKUP($B33&$B34,'Base de données'!$F:$I,4,FALSE),VLOOKUP($B32&$B34,'Base de données'!$F:$I,4,FALSE)),VLOOKUP($B31&$B34,'Base de données'!$F:$I,4,FALSE)),VLOOKUP($B30&$B34,'Base de données'!$F:$I,4,FALSE)),\"\")=0,\"\",IFERROR(IFERROR(IFERROR(IFERROR(VLOOKUP($B33&$B34,'Base de données'!$F:$I,4,FALSE),VLOOKUP($B32&$B34,'Base de données'!$F:$I,4,FALSE)),VLOOKUP($B31&$B34,'Base de données'!$F:$I,4,FALSE)),VLOOKUP($B30&$B34,'Base de données'!$F:$I,4,FALSE)),\"\"))","v":"Expression devant un large publique"}]
[null,"Solis-Bioone",5,{"$f":"IF(IFERROR(IFERROR(IFERROR(IFERROR(VLOOKUP($B34&$B35,'Base de données'!$F:$I,2,FALSE),VLOOKUP($B33&$B35,'Base de données'!$F:$I,2,FALSE)),VLOOKUP($B32&$B35,'Base de données'!$F:$I,2,FALSE)),VLOOKUP($B31&$B35,'Base de données'!$F:$I,2,FALSE)),\"\")=0,\"\",IFERROR(IFERROR(IFERROR(IFERROR(VLOOKUP($B34&$B35,'Base de données'!$F:$I,2,FALSE),VLOOKUP($B33&$B35,'Base de données'!$F:$I,2,FALSE)),VLOOKUP($B32&$B35,'Base de données'!$F:$I,2,FALSE)),VLOOKUP($B31&$B35,'Base de données'!$F:$I,2,FALSE)),\"\"))","v":""},{"$f":"IF(IFERROR(IFERROR(IFERROR(IFERROR(VLOOKUP($B34&$B35,'Base de données'!$F:$I,3,FALSE),VLOOKUP($B33&$B35,'Base de données'!$F:$I,3,FALSE)),VLOOKUP($B32&$B35,'Base de données'!$F:$I,3,FALSE)),VLOOKUP($B31&$B35,'Base de données'!$F:$I,3,FALSE)),\"\")=0,\"\",IFERROR(IFERROR(IFERROR(IFERROR(VLOOKUP($B34&$B35,'Base de données'!$F:$I,3,FALSE),VLOOKUP($B33&$B35,'Base de données'!$F:$I,3,FALSE)),VLOOKUP($B32&$B35,'Base de données'!$F:$I,3,FALSE)),VLOOKUP($B31&$B35,'Base de données'!$F:$I,3,FALSE)),\"\"))","v":""},{"$f":"IF(IFERROR(IFERROR(IFERROR(IFERROR(VLOOKUP($B34&$B35,'Base de données'!$F:$I,4,FALSE),VLOOKUP($B33&$B35,'Base de données'!$F:$I,4,FALSE)),VLOOKUP($B32&$B35,'Base de données'!$F:$I,4,FALSE)),VLOOKUP($B31&$B35,'Base de données'!$F:$I,4,FALSE)),\"\")=0,\"\",IFERROR(IFERROR(IFERROR(IFERROR(VLOOKUP($B34&$B35,'Base de données'!$F:$I,4,FALSE),VLOOKUP($B33&$B35,'Base de données'!$F:$I,4,FALSE)),VLOOKUP($B32&$B35,'Base de données'!$F:$I,4,FALSE)),VLOOKUP($B31&$B35,'Base de données'!$F:$I,4,FALSE)),\"\"))","v":""}]
[null,"Conduite du changement",3,{"$f":"IF(IFERROR(IFERROR(IFERROR(IFERROR(VLOOKUP($B35&$B36,'Base de données'!$F:$I,2,FALSE),VLOOKUP($B34&$B36,'Base de données'!$F:$I,2,FALSE)),VLOOKUP($B33&$B36,'Base de données'!$F:$I,2,FALSE)),VLOOKUP($B32&$B36,'Base de données'!$F:$I,2,FALSE)),\"\")=0,\"\",IFERROR(IFERROR(IFERROR(IFERROR(VLOOKUP($B35&$B36,'Base de données'!$F:$I,2,FALSE),VLOOKUP($B34&$B36,'Base de données'!$F:$I,2,FALSE)),VLOOKUP($B33&$B36,'Base de données'!$F:$I,2,FALSE)),VLOOKUP($B32&$B36,'Base de données'!$F:$I,2,FALSE)),\"\"))","v":"Relations humaines"},{"$f":"IF(IFERROR(IFERROR(IFERROR(IFERROR(VLOOKUP($B35&$B36,'Base de données'!$F:$I,3,FALSE),VLOOKUP($B34&$B36,'Base de données'!$F:$I,3,FALSE)),VLOOKUP($B33&$B36,'Base de données'!$F:$I,3,FALSE)),VLOOKUP($B32&$B36,'Base de données'!$F:$I,3,FALSE)),\"\")=0,\"\",IFERROR(IFERROR(IFERROR(IFERROR(VLOOKUP($B35&$B36,'Base de données'!$F:$I,3,FALSE),VLOOKUP($B34&$B36,'Base de données'!$F:$I,3,FALSE)),VLOOKUP($B33&$B36,'Base de données'!$F:$I,3,FALSE)),VLOOKUP($B32&$B36,'Base de données'!$F:$I,3,FALSE)),\"\"))","v":"Formation"},{"$f":"IF(IFERROR(IFERROR(IFERROR(IFERROR(VLOOKUP($B35&$B36,'Base de données'!$F:$I,4,FALSE),VLOOKUP($B34&$B36,'Base de données'!$F:$I,4,FALSE)),VLOOKUP($B33&$B36,'Base de données'!$F:$I,4,FALSE)),VLOOKUP($B32&$B36,'Base de données'!$F:$I,4,FALSE)),\"\")=0,\"\",IFERROR(IFERROR(IFERROR(IFERROR(VLOOKUP($B35&$B36,'Base de données'!$F:$I,4,FALSE),VLOOKUP($B34&$B36,'Base de données'!$F:$I,4,FALSE)),VLOOKUP($B33&$B36,'Base de données'!$F:$I,4,FALSE)),VLOOKUP($B32&$B36,'Base de données'!$F:$I,4,FALSE)),\"\"))","v":"Gestion de projet"}]
[null,"Création d'un outil de reporting",1,{"$f":"IF(IFERROR(IFERROR(IFERROR(IFERROR(VLOOKUP($B36&$B37,'Base de données'!$F:$I,2,FALSE),VLOOKUP($B35&$B37,'Base de données'!$F:$I,2,FALSE)),VLOOKUP($B34&$B37,'Base de données'!$F:$I,2,FALSE)),VLOOKUP($B33&$B37,'Base de données'!$F:$I,2,FALSE)),\"\")=0,\"\",IFERROR(IFERROR(IFERROR(IFERROR(VLOOKUP($B36&$B37,'Base de données'!$F:$I,2,FALSE),VLOOKUP($B35&$B37,'Base de données'!$F:$I,2,FALSE)),VLOOKUP($B34&$B37,'Base de données'!$F:$I,2,FALSE)),VLOOKUP($B33&$B37,'Base de données'!$F:$I,2,FALSE)),\"\"))","v":"Contrôle de gestion"},{"$f":"IF(IFERROR(IFERROR(IFERROR(IFERROR(VLOOKUP($B36&$B37,'Base de données'!$F:$I,3,FALSE),VLOOKUP($B35&$B37,'Base de données'!$F:$I,3,FALSE)),VLOOKUP($B34&$B37,'Base de données'!$F:$I,3,FALSE)),VLOOKUP($B33&$B37,'Base de données'!$F:$I,3,FALSE)),\"\")=0,\"\",IFERROR(IFERROR(IFERROR(IFERROR(VLOOKUP($B36&$B37,'Base de données'!$F:$I,3,FALSE),VLOOKUP($B35&$B37,'Base de données'!$F:$I,3,FALSE)),VLOOKUP($B34&$B37,'Base de données'!$F:$I,3,FALSE)),VLOOKUP($B33&$B37,'Base de données'!$F:$I,3,FALSE)),\"\"))","v":"CMS"},{"$f":"IF(IFERROR(IFERROR(IFERROR(IFERROR(VLOOKUP($B36&$B37,'Base de données'!$F:$I,4,FALSE),VLOOKUP($B35&$B37,'Base de données'!$F:$I,4,FALSE)),VLOOKUP($B34&$B37,'Base de données'!$F:$I,4,FALSE)),VLOOKUP($B33&$B37,'Base de données'!$F:$I,4,FALSE)),\"\")=0,\"\",IFERROR(IFERROR(IFERROR(IFERROR(VLOOKUP($B36&$B37,'Base de données'!$F:$I,4,FALSE),VLOOKUP($B35&$B37,'Base de données'!$F:$I,4,FALSE)),VLOOKUP($B34&$B37,'Base de données'!$F:$I,4,FALSE)),VLOOKUP($B33&$B37,'Base de données'!$F:$I,4,FALSE)),\"\"))","v":"Gestion de projet"}]
[null,"Implémentation d'un CRM",1,{"$f":"IF(IFERROR(IFERROR(IFERROR(IFERROR(VLOOKUP($B37&$B38,'Base de données'!$F:$I,2,FALSE),VLOOKUP($B36&$B38,'Base de données'!$F:$I,2,FALSE)),VLOOKUP($B35&$B38,'Base de données'!$F:$I,2,FALSE)),VLOOKUP($B34&$B38,'Base de données'!$F:$I,2,FALSE)),\"\")=0,\"\",IFERROR(IFERROR(IFERROR(IFERROR(VLOOKUP($B37&$B38,'Base de données'!$F:$I,2,FALSE),VLOOKUP($B36&$B38,'Base de données'!$F:$I,2,FALSE)),VLOOKUP($B35&$B38,'Base de données'!$F:$I,2,FALSE)),VLOOKUP($B34&$B38,'Base de données'!$F:$I,2,FALSE)),\"\"))","v":"Systèmes d'information"},{"$f":"IF(IFERROR(IFERROR(IFERROR(IFERROR(VLOOKUP($B37&$B38,'Base de données'!$F:$I,3,FALSE),VLOOKUP($B36&$B38,'Base de données'!$F:$I,3,FALSE)),VLOOKUP($B35&$B38,'Base de données'!$F:$I,3,FALSE)),VLOOKUP($B34&$B38,'Base de données'!$F:$I,3,FALSE)),\"\")=0,\"\",IFERROR(IFERROR(IFERROR(IFERROR(VLOOKUP($B37&$B38,'Base de données'!$F:$I,3,FALSE),VLOOKUP($B36&$B38,'Base de données'!$F:$I,3,FALSE)),VLOOKUP($B35&$B38,'Base de données'!$F:$I,3,FALSE)),VLOOKUP($B34&$B38,'Base de données'!$F:$I,3,FALSE)),\"\"))","v":"Gestion de projet"},{"$f":"IF(IFERROR(IFERROR(IFERROR(IFERROR(VLOOKUP($B37&$B38,'Base de données'!$F:$I,4,FALSE),VLOOKUP($B36&$B38,'Base de données'!$F:$I,4,FALSE)),VLOOKUP($B35&$B38,'Base de données'!$F:$I,4,FALSE)),VLOOKUP($B34&$B38,'Base de données'!$F:$I,4,FALSE)),\"\")=0,\"\",IFERROR(IFERROR(IFERROR(IFERROR(VLOOKUP($B37&$B38,'Base de données'!$F:$I,4,FALSE),VLOOKUP($B36&$B38,'Base de données'!$F:$I,4,FALSE)),VLOOKUP($B35&$B38,'Base de données'!$F:$I,4,FALSE)),VLOOKUP($B34&$B38,'Base de données'!$F:$I,4,FALSE)),\"\"))","v":"Langages Web"}]
[null,"ICN Business School",28,{"$f":"IF(IFERROR(IFERROR(IFERROR(IFERROR(VLOOKUP($B38&$B39,'Base de données'!$F:$I,2,FALSE),VLOOKUP($B37&$B39,'Base de données'!$F:$I,2,FALSE)),VLOOKUP($B36&$B39,'Base de données'!$F:$I,2,FALSE)),VLOOKUP($B35&$B39,'Base de données'!$F:$I,2,FALSE)),\"\")=0,\"\",IFERROR(IFERROR(IFERROR(IFERROR(VLOOKUP($B38&$B39,'Base de données'!$F:$I,2,FALSE),VLOOKUP($B37&$B39,'Base de données'!$F:$I,2,FALSE)),VLOOKUP($B36&$B39,'Base de données'!$F:$I,2,FALSE)),VLOOKUP($B35&$B39,'Base de données'!$F:$I,2,FALSE)),\"\"))","v":""},{"$f":"IF(IFERROR(IFERROR(IFERROR(IFERROR(VLOOKUP($B38&$B39,'Base de données'!$F:$I,3,FALSE),VLOOKUP($B37&$B39,'Base de données'!$F:$I,3,FALSE)),VLOOKUP($B36&$B39,'Base de données'!$F:$I,3,FALSE)),VLOOKUP($B35&$B39,'Base de données'!$F:$I,3,FALSE)),\"\")=0,\"\",IFERROR(IFERROR(IFERROR(IFERROR(VLOOKUP($B38&$B39,'Base de données'!$F:$I,3,FALSE),VLOOKUP($B37&$B39,'Base de données'!$F:$I,3,FALSE)),VLOOKUP($B36&$B39,'Base de données'!$F:$I,3,FALSE)),VLOOKUP($B35&$B39,'Base de données'!$F:$I,3,FALSE)),\"\"))","v":""},{"$f":"IF(IFERROR(IFERROR(IFERROR(IFERROR(VLOOKUP($B38&$B39,'Base de données'!$F:$I,4,FALSE),VLOOKUP($B37&$B39,'Base de données'!$F:$I,4,FALSE)),VLOOKUP($B36&$B39,'Base de données'!$F:$I,4,FALSE)),VLOOKUP($B35&$B39,'Base de données'!$F:$I,4,FALSE)),\"\")=0,\"\",IFERROR(IFERROR(IFERROR(IFERROR(VLOOKUP($B38&$B39,'Base de données'!$F:$I,4,FALSE),VLOOKUP($B37&$B39,'Base de données'!$F:$I,4,FALSE)),VLOOKUP($B36&$B39,'Base de données'!$F:$I,4,FALSE)),VLOOKUP($B35&$B39,'Base de données'!$F:$I,4,FALSE)),\"\"))","v":""}]
[null,"Spécialisation Finance/Contrôle",16,{"$f":"IF(IFERROR(IFERROR(IFERROR(IFERROR(VLOOKUP($B39&$B40,'Base de données'!$F:$I,2,FALSE),VLOOKUP($B38&$B40,'Base de données'!$F:$I,2,FALSE)),VLOOKUP($B37&$B40,'Base de données'!$F:$I,2,FALSE)),VLOOKUP($B36&$B40,'Base de données'!$F:$I,2,FALSE)),\"\")=0,\"\",IFERROR(IFERROR(IFERROR(IFERROR(VLOOKUP($B39&$B40,'Base de données'!$F:$I,2,FALSE),VLOOKUP($B38&$B40,'Base de données'!$F:$I,2,FALSE)),VLOOKUP($B37&$B40,'Base de données'!$F:$I,2,FALSE)),VLOOKUP($B36&$B40,'Base de données'!$F:$I,2,FALSE)),\"\"))","v":"Contrôle de gestion"},{"$f":"IF(IFERROR(IFERROR(IFERROR(IFERROR(VLOOKUP($B39&$B40,'Base de données'!$F:$I,3,FALSE),VLOOKUP($B38&$B40,'Base de données'!$F:$I,3,FALSE)),VLOOKUP($B37&$B40,'Base de données'!$F:$I,3,FALSE)),VLOOKUP($B36&$B40,'Base de données'!$F:$I,3,FALSE)),\"\")=0,\"\",IFERROR(IFERROR(IFERROR(IFERROR(VLOOKUP($B39&$B40,'Base de données'!$F:$I,3,FALSE),VLOOKUP($B38&$B40,'Base de données'!$F:$I,3,FALSE)),VLOOKUP($B37&$B40,'Base de données'!$F:$I,3,FALSE)),VLOOKUP($B36&$B40,'Base de données'!$F:$I,3,FALSE)),\"\"))","v":"Comptabilité"},{"$f":"IF(IFERROR(IFERROR(IFERROR(IFERROR(VLOOKUP($B39&$B40,'Base de données'!$F:$I,4,FALSE),VLOOKUP($B38&$B40,'Base de données'!$F:$I,4,FALSE)),VLOOKUP($B37&$B40,'Base de données'!$F:$I,4,FALSE)),VLOOKUP($B36&$B40,'Base de données'!$F:$I,4,FALSE)),\"\")=0,\"\",IFERROR(IFERROR(IFERROR(IFERROR(VLOOKUP($B39&$B40,'Base de données'!$F:$I,4,FALSE),VLOOKUP($B38&$B40,'Base de données'!$F:$I,4,FALSE)),VLOOKUP($B37&$B40,'Base de données'!$F:$I,4,FALSE)),VLOOKUP($B36&$B40,'Base de données'!$F:$I,4,FALSE)),\"\"))","v":"Management"}]
[null,"Cours généraux de Management",12,{"$f":"IF(IFERROR(IFERROR(IFERROR(IFERROR(VLOOKUP($B40&$B41,'Base de données'!$F:$I,2,FALSE),VLOOKUP($B39&$B41,'Base de données'!$F:$I,2,FALSE)),VLOOKUP($B38&$B41,'Base de données'!$F:$I,2,FALSE)),VLOOKUP($B37&$B41,'Base de données'!$F:$I,2,FALSE)),\"\")=0,\"\",IFERROR(IFERROR(IFERROR(IFERROR(VLOOKUP($B40&$B41,'Base de données'!$F:$I,2,FALSE),VLOOKUP($B39&$B41,'Base de données'!$F:$I,2,FALSE)),VLOOKUP($B38&$B41,'Base de données'!$F:$I,2,FALSE)),VLOOKUP($B37&$B41,'Base de données'!$F:$I,2,FALSE)),\"\"))","v":"Management"},{"$f":"IF(IFERROR(IFERROR(IFERROR(IFERROR(VLOOKUP($B40&$B41,'Base de données'!$F:$I,3,FALSE),VLOOKUP($B39&$B41,'Base de données'!$F:$I,3,FALSE)),VLOOKUP($B38&$B41,'Base de données'!$F:$I,3,FALSE)),VLOOKUP($B37&$B41,'Base de données'!$F:$I,3,FALSE)),\"\")=0,\"\",IFERROR(IFERROR(IFERROR(IFERROR(VLOOKUP($B40&$B41,'Base de données'!$F:$I,3,FALSE),VLOOKUP($B39&$B41,'Base de données'!$F:$I,3,FALSE)),VLOOKUP($B38&$B41,'Base de données'!$F:$I,3,FALSE)),VLOOKUP($B37&$B41,'Base de données'!$F:$I,3,FALSE)),\"\"))","v":"Comptabilité"},{"$f":"IF(IFERROR(IFERROR(IFERROR(IFERROR(VLOOKUP($B40&$B41,'Base de données'!$F:$I,4,FALSE),VLOOKUP($B39&$B41,'Base de données'!$F:$I,4,FALSE)),VLOOKUP($B38&$B41,'Base de données'!$F:$I,4,FALSE)),VLOOKUP($B37&$B41,'Base de données'!$F:$I,4,FALSE)),\"\")=0,\"\",IFERROR(IFERROR(IFERROR(IFERROR(VLOOKUP($B40&$B41,'Base de données'!$F:$I,4,FALSE),VLOOKUP($B39&$B41,'Base de données'!$F:$I,4,FALSE)),VLOOKUP($B38&$B41,'Base de données'!$F:$I,4,FALSE)),VLOOKUP($B37&$B41,'Base de données'!$F:$I,4,FALSE)),\"\"))","v":"Contrôle de gestion"}]
[null,"Classes préparatoires ECE",24,{"$f":"IF(IFERROR(IFERROR(IFERROR(IFERROR(VLOOKUP($B41&$B42,'Base de données'!$F:$I,2,FALSE),VLOOKUP($B40&$B42,'Base de données'!$F:$I,2,FALSE)),VLOOKUP($B39&$B42,'Base de données'!$F:$I,2,FALSE)),VLOOKUP($B38&$B42,'Base de données'!$F:$I,2,FALSE)),\"\")=0,\"\",IFERROR(IFERROR(IFERROR(IFERROR(VLOOKUP($B41&$B42,'Base de données'!$F:$I,2,FALSE),VLOOKUP($B40&$B42,'Base de données'!$F:$I,2,FALSE)),VLOOKUP($B39&$B42,'Base de données'!$F:$I,2,FALSE)),VLOOKUP($B38&$B42,'Base de données'!$F:$I,2,FALSE)),\"\"))","v":""},{"$f":"IF(IFERROR(IFERROR(IFERROR(IFERROR(VLOOKUP($B41&$B42,'Base de données'!$F:$I,3,FALSE),VLOOKUP($B40&$B42,'Base de données'!$F:$I,3,FALSE)),VLOOKUP($B39&$B42,'Base de données'!$F:$I,3,FALSE)),VLOOKUP($B38&$B42,'Base de données'!$F:$I,3,FALSE)),\"\")=0,\"\",IFERROR(IFERROR(IFERROR(IFERROR(VLOOKUP($B41&$B42,'Base de données'!$F:$I,3,FALSE),VLOOKUP($B40&$B42,'Base de données'!$F:$I,3,FALSE)),VLOOKUP($B39&$B42,'Base de données'!$F:$I,3,FALSE)),VLOOKUP($B38&$B42,'Base de données'!$F:$I,3,FALSE)),\"\"))","v":""},{"$f":"IF(IFERROR(IFERROR(IFERROR(IFERROR(VLOOKUP($B41&$B42,'Base de données'!$F:$I,4,FALSE),VLOOKUP($B40&$B42,'Base de données'!$F:$I,4,FALSE)),VLOOKUP($B39&$B42,'Base de données'!$F:$I,4,FALSE)),VLOOKUP($B38&$B42,'Base de données'!$F:$I,4,FALSE)),\"\")=0,\"\",IFERROR(IFERROR(IFERROR(IFERROR(VLOOKUP($B41&$B42,'Base de données'!$F:$I,4,FALSE),VLOOKUP($B40&$B42,'Base de données'!$F:$I,4,FALSE)),VLOOKUP($B39&$B42,'Base de données'!$F:$I,4,FALSE)),VLOOKUP($B38&$B42,'Base de données'!$F:$I,4,FALSE)),\"\"))","v":""}]
[null,"Cours généraux",24,{"$f":"IF(IFERROR(IFERROR(IFERROR(IFERROR(VLOOKUP($B42&$B43,'Base de données'!$F:$I,2,FALSE),VLOOKUP($B41&$B43,'Base de données'!$F:$I,2,FALSE)),VLOOKUP($B40&$B43,'Base de données'!$F:$I,2,FALSE)),VLOOKUP($B39&$B43,'Base de données'!$F:$I,2,FALSE)),\"\")=0,\"\",IFERROR(IFERROR(IFERROR(IFERROR(VLOOKUP($B42&$B43,'Base de données'!$F:$I,2,FALSE),VLOOKUP($B41&$B43,'Base de données'!$F:$I,2,FALSE)),VLOOKUP($B40&$B43,'Base de données'!$F:$I,2,FALSE)),VLOOKUP($B39&$B43,'Base de données'!$F:$I,2,FALSE)),\"\"))","v":"Mathématiques"},{"$f":"IF(IFERROR(IFERROR(IFERROR(IFERROR(VLOOKUP($B42&$B43,'Base de données'!$F:$I,3,FALSE),VLOOKUP($B41&$B43,'Base de données'!$F:$I,3,FALSE)),VLOOKUP($B40&$B43,'Base de données'!$F:$I,3,FALSE)),VLOOKUP($B39&$B43,'Base de données'!$F:$I,3,FALSE)),\"\")=0,\"\",IFERROR(IFERROR(IFERROR(IFERROR(VLOOKUP($B42&$B43,'Base de données'!$F:$I,3,FALSE),VLOOKUP($B41&$B43,'Base de données'!$F:$I,3,FALSE)),VLOOKUP($B40&$B43,'Base de données'!$F:$I,3,FALSE)),VLOOKUP($B39&$B43,'Base de données'!$F:$I,3,FALSE)),\"\"))","v":"Economie"},{"$f":"IF(IFERROR(IFERROR(IFERROR(IFERROR(VLOOKUP($B42&$B43,'Base de données'!$F:$I,4,FALSE),VLOOKUP($B41&$B43,'Base de données'!$F:$I,4,FALSE)),VLOOKUP($B40&$B43,'Base de données'!$F:$I,4,FALSE)),VLOOKUP($B39&$B43,'Base de données'!$F:$I,4,FALSE)),\"\")=0,\"\",IFERROR(IFERROR(IFERROR(IFERROR(VLOOKUP($B42&$B43,'Base de données'!$F:$I,4,FALSE),VLOOKUP($B41&$B43,'Base de données'!$F:$I,4,FALSE)),VLOOKUP($B40&$B43,'Base de données'!$F:$I,4,FALSE)),VLOOKUP($B39&$B43,'Base de données'!$F:$I,4,FALSE)),\"\"))","v":"Langues"}]
[null,"Improdisiaque",36,{"$f":"IF(IFERROR(IFERROR(IFERROR(IFERROR(VLOOKUP($B43&$B44,'Base de données'!$F:$I,2,FALSE),VLOOKUP($B42&$B44,'Base de données'!$F:$I,2,FALSE)),VLOOKUP($B41&$B44,'Base de données'!$F:$I,2,FALSE)),VLOOKUP($B40&$B44,'Base de données'!$F:$I,2,FALSE)),\"\")=0,\"\",IFERROR(IFERROR(IFERROR(IFERROR(VLOOKUP($B43&$B44,'Base de données'!$F:$I,2,FALSE),VLOOKUP($B42&$B44,'Base de données'!$F:$I,2,FALSE)),VLOOKUP($B41&$B44,'Base de données'!$F:$I,2,FALSE)),VLOOKUP($B40&$B44,'Base de données'!$F:$I,2,FALSE)),\"\"))","v":""},{"$f":"IF(IFERROR(IFERROR(IFERROR(IFERROR(VLOOKUP($B43&$B44,'Base de données'!$F:$I,3,FALSE),VLOOKUP($B42&$B44,'Base de données'!$F:$I,3,FALSE)),VLOOKUP($B41&$B44,'Base de données'!$F:$I,3,FALSE)),VLOOKUP($B40&$B44,'Base de données'!$F:$I,3,FALSE)),\"\")=0,\"\",IFERROR(IFERROR(IFERROR(IFERROR(VLOOKUP($B43&$B44,'Base de données'!$F:$I,3,FALSE),VLOOKUP($B42&$B44,'Base de données'!$F:$I,3,FALSE)),VLOOKUP($B41&$B44,'Base de données'!$F:$I,3,FALSE)),VLOOKUP($B40&$B44,'Base de données'!$F:$I,3,FALSE)),\"\"))","v":""},{"$f":"IF(IFERROR(IFERROR(IFERROR(IFERROR(VLOOKUP($B43&$B44,'Base de données'!$F:$I,4,FALSE),VLOOKUP($B42&$B44,'Base de données'!$F:$I,4,FALSE)),VLOOKUP($B41&$B44,'Base de données'!$F:$I,4,FALSE)),VLOOKUP($B40&$B44,'Base de données'!$F:$I,4,FALSE)),\"\")=0,\"\",IFERROR(IFERROR(IFERROR(IFERROR(VLOOKUP($B43&$B44,'Base de données'!$F:$I,4,FALSE),VLOOKUP($B42&$B44,'Base de données'!$F:$I,4,FALSE)),VLOOKUP($B41&$B44,'Base de données'!$F:$I,4,FALSE)),VLOOKUP($B40&$B44,'Base de données'!$F:$I,4,FALSE)),\"\"))","v":""}]
[null,"Jouteur",36,{"$f":"IF(IFERROR(IFERROR(IFERROR(IFERROR(VLOOKUP($B44&$B45,'Base de données'!$F:$I,2,FALSE),VLOOKUP($B43&$B45,'Base de données'!$F:$I,2,FALSE)),VLOOKUP($B42&$B45,'Base de données'!$F:$I,2,FALSE)),VLOOKUP($B41&$B45,'Base de données'!$F:$I,2,FALSE)),\"\")=0,\"\",IFERROR(IFERROR(IFERROR(IFERROR(VLOOKUP($B44&$B45,'Base de données'!$F:$I,2,FALSE),VLOOKUP($B43&$B45,'Base de données'!$F:$I,2,FALSE)),VLOOKUP($B42&$B45,'Base de données'!$F:$I,2,FALSE)),VLOOKUP($B41&$B45,'Base de données'!$F:$I,2,FALSE)),\"\"))","v":"Expression devant un large publique"},{"$f":"IF(IFERROR(IFERROR(IFERROR(IFERROR(VLOOKUP($B44&$B45,'Base de données'!$F:$I,3,FALSE),VLOOKUP($B43&$B45,'Base de données'!$F:$I,3,FALSE)),VLOOKUP($B42&$B45,'Base de données'!$F:$I,3,FALSE)),VLOOKUP($B41&$B45,'Base de données'!$F:$I,3,FALSE)),\"\")=0,\"\",IFERROR(IFERROR(IFERROR(IFERROR(VLOOKUP($B44&$B45,'Base de données'!$F:$I,3,FALSE),VLOOKUP($B43&$B45,'Base de données'!$F:$I,3,FALSE)),VLOOKUP($B42&$B45,'Base de données'!$F:$I,3,FALSE)),VLOOKUP($B41&$B45,'Base de données'!$F:$I,3,FALSE)),\"\"))","v":"Management"},{"$f":"IF(IFERROR(IFERROR(IFERROR(IFERROR(VLOOKUP($B44&$B45,'Base de données'!$F:$I,4,FALSE),VLOOKUP($B43&$B45,'Base de données'!$F:$I,4,FALSE)),VLOOKUP($B42&$B45,'Base de données'!$F:$I,4,FALSE)),VLOOKUP($B41&$B45,'Base de données'!$F:$I,4,FALSE)),\"\")=0,\"\",IFERROR(IFERROR(IFERROR(IFERROR(VLOOKUP($B44&$B45,'Base de données'!$F:$I,4,FALSE),VLOOKUP($B43&$B45,'Base de données'!$F:$I,4,FALSE)),VLOOKUP($B42&$B45,'Base de données'!$F:$I,4,FALSE)),VLOOKUP($B41&$B45,'Base de données'!$F:$I,4,FALSE)),\"\"))","v":"Communication"}]
[null,"Walliks",18,{"$f":"IF(IFERROR(IFERROR(IFERROR(IFERROR(VLOOKUP($B45&$B46,'Base de données'!$F:$I,2,FALSE),VLOOKUP($B44&$B46,'Base de données'!$F:$I,2,FALSE)),VLOOKUP($B43&$B46,'Base de données'!$F:$I,2,FALSE)),VLOOKUP($B42&$B46,'Base de données'!$F:$I,2,FALSE)),\"\")=0,\"\",IFERROR(IFERROR(IFERROR(IFERROR(VLOOKUP($B45&$B46,'Base de données'!$F:$I,2,FALSE),VLOOKUP($B44&$B46,'Base de données'!$F:$I,2,FALSE)),VLOOKUP($B43&$B46,'Base de données'!$F:$I,2,FALSE)),VLOOKUP($B42&$B46,'Base de données'!$F:$I,2,FALSE)),\"\"))","v":""},{"$f":"IF(IFERROR(IFERROR(IFERROR(IFERROR(VLOOKUP($B45&$B46,'Base de données'!$F:$I,3,FALSE),VLOOKUP($B44&$B46,'Base de données'!$F:$I,3,FALSE)),VLOOKUP($B43&$B46,'Base de données'!$F:$I,3,FALSE)),VLOOKUP($B42&$B46,'Base de données'!$F:$I,3,FALSE)),\"\")=0,\"\",IFERROR(IFERROR(IFERROR(IFERROR(VLOOKUP($B45&$B46,'Base de données'!$F:$I,3,FALSE),VLOOKUP($B44&$B46,'Base de données'!$F:$I,3,FALSE)),VLOOKUP($B43&$B46,'Base de données'!$F:$I,3,FALSE)),VLOOKUP($B42&$B46,'Base de données'!$F:$I,3,FALSE)),\"\"))","v":""},{"$f":"IF(IFERROR(IFERROR(IFERROR(IFERROR(VLOOKUP($B45&$B46,'Base de données'!$F:$I,4,FALSE),VLOOKUP($B44&$B46,'Base de données'!$F:$I,4,FALSE)),VLOOKUP($B43&$B46,'Base de données'!$F:$I,4,FALSE)),VLOOKUP($B42&$B46,'Base de données'!$F:$I,4,FALSE)),\"\")=0,\"\",IFERROR(IFERROR(IFERROR(IFERROR(VLOOKUP($B45&$B46,'Base de données'!$F:$I,4,FALSE),VLOOKUP($B44&$B46,'Base de données'!$F:$I,4,FALSE)),VLOOKUP($B43&$B46,'Base de données'!$F:$I,4,FALSE)),VLOOKUP($B42&$B46,'Base de données'!$F:$I,4,FALSE)),\"\"))","v":""}]
[null,"Création du Business Model",2,{"$f":"IF(IFERROR(IFERROR(IFERROR(IFERROR(VLOOKUP($B46&$B47,'Base de données'!$F:$I,2,FALSE),VLOOKUP($B45&$B47,'Base de données'!$F:$I,2,FALSE)),VLOOKUP($B44&$B47,'Base de données'!$F:$I,2,FALSE)),VLOOKUP($B43&$B47,'Base de données'!$F:$I,2,FALSE)),\"\")=0,\"\",IFERROR(IFERROR(IFERROR(IFERROR(VLOOKUP($B46&$B47,'Base de données'!$F:$I,2,FALSE),VLOOKUP($B45&$B47,'Base de données'!$F:$I,2,FALSE)),VLOOKUP($B44&$B47,'Base de données'!$F:$I,2,FALSE)),VLOOKUP($B43&$B47,'Base de données'!$F:$I,2,FALSE)),\"\"))","v":"Management"},{"$f":"IF(IFERROR(IFERROR(IFERROR(IFERROR(VLOOKUP($B46&$B47,'Base de données'!$F:$I,3,FALSE),VLOOKUP($B45&$B47,'Base de données'!$F:$I,3,FALSE)),VLOOKUP($B44&$B47,'Base de données'!$F:$I,3,FALSE)),VLOOKUP($B43&$B47,'Base de données'!$F:$I,3,FALSE)),\"\")=0,\"\",IFERROR(IFERROR(IFERROR(IFERROR(VLOOKUP($B46&$B47,'Base de données'!$F:$I,3,FALSE),VLOOKUP($B45&$B47,'Base de données'!$F:$I,3,FALSE)),VLOOKUP($B44&$B47,'Base de données'!$F:$I,3,FALSE)),VLOOKUP($B43&$B47,'Base de données'!$F:$I,3,FALSE)),\"\"))","v":"Relations humaines"},{"$f":"IF(IFERROR(IFERROR(IFERROR(IFERROR(VLOOKUP($B46&$B47,'Base de données'!$F:$I,4,FALSE),VLOOKUP($B45&$B47,'Base de données'!$F:$I,4,FALSE)),VLOOKUP($B44&$B47,'Base de données'!$F:$I,4,FALSE)),VLOOKUP($B43&$B47,'Base de données'!$F:$I,4,FALSE)),\"\")=0,\"\",IFERROR(IFERROR(IFERROR(IFERROR(VLOOKUP($B46&$B47,'Base de données'!$F:$I,4,FALSE),VLOOKUP($B45&$B47,'Base de données'!$F:$I,4,FALSE)),VLOOKUP($B44&$B47,'Base de données'!$F:$I,4,FALSE)),VLOOKUP($B43&$B47,'Base de données'!$F:$I,4,FALSE)),\"\"))","v":""}]
[null,"Création de la plateforme web",6,{"$f":"IF(IFERROR(IFERROR(IFERROR(IFERROR(VLOOKUP($B47&$B48,'Base de données'!$F:$I,2,FALSE),VLOOKUP($B46&$B48,'Base de données'!$F:$I,2,FALSE)),VLOOKUP($B45&$B48,'Base de données'!$F:$I,2,FALSE)),VLOOKUP($B44&$B48,'Base de données'!$F:$I,2,FALSE)),\"\")=0,\"\",IFERROR(IFERROR(IFERROR(IFERROR(VLOOKUP($B47&$B48,'Base de données'!$F:$I,2,FALSE),VLOOKUP($B46&$B48,'Base de données'!$F:$I,2,FALSE)),VLOOKUP($B45&$B48,'Base de données'!$F:$I,2,FALSE)),VLOOKUP($B44&$B48,'Base de données'!$F:$I,2,FALSE)),\"\"))","v":"Langages Web"},{"$f":"IF(IFERROR(IFERROR(IFERROR(IFERROR(VLOOKUP($B47&$B48,'Base de données'!$F:$I,3,FALSE),VLOOKUP($B46&$B48,'Base de données'!$F:$I,3,FALSE)),VLOOKUP($B45&$B48,'Base de données'!$F:$I,3,FALSE)),VLOOKUP($B44&$B48,'Base de données'!$F:$I,3,FALSE)),\"\")=0,\"\",IFERROR(IFERROR(IFERROR(IFERROR(VLOOKUP($B47&$B48,'Base de données'!$F:$I,3,FALSE),VLOOKUP($B46&$B48,'Base de données'!$F:$I,3,FALSE)),VLOOKUP($B45&$B48,'Base de données'!$F:$I,3,FALSE)),VLOOKUP($B44&$B48,'Base de données'!$F:$I,3,FALSE)),\"\"))","v":"Gestion de projet"},{"$f":"IF(IFERROR(IFERROR(IFERROR(IFERROR(VLOOKUP($B47&$B48,'Base de données'!$F:$I,4,FALSE),VLOOKUP($B46&$B48,'Base de données'!$F:$I,4,FALSE)),VLOOKUP($B45&$B48,'Base de données'!$F:$I,4,FALSE)),VLOOKUP($B44&$B48,'Base de données'!$F:$I,4,FALSE)),\"\")=0,\"\",IFERROR(IFERROR(IFERROR(IFERROR(VLOOKUP($B47&$B48,'Base de données'!$F:$I,4,FALSE),VLOOKUP($B46&$B48,'Base de données'!$F:$I,4,FALSE)),VLOOKUP($B45&$B48,'Base de données'!$F:$I,4,FALSE)),VLOOKUP($B44&$B48,'Base de données'!$F:$I,4,FALSE)),\"\"))","v":""}]
[null,"Création administrative",1,{"$f":"IF(IFERROR(IFERROR(IFERROR(IFERROR(VLOOKUP($B48&$B49,'Base de données'!$F:$I,2,FALSE),VLOOKUP($B47&$B49,'Base de données'!$F:$I,2,FALSE)),VLOOKUP($B46&$B49,'Base de données'!$F:$I,2,FALSE)),VLOOKUP($B45&$B49,'Base de données'!$F:$I,2,FALSE)),\"\")=0,\"\",IFERROR(IFERROR(IFERROR(IFERROR(VLOOKUP($B48&$B49,'Base de données'!$F:$I,2,FALSE),VLOOKUP($B47&$B49,'Base de données'!$F:$I,2,FALSE)),VLOOKUP($B46&$B49,'Base de données'!$F:$I,2,FALSE)),VLOOKUP($B45&$B49,'Base de données'!$F:$I,2,FALSE)),\"\"))","v":"Relations humaines"},{"$f":"IF(IFERROR(IFERROR(IFERROR(IFERROR(VLOOKUP($B48&$B49,'Base de données'!$F:$I,3,FALSE),VLOOKUP($B47&$B49,'Base de données'!$F:$I,3,FALSE)),VLOOKUP($B46&$B49,'Base de données'!$F:$I,3,FALSE)),VLOOKUP($B45&$B49,'Base de données'!$F:$I,3,FALSE)),\"\")=0,\"\",IFERROR(IFERROR(IFERROR(IFERROR(VLOOKUP($B48&$B49,'Base de données'!$F:$I,3,FALSE),VLOOKUP($B47&$B49,'Base de données'!$F:$I,3,FALSE)),VLOOKUP($B46&$B49,'Base de données'!$F:$I,3,FALSE)),VLOOKUP($B45&$B49,'Base de données'!$F:$I,3,FALSE)),\"\"))","v":"Management"},{"$f":"IF(IFERROR(IFERROR(IFERROR(IFERROR(VLOOKUP($B48&$B49,'Base de données'!$F:$I,4,FALSE),VLOOKUP($B47&$B49,'Base de données'!$F:$I,4,FALSE)),VLOOKUP($B46&$B49,'Base de données'!$F:$I,4,FALSE)),VLOOKUP($B45&$B49,'Base de données'!$F:$I,4,FALSE)),\"\")=0,\"\",IFERROR(IFERROR(IFERROR(IFERROR(VLOOKUP($B48&$B49,'Base de données'!$F:$I,4,FALSE),VLOOKUP($B47&$B49,'Base de données'!$F:$I,4,FALSE)),VLOOKUP($B46&$B49,'Base de données'!$F:$I,4,FALSE)),VLOOKUP($B45&$B49,'Base de données'!$F:$I,4,FALSE)),\"\"))","v":""}]
[null,"Gestion de l'activité",9,{"$f":"IF(IFERROR(IFERROR(IFERROR(IFERROR(VLOOKUP($B49&$B50,'Base de données'!$F:$I,2,FALSE),VLOOKUP($B48&$B50,'Base de données'!$F:$I,2,FALSE)),VLOOKUP($B47&$B50,'Base de données'!$F:$I,2,FALSE)),VLOOKUP($B46&$B50,'Base de données'!$F:$I,2,FALSE)),\"\")=0,\"\",IFERROR(IFERROR(IFERROR(IFERROR(VLOOKUP($B49&$B50,'Base de données'!$F:$I,2,FALSE),VLOOKUP($B48&$B50,'Base de données'!$F:$I,2,FALSE)),VLOOKUP($B47&$B50,'Base de données'!$F:$I,2,FALSE)),VLOOKUP($B46&$B50,'Base de données'!$F:$I,2,FALSE)),\"\"))","v":"Management"},{"$f":"IF(IFERROR(IFERROR(IFERROR(IFERROR(VLOOKUP($B49&$B50,'Base de données'!$F:$I,3,FALSE),VLOOKUP($B48&$B50,'Base de données'!$F:$I,3,FALSE)),VLOOKUP($B47&$B50,'Base de données'!$F:$I,3,FALSE)),VLOOKUP($B46&$B50,'Base de données'!$F:$I,3,FALSE)),\"\")=0,\"\",IFERROR(IFERROR(IFERROR(IFERROR(VLOOKUP($B49&$B50,'Base de données'!$F:$I,3,FALSE),VLOOKUP($B48&$B50,'Base de données'!$F:$I,3,FALSE)),VLOOKUP($B47&$B50,'Base de données'!$F:$I,3,FALSE)),VLOOKUP($B46&$B50,'Base de données'!$F:$I,3,FALSE)),\"\"))","v":"Webmarketing"},{"$f":"IF(IFERROR(IFERROR(IFERROR(IFERROR(VLOOKUP($B49&$B50,'Base de données'!$F:$I,4,FALSE),VLOOKUP($B48&$B50,'Base de données'!$F:$I,4,FALSE)),VLOOKUP($B47&$B50,'Base de données'!$F:$I,4,FALSE)),VLOOKUP($B46&$B50,'Base de données'!$F:$I,4,FALSE)),\"\")=0,\"\",IFERROR(IFERROR(IFERROR(IFERROR(VLOOKUP($B49&$B50,'Base de données'!$F:$I,4,FALSE),VLOOKUP($B48&$B50,'Base de données'!$F:$I,4,FALSE)),VLOOKUP($B47&$B50,'Base de données'!$F:$I,4,FALSE)),VLOOKUP($B46&$B50,'Base de données'!$F:$I,4,FALSE)),\"\"))","v":"Contrôle de gestion"}]
[null,"CHRU Nancy",6,{"$f":"IF(IFERROR(IFERROR(IFERROR(IFERROR(VLOOKUP($B50&$B51,'Base de données'!$F:$I,2,FALSE),VLOOKUP($B49&$B51,'Base de données'!$F:$I,2,FALSE)),VLOOKUP($B48&$B51,'Base de données'!$F:$I,2,FALSE)),VLOOKUP($B47&$B51,'Base de données'!$F:$I,2,FALSE)),\"\")=0,\"\",IFERROR(IFERROR(IFERROR(IFERROR(VLOOKUP($B50&$B51,'Base de données'!$F:$I,2,FALSE),VLOOKUP($B49&$B51,'Base de données'!$F:$I,2,FALSE)),VLOOKUP($B48&$B51,'Base de données'!$F:$I,2,FALSE)),VLOOKUP($B47&$B51,'Base de données'!$F:$I,2,FALSE)),\"\"))","v":""},{"$f":"IF(IFERROR(IFERROR(IFERROR(IFERROR(VLOOKUP($B50&$B51,'Base de données'!$F:$I,3,FALSE),VLOOKUP($B49&$B51,'Base de données'!$F:$I,3,FALSE)),VLOOKUP($B48&$B51,'Base de données'!$F:$I,3,FALSE)),VLOOKUP($B47&$B51,'Base de données'!$F:$I,3,FALSE)),\"\")=0,\"\",IFERROR(IFERROR(IFERROR(IFERROR(VLOOKUP($B50&$B51,'Base de données'!$F:$I,3,FALSE),VLOOKUP($B49&$B51,'Base de données'!$F:$I,3,FALSE)),VLOOKUP($B48&$B51,'Base de données'!$F:$I,3,FALSE)),VLOOKUP($B47&$B51,'Base de données'!$F:$I,3,FALSE)),\"\"))","v":""},{"$f":"IF(IFERROR(IFERROR(IFERROR(IFERROR(VLOOKUP($B50&$B51,'Base de données'!$F:$I,4,FALSE),VLOOKUP($B49&$B51,'Base de données'!$F:$I,4,FALSE)),VLOOKUP($B48&$B51,'Base de données'!$F:$I,4,FALSE)),VLOOKUP($B47&$B51,'Base de données'!$F:$I,4,FALSE)),\"\")=0,\"\",IFERROR(IFERROR(IFERROR(IFERROR(VLOOKUP($B50&$B51,'Base de données'!$F:$I,4,FALSE),VLOOKUP($B49&$B51,'Base de données'!$F:$I,4,FALSE)),VLOOKUP($B48&$B51,'Base de données'!$F:$I,4,FALSE)),VLOOKUP($B47&$B51,'Base de données'!$F:$I,4,FALSE)),\"\"))","v":""}]
[null,"Création d'un outil de reporting",1.5,{"$f":"IF(IFERROR(IFERROR(IFERROR(IFERROR(VLOOKUP($B51&$B52,'Base de données'!$F:$I,2,FALSE),VLOOKUP($B50&$B52,'Base de données'!$F:$I,2,FALSE)),VLOOKUP($B49&$B52,'Base de données'!$F:$I,2,FALSE)),VLOOKUP($B48&$B52,'Base de données'!$F:$I,2,FALSE)),\"\")=0,\"\",IFERROR(IFERROR(IFERROR(IFERROR(VLOOKUP($B51&$B52,'Base de données'!$F:$I,2,FALSE),VLOOKUP($B50&$B52,'Base de données'!$F:$I,2,FALSE)),VLOOKUP($B49&$B52,'Base de données'!$F:$I,2,FALSE)),VLOOKUP($B48&$B52,'Base de données'!$F:$I,2,FALSE)),\"\"))","v":"Contrôle de gestion"},{"$f":"IF(IFERROR(IFERROR(IFERROR(IFERROR(VLOOKUP($B51&$B52,'Base de données'!$F:$I,3,FALSE),VLOOKUP($B50&$B52,'Base de données'!$F:$I,3,FALSE)),VLOOKUP($B49&$B52,'Base de données'!$F:$I,3,FALSE)),VLOOKUP($B48&$B52,'Base de données'!$F:$I,3,FALSE)),\"\")=0,\"\",IFERROR(IFERROR(IFERROR(IFERROR(VLOOKUP($B51&$B52,'Base de données'!$F:$I,3,FALSE),VLOOKUP($B50&$B52,'Base de données'!$F:$I,3,FALSE)),VLOOKUP($B49&$B52,'Base de données'!$F:$I,3,FALSE)),VLOOKUP($B48&$B52,'Base de données'!$F:$I,3,FALSE)),\"\"))","v":"Langages web"},{"$f":"IF(IFERROR(IFERROR(IFERROR(IFERROR(VLOOKUP($B51&$B52,'Base de données'!$F:$I,4,FALSE),VLOOKUP($B50&$B52,'Base de données'!$F:$I,4,FALSE)),VLOOKUP($B49&$B52,'Base de données'!$F:$I,4,FALSE)),VLOOKUP($B48&$B52,'Base de données'!$F:$I,4,FALSE)),\"\")=0,\"\",IFERROR(IFERROR(IFERROR(IFERROR(VLOOKUP($B51&$B52,'Base de données'!$F:$I,4,FALSE),VLOOKUP($B50&$B52,'Base de données'!$F:$I,4,FALSE)),VLOOKUP($B49&$B52,'Base de données'!$F:$I,4,FALSE)),VLOOKUP($B48&$B52,'Base de données'!$F:$I,4,FALSE)),\"\"))","v":"Gestion de projet"}]
[null,"Audit des besoins pour un outil décisionnel",2,{"$f":"IF(IFERROR(IFERROR(IFERROR(IFERROR(VLOOKUP($B52&$B53,'Base de données'!$F:$I,2,FALSE),VLOOKUP($B51&$B53,'Base de données'!$F:$I,2,FALSE)),VLOOKUP($B50&$B53,'Base de données'!$F:$I,2,FALSE)),VLOOKUP($B49&$B53,'Base de données'!$F:$I,2,FALSE)),\"\")=0,\"\",IFERROR(IFERROR(IFERROR(IFERROR(VLOOKUP($B52&$B53,'Base de données'!$F:$I,2,FALSE),VLOOKUP($B51&$B53,'Base de données'!$F:$I,2,FALSE)),VLOOKUP($B50&$B53,'Base de données'!$F:$I,2,FALSE)),VLOOKUP($B49&$B53,'Base de données'!$F:$I,2,FALSE)),\"\"))","v":"Systèmes d'information"},{"$f":"IF(IFERROR(IFERROR(IFERROR(IFERROR(VLOOKUP($B52&$B53,'Base de données'!$F:$I,3,FALSE),VLOOKUP($B51&$B53,'Base de données'!$F:$I,3,FALSE)),VLOOKUP($B50&$B53,'Base de données'!$F:$I,3,FALSE)),VLOOKUP($B49&$B53,'Base de données'!$F:$I,3,FALSE)),\"\")=0,\"\",IFERROR(IFERROR(IFERROR(IFERROR(VLOOKUP($B52&$B53,'Base de données'!$F:$I,3,FALSE),VLOOKUP($B51&$B53,'Base de données'!$F:$I,3,FALSE)),VLOOKUP($B50&$B53,'Base de données'!$F:$I,3,FALSE)),VLOOKUP($B49&$B53,'Base de données'!$F:$I,3,FALSE)),\"\"))","v":"Relations humaines"},{"$f":"IF(IFERROR(IFERROR(IFERROR(IFERROR(VLOOKUP($B52&$B53,'Base de données'!$F:$I,4,FALSE),VLOOKUP($B51&$B53,'Base de données'!$F:$I,4,FALSE)),VLOOKUP($B50&$B53,'Base de données'!$F:$I,4,FALSE)),VLOOKUP($B49&$B53,'Base de données'!$F:$I,4,FALSE)),\"\")=0,\"\",IFERROR(IFERROR(IFERROR(IFERROR(VLOOKUP($B52&$B53,'Base de données'!$F:$I,4,FALSE),VLOOKUP($B51&$B53,'Base de données'!$F:$I,4,FALSE)),VLOOKUP($B50&$B53,'Base de données'!$F:$I,4,FALSE)),VLOOKUP($B49&$B53,'Base de données'!$F:$I,4,FALSE)),\"\"))","v":"Contrôle de gestion"}]
[null,"Analyses ad hoc et reporting",2.5,{"$f":"IF(IFERROR(IFERROR(IFERROR(IFERROR(VLOOKUP($B53&$B54,'Base de données'!$F:$I,2,FALSE),VLOOKUP($B52&$B54,'Base de données'!$F:$I,2,FALSE)),VLOOKUP($B51&$B54,'Base de données'!$F:$I,2,FALSE)),VLOOKUP($B50&$B54,'Base de données'!$F:$I,2,FALSE)),\"\")=0,\"\",IFERROR(IFERROR(IFERROR(IFERROR(VLOOKUP($B53&$B54,'Base de données'!$F:$I,2,FALSE),VLOOKUP($B52&$B54,'Base de données'!$F:$I,2,FALSE)),VLOOKUP($B51&$B54,'Base de données'!$F:$I,2,FALSE)),VLOOKUP($B50&$B54,'Base de données'!$F:$I,2,FALSE)),\"\"))","v":"Contrôle de gestion"},{"$f":"IF(IFERROR(IFERROR(IFERROR(IFERROR(VLOOKUP($B53&$B54,'Base de données'!$F:$I,3,FALSE),VLOOKUP($B52&$B54,'Base de données'!$F:$I,3,FALSE)),VLOOKUP($B51&$B54,'Base de données'!$F:$I,3,FALSE)),VLOOKUP($B50&$B54,'Base de données'!$F:$I,3,FALSE)),\"\")=0,\"\",IFERROR(IFERROR(IFERROR(IFERROR(VLOOKUP($B53&$B54,'Base de données'!$F:$I,3,FALSE),VLOOKUP($B52&$B54,'Base de données'!$F:$I,3,FALSE)),VLOOKUP($B51&$B54,'Base de données'!$F:$I,3,FALSE)),VLOOKUP($B50&$B54,'Base de données'!$F:$I,3,FALSE)),\"\"))","v":"Comptabilité"},{"$f":"IF(IFERROR(IFERROR(IFERROR(IFERROR(VLOOKUP($B53&$B54,'Base de données'!$F:$I,4,FALSE),VLOOKUP($B52&$B54,'Base de données'!$F:$I,4,FALSE)),VLOOKUP($B51&$B54,'Base de données'!$F:$I,4,FALSE)),VLOOKUP($B50&$B54,'Base de données'!$F:$I,4,FALSE)),\"\")=0,\"\",IFERROR(IFERROR(IFERROR(IFERROR(VLOOKUP($B53&$B54,'Base de données'!$F:$I,4,FALSE),VLOOKUP($B52&$B54,'Base de données'!$F:$I,4,FALSE)),VLOOKUP($B51&$B54,'Base de données'!$F:$I,4,FALSE)),VLOOKUP($B50&$B54,'Base de données'!$F:$I,4,FALSE)),\"\"))","v":"Systèmes d'information"}]
[null,"Audition Santé",12,{"$f":"IF(IFERROR(IFERROR(IFERROR(IFERROR(VLOOKUP($B54&$B55,'Base de données'!$F:$I,2,FALSE),VLOOKUP($B53&$B55,'Base de données'!$F:$I,2,FALSE)),VLOOKUP($B52&$B55,'Base de données'!$F:$I,2,FALSE)),VLOOKUP($B51&$B55,'Base de données'!$F:$I,2,FALSE)),\"\")=0,\"\",IFERROR(IFERROR(IFERROR(IFERROR(VLOOKUP($B54&$B55,'Base de données'!$F:$I,2,FALSE),VLOOKUP($B53&$B55,'Base de données'!$F:$I,2,FALSE)),VLOOKUP($B52&$B55,'Base de données'!$F:$I,2,FALSE)),VLOOKUP($B51&$B55,'Base de données'!$F:$I,2,FALSE)),\"\"))","v":""},{"$f":"IF(IFERROR(IFERROR(IFERROR(IFERROR(VLOOKUP($B54&$B55,'Base de données'!$F:$I,3,FALSE),VLOOKUP($B53&$B55,'Base de données'!$F:$I,3,FALSE)),VLOOKUP($B52&$B55,'Base de données'!$F:$I,3,FALSE)),VLOOKUP($B51&$B55,'Base de données'!$F:$I,3,FALSE)),\"\")=0,\"\",IFERROR(IFERROR(IFERROR(IFERROR(VLOOKUP($B54&$B55,'Base de données'!$F:$I,3,FALSE),VLOOKUP($B53&$B55,'Base de données'!$F:$I,3,FALSE)),VLOOKUP($B52&$B55,'Base de données'!$F:$I,3,FALSE)),VLOOKUP($B51&$B55,'Base de données'!$F:$I,3,FALSE)),\"\"))","v":""},{"$f":"IF(IFERROR(IFERROR(IFERROR(IFERROR(VLOOKUP($B54&$B55,'Base de données'!$F:$I,4,FALSE),VLOOKUP($B53&$B55,'Base de données'!$F:$I,4,FALSE)),VLOOKUP($B52&$B55,'Base de données'!$F:$I,4,FALSE)),VLOOKUP($B51&$B55,'Base de données'!$F:$I,4,FALSE)),\"\")=0,\"\",IFERROR(IFERROR(IFERROR(IFERROR(VLOOKUP($B54&$B55,'Base de données'!$F:$I,4,FALSE),VLOOKUP($B53&$B55,'Base de données'!$F:$I,4,FALSE)),VLOOKUP($B52&$B55,'Base de données'!$F:$I,4,FALSE)),VLOOKUP($B51&$B55,'Base de données'!$F:$I,4,FALSE)),\"\"))","v":""}]
[null,"Création d'un outil de reporting",3,{"$f":"IF(IFERROR(IFERROR(IFERROR(IFERROR(VLOOKUP($B55&$B56,'Base de données'!$F:$I,2,FALSE),VLOOKUP($B54&$B56,'Base de données'!$F:$I,2,FALSE)),VLOOKUP($B53&$B56,'Base de données'!$F:$I,2,FALSE)),VLOOKUP($B52&$B56,'Base de données'!$F:$I,2,FALSE)),\"\")=0,\"\",IFERROR(IFERROR(IFERROR(IFERROR(VLOOKUP($B55&$B56,'Base de données'!$F:$I,2,FALSE),VLOOKUP($B54&$B56,'Base de données'!$F:$I,2,FALSE)),VLOOKUP($B53&$B56,'Base de données'!$F:$I,2,FALSE)),VLOOKUP($B52&$B56,'Base de données'!$F:$I,2,FALSE)),\"\"))","v":"Gestion de projet"},{"$f":"IF(IFERROR(IFERROR(IFERROR(IFERROR(VLOOKUP($B55&$B56,'Base de données'!$F:$I,3,FALSE),VLOOKUP($B54&$B56,'Base de données'!$F:$I,3,FALSE)),VLOOKUP($B53&$B56,'Base de données'!$F:$I,3,FALSE)),VLOOKUP($B52&$B56,'Base de données'!$F:$I,3,FALSE)),\"\")=0,\"\",IFERROR(IFERROR(IFERROR(IFERROR(VLOOKUP($B55&$B56,'Base de données'!$F:$I,3,FALSE),VLOOKUP($B54&$B56,'Base de données'!$F:$I,3,FALSE)),VLOOKUP($B53&$B56,'Base de données'!$F:$I,3,FALSE)),VLOOKUP($B52&$B56,'Base de données'!$F:$I,3,FALSE)),\"\"))","v":"Systèmes d'information"},{"$f":"IF(IFERROR(IFERROR(IFERROR(IFERROR(VLOOKUP($B55&$B56,'Base de données'!$F:$I,4,FALSE),VLOOKUP($B54&$B56,'Base de données'!$F:$I,4,FALSE)),VLOOKUP($B53&$B56,'Base de données'!$F:$I,4,FALSE)),VLOOKUP($B52&$B56,'Base de données'!$F:$I,4,FALSE)),\"\")=0,\"\",IFERROR(IFERROR(IFERROR(IFERROR(VLOOKUP($B55&$B56,'Base de données'!$F:$I,4,FALSE),VLOOKUP($B54&$B56,'Base de données'!$F:$I,4,FALSE)),VLOOKUP($B53&$B56,'Base de données'!$F:$I,4,FALSE)),VLOOKUP($B52&$B56,'Base de données'!$F:$I,4,FALSE)),\"\"))","v":"Langages Web"}]
[null,"Reporting régulier",6,{"$f":"IF(IFERROR(IFERROR(IFERROR(IFERROR(VLOOKUP($B56&$B57,'Base de données'!$F:$I,2,FALSE),VLOOKUP($B55&$B57,'Base de données'!$F:$I,2,FALSE)),VLOOKUP($B54&$B57,'Base de données'!$F:$I,2,FALSE)),VLOOKUP($B53&$B57,'Base de données'!$F:$I,2,FALSE)),\"\")=0,\"\",IFERROR(IFERROR(IFERROR(IFERROR(VLOOKUP($B56&$B57,'Base de données'!$F:$I,2,FALSE),VLOOKUP($B55&$B57,'Base de données'!$F:$I,2,FALSE)),VLOOKUP($B54&$B57,'Base de données'!$F:$I,2,FALSE)),VLOOKUP($B53&$B57,'Base de données'!$F:$I,2,FALSE)),\"\"))","v":"Contrôle de gestion"},{"$f":"IF(IFERROR(IFERROR(IFERROR(IFERROR(VLOOKUP($B56&$B57,'Base de données'!$F:$I,3,FALSE),VLOOKUP($B55&$B57,'Base de données'!$F:$I,3,FALSE)),VLOOKUP($B54&$B57,'Base de données'!$F:$I,3,FALSE)),VLOOKUP($B53&$B57,'Base de données'!$F:$I,3,FALSE)),\"\")=0,\"\",IFERROR(IFERROR(IFERROR(IFERROR(VLOOKUP($B56&$B57,'Base de données'!$F:$I,3,FALSE),VLOOKUP($B55&$B57,'Base de données'!$F:$I,3,FALSE)),VLOOKUP($B54&$B57,'Base de données'!$F:$I,3,FALSE)),VLOOKUP($B53&$B57,'Base de données'!$F:$I,3,FALSE)),\"\"))","v":"Comptabilité"},{"$f":"IF(IFERROR(IFERROR(IFERROR(IFERROR(VLOOKUP($B56&$B57,'Base de données'!$F:$I,4,FALSE),VLOOKUP($B55&$B57,'Base de données'!$F:$I,4,FALSE)),VLOOKUP($B54&$B57,'Base de données'!$F:$I,4,FALSE)),VLOOKUP($B53&$B57,'Base de données'!$F:$I,4,FALSE)),\"\")=0,\"\",IFERROR(IFERROR(IFERROR(IFERROR(VLOOKUP($B56&$B57,'Base de données'!$F:$I,4,FALSE),VLOOKUP($B55&$B57,'Base de données'!$F:$I,4,FALSE)),VLOOKUP($B54&$B57,'Base de données'!$F:$I,4,FALSE)),VLOOKUP($B53&$B57,'Base de données'!$F:$I,4,FALSE)),\"\"))","v":"Systèmes d'information"}]
[null,"Analyse ponctuelle",3,{"$f":"IF(IFERROR(IFERROR(IFERROR(IFERROR(VLOOKUP($B57&$B58,'Base de données'!$F:$I,2,FALSE),VLOOKUP($B56&$B58,'Base de données'!$F:$I,2,FALSE)),VLOOKUP($B55&$B58,'Base de données'!$F:$I,2,FALSE)),VLOOKUP($B54&$B58,'Base de données'!$F:$I,2,FALSE)),\"\")=0,\"\",IFERROR(IFERROR(IFERROR(IFERROR(VLOOKUP($B57&$B58,'Base de données'!$F:$I,2,FALSE),VLOOKUP($B56&$B58,'Base de données'!$F:$I,2,FALSE)),VLOOKUP($B55&$B58,'Base de données'!$F:$I,2,FALSE)),VLOOKUP($B54&$B58,'Base de données'!$F:$I,2,FALSE)),\"\"))","v":"Contrôle de gestion"},{"$f":"IF(IFERROR(IFERROR(IFERROR(IFERROR(VLOOKUP($B57&$B58,'Base de données'!$F:$I,3,FALSE),VLOOKUP($B56&$B58,'Base de données'!$F:$I,3,FALSE)),VLOOKUP($B55&$B58,'Base de données'!$F:$I,3,FALSE)),VLOOKUP($B54&$B58,'Base de données'!$F:$I,3,FALSE)),\"\")=0,\"\",IFERROR(IFERROR(IFERROR(IFERROR(VLOOKUP($B57&$B58,'Base de données'!$F:$I,3,FALSE),VLOOKUP($B56&$B58,'Base de données'!$F:$I,3,FALSE)),VLOOKUP($B55&$B58,'Base de données'!$F:$I,3,FALSE)),VLOOKUP($B54&$B58,'Base de données'!$F:$I,3,FALSE)),\"\"))","v":"Mathématiques"},{"$f":"IF(IFERROR(IFERROR(IFERROR(IFERROR(VLOOKUP($B57&$B58,'Base de données'!$F:$I,4,FALSE),VLOOKUP($B56&$B58,'Base de données'!$F:$I,4,FALSE)),VLOOKUP($B55&$B58,'Base de données'!$F:$I,4,FALSE)),VLOOKUP($B54&$B58,'Base de données'!$F:$I,4,FALSE)),\"\")=0,\"\",IFERROR(IFERROR(IFERROR(IFERROR(VLOOKUP($B57&$B58,'Base de données'!$F:$I,4,FALSE),VLOOKUP($B56&$B58,'Base de données'!$F:$I,4,FALSE)),VLOOKUP($B55&$B58,'Base de données'!$F:$I,4,FALSE)),VLOOKUP($B54&$B58,'Base de données'!$F:$I,4,FALSE)),\"\"))","v":""}]
[null,null,null,{"$f":"IF(IFERROR(IFERROR(IFERROR(IFERROR(VLOOKUP($B58&$B59,'Base de données'!$F:$I,2,FALSE),VLOOKUP($B57&$B59,'Base de données'!$F:$I,2,FALSE)),VLOOKUP($B56&$B59,'Base de données'!$F:$I,2,FALSE)),VLOOKUP($B55&$B59,'Base de données'!$F:$I,2,FALSE)),\"\")=0,\"\",IFERROR(IFERROR(IFERROR(IFERROR(VLOOKUP($B58&$B59,'Base de données'!$F:$I,2,FALSE),VLOOKUP($B57&$B59,'Base de données'!$F:$I,2,FALSE)),VLOOKUP($B56&$B59,'Base de données'!$F:$I,2,FALSE)),VLOOKUP($B55&$B59,'Base de données'!$F:$I,2,FALSE)),\"\"))","v":""},{"$f":"IF(IFERROR(IFERROR(IFERROR(IFERROR(VLOOKUP($B58&$B59,'Base de données'!$F:$I,3,FALSE),VLOOKUP($B57&$B59,'Base de données'!$F:$I,3,FALSE)),VLOOKUP($B56&$B59,'Base de données'!$F:$I,3,FALSE)),VLOOKUP($B55&$B59,'Base de données'!$F:$I,3,FALSE)),\"\")=0,\"\",IFERROR(IFERROR(IFERROR(IFERROR(VLOOKUP($B58&$B59,'Base de données'!$F:$I,3,FALSE),VLOOKUP($B57&$B59,'Base de données'!$F:$I,3,FALSE)),VLOOKUP($B56&$B59,'Base de données'!$F:$I,3,FALSE)),VLOOKUP($B55&$B59,'Base de données'!$F:$I,3,FALSE)),\"\"))","v":""},{"$f":"IF(IFERROR(IFERROR(IFERROR(IFERROR(VLOOKUP($B58&$B59,'Base de données'!$F:$I,4,FALSE),VLOOKUP($B57&$B59,'Base de données'!$F:$I,4,FALSE)),VLOOKUP($B56&$B59,'Base de données'!$F:$I,4,FALSE)),VLOOKUP($B55&$B59,'Base de données'!$F:$I,4,FALSE)),\"\")=0,\"\",IFERROR(IFERROR(IFERROR(IFERROR(VLOOKUP($B58&$B59,'Base de données'!$F:$I,4,FALSE),VLOOKUP($B57&$B59,'Base de données'!$F:$I,4,FALSE)),VLOOKUP($B56&$B59,'Base de données'!$F:$I,4,FALSE)),VLOOKUP($B55&$B59,'Base de données'!$F:$I,4,FALSE)),\"\"))","v":""}]
[null,null,null,{"$f":"IF(IFERROR(IFERROR(IFERROR(IFERROR(VLOOKUP($B59&$B60,'Base de données'!$F:$I,2,FALSE),VLOOKUP($B58&$B60,'Base de données'!$F:$I,2,FALSE)),VLOOKUP($B57&$B60,'Base de données'!$F:$I,2,FALSE)),VLOOKUP($B56&$B60,'Base de données'!$F:$I,2,FALSE)),\"\")=0,\"\",IFERROR(IFERROR(IFERROR(IFERROR(VLOOKUP($B59&$B60,'Base de données'!$F:$I,2,FALSE),VLOOKUP($B58&$B60,'Base de données'!$F:$I,2,FALSE)),VLOOKUP($B57&$B60,'Base de données'!$F:$I,2,FALSE)),VLOOKUP($B56&$B60,'Base de données'!$F:$I,2,FALSE)),\"\"))","v":""},{"$f":"IF(IFERROR(IFERROR(IFERROR(IFERROR(VLOOKUP($B59&$B60,'Base de données'!$F:$I,3,FALSE),VLOOKUP($B58&$B60,'Base de données'!$F:$I,3,FALSE)),VLOOKUP($B57&$B60,'Base de données'!$F:$I,3,FALSE)),VLOOKUP($B56&$B60,'Base de données'!$F:$I,3,FALSE)),\"\")=0,\"\",IFERROR(IFERROR(IFERROR(IFERROR(VLOOKUP($B59&$B60,'Base de données'!$F:$I,3,FALSE),VLOOKUP($B58&$B60,'Base de données'!$F:$I,3,FALSE)),VLOOKUP($B57&$B60,'Base de données'!$F:$I,3,FALSE)),VLOOKUP($B56&$B60,'Base de données'!$F:$I,3,FALSE)),\"\"))","v":""},{"$f":"IF(IFERROR(IFERROR(IFERROR(IFERROR(VLOOKUP($B59&$B60,'Base de données'!$F:$I,4,FALSE),VLOOKUP($B58&$B60,'Base de données'!$F:$I,4,FALSE)),VLOOKUP($B57&$B60,'Base de données'!$F:$I,4,FALSE)),VLOOKUP($B56&$B60,'Base de données'!$F:$I,4,FALSE)),\"\")=0,\"\",IFERROR(IFERROR(IFERROR(IFERROR(VLOOKUP($B59&$B60,'Base de données'!$F:$I,4,FALSE),VLOOKUP($B58&$B60,'Base de données'!$F:$I,4,FALSE)),VLOOKUP($B57&$B60,'Base de données'!$F:$I,4,FALSE)),VLOOKUP($B56&$B60,'Base de données'!$F:$I,4,FALSE)),\"\"))","v":""}]
[null,null,null,{"$f":"IF(IFERROR(IFERROR(IFERROR(IFERROR(VLOOKUP($B60&$B61,'Base de données'!$F:$I,2,FALSE),VLOOKUP($B59&$B61,'Base de données'!$F:$I,2,FALSE)),VLOOKUP($B58&$B61,'Base de données'!$F:$I,2,FALSE)),VLOOKUP($B57&$B61,'Base de données'!$F:$I,2,FALSE)),\"\")=0,\"\",IFERROR(IFERROR(IFERROR(IFERROR(VLOOKUP($B60&$B61,'Base de données'!$F:$I,2,FALSE),VLOOKUP($B59&$B61,'Base de données'!$F:$I,2,FALSE)),VLOOKUP($B58&$B61,'Base de données'!$F:$I,2,FALSE)),VLOOKUP($B57&$B61,'Base de données'!$F:$I,2,FALSE)),\"\"))","v":""},{"$f":"IF(IFERROR(IFERROR(IFERROR(IFERROR(VLOOKUP($B60&$B61,'Base de données'!$F:$I,3,FALSE),VLOOKUP($B59&$B61,'Base de données'!$F:$I,3,FALSE)),VLOOKUP($B58&$B61,'Base de données'!$F:$I,3,FALSE)),VLOOKUP($B57&$B61,'Base de données'!$F:$I,3,FALSE)),\"\")=0,\"\",IFERROR(IFERROR(IFERROR(IFERROR(VLOOKUP($B60&$B61,'Base de données'!$F:$I,3,FALSE),VLOOKUP($B59&$B61,'Base de données'!$F:$I,3,FALSE)),VLOOKUP($B58&$B61,'Base de données'!$F:$I,3,FALSE)),VLOOKUP($B57&$B61,'Base de données'!$F:$I,3,FALSE)),\"\"))","v":""},{"$f":"IF(IFERROR(IFERROR(IFERROR(IFERROR(VLOOKUP($B60&$B61,'Base de données'!$F:$I,4,FALSE),VLOOKUP($B59&$B61,'Base de données'!$F:$I,4,FALSE)),VLOOKUP($B58&$B61,'Base de données'!$F:$I,4,FALSE)),VLOOKUP($B57&$B61,'Base de données'!$F:$I,4,FALSE)),\"\")=0,\"\",IFERROR(IFERROR(IFERROR(IFERROR(VLOOKUP($B60&$B61,'Base de données'!$F:$I,4,FALSE),VLOOKUP($B59&$B61,'Base de données'!$F:$I,4,FALSE)),VLOOKUP($B58&$B61,'Base de données'!$F:$I,4,FALSE)),VLOOKUP($B57&$B61,'Base de données'!$F:$I,4,FALSE)),\"\"))","v":""}]
[null,null,null,{"$f":"IF(IFERROR(IFERROR(IFERROR(IFERROR(VLOOKUP($B61&$B62,'Base de données'!$F:$I,2,FALSE),VLOOKUP($B60&$B62,'Base de données'!$F:$I,2,FALSE)),VLOOKUP($B59&$B62,'Base de données'!$F:$I,2,FALSE)),VLOOKUP($B58&$B62,'Base de données'!$F:$I,2,FALSE)),\"\")=0,\"\",IFERROR(IFERROR(IFERROR(IFERROR(VLOOKUP($B61&$B62,'Base de données'!$F:$I,2,FALSE),VLOOKUP($B60&$B62,'Base de données'!$F:$I,2,FALSE)),VLOOKUP($B59&$B62,'Base de données'!$F:$I,2,FALSE)),VLOOKUP($B58&$B62,'Base de données'!$F:$I,2,FALSE)),\"\"))","v":""},{"$f":"IF(IFERROR(IFERROR(IFERROR(IFERROR(VLOOKUP($B61&$B62,'Base de données'!$F:$I,3,FALSE),VLOOKUP($B60&$B62,'Base de données'!$F:$I,3,FALSE)),VLOOKUP($B59&$B62,'Base de données'!$F:$I,3,FALSE)),VLOOKUP($B58&$B62,'Base de données'!$F:$I,3,FALSE)),\"\")=0,\"\",IFERROR(IFERROR(IFERROR(IFERROR(VLOOKUP($B61&$B62,'Base de données'!$F:$I,3,FALSE),VLOOKUP($B60&$B62,'Base de données'!$F:$I,3,FALSE)),VLOOKUP($B59&$B62,'Base de données'!$F:$I,3,FALSE)),VLOOKUP($B58&$B62,'Base de données'!$F:$I,3,FALSE)),\"\"))","v":""},{"$f":"IF(IFERROR(IFERROR(IFERROR(IFERROR(VLOOKUP($B61&$B62,'Base de données'!$F:$I,4,FALSE),VLOOKUP($B60&$B62,'Base de données'!$F:$I,4,FALSE)),VLOOKUP($B59&$B62,'Base de données'!$F:$I,4,FALSE)),VLOOKUP($B58&$B62,'Base de données'!$F:$I,4,FALSE)),\"\")=0,\"\",IFERROR(IFERROR(IFERROR(IFERROR(VLOOKUP($B61&$B62,'Base de données'!$F:$I,4,FALSE),VLOOKUP($B60&$B62,'Base de données'!$F:$I,4,FALSE)),VLOOKUP($B59&$B62,'Base de données'!$F:$I,4,FALSE)),VLOOKUP($B58&$B62,'Base de données'!$F:$I,4,FALSE)),\"\"))","v":""}]
[null,null,null,{"$f":"IF(IFERROR(IFERROR(IFERROR(IFERROR(VLOOKUP($B62&$B63,'Base de données'!$F:$I,2,FALSE),VLOOKUP($B61&$B63,'Base de données'!$F:$I,2,FALSE)),VLOOKUP($B60&$B63,'Base de données'!$F:$I,2,FALSE)),VLOOKUP($B59&$B63,'Base de données'!$F:$I,2,FALSE)),\"\")=0,\"\",IFERROR(IFERROR(IFERROR(IFERROR(VLOOKUP($B62&$B63,'Base de données'!$F:$I,2,FALSE),VLOOKUP($B61&$B63,'Base de données'!$F:$I,2,FALSE)),VLOOKUP($B60&$B63,'Base de données'!$F:$I,2,FALSE)),VLOOKUP($B59&$B63,'Base de données'!$F:$I,2,FALSE)),\"\"))","v":""},{"$f":"IF(IFERROR(IFERROR(IFERROR(IFERROR(VLOOKUP($B62&$B63,'Base de données'!$F:$I,3,FALSE),VLOOKUP($B61&$B63,'Base de données'!$F:$I,3,FALSE)),VLOOKUP($B60&$B63,'Base de données'!$F:$I,3,FALSE)),VLOOKUP($B59&$B63,'Base de données'!$F:$I,3,FALSE)),\"\")=0,\"\",IFERROR(IFERROR(IFERROR(IFERROR(VLOOKUP($B62&$B63,'Base de données'!$F:$I,3,FALSE),VLOOKUP($B61&$B63,'Base de données'!$F:$I,3,FALSE)),VLOOKUP($B60&$B63,'Base de données'!$F:$I,3,FALSE)),VLOOKUP($B59&$B63,'Base de données'!$F:$I,3,FALSE)),\"\"))","v":""},{"$f":"IF(IFERROR(IFERROR(IFERROR(IFERROR(VLOOKUP($B62&$B63,'Base de données'!$F:$I,4,FALSE),VLOOKUP($B61&$B63,'Base de données'!$F:$I,4,FALSE)),VLOOKUP($B60&$B63,'Base de données'!$F:$I,4,FALSE)),VLOOKUP($B59&$B63,'Base de données'!$F:$I,4,FALSE)),\"\")=0,\"\",IFERROR(IFERROR(IFERROR(IFERROR(VLOOKUP($B62&$B63,'Base de données'!$F:$I,4,FALSE),VLOOKUP($B61&$B63,'Base de données'!$F:$I,4,FALSE)),VLOOKUP($B60&$B63,'Base de données'!$F:$I,4,FALSE)),VLOOKUP($B59&$B63,'Base de données'!$F:$I,4,FALSE)),\"\"))","v":""}]
[null,null,null,{"$f":"IF(IFERROR(IFERROR(IFERROR(IFERROR(VLOOKUP($B63&$B64,'Base de données'!$F:$I,2,FALSE),VLOOKUP($B62&$B64,'Base de données'!$F:$I,2,FALSE)),VLOOKUP($B61&$B64,'Base de données'!$F:$I,2,FALSE)),VLOOKUP($B60&$B64,'Base de données'!$F:$I,2,FALSE)),\"\")=0,\"\",IFERROR(IFERROR(IFERROR(IFERROR(VLOOKUP($B63&$B64,'Base de données'!$F:$I,2,FALSE),VLOOKUP($B62&$B64,'Base de données'!$F:$I,2,FALSE)),VLOOKUP($B61&$B64,'Base de données'!$F:$I,2,FALSE)),VLOOKUP($B60&$B64,'Base de données'!$F:$I,2,FALSE)),\"\"))","v":""},{"$f":"IF(IFERROR(IFERROR(IFERROR(IFERROR(VLOOKUP($B63&$B64,'Base de données'!$F:$I,3,FALSE),VLOOKUP($B62&$B64,'Base de données'!$F:$I,3,FALSE)),VLOOKUP($B61&$B64,'Base de données'!$F:$I,3,FALSE)),VLOOKUP($B60&$B64,'Base de données'!$F:$I,3,FALSE)),\"\")=0,\"\",IFERROR(IFERROR(IFERROR(IFERROR(VLOOKUP($B63&$B64,'Base de données'!$F:$I,3,FALSE),VLOOKUP($B62&$B64,'Base de données'!$F:$I,3,FALSE)),VLOOKUP($B61&$B64,'Base de données'!$F:$I,3,FALSE)),VLOOKUP($B60&$B64,'Base de données'!$F:$I,3,FALSE)),\"\"))","v":""},{"$f":"IF(IFERROR(IFERROR(IFERROR(IFERROR(VLOOKUP($B63&$B64,'Base de données'!$F:$I,4,FALSE),VLOOKUP($B62&$B64,'Base de données'!$F:$I,4,FALSE)),VLOOKUP($B61&$B64,'Base de données'!$F:$I,4,FALSE)),VLOOKUP($B60&$B64,'Base de données'!$F:$I,4,FALSE)),\"\")=0,\"\",IFERROR(IFERROR(IFERROR(IFERROR(VLOOKUP($B63&$B64,'Base de données'!$F:$I,4,FALSE),VLOOKUP($B62&$B64,'Base de données'!$F:$I,4,FALSE)),VLOOKUP($B61&$B64,'Base de données'!$F:$I,4,FALSE)),VLOOKUP($B60&$B64,'Base de données'!$F:$I,4,FALSE)),\"\"))","v":""}]
[null,null,null,{"$f":"IF(IFERROR(IFERROR(IFERROR(IFERROR(VLOOKUP($B64&$B65,'Base de données'!$F:$I,2,FALSE),VLOOKUP($B63&$B65,'Base de données'!$F:$I,2,FALSE)),VLOOKUP($B62&$B65,'Base de données'!$F:$I,2,FALSE)),VLOOKUP($B61&$B65,'Base de données'!$F:$I,2,FALSE)),\"\")=0,\"\",IFERROR(IFERROR(IFERROR(IFERROR(VLOOKUP($B64&$B65,'Base de données'!$F:$I,2,FALSE),VLOOKUP($B63&$B65,'Base de données'!$F:$I,2,FALSE)),VLOOKUP($B62&$B65,'Base de données'!$F:$I,2,FALSE)),VLOOKUP($B61&$B65,'Base de données'!$F:$I,2,FALSE)),\"\"))","v":""},{"$f":"IF(IFERROR(IFERROR(IFERROR(IFERROR(VLOOKUP($B64&$B65,'Base de données'!$F:$I,3,FALSE),VLOOKUP($B63&$B65,'Base de données'!$F:$I,3,FALSE)),VLOOKUP($B62&$B65,'Base de données'!$F:$I,3,FALSE)),VLOOKUP($B61&$B65,'Base de données'!$F:$I,3,FALSE)),\"\")=0,\"\",IFERROR(IFERROR(IFERROR(IFERROR(VLOOKUP($B64&$B65,'Base de données'!$F:$I,3,FALSE),VLOOKUP($B63&$B65,'Base de données'!$F:$I,3,FALSE)),VLOOKUP($B62&$B65,'Base de données'!$F:$I,3,FALSE)),VLOOKUP($B61&$B65,'Base de données'!$F:$I,3,FALSE)),\"\"))","v":""},{"$f":"IF(IFERROR(IFERROR(IFERROR(IFERROR(VLOOKUP($B64&$B65,'Base de données'!$F:$I,4,FALSE),VLOOKUP($B63&$B65,'Base de données'!$F:$I,4,FALSE)),VLOOKUP($B62&$B65,'Base de données'!$F:$I,4,FALSE)),VLOOKUP($B61&$B65,'Base de données'!$F:$I,4,FALSE)),\"\")=0,\"\",IFERROR(IFERROR(IFERROR(IFERROR(VLOOKUP($B64&$B65,'Base de données'!$F:$I,4,FALSE),VLOOKUP($B63&$B65,'Base de données'!$F:$I,4,FALSE)),VLOOKUP($B62&$B65,'Base de données'!$F:$I,4,FALSE)),VLOOKUP($B61&$B65,'Base de données'!$F:$I,4,FALSE)),\"\"))","v":""}]
[null,null,null,{"$f":"IF(IFERROR(IFERROR(IFERROR(IFERROR(VLOOKUP($B65&$B66,'Base de données'!$F:$I,2,FALSE),VLOOKUP($B64&$B66,'Base de données'!$F:$I,2,FALSE)),VLOOKUP($B63&$B66,'Base de données'!$F:$I,2,FALSE)),VLOOKUP($B62&$B66,'Base de données'!$F:$I,2,FALSE)),\"\")=0,\"\",IFERROR(IFERROR(IFERROR(IFERROR(VLOOKUP($B65&$B66,'Base de données'!$F:$I,2,FALSE),VLOOKUP($B64&$B66,'Base de données'!$F:$I,2,FALSE)),VLOOKUP($B63&$B66,'Base de données'!$F:$I,2,FALSE)),VLOOKUP($B62&$B66,'Base de données'!$F:$I,2,FALSE)),\"\"))","v":""},{"$f":"IF(IFERROR(IFERROR(IFERROR(IFERROR(VLOOKUP($B65&$B66,'Base de données'!$F:$I,3,FALSE),VLOOKUP($B64&$B66,'Base de données'!$F:$I,3,FALSE)),VLOOKUP($B63&$B66,'Base de données'!$F:$I,3,FALSE)),VLOOKUP($B62&$B66,'Base de données'!$F:$I,3,FALSE)),\"\")=0,\"\",IFERROR(IFERROR(IFERROR(IFERROR(VLOOKUP($B65&$B66,'Base de données'!$F:$I,3,FALSE),VLOOKUP($B64&$B66,'Base de données'!$F:$I,3,FALSE)),VLOOKUP($B63&$B66,'Base de données'!$F:$I,3,FALSE)),VLOOKUP($B62&$B66,'Base de données'!$F:$I,3,FALSE)),\"\"))","v":""},{"$f":"IF(IFERROR(IFERROR(IFERROR(IFERROR(VLOOKUP($B65&$B66,'Base de données'!$F:$I,4,FALSE),VLOOKUP($B64&$B66,'Base de données'!$F:$I,4,FALSE)),VLOOKUP($B63&$B66,'Base de données'!$F:$I,4,FALSE)),VLOOKUP($B62&$B66,'Base de données'!$F:$I,4,FALSE)),\"\")=0,\"\",IFERROR(IFERROR(IFERROR(IFERROR(VLOOKUP($B65&$B66,'Base de données'!$F:$I,4,FALSE),VLOOKUP($B64&$B66,'Base de données'!$F:$I,4,FALSE)),VLOOKUP($B63&$B66,'Base de données'!$F:$I,4,FALSE)),VLOOKUP($B62&$B66,'Base de données'!$F:$I,4,FALSE)),\"\"))","v":""}]
[null,null,null,{"$f":"IF(IFERROR(IFERROR(IFERROR(IFERROR(VLOOKUP($B66&$B67,'Base de données'!$F:$I,2,FALSE),VLOOKUP($B65&$B67,'Base de données'!$F:$I,2,FALSE)),VLOOKUP($B64&$B67,'Base de données'!$F:$I,2,FALSE)),VLOOKUP($B63&$B67,'Base de données'!$F:$I,2,FALSE)),\"\")=0,\"\",IFERROR(IFERROR(IFERROR(IFERROR(VLOOKUP($B66&$B67,'Base de données'!$F:$I,2,FALSE),VLOOKUP($B65&$B67,'Base de données'!$F:$I,2,FALSE)),VLOOKUP($B64&$B67,'Base de données'!$F:$I,2,FALSE)),VLOOKUP($B63&$B67,'Base de données'!$F:$I,2,FALSE)),\"\"))","v":""},{"$f":"IF(IFERROR(IFERROR(IFERROR(IFERROR(VLOOKUP($B66&$B67,'Base de données'!$F:$I,3,FALSE),VLOOKUP($B65&$B67,'Base de données'!$F:$I,3,FALSE)),VLOOKUP($B64&$B67,'Base de données'!$F:$I,3,FALSE)),VLOOKUP($B63&$B67,'Base de données'!$F:$I,3,FALSE)),\"\")=0,\"\",IFERROR(IFERROR(IFERROR(IFERROR(VLOOKUP($B66&$B67,'Base de données'!$F:$I,3,FALSE),VLOOKUP($B65&$B67,'Base de données'!$F:$I,3,FALSE)),VLOOKUP($B64&$B67,'Base de données'!$F:$I,3,FALSE)),VLOOKUP($B63&$B67,'Base de données'!$F:$I,3,FALSE)),\"\"))","v":""},{"$f":"IF(IFERROR(IFERROR(IFERROR(IFERROR(VLOOKUP($B66&$B67,'Base de données'!$F:$I,4,FALSE),VLOOKUP($B65&$B67,'Base de données'!$F:$I,4,FALSE)),VLOOKUP($B64&$B67,'Base de données'!$F:$I,4,FALSE)),VLOOKUP($B63&$B67,'Base de données'!$F:$I,4,FALSE)),\"\")=0,\"\",IFERROR(IFERROR(IFERROR(IFERROR(VLOOKUP($B66&$B67,'Base de données'!$F:$I,4,FALSE),VLOOKUP($B65&$B67,'Base de données'!$F:$I,4,FALSE)),VLOOKUP($B64&$B67,'Base de données'!$F:$I,4,FALSE)),VLOOKUP($B63&$B67,'Base de données'!$F:$I,4,FALSE)),\"\"))","v":""}]
[null,null,null,{"$f":"IF(IFERROR(IFERROR(IFERROR(IFERROR(VLOOKUP($B67&$B68,'Base de données'!$F:$I,2,FALSE),VLOOKUP($B66&$B68,'Base de données'!$F:$I,2,FALSE)),VLOOKUP($B65&$B68,'Base de données'!$F:$I,2,FALSE)),VLOOKUP($B64&$B68,'Base de données'!$F:$I,2,FALSE)),\"\")=0,\"\",IFERROR(IFERROR(IFERROR(IFERROR(VLOOKUP($B67&$B68,'Base de données'!$F:$I,2,FALSE),VLOOKUP($B66&$B68,'Base de données'!$F:$I,2,FALSE)),VLOOKUP($B65&$B68,'Base de données'!$F:$I,2,FALSE)),VLOOKUP($B64&$B68,'Base de données'!$F:$I,2,FALSE)),\"\"))","v":""},{"$f":"IF(IFERROR(IFERROR(IFERROR(IFERROR(VLOOKUP($B67&$B68,'Base de données'!$F:$I,3,FALSE),VLOOKUP($B66&$B68,'Base de données'!$F:$I,3,FALSE)),VLOOKUP($B65&$B68,'Base de données'!$F:$I,3,FALSE)),VLOOKUP($B64&$B68,'Base de données'!$F:$I,3,FALSE)),\"\")=0,\"\",IFERROR(IFERROR(IFERROR(IFERROR(VLOOKUP($B67&$B68,'Base de données'!$F:$I,3,FALSE),VLOOKUP($B66&$B68,'Base de données'!$F:$I,3,FALSE)),VLOOKUP($B65&$B68,'Base de données'!$F:$I,3,FALSE)),VLOOKUP($B64&$B68,'Base de données'!$F:$I,3,FALSE)),\"\"))","v":""},{"$f":"IF(IFERROR(IFERROR(IFERROR(IFERROR(VLOOKUP($B67&$B68,'Base de données'!$F:$I,4,FALSE),VLOOKUP($B66&$B68,'Base de données'!$F:$I,4,FALSE)),VLOOKUP($B65&$B68,'Base de données'!$F:$I,4,FALSE)),VLOOKUP($B64&$B68,'Base de données'!$F:$I,4,FALSE)),\"\")=0,\"\",IFERROR(IFERROR(IFERROR(IFERROR(VLOOKUP($B67&$B68,'Base de données'!$F:$I,4,FALSE),VLOOKUP($B66&$B68,'Base de données'!$F:$I,4,FALSE)),VLOOKUP($B65&$B68,'Base de données'!$F:$I,4,FALSE)),VLOOKUP($B64&$B68,'Base de données'!$F:$I,4,FALSE)),\"\"))","v":""}]
[null,null,null,{"$f":"IF(IFERROR(IFERROR(IFERROR(IFERROR(VLOOKUP($B68&$B69,'Base de données'!$F:$I,2,FALSE),VLOOKUP($B67&$B69,'Base de données'!$F:$I,2,FALSE)),VLOOKUP($B66&$B69,'Base de données'!$F:$I,2,FALSE)),VLOOKUP($B65&$B69,'Base de données'!$F:$I,2,FALSE)),\"\")=0,\"\",IFERROR(IFERROR(IFERROR(IFERROR(VLOOKUP($B68&$B69,'Base de données'!$F:$I,2,FALSE),VLOOKUP($B67&$B69,'Base de données'!$F:$I,2,FALSE)),VLOOKUP($B66&$B69,'Base de données'!$F:$I,2,FALSE)),VLOOKUP($B65&$B69,'Base de données'!$F:$I,2,FALSE)),\"\"))","v":""},{"$f":"IF(IFERROR(IFERROR(IFERROR(IFERROR(VLOOKUP($B68&$B69,'Base de données'!$F:$I,3,FALSE),VLOOKUP($B67&$B69,'Base de données'!$F:$I,3,FALSE)),VLOOKUP($B66&$B69,'Base de données'!$F:$I,3,FALSE)),VLOOKUP($B65&$B69,'Base de données'!$F:$I,3,FALSE)),\"\")=0,\"\",IFERROR(IFERROR(IFERROR(IFERROR(VLOOKUP($B68&$B69,'Base de données'!$F:$I,3,FALSE),VLOOKUP($B67&$B69,'Base de données'!$F:$I,3,FALSE)),VLOOKUP($B66&$B69,'Base de données'!$F:$I,3,FALSE)),VLOOKUP($B65&$B69,'Base de données'!$F:$I,3,FALSE)),\"\"))","v":""},{"$f":"IF(IFERROR(IFERROR(IFERROR(IFERROR(VLOOKUP($B68&$B69,'Base de données'!$F:$I,4,FALSE),VLOOKUP($B67&$B69,'Base de données'!$F:$I,4,FALSE)),VLOOKUP($B66&$B69,'Base de données'!$F:$I,4,FALSE)),VLOOKUP($B65&$B69,'Base de données'!$F:$I,4,FALSE)),\"\")=0,\"\",IFERROR(IFERROR(IFERROR(IFERROR(VLOOKUP($B68&$B69,'Base de données'!$F:$I,4,FALSE),VLOOKUP($B67&$B69,'Base de données'!$F:$I,4,FALSE)),VLOOKUP($B66&$B69,'Base de données'!$F:$I,4,FALSE)),VLOOKUP($B65&$B69,'Base de données'!$F:$I,4,FALSE)),\"\"))","v":""}]
[null,null,null,{"$f":"IF(IFERROR(IFERROR(IFERROR(IFERROR(VLOOKUP($B69&$B70,'Base de données'!$F:$I,2,FALSE),VLOOKUP($B68&$B70,'Base de données'!$F:$I,2,FALSE)),VLOOKUP($B67&$B70,'Base de données'!$F:$I,2,FALSE)),VLOOKUP($B66&$B70,'Base de données'!$F:$I,2,FALSE)),\"\")=0,\"\",IFERROR(IFERROR(IFERROR(IFERROR(VLOOKUP($B69&$B70,'Base de données'!$F:$I,2,FALSE),VLOOKUP($B68&$B70,'Base de données'!$F:$I,2,FALSE)),VLOOKUP($B67&$B70,'Base de données'!$F:$I,2,FALSE)),VLOOKUP($B66&$B70,'Base de données'!$F:$I,2,FALSE)),\"\"))","v":""},{"$f":"IF(IFERROR(IFERROR(IFERROR(IFERROR(VLOOKUP($B69&$B70,'Base de données'!$F:$I,3,FALSE),VLOOKUP($B68&$B70,'Base de données'!$F:$I,3,FALSE)),VLOOKUP($B67&$B70,'Base de données'!$F:$I,3,FALSE)),VLOOKUP($B66&$B70,'Base de données'!$F:$I,3,FALSE)),\"\")=0,\"\",IFERROR(IFERROR(IFERROR(IFERROR(VLOOKUP($B69&$B70,'Base de données'!$F:$I,3,FALSE),VLOOKUP($B68&$B70,'Base de données'!$F:$I,3,FALSE)),VLOOKUP($B67&$B70,'Base de données'!$F:$I,3,FALSE)),VLOOKUP($B66&$B70,'Base de données'!$F:$I,3,FALSE)),\"\"))","v":""},{"$f":"IF(IFERROR(IFERROR(IFERROR(IFERROR(VLOOKUP($B69&$B70,'Base de données'!$F:$I,4,FALSE),VLOOKUP($B68&$B70,'Base de données'!$F:$I,4,FALSE)),VLOOKUP($B67&$B70,'Base de données'!$F:$I,4,FALSE)),VLOOKUP($B66&$B70,'Base de données'!$F:$I,4,FALSE)),\"\")=0,\"\",IFERROR(IFERROR(IFERROR(IFERROR(VLOOKUP($B69&$B70,'Base de données'!$F:$I,4,FALSE),VLOOKUP($B68&$B70,'Base de données'!$F:$I,4,FALSE)),VLOOKUP($B67&$B70,'Base de données'!$F:$I,4,FALSE)),VLOOKUP($B66&$B70,'Base de données'!$F:$I,4,FALSE)),\"\"))","v":""}]
[null,null,null,{"$f":"IF(IFERROR(IFERROR(IFERROR(IFERROR(VLOOKUP($B70&$B71,'Base de données'!$F:$I,2,FALSE),VLOOKUP($B69&$B71,'Base de données'!$F:$I,2,FALSE)),VLOOKUP($B68&$B71,'Base de données'!$F:$I,2,FALSE)),VLOOKUP($B67&$B71,'Base de données'!$F:$I,2,FALSE)),\"\")=0,\"\",IFERROR(IFERROR(IFERROR(IFERROR(VLOOKUP($B70&$B71,'Base de données'!$F:$I,2,FALSE),VLOOKUP($B69&$B71,'Base de données'!$F:$I,2,FALSE)),VLOOKUP($B68&$B71,'Base de données'!$F:$I,2,FALSE)),VLOOKUP($B67&$B71,'Base de données'!$F:$I,2,FALSE)),\"\"))","v":""},{"$f":"IF(IFERROR(IFERROR(IFERROR(IFERROR(VLOOKUP($B70&$B71,'Base de données'!$F:$I,3,FALSE),VLOOKUP($B69&$B71,'Base de données'!$F:$I,3,FALSE)),VLOOKUP($B68&$B71,'Base de données'!$F:$I,3,FALSE)),VLOOKUP($B67&$B71,'Base de données'!$F:$I,3,FALSE)),\"\")=0,\"\",IFERROR(IFERROR(IFERROR(IFERROR(VLOOKUP($B70&$B71,'Base de données'!$F:$I,3,FALSE),VLOOKUP($B69&$B71,'Base de données'!$F:$I,3,FALSE)),VLOOKUP($B68&$B71,'Base de données'!$F:$I,3,FALSE)),VLOOKUP($B67&$B71,'Base de données'!$F:$I,3,FALSE)),\"\"))","v":""},{"$f":"IF(IFERROR(IFERROR(IFERROR(IFERROR(VLOOKUP($B70&$B71,'Base de données'!$F:$I,4,FALSE),VLOOKUP($B69&$B71,'Base de données'!$F:$I,4,FALSE)),VLOOKUP($B68&$B71,'Base de données'!$F:$I,4,FALSE)),VLOOKUP($B67&$B71,'Base de données'!$F:$I,4,FALSE)),\"\")=0,\"\",IFERROR(IFERROR(IFERROR(IFERROR(VLOOKUP($B70&$B71,'Base de données'!$F:$I,4,FALSE),VLOOKUP($B69&$B71,'Base de données'!$F:$I,4,FALSE)),VLOOKUP($B68&$B71,'Base de données'!$F:$I,4,FALSE)),VLOOKUP($B67&$B71,'Base de données'!$F:$I,4,FALSE)),\"\"))","v":""}]
[null,null,null,{"$f":"IF(IFERROR(IFERROR(IFERROR(IFERROR(VLOOKUP($B71&$B72,'Base de données'!$F:$I,2,FALSE),VLOOKUP($B70&$B72,'Base de données'!$F:$I,2,FALSE)),VLOOKUP($B69&$B72,'Base de données'!$F:$I,2,FALSE)),VLOOKUP($B68&$B72,'Base de données'!$F:$I,2,FALSE)),\"\")=0,\"\",IFERROR(IFERROR(IFERROR(IFERROR(VLOOKUP($B71&$B72,'Base de données'!$F:$I,2,FALSE),VLOOKUP($B70&$B72,'Base de données'!$F:$I,2,FALSE)),VLOOKUP($B69&$B72,'Base de données'!$F:$I,2,FALSE)),VLOOKUP($B68&$B72,'Base de données'!$F:$I,2,FALSE)),\"\"))","v":""},{"$f":"IF(IFERROR(IFERROR(IFERROR(IFERROR(VLOOKUP($B71&$B72,'Base de données'!$F:$I,3,FALSE),VLOOKUP($B70&$B72,'Base de données'!$F:$I,3,FALSE)),VLOOKUP($B69&$B72,'Base de données'!$F:$I,3,FALSE)),VLOOKUP($B68&$B72,'Base de données'!$F:$I,3,FALSE)),\"\")=0,\"\",IFERROR(IFERROR(IFERROR(IFERROR(VLOOKUP($B71&$B72,'Base de données'!$F:$I,3,FALSE),VLOOKUP($B70&$B72,'Base de données'!$F:$I,3,FALSE)),VLOOKUP($B69&$B72,'Base de données'!$F:$I,3,FALSE)),VLOOKUP($B68&$B72,'Base de données'!$F:$I,3,FALSE)),\"\"))","v":""},{"$f":"IF(IFERROR(IFERROR(IFERROR(IFERROR(VLOOKUP($B71&$B72,'Base de données'!$F:$I,4,FALSE),VLOOKUP($B70&$B72,'Base de données'!$F:$I,4,FALSE)),VLOOKUP($B69&$B72,'Base de données'!$F:$I,4,FALSE)),VLOOKUP($B68&$B72,'Base de données'!$F:$I,4,FALSE)),\"\")=0,\"\",IFERROR(IFERROR(IFERROR(IFERROR(VLOOKUP($B71&$B72,'Base de données'!$F:$I,4,FALSE),VLOOKUP($B70&$B72,'Base de données'!$F:$I,4,FALSE)),VLOOKUP($B69&$B72,'Base de données'!$F:$I,4,FALSE)),VLOOKUP($B68&$B72,'Base de données'!$F:$I,4,FALSE)),\"\"))","v":""}]
[null,null,null,{"$f":"IF(IFERROR(IFERROR(IFERROR(IFERROR(VLOOKUP($B72&$B73,'Base de données'!$F:$I,2,FALSE),VLOOKUP($B71&$B73,'Base de données'!$F:$I,2,FALSE)),VLOOKUP($B70&$B73,'Base de données'!$F:$I,2,FALSE)),VLOOKUP($B69&$B73,'Base de données'!$F:$I,2,FALSE)),\"\")=0,\"\",IFERROR(IFERROR(IFERROR(IFERROR(VLOOKUP($B72&$B73,'Base de données'!$F:$I,2,FALSE),VLOOKUP($B71&$B73,'Base de données'!$F:$I,2,FALSE)),VLOOKUP($B70&$B73,'Base de données'!$F:$I,2,FALSE)),VLOOKUP($B69&$B73,'Base de données'!$F:$I,2,FALSE)),\"\"))","v":""},{"$f":"IF(IFERROR(IFERROR(IFERROR(IFERROR(VLOOKUP($B72&$B73,'Base de données'!$F:$I,3,FALSE),VLOOKUP($B71&$B73,'Base de données'!$F:$I,3,FALSE)),VLOOKUP($B70&$B73,'Base de données'!$F:$I,3,FALSE)),VLOOKUP($B69&$B73,'Base de données'!$F:$I,3,FALSE)),\"\")=0,\"\",IFERROR(IFERROR(IFERROR(IFERROR(VLOOKUP($B72&$B73,'Base de données'!$F:$I,3,FALSE),VLOOKUP($B71&$B73,'Base de données'!$F:$I,3,FALSE)),VLOOKUP($B70&$B73,'Base de données'!$F:$I,3,FALSE)),VLOOKUP($B69&$B73,'Base de données'!$F:$I,3,FALSE)),\"\"))","v":""},{"$f":"IF(IFERROR(IFERROR(IFERROR(IFERROR(VLOOKUP($B72&$B73,'Base de données'!$F:$I,4,FALSE),VLOOKUP($B71&$B73,'Base de données'!$F:$I,4,FALSE)),VLOOKUP($B70&$B73,'Base de données'!$F:$I,4,FALSE)),VLOOKUP($B69&$B73,'Base de données'!$F:$I,4,FALSE)),\"\")=0,\"\",IFERROR(IFERROR(IFERROR(IFERROR(VLOOKUP($B72&$B73,'Base de données'!$F:$I,4,FALSE),VLOOKUP($B71&$B73,'Base de données'!$F:$I,4,FALSE)),VLOOKUP($B70&$B73,'Base de données'!$F:$I,4,FALSE)),VLOOKUP($B69&$B73,'Base de données'!$F:$I,4,FALSE)),\"\"))","v":""}]
[null,null,null,{"$f":"IF(IFERROR(IFERROR(IFERROR(IFERROR(VLOOKUP($B73&$B74,'Base de données'!$F:$I,2,FALSE),VLOOKUP($B72&$B74,'Base de données'!$F:$I,2,FALSE)),VLOOKUP($B71&$B74,'Base de données'!$F:$I,2,FALSE)),VLOOKUP($B70&$B74,'Base de données'!$F:$I,2,FALSE)),\"\")=0,\"\",IFERROR(IFERROR(IFERROR(IFERROR(VLOOKUP($B73&$B74,'Base de données'!$F:$I,2,FALSE),VLOOKUP($B72&$B74,'Base de données'!$F:$I,2,FALSE)),VLOOKUP($B71&$B74,'Base de données'!$F:$I,2,FALSE)),VLOOKUP($B70&$B74,'Base de données'!$F:$I,2,FALSE)),\"\"))","v":""},{"$f":"IF(IFERROR(IFERROR(IFERROR(IFERROR(VLOOKUP($B73&$B74,'Base de données'!$F:$I,3,FALSE),VLOOKUP($B72&$B74,'Base de données'!$F:$I,3,FALSE)),VLOOKUP($B71&$B74,'Base de données'!$F:$I,3,FALSE)),VLOOKUP($B70&$B74,'Base de données'!$F:$I,3,FALSE)),\"\")=0,\"\",IFERROR(IFERROR(IFERROR(IFERROR(VLOOKUP($B73&$B74,'Base de données'!$F:$I,3,FALSE),VLOOKUP($B72&$B74,'Base de données'!$F:$I,3,FALSE)),VLOOKUP($B71&$B74,'Base de données'!$F:$I,3,FALSE)),VLOOKUP($B70&$B74,'Base de données'!$F:$I,3,FALSE)),\"\"))","v":""},{"$f":"IF(IFERROR(IFERROR(IFERROR(IFERROR(VLOOKUP($B73&$B74,'Base de données'!$F:$I,4,FALSE),VLOOKUP($B72&$B74,'Base de données'!$F:$I,4,FALSE)),VLOOKUP($B71&$B74,'Base de données'!$F:$I,4,FALSE)),VLOOKUP($B70&$B74,'Base de données'!$F:$I,4,FALSE)),\"\")=0,\"\",IFERROR(IFERROR(IFERROR(IFERROR(VLOOKUP($B73&$B74,'Base de données'!$F:$I,4,FALSE),VLOOKUP($B72&$B74,'Base de données'!$F:$I,4,FALSE)),VLOOKUP($B71&$B74,'Base de données'!$F:$I,4,FALSE)),VLOOKUP($B70&$B74,'Base de données'!$F:$I,4,FALSE)),\"\"))","v":""}]
[null,null,null,{"$f":"IF(IFERROR(IFERROR(IFERROR(IFERROR(VLOOKUP($B74&$B75,'Base de données'!$F:$I,2,FALSE),VLOOKUP($B73&$B75,'Base de données'!$F:$I,2,FALSE)),VLOOKUP($B72&$B75,'Base de données'!$F:$I,2,FALSE)),VLOOKUP($B71&$B75,'Base de données'!$F:$I,2,FALSE)),\"\")=0,\"\",IFERROR(IFERROR(IFERROR(IFERROR(VLOOKUP($B74&$B75,'Base de données'!$F:$I,2,FALSE),VLOOKUP($B73&$B75,'Base de données'!$F:$I,2,FALSE)),VLOOKUP($B72&$B75,'Base de données'!$F:$I,2,FALSE)),VLOOKUP($B71&$B75,'Base de données'!$F:$I,2,FALSE)),\"\"))","v":""},{"$f":"IF(IFERROR(IFERROR(IFERROR(IFERROR(VLOOKUP($B74&$B75,'Base de données'!$F:$I,3,FALSE),VLOOKUP($B73&$B75,'Base de données'!$F:$I,3,FALSE)),VLOOKUP($B72&$B75,'Base de données'!$F:$I,3,FALSE)),VLOOKUP($B71&$B75,'Base de données'!$F:$I,3,FALSE)),\"\")=0,\"\",IFERROR(IFERROR(IFERROR(IFERROR(VLOOKUP($B74&$B75,'Base de données'!$F:$I,3,FALSE),VLOOKUP($B73&$B75,'Base de données'!$F:$I,3,FALSE)),VLOOKUP($B72&$B75,'Base de données'!$F:$I,3,FALSE)),VLOOKUP($B71&$B75,'Base de données'!$F:$I,3,FALSE)),\"\"))","v":""},{"$f":"IF(IFERROR(IFERROR(IFERROR(IFERROR(VLOOKUP($B74&$B75,'Base de données'!$F:$I,4,FALSE),VLOOKUP($B73&$B75,'Base de données'!$F:$I,4,FALSE)),VLOOKUP($B72&$B75,'Base de données'!$F:$I,4,FALSE)),VLOOKUP($B71&$B75,'Base de données'!$F:$I,4,FALSE)),\"\")=0,\"\",IFERROR(IFERROR(IFERROR(IFERROR(VLOOKUP($B74&$B75,'Base de données'!$F:$I,4,FALSE),VLOOKUP($B73&$B75,'Base de données'!$F:$I,4,FALSE)),VLOOKUP($B72&$B75,'Base de données'!$F:$I,4,FALSE)),VLOOKUP($B71&$B75,'Base de données'!$F:$I,4,FALSE)),\"\"))","v":""}]
[null,null,null,{"$f":"IF(IFERROR(IFERROR(IFERROR(IFERROR(VLOOKUP($B75&$B76,'Base de données'!$F:$I,2,FALSE),VLOOKUP($B74&$B76,'Base de données'!$F:$I,2,FALSE)),VLOOKUP($B73&$B76,'Base de données'!$F:$I,2,FALSE)),VLOOKUP($B72&$B76,'Base de données'!$F:$I,2,FALSE)),\"\")=0,\"\",IFERROR(IFERROR(IFERROR(IFERROR(VLOOKUP($B75&$B76,'Base de données'!$F:$I,2,FALSE),VLOOKUP($B74&$B76,'Base de données'!$F:$I,2,FALSE)),VLOOKUP($B73&$B76,'Base de données'!$F:$I,2,FALSE)),VLOOKUP($B72&$B76,'Base de données'!$F:$I,2,FALSE)),\"\"))","v":""},{"$f":"IF(IFERROR(IFERROR(IFERROR(IFERROR(VLOOKUP($B75&$B76,'Base de données'!$F:$I,3,FALSE),VLOOKUP($B74&$B76,'Base de données'!$F:$I,3,FALSE)),VLOOKUP($B73&$B76,'Base de données'!$F:$I,3,FALSE)),VLOOKUP($B72&$B76,'Base de données'!$F:$I,3,FALSE)),\"\")=0,\"\",IFERROR(IFERROR(IFERROR(IFERROR(VLOOKUP($B75&$B76,'Base de données'!$F:$I,3,FALSE),VLOOKUP($B74&$B76,'Base de données'!$F:$I,3,FALSE)),VLOOKUP($B73&$B76,'Base de données'!$F:$I,3,FALSE)),VLOOKUP($B72&$B76,'Base de données'!$F:$I,3,FALSE)),\"\"))","v":""},{"$f":"IF(IFERROR(IFERROR(IFERROR(IFERROR(VLOOKUP($B75&$B76,'Base de données'!$F:$I,4,FALSE),VLOOKUP($B74&$B76,'Base de données'!$F:$I,4,FALSE)),VLOOKUP($B73&$B76,'Base de données'!$F:$I,4,FALSE)),VLOOKUP($B72&$B76,'Base de données'!$F:$I,4,FALSE)),\"\")=0,\"\",IFERROR(IFERROR(IFERROR(IFERROR(VLOOKUP($B75&$B76,'Base de données'!$F:$I,4,FALSE),VLOOKUP($B74&$B76,'Base de données'!$F:$I,4,FALSE)),VLOOKUP($B73&$B76,'Base de données'!$F:$I,4,FALSE)),VLOOKUP($B72&$B76,'Base de données'!$F:$I,4,FALSE)),\"\"))","v":""}]
[null,null,null,{"$f":"IF(IFERROR(IFERROR(IFERROR(IFERROR(VLOOKUP($B76&$B77,'Base de données'!$F:$I,2,FALSE),VLOOKUP($B75&$B77,'Base de données'!$F:$I,2,FALSE)),VLOOKUP($B74&$B77,'Base de données'!$F:$I,2,FALSE)),VLOOKUP($B73&$B77,'Base de données'!$F:$I,2,FALSE)),\"\")=0,\"\",IFERROR(IFERROR(IFERROR(IFERROR(VLOOKUP($B76&$B77,'Base de données'!$F:$I,2,FALSE),VLOOKUP($B75&$B77,'Base de données'!$F:$I,2,FALSE)),VLOOKUP($B74&$B77,'Base de données'!$F:$I,2,FALSE)),VLOOKUP($B73&$B77,'Base de données'!$F:$I,2,FALSE)),\"\"))","v":""},{"$f":"IF(IFERROR(IFERROR(IFERROR(IFERROR(VLOOKUP($B76&$B77,'Base de données'!$F:$I,3,FALSE),VLOOKUP($B75&$B77,'Base de données'!$F:$I,3,FALSE)),VLOOKUP($B74&$B77,'Base de données'!$F:$I,3,FALSE)),VLOOKUP($B73&$B77,'Base de données'!$F:$I,3,FALSE)),\"\")=0,\"\",IFERROR(IFERROR(IFERROR(IFERROR(VLOOKUP($B76&$B77,'Base de données'!$F:$I,3,FALSE),VLOOKUP($B75&$B77,'Base de données'!$F:$I,3,FALSE)),VLOOKUP($B74&$B77,'Base de données'!$F:$I,3,FALSE)),VLOOKUP($B73&$B77,'Base de données'!$F:$I,3,FALSE)),\"\"))","v":""},{"$f":"IF(IFERROR(IFERROR(IFERROR(IFERROR(VLOOKUP($B76&$B77,'Base de données'!$F:$I,4,FALSE),VLOOKUP($B75&$B77,'Base de données'!$F:$I,4,FALSE)),VLOOKUP($B74&$B77,'Base de données'!$F:$I,4,FALSE)),VLOOKUP($B73&$B77,'Base de données'!$F:$I,4,FALSE)),\"\")=0,\"\",IFERROR(IFERROR(IFERROR(IFERROR(VLOOKUP($B76&$B77,'Base de données'!$F:$I,4,FALSE),VLOOKUP($B75&$B77,'Base de données'!$F:$I,4,FALSE)),VLOOKUP($B74&$B77,'Base de données'!$F:$I,4,FALSE)),VLOOKUP($B73&$B77,'Base de données'!$F:$I,4,FALSE)),\"\"))","v":""}]
[null,null,null,{"$f":"IF(IFERROR(IFERROR(IFERROR(IFERROR(VLOOKUP($B77&$B78,'Base de données'!$F:$I,2,FALSE),VLOOKUP($B76&$B78,'Base de données'!$F:$I,2,FALSE)),VLOOKUP($B75&$B78,'Base de données'!$F:$I,2,FALSE)),VLOOKUP($B74&$B78,'Base de données'!$F:$I,2,FALSE)),\"\")=0,\"\",IFERROR(IFERROR(IFERROR(IFERROR(VLOOKUP($B77&$B78,'Base de données'!$F:$I,2,FALSE),VLOOKUP($B76&$B78,'Base de données'!$F:$I,2,FALSE)),VLOOKUP($B75&$B78,'Base de données'!$F:$I,2,FALSE)),VLOOKUP($B74&$B78,'Base de données'!$F:$I,2,FALSE)),\"\"))","v":""},{"$f":"IF(IFERROR(IFERROR(IFERROR(IFERROR(VLOOKUP($B77&$B78,'Base de données'!$F:$I,3,FALSE),VLOOKUP($B76&$B78,'Base de données'!$F:$I,3,FALSE)),VLOOKUP($B75&$B78,'Base de données'!$F:$I,3,FALSE)),VLOOKUP($B74&$B78,'Base de données'!$F:$I,3,FALSE)),\"\")=0,\"\",IFERROR(IFERROR(IFERROR(IFERROR(VLOOKUP($B77&$B78,'Base de données'!$F:$I,3,FALSE),VLOOKUP($B76&$B78,'Base de données'!$F:$I,3,FALSE)),VLOOKUP($B75&$B78,'Base de données'!$F:$I,3,FALSE)),VLOOKUP($B74&$B78,'Base de données'!$F:$I,3,FALSE)),\"\"))","v":""},{"$f":"IF(IFERROR(IFERROR(IFERROR(IFERROR(VLOOKUP($B77&$B78,'Base de données'!$F:$I,4,FALSE),VLOOKUP($B76&$B78,'Base de données'!$F:$I,4,FALSE)),VLOOKUP($B75&$B78,'Base de données'!$F:$I,4,FALSE)),VLOOKUP($B74&$B78,'Base de données'!$F:$I,4,FALSE)),\"\")=0,\"\",IFERROR(IFERROR(IFERROR(IFERROR(VLOOKUP($B77&$B78,'Base de données'!$F:$I,4,FALSE),VLOOKUP($B76&$B78,'Base de données'!$F:$I,4,FALSE)),VLOOKUP($B75&$B78,'Base de données'!$F:$I,4,FALSE)),VLOOKUP($B74&$B78,'Base de données'!$F:$I,4,FALSE)),\"\"))","v":""}]
[null,null,null,{"$f":"IF(IFERROR(IFERROR(IFERROR(IFERROR(VLOOKUP($B78&$B79,'Base de données'!$F:$I,2,FALSE),VLOOKUP($B77&$B79,'Base de données'!$F:$I,2,FALSE)),VLOOKUP($B76&$B79,'Base de données'!$F:$I,2,FALSE)),VLOOKUP($B75&$B79,'Base de données'!$F:$I,2,FALSE)),\"\")=0,\"\",IFERROR(IFERROR(IFERROR(IFERROR(VLOOKUP($B78&$B79,'Base de données'!$F:$I,2,FALSE),VLOOKUP($B77&$B79,'Base de données'!$F:$I,2,FALSE)),VLOOKUP($B76&$B79,'Base de données'!$F:$I,2,FALSE)),VLOOKUP($B75&$B79,'Base de données'!$F:$I,2,FALSE)),\"\"))","v":""},{"$f":"IF(IFERROR(IFERROR(IFERROR(IFERROR(VLOOKUP($B78&$B79,'Base de données'!$F:$I,3,FALSE),VLOOKUP($B77&$B79,'Base de données'!$F:$I,3,FALSE)),VLOOKUP($B76&$B79,'Base de données'!$F:$I,3,FALSE)),VLOOKUP($B75&$B79,'Base de données'!$F:$I,3,FALSE)),\"\")=0,\"\",IFERROR(IFERROR(IFERROR(IFERROR(VLOOKUP($B78&$B79,'Base de données'!$F:$I,3,FALSE),VLOOKUP($B77&$B79,'Base de données'!$F:$I,3,FALSE)),VLOOKUP($B76&$B79,'Base de données'!$F:$I,3,FALSE)),VLOOKUP($B75&$B79,'Base de données'!$F:$I,3,FALSE)),\"\"))","v":""},{"$f":"IF(IFERROR(IFERROR(IFERROR(IFERROR(VLOOKUP($B78&$B79,'Base de données'!$F:$I,4,FALSE),VLOOKUP($B77&$B79,'Base de données'!$F:$I,4,FALSE)),VLOOKUP($B76&$B79,'Base de données'!$F:$I,4,FALSE)),VLOOKUP($B75&$B79,'Base de données'!$F:$I,4,FALSE)),\"\")=0,\"\",IFERROR(IFERROR(IFERROR(IFERROR(VLOOKUP($B78&$B79,'Base de données'!$F:$I,4,FALSE),VLOOKUP($B77&$B79,'Base de données'!$F:$I,4,FALSE)),VLOOKUP($B76&$B79,'Base de données'!$F:$I,4,FALSE)),VLOOKUP($B75&$B79,'Base de données'!$F:$I,4,FALSE)),\"\"))","v":""}]
[null,null,null,{"$f":"IF(IFERROR(IFERROR(IFERROR(IFERROR(VLOOKUP($B79&$B80,'Base de données'!$F:$I,2,FALSE),VLOOKUP($B78&$B80,'Base de données'!$F:$I,2,FALSE)),VLOOKUP($B77&$B80,'Base de données'!$F:$I,2,FALSE)),VLOOKUP($B76&$B80,'Base de données'!$F:$I,2,FALSE)),\"\")=0,\"\",IFERROR(IFERROR(IFERROR(IFERROR(VLOOKUP($B79&$B80,'Base de données'!$F:$I,2,FALSE),VLOOKUP($B78&$B80,'Base de données'!$F:$I,2,FALSE)),VLOOKUP($B77&$B80,'Base de données'!$F:$I,2,FALSE)),VLOOKUP($B76&$B80,'Base de données'!$F:$I,2,FALSE)),\"\"))","v":""},{"$f":"IF(IFERROR(IFERROR(IFERROR(IFERROR(VLOOKUP($B79&$B80,'Base de données'!$F:$I,3,FALSE),VLOOKUP($B78&$B80,'Base de données'!$F:$I,3,FALSE)),VLOOKUP($B77&$B80,'Base de données'!$F:$I,3,FALSE)),VLOOKUP($B76&$B80,'Base de données'!$F:$I,3,FALSE)),\"\")=0,\"\",IFERROR(IFERROR(IFERROR(IFERROR(VLOOKUP($B79&$B80,'Base de données'!$F:$I,3,FALSE),VLOOKUP($B78&$B80,'Base de données'!$F:$I,3,FALSE)),VLOOKUP($B77&$B80,'Base de données'!$F:$I,3,FALSE)),VLOOKUP($B76&$B80,'Base de données'!$F:$I,3,FALSE)),\"\"))","v":""},{"$f":"IF(IFERROR(IFERROR(IFERROR(IFERROR(VLOOKUP($B79&$B80,'Base de données'!$F:$I,4,FALSE),VLOOKUP($B78&$B80,'Base de données'!$F:$I,4,FALSE)),VLOOKUP($B77&$B80,'Base de données'!$F:$I,4,FALSE)),VLOOKUP($B76&$B80,'Base de données'!$F:$I,4,FALSE)),\"\")=0,\"\",IFERROR(IFERROR(IFERROR(IFERROR(VLOOKUP($B79&$B80,'Base de données'!$F:$I,4,FALSE),VLOOKUP($B78&$B80,'Base de données'!$F:$I,4,FALSE)),VLOOKUP($B77&$B80,'Base de données'!$F:$I,4,FALSE)),VLOOKUP($B76&$B80,'Base de données'!$F:$I,4,FALSE)),\"\"))","v":""}]
[null,null,null,{"$f":"IF(IFERROR(IFERROR(IFERROR(IFERROR(VLOOKUP($B80&$B81,'Base de données'!$F:$I,2,FALSE),VLOOKUP($B79&$B81,'Base de données'!$F:$I,2,FALSE)),VLOOKUP($B78&$B81,'Base de données'!$F:$I,2,FALSE)),VLOOKUP($B77&$B81,'Base de données'!$F:$I,2,FALSE)),\"\")=0,\"\",IFERROR(IFERROR(IFERROR(IFERROR(VLOOKUP($B80&$B81,'Base de données'!$F:$I,2,FALSE),VLOOKUP($B79&$B81,'Base de données'!$F:$I,2,FALSE)),VLOOKUP($B78&$B81,'Base de données'!$F:$I,2,FALSE)),VLOOKUP($B77&$B81,'Base de données'!$F:$I,2,FALSE)),\"\"))","v":""},{"$f":"IF(IFERROR(IFERROR(IFERROR(IFERROR(VLOOKUP($B80&$B81,'Base de données'!$F:$I,3,FALSE),VLOOKUP($B79&$B81,'Base de données'!$F:$I,3,FALSE)),VLOOKUP($B78&$B81,'Base de données'!$F:$I,3,FALSE)),VLOOKUP($B77&$B81,'Base de données'!$F:$I,3,FALSE)),\"\")=0,\"\",IFERROR(IFERROR(IFERROR(IFERROR(VLOOKUP($B80&$B81,'Base de données'!$F:$I,3,FALSE),VLOOKUP($B79&$B81,'Base de données'!$F:$I,3,FALSE)),VLOOKUP($B78&$B81,'Base de données'!$F:$I,3,FALSE)),VLOOKUP($B77&$B81,'Base de données'!$F:$I,3,FALSE)),\"\"))","v":""},{"$f":"IF(IFERROR(IFERROR(IFERROR(IFERROR(VLOOKUP($B80&$B81,'Base de données'!$F:$I,4,FALSE),VLOOKUP($B79&$B81,'Base de données'!$F:$I,4,FALSE)),VLOOKUP($B78&$B81,'Base de données'!$F:$I,4,FALSE)),VLOOKUP($B77&$B81,'Base de données'!$F:$I,4,FALSE)),\"\")=0,\"\",IFERROR(IFERROR(IFERROR(IFERROR(VLOOKUP($B80&$B81,'Base de données'!$F:$I,4,FALSE),VLOOKUP($B79&$B81,'Base de données'!$F:$I,4,FALSE)),VLOOKUP($B78&$B81,'Base de données'!$F:$I,4,FALSE)),VLOOKUP($B77&$B81,'Base de données'!$F:$I,4,FALSE)),\"\"))","v":""}]
[null,null,null,{"$f":"IF(IFERROR(IFERROR(IFERROR(IFERROR(VLOOKUP($B81&$B82,'Base de données'!$F:$I,2,FALSE),VLOOKUP($B80&$B82,'Base de données'!$F:$I,2,FALSE)),VLOOKUP($B79&$B82,'Base de données'!$F:$I,2,FALSE)),VLOOKUP($B78&$B82,'Base de données'!$F:$I,2,FALSE)),\"\")=0,\"\",IFERROR(IFERROR(IFERROR(IFERROR(VLOOKUP($B81&$B82,'Base de données'!$F:$I,2,FALSE),VLOOKUP($B80&$B82,'Base de données'!$F:$I,2,FALSE)),VLOOKUP($B79&$B82,'Base de données'!$F:$I,2,FALSE)),VLOOKUP($B78&$B82,'Base de données'!$F:$I,2,FALSE)),\"\"))","v":""},{"$f":"IF(IFERROR(IFERROR(IFERROR(IFERROR(VLOOKUP($B81&$B82,'Base de données'!$F:$I,3,FALSE),VLOOKUP($B80&$B82,'Base de données'!$F:$I,3,FALSE)),VLOOKUP($B79&$B82,'Base de données'!$F:$I,3,FALSE)),VLOOKUP($B78&$B82,'Base de données'!$F:$I,3,FALSE)),\"\")=0,\"\",IFERROR(IFERROR(IFERROR(IFERROR(VLOOKUP($B81&$B82,'Base de données'!$F:$I,3,FALSE),VLOOKUP($B80&$B82,'Base de données'!$F:$I,3,FALSE)),VLOOKUP($B79&$B82,'Base de données'!$F:$I,3,FALSE)),VLOOKUP($B78&$B82,'Base de données'!$F:$I,3,FALSE)),\"\"))","v":""},{"$f":"IF(IFERROR(IFERROR(IFERROR(IFERROR(VLOOKUP($B81&$B82,'Base de données'!$F:$I,4,FALSE),VLOOKUP($B80&$B82,'Base de données'!$F:$I,4,FALSE)),VLOOKUP($B79&$B82,'Base de données'!$F:$I,4,FALSE)),VLOOKUP($B78&$B82,'Base de données'!$F:$I,4,FALSE)),\"\")=0,\"\",IFERROR(IFERROR(IFERROR(IFERROR(VLOOKUP($B81&$B82,'Base de données'!$F:$I,4,FALSE),VLOOKUP($B80&$B82,'Base de données'!$F:$I,4,FALSE)),VLOOKUP($B79&$B82,'Base de données'!$F:$I,4,FALSE)),VLOOKUP($B78&$B82,'Base de données'!$F:$I,4,FALSE)),\"\"))","v":""}]
[null,null,null,{"$f":"IF(IFERROR(IFERROR(IFERROR(IFERROR(VLOOKUP($B82&$B83,'Base de données'!$F:$I,2,FALSE),VLOOKUP($B81&$B83,'Base de données'!$F:$I,2,FALSE)),VLOOKUP($B80&$B83,'Base de données'!$F:$I,2,FALSE)),VLOOKUP($B79&$B83,'Base de données'!$F:$I,2,FALSE)),\"\")=0,\"\",IFERROR(IFERROR(IFERROR(IFERROR(VLOOKUP($B82&$B83,'Base de données'!$F:$I,2,FALSE),VLOOKUP($B81&$B83,'Base de données'!$F:$I,2,FALSE)),VLOOKUP($B80&$B83,'Base de données'!$F:$I,2,FALSE)),VLOOKUP($B79&$B83,'Base de données'!$F:$I,2,FALSE)),\"\"))","v":""},{"$f":"IF(IFERROR(IFERROR(IFERROR(IFERROR(VLOOKUP($B82&$B83,'Base de données'!$F:$I,3,FALSE),VLOOKUP($B81&$B83,'Base de données'!$F:$I,3,FALSE)),VLOOKUP($B80&$B83,'Base de données'!$F:$I,3,FALSE)),VLOOKUP($B79&$B83,'Base de données'!$F:$I,3,FALSE)),\"\")=0,\"\",IFERROR(IFERROR(IFERROR(IFERROR(VLOOKUP($B82&$B83,'Base de données'!$F:$I,3,FALSE),VLOOKUP($B81&$B83,'Base de données'!$F:$I,3,FALSE)),VLOOKUP($B80&$B83,'Base de données'!$F:$I,3,FALSE)),VLOOKUP($B79&$B83,'Base de données'!$F:$I,3,FALSE)),\"\"))","v":""},{"$f":"IF(IFERROR(IFERROR(IFERROR(IFERROR(VLOOKUP($B82&$B83,'Base de données'!$F:$I,4,FALSE),VLOOKUP($B81&$B83,'Base de données'!$F:$I,4,FALSE)),VLOOKUP($B80&$B83,'Base de données'!$F:$I,4,FALSE)),VLOOKUP($B79&$B83,'Base de données'!$F:$I,4,FALSE)),\"\")=0,\"\",IFERROR(IFERROR(IFERROR(IFERROR(VLOOKUP($B82&$B83,'Base de données'!$F:$I,4,FALSE),VLOOKUP($B81&$B83,'Base de données'!$F:$I,4,FALSE)),VLOOKUP($B80&$B83,'Base de données'!$F:$I,4,FALSE)),VLOOKUP($B79&$B83,'Base de données'!$F:$I,4,FALSE)),\"\"))","v":""}]
[null,null,null,{"$f":"IF(IFERROR(IFERROR(IFERROR(IFERROR(VLOOKUP($B83&$B84,'Base de données'!$F:$I,2,FALSE),VLOOKUP($B82&$B84,'Base de données'!$F:$I,2,FALSE)),VLOOKUP($B81&$B84,'Base de données'!$F:$I,2,FALSE)),VLOOKUP($B80&$B84,'Base de données'!$F:$I,2,FALSE)),\"\")=0,\"\",IFERROR(IFERROR(IFERROR(IFERROR(VLOOKUP($B83&$B84,'Base de données'!$F:$I,2,FALSE),VLOOKUP($B82&$B84,'Base de données'!$F:$I,2,FALSE)),VLOOKUP($B81&$B84,'Base de données'!$F:$I,2,FALSE)),VLOOKUP($B80&$B84,'Base de données'!$F:$I,2,FALSE)),\"\"))","v":""},{"$f":"IF(IFERROR(IFERROR(IFERROR(IFERROR(VLOOKUP($B83&$B84,'Base de données'!$F:$I,3,FALSE),VLOOKUP($B82&$B84,'Base de données'!$F:$I,3,FALSE)),VLOOKUP($B81&$B84,'Base de données'!$F:$I,3,FALSE)),VLOOKUP($B80&$B84,'Base de données'!$F:$I,3,FALSE)),\"\")=0,\"\",IFERROR(IFERROR(IFERROR(IFERROR(VLOOKUP($B83&$B84,'Base de données'!$F:$I,3,FALSE),VLOOKUP($B82&$B84,'Base de données'!$F:$I,3,FALSE)),VLOOKUP($B81&$B84,'Base de données'!$F:$I,3,FALSE)),VLOOKUP($B80&$B84,'Base de données'!$F:$I,3,FALSE)),\"\"))","v":""},{"$f":"IF(IFERROR(IFERROR(IFERROR(IFERROR(VLOOKUP($B83&$B84,'Base de données'!$F:$I,4,FALSE),VLOOKUP($B82&$B84,'Base de données'!$F:$I,4,FALSE)),VLOOKUP($B81&$B84,'Base de données'!$F:$I,4,FALSE)),VLOOKUP($B80&$B84,'Base de données'!$F:$I,4,FALSE)),\"\")=0,\"\",IFERROR(IFERROR(IFERROR(IFERROR(VLOOKUP($B83&$B84,'Base de données'!$F:$I,4,FALSE),VLOOKUP($B82&$B84,'Base de données'!$F:$I,4,FALSE)),VLOOKUP($B81&$B84,'Base de données'!$F:$I,4,FALSE)),VLOOKUP($B80&$B84,'Base de données'!$F:$I,4,FALSE)),\"\"))","v":""}]
[null,null,null,{"$f":"IF(IFERROR(IFERROR(IFERROR(IFERROR(VLOOKUP($B84&$B85,'Base de données'!$F:$I,2,FALSE),VLOOKUP($B83&$B85,'Base de données'!$F:$I,2,FALSE)),VLOOKUP($B82&$B85,'Base de données'!$F:$I,2,FALSE)),VLOOKUP($B81&$B85,'Base de données'!$F:$I,2,FALSE)),\"\")=0,\"\",IFERROR(IFERROR(IFERROR(IFERROR(VLOOKUP($B84&$B85,'Base de données'!$F:$I,2,FALSE),VLOOKUP($B83&$B85,'Base de données'!$F:$I,2,FALSE)),VLOOKUP($B82&$B85,'Base de données'!$F:$I,2,FALSE)),VLOOKUP($B81&$B85,'Base de données'!$F:$I,2,FALSE)),\"\"))","v":""},{"$f":"IF(IFERROR(IFERROR(IFERROR(IFERROR(VLOOKUP($B84&$B85,'Base de données'!$F:$I,3,FALSE),VLOOKUP($B83&$B85,'Base de données'!$F:$I,3,FALSE)),VLOOKUP($B82&$B85,'Base de données'!$F:$I,3,FALSE)),VLOOKUP($B81&$B85,'Base de données'!$F:$I,3,FALSE)),\"\")=0,\"\",IFERROR(IFERROR(IFERROR(IFERROR(VLOOKUP($B84&$B85,'Base de données'!$F:$I,3,FALSE),VLOOKUP($B83&$B85,'Base de données'!$F:$I,3,FALSE)),VLOOKUP($B82&$B85,'Base de données'!$F:$I,3,FALSE)),VLOOKUP($B81&$B85,'Base de données'!$F:$I,3,FALSE)),\"\"))","v":""},{"$f":"IF(IFERROR(IFERROR(IFERROR(IFERROR(VLOOKUP($B84&$B85,'Base de données'!$F:$I,4,FALSE),VLOOKUP($B83&$B85,'Base de données'!$F:$I,4,FALSE)),VLOOKUP($B82&$B85,'Base de données'!$F:$I,4,FALSE)),VLOOKUP($B81&$B85,'Base de données'!$F:$I,4,FALSE)),\"\")=0,\"\",IFERROR(IFERROR(IFERROR(IFERROR(VLOOKUP($B84&$B85,'Base de données'!$F:$I,4,FALSE),VLOOKUP($B83&$B85,'Base de données'!$F:$I,4,FALSE)),VLOOKUP($B82&$B85,'Base de données'!$F:$I,4,FALSE)),VLOOKUP($B81&$B85,'Base de données'!$F:$I,4,FALSE)),\"\"))","v":""}]
[null,null,null,{"$f":"IF(IFERROR(IFERROR(IFERROR(IFERROR(VLOOKUP($B85&$B86,'Base de données'!$F:$I,2,FALSE),VLOOKUP($B84&$B86,'Base de données'!$F:$I,2,FALSE)),VLOOKUP($B83&$B86,'Base de données'!$F:$I,2,FALSE)),VLOOKUP($B82&$B86,'Base de données'!$F:$I,2,FALSE)),\"\")=0,\"\",IFERROR(IFERROR(IFERROR(IFERROR(VLOOKUP($B85&$B86,'Base de données'!$F:$I,2,FALSE),VLOOKUP($B84&$B86,'Base de données'!$F:$I,2,FALSE)),VLOOKUP($B83&$B86,'Base de données'!$F:$I,2,FALSE)),VLOOKUP($B82&$B86,'Base de données'!$F:$I,2,FALSE)),\"\"))","v":""},{"$f":"IF(IFERROR(IFERROR(IFERROR(IFERROR(VLOOKUP($B85&$B86,'Base de données'!$F:$I,3,FALSE),VLOOKUP($B84&$B86,'Base de données'!$F:$I,3,FALSE)),VLOOKUP($B83&$B86,'Base de données'!$F:$I,3,FALSE)),VLOOKUP($B82&$B86,'Base de données'!$F:$I,3,FALSE)),\"\")=0,\"\",IFERROR(IFERROR(IFERROR(IFERROR(VLOOKUP($B85&$B86,'Base de données'!$F:$I,3,FALSE),VLOOKUP($B84&$B86,'Base de données'!$F:$I,3,FALSE)),VLOOKUP($B83&$B86,'Base de données'!$F:$I,3,FALSE)),VLOOKUP($B82&$B86,'Base de données'!$F:$I,3,FALSE)),\"\"))","v":""},{"$f":"IF(IFERROR(IFERROR(IFERROR(IFERROR(VLOOKUP($B85&$B86,'Base de données'!$F:$I,4,FALSE),VLOOKUP($B84&$B86,'Base de données'!$F:$I,4,FALSE)),VLOOKUP($B83&$B86,'Base de données'!$F:$I,4,FALSE)),VLOOKUP($B82&$B86,'Base de données'!$F:$I,4,FALSE)),\"\")=0,\"\",IFERROR(IFERROR(IFERROR(IFERROR(VLOOKUP($B85&$B86,'Base de données'!$F:$I,4,FALSE),VLOOKUP($B84&$B86,'Base de données'!$F:$I,4,FALSE)),VLOOKUP($B83&$B86,'Base de données'!$F:$I,4,FALSE)),VLOOKUP($B82&$B86,'Base de données'!$F:$I,4,FALSE)),\"\"))","v":""}]
[null,null,null,{"$f":"IF(IFERROR(IFERROR(IFERROR(IFERROR(VLOOKUP($B86&$B87,'Base de données'!$F:$I,2,FALSE),VLOOKUP($B85&$B87,'Base de données'!$F:$I,2,FALSE)),VLOOKUP($B84&$B87,'Base de données'!$F:$I,2,FALSE)),VLOOKUP($B83&$B87,'Base de données'!$F:$I,2,FALSE)),\"\")=0,\"\",IFERROR(IFERROR(IFERROR(IFERROR(VLOOKUP($B86&$B87,'Base de données'!$F:$I,2,FALSE),VLOOKUP($B85&$B87,'Base de données'!$F:$I,2,FALSE)),VLOOKUP($B84&$B87,'Base de données'!$F:$I,2,FALSE)),VLOOKUP($B83&$B87,'Base de données'!$F:$I,2,FALSE)),\"\"))","v":""},{"$f":"IF(IFERROR(IFERROR(IFERROR(IFERROR(VLOOKUP($B86&$B87,'Base de données'!$F:$I,3,FALSE),VLOOKUP($B85&$B87,'Base de données'!$F:$I,3,FALSE)),VLOOKUP($B84&$B87,'Base de données'!$F:$I,3,FALSE)),VLOOKUP($B83&$B87,'Base de données'!$F:$I,3,FALSE)),\"\")=0,\"\",IFERROR(IFERROR(IFERROR(IFERROR(VLOOKUP($B86&$B87,'Base de données'!$F:$I,3,FALSE),VLOOKUP($B85&$B87,'Base de données'!$F:$I,3,FALSE)),VLOOKUP($B84&$B87,'Base de données'!$F:$I,3,FALSE)),VLOOKUP($B83&$B87,'Base de données'!$F:$I,3,FALSE)),\"\"))","v":""},{"$f":"IF(IFERROR(IFERROR(IFERROR(IFERROR(VLOOKUP($B86&$B87,'Base de données'!$F:$I,4,FALSE),VLOOKUP($B85&$B87,'Base de données'!$F:$I,4,FALSE)),VLOOKUP($B84&$B87,'Base de données'!$F:$I,4,FALSE)),VLOOKUP($B83&$B87,'Base de données'!$F:$I,4,FALSE)),\"\")=0,\"\",IFERROR(IFERROR(IFERROR(IFERROR(VLOOKUP($B86&$B87,'Base de données'!$F:$I,4,FALSE),VLOOKUP($B85&$B87,'Base de données'!$F:$I,4,FALSE)),VLOOKUP($B84&$B87,'Base de données'!$F:$I,4,FALSE)),VLOOKUP($B83&$B87,'Base de données'!$F:$I,4,FALSE)),\"\"))","v":""}]
[null,null,null,{"$f":"IF(IFERROR(IFERROR(IFERROR(IFERROR(VLOOKUP($B87&$B88,'Base de données'!$F:$I,2,FALSE),VLOOKUP($B86&$B88,'Base de données'!$F:$I,2,FALSE)),VLOOKUP($B85&$B88,'Base de données'!$F:$I,2,FALSE)),VLOOKUP($B84&$B88,'Base de données'!$F:$I,2,FALSE)),\"\")=0,\"\",IFERROR(IFERROR(IFERROR(IFERROR(VLOOKUP($B87&$B88,'Base de données'!$F:$I,2,FALSE),VLOOKUP($B86&$B88,'Base de données'!$F:$I,2,FALSE)),VLOOKUP($B85&$B88,'Base de données'!$F:$I,2,FALSE)),VLOOKUP($B84&$B88,'Base de données'!$F:$I,2,FALSE)),\"\"))","v":""},{"$f":"IF(IFERROR(IFERROR(IFERROR(IFERROR(VLOOKUP($B87&$B88,'Base de données'!$F:$I,3,FALSE),VLOOKUP($B86&$B88,'Base de données'!$F:$I,3,FALSE)),VLOOKUP($B85&$B88,'Base de données'!$F:$I,3,FALSE)),VLOOKUP($B84&$B88,'Base de données'!$F:$I,3,FALSE)),\"\")=0,\"\",IFERROR(IFERROR(IFERROR(IFERROR(VLOOKUP($B87&$B88,'Base de données'!$F:$I,3,FALSE),VLOOKUP($B86&$B88,'Base de données'!$F:$I,3,FALSE)),VLOOKUP($B85&$B88,'Base de données'!$F:$I,3,FALSE)),VLOOKUP($B84&$B88,'Base de données'!$F:$I,3,FALSE)),\"\"))","v":""},{"$f":"IF(IFERROR(IFERROR(IFERROR(IFERROR(VLOOKUP($B87&$B88,'Base de données'!$F:$I,4,FALSE),VLOOKUP($B86&$B88,'Base de données'!$F:$I,4,FALSE)),VLOOKUP($B85&$B88,'Base de données'!$F:$I,4,FALSE)),VLOOKUP($B84&$B88,'Base de données'!$F:$I,4,FALSE)),\"\")=0,\"\",IFERROR(IFERROR(IFERROR(IFERROR(VLOOKUP($B87&$B88,'Base de données'!$F:$I,4,FALSE),VLOOKUP($B86&$B88,'Base de données'!$F:$I,4,FALSE)),VLOOKUP($B85&$B88,'Base de données'!$F:$I,4,FALSE)),VLOOKUP($B84&$B88,'Base de données'!$F:$I,4,FALSE)),\"\"))","v":""}]
[null,null,null,{"$f":"IF(IFERROR(IFERROR(IFERROR(IFERROR(VLOOKUP($B88&$B89,'Base de données'!$F:$I,2,FALSE),VLOOKUP($B87&$B89,'Base de données'!$F:$I,2,FALSE)),VLOOKUP($B86&$B89,'Base de données'!$F:$I,2,FALSE)),VLOOKUP($B85&$B89,'Base de données'!$F:$I,2,FALSE)),\"\")=0,\"\",IFERROR(IFERROR(IFERROR(IFERROR(VLOOKUP($B88&$B89,'Base de données'!$F:$I,2,FALSE),VLOOKUP($B87&$B89,'Base de données'!$F:$I,2,FALSE)),VLOOKUP($B86&$B89,'Base de données'!$F:$I,2,FALSE)),VLOOKUP($B85&$B89,'Base de données'!$F:$I,2,FALSE)),\"\"))","v":""},{"$f":"IF(IFERROR(IFERROR(IFERROR(IFERROR(VLOOKUP($B88&$B89,'Base de données'!$F:$I,3,FALSE),VLOOKUP($B87&$B89,'Base de données'!$F:$I,3,FALSE)),VLOOKUP($B86&$B89,'Base de données'!$F:$I,3,FALSE)),VLOOKUP($B85&$B89,'Base de données'!$F:$I,3,FALSE)),\"\")=0,\"\",IFERROR(IFERROR(IFERROR(IFERROR(VLOOKUP($B88&$B89,'Base de données'!$F:$I,3,FALSE),VLOOKUP($B87&$B89,'Base de données'!$F:$I,3,FALSE)),VLOOKUP($B86&$B89,'Base de données'!$F:$I,3,FALSE)),VLOOKUP($B85&$B89,'Base de données'!$F:$I,3,FALSE)),\"\"))","v":""},{"$f":"IF(IFERROR(IFERROR(IFERROR(IFERROR(VLOOKUP($B88&$B89,'Base de données'!$F:$I,4,FALSE),VLOOKUP($B87&$B89,'Base de données'!$F:$I,4,FALSE)),VLOOKUP($B86&$B89,'Base de données'!$F:$I,4,FALSE)),VLOOKUP($B85&$B89,'Base de données'!$F:$I,4,FALSE)),\"\")=0,\"\",IFERROR(IFERROR(IFERROR(IFERROR(VLOOKUP($B88&$B89,'Base de données'!$F:$I,4,FALSE),VLOOKUP($B87&$B89,'Base de données'!$F:$I,4,FALSE)),VLOOKUP($B86&$B89,'Base de données'!$F:$I,4,FALSE)),VLOOKUP($B85&$B89,'Base de données'!$F:$I,4,FALSE)),\"\"))","v":""}]
[null,null,null,{"$f":"IF(IFERROR(IFERROR(IFERROR(IFERROR(VLOOKUP($B89&$B90,'Base de données'!$F:$I,2,FALSE),VLOOKUP($B88&$B90,'Base de données'!$F:$I,2,FALSE)),VLOOKUP($B87&$B90,'Base de données'!$F:$I,2,FALSE)),VLOOKUP($B86&$B90,'Base de données'!$F:$I,2,FALSE)),\"\")=0,\"\",IFERROR(IFERROR(IFERROR(IFERROR(VLOOKUP($B89&$B90,'Base de données'!$F:$I,2,FALSE),VLOOKUP($B88&$B90,'Base de données'!$F:$I,2,FALSE)),VLOOKUP($B87&$B90,'Base de données'!$F:$I,2,FALSE)),VLOOKUP($B86&$B90,'Base de données'!$F:$I,2,FALSE)),\"\"))","v":""},{"$f":"IF(IFERROR(IFERROR(IFERROR(IFERROR(VLOOKUP($B89&$B90,'Base de données'!$F:$I,3,FALSE),VLOOKUP($B88&$B90,'Base de données'!$F:$I,3,FALSE)),VLOOKUP($B87&$B90,'Base de données'!$F:$I,3,FALSE)),VLOOKUP($B86&$B90,'Base de données'!$F:$I,3,FALSE)),\"\")=0,\"\",IFERROR(IFERROR(IFERROR(IFERROR(VLOOKUP($B89&$B90,'Base de données'!$F:$I,3,FALSE),VLOOKUP($B88&$B90,'Base de données'!$F:$I,3,FALSE)),VLOOKUP($B87&$B90,'Base de données'!$F:$I,3,FALSE)),VLOOKUP($B86&$B90,'Base de données'!$F:$I,3,FALSE)),\"\"))","v":""},{"$f":"IF(IFERROR(IFERROR(IFERROR(IFERROR(VLOOKUP($B89&$B90,'Base de données'!$F:$I,4,FALSE),VLOOKUP($B88&$B90,'Base de données'!$F:$I,4,FALSE)),VLOOKUP($B87&$B90,'Base de données'!$F:$I,4,FALSE)),VLOOKUP($B86&$B90,'Base de données'!$F:$I,4,FALSE)),\"\")=0,\"\",IFERROR(IFERROR(IFERROR(IFERROR(VLOOKUP($B89&$B90,'Base de données'!$F:$I,4,FALSE),VLOOKUP($B88&$B90,'Base de données'!$F:$I,4,FALSE)),VLOOKUP($B87&$B90,'Base de données'!$F:$I,4,FALSE)),VLOOKUP($B86&$B90,'Base de données'!$F:$I,4,FALSE)),\"\"))","v":""}]
[null,null,null,{"$f":"IF(IFERROR(IFERROR(IFERROR(IFERROR(VLOOKUP($B90&$B91,'Base de données'!$F:$I,2,FALSE),VLOOKUP($B89&$B91,'Base de données'!$F:$I,2,FALSE)),VLOOKUP($B88&$B91,'Base de données'!$F:$I,2,FALSE)),VLOOKUP($B87&$B91,'Base de données'!$F:$I,2,FALSE)),\"\")=0,\"\",IFERROR(IFERROR(IFERROR(IFERROR(VLOOKUP($B90&$B91,'Base de données'!$F:$I,2,FALSE),VLOOKUP($B89&$B91,'Base de données'!$F:$I,2,FALSE)),VLOOKUP($B88&$B91,'Base de données'!$F:$I,2,FALSE)),VLOOKUP($B87&$B91,'Base de données'!$F:$I,2,FALSE)),\"\"))","v":""},{"$f":"IF(IFERROR(IFERROR(IFERROR(IFERROR(VLOOKUP($B90&$B91,'Base de données'!$F:$I,3,FALSE),VLOOKUP($B89&$B91,'Base de données'!$F:$I,3,FALSE)),VLOOKUP($B88&$B91,'Base de données'!$F:$I,3,FALSE)),VLOOKUP($B87&$B91,'Base de données'!$F:$I,3,FALSE)),\"\")=0,\"\",IFERROR(IFERROR(IFERROR(IFERROR(VLOOKUP($B90&$B91,'Base de données'!$F:$I,3,FALSE),VLOOKUP($B89&$B91,'Base de données'!$F:$I,3,FALSE)),VLOOKUP($B88&$B91,'Base de données'!$F:$I,3,FALSE)),VLOOKUP($B87&$B91,'Base de données'!$F:$I,3,FALSE)),\"\"))","v":""},{"$f":"IF(IFERROR(IFERROR(IFERROR(IFERROR(VLOOKUP($B90&$B91,'Base de données'!$F:$I,4,FALSE),VLOOKUP($B89&$B91,'Base de données'!$F:$I,4,FALSE)),VLOOKUP($B88&$B91,'Base de données'!$F:$I,4,FALSE)),VLOOKUP($B87&$B91,'Base de données'!$F:$I,4,FALSE)),\"\")=0,\"\",IFERROR(IFERROR(IFERROR(IFERROR(VLOOKUP($B90&$B91,'Base de données'!$F:$I,4,FALSE),VLOOKUP($B89&$B91,'Base de données'!$F:$I,4,FALSE)),VLOOKUP($B88&$B91,'Base de données'!$F:$I,4,FALSE)),VLOOKUP($B87&$B91,'Base de données'!$F:$I,4,FALSE)),\"\"))","v":""}]
[null,null,null,{"$f":"IF(IFERROR(IFERROR(IFERROR(IFERROR(VLOOKUP($B91&$B92,'Base de données'!$F:$I,2,FALSE),VLOOKUP($B90&$B92,'Base de données'!$F:$I,2,FALSE)),VLOOKUP($B89&$B92,'Base de données'!$F:$I,2,FALSE)),VLOOKUP($B88&$B92,'Base de données'!$F:$I,2,FALSE)),\"\")=0,\"\",IFERROR(IFERROR(IFERROR(IFERROR(VLOOKUP($B91&$B92,'Base de données'!$F:$I,2,FALSE),VLOOKUP($B90&$B92,'Base de données'!$F:$I,2,FALSE)),VLOOKUP($B89&$B92,'Base de données'!$F:$I,2,FALSE)),VLOOKUP($B88&$B92,'Base de données'!$F:$I,2,FALSE)),\"\"))","v":""},{"$f":"IF(IFERROR(IFERROR(IFERROR(IFERROR(VLOOKUP($B91&$B92,'Base de données'!$F:$I,3,FALSE),VLOOKUP($B90&$B92,'Base de données'!$F:$I,3,FALSE)),VLOOKUP($B89&$B92,'Base de données'!$F:$I,3,FALSE)),VLOOKUP($B88&$B92,'Base de données'!$F:$I,3,FALSE)),\"\")=0,\"\",IFERROR(IFERROR(IFERROR(IFERROR(VLOOKUP($B91&$B92,'Base de données'!$F:$I,3,FALSE),VLOOKUP($B90&$B92,'Base de données'!$F:$I,3,FALSE)),VLOOKUP($B89&$B92,'Base de données'!$F:$I,3,FALSE)),VLOOKUP($B88&$B92,'Base de données'!$F:$I,3,FALSE)),\"\"))","v":""},{"$f":"IF(IFERROR(IFERROR(IFERROR(IFERROR(VLOOKUP($B91&$B92,'Base de données'!$F:$I,4,FALSE),VLOOKUP($B90&$B92,'Base de données'!$F:$I,4,FALSE)),VLOOKUP($B89&$B92,'Base de données'!$F:$I,4,FALSE)),VLOOKUP($B88&$B92,'Base de données'!$F:$I,4,FALSE)),\"\")=0,\"\",IFERROR(IFERROR(IFERROR(IFERROR(VLOOKUP($B91&$B92,'Base de données'!$F:$I,4,FALSE),VLOOKUP($B90&$B92,'Base de données'!$F:$I,4,FALSE)),VLOOKUP($B89&$B92,'Base de données'!$F:$I,4,FALSE)),VLOOKUP($B88&$B92,'Base de données'!$F:$I,4,FALSE)),\"\"))","v":""}]
[null,null,null,{"$f":"IF(IFERROR(IFERROR(IFERROR(IFERROR(VLOOKUP($B92&$B93,'Base de données'!$F:$I,2,FALSE),VLOOKUP($B91&$B93,'Base de données'!$F:$I,2,FALSE)),VLOOKUP($B90&$B93,'Base de données'!$F:$I,2,FALSE)),VLOOKUP($B89&$B93,'Base de données'!$F:$I,2,FALSE)),\"\")=0,\"\",IFERROR(IFERROR(IFERROR(IFERROR(VLOOKUP($B92&$B93,'Base de données'!$F:$I,2,FALSE),VLOOKUP($B91&$B93,'Base de données'!$F:$I,2,FALSE)),VLOOKUP($B90&$B93,'Base de données'!$F:$I,2,FALSE)),VLOOKUP($B89&$B93,'Base de données'!$F:$I,2,FALSE)),\"\"))","v":""},{"$f":"IF(IFERROR(IFERROR(IFERROR(IFERROR(VLOOKUP($B92&$B93,'Base de données'!$F:$I,3,FALSE),VLOOKUP($B91&$B93,'Base de données'!$F:$I,3,FALSE)),VLOOKUP($B90&$B93,'Base de données'!$F:$I,3,FALSE)),VLOOKUP($B89&$B93,'Base de données'!$F:$I,3,FALSE)),\"\")=0,\"\",IFERROR(IFERROR(IFERROR(IFERROR(VLOOKUP($B92&$B93,'Base de données'!$F:$I,3,FALSE),VLOOKUP($B91&$B93,'Base de données'!$F:$I,3,FALSE)),VLOOKUP($B90&$B93,'Base de données'!$F:$I,3,FALSE)),VLOOKUP($B89&$B93,'Base de données'!$F:$I,3,FALSE)),\"\"))","v":""},{"$f":"IF(IFERROR(IFERROR(IFERROR(IFERROR(VLOOKUP($B92&$B93,'Base de données'!$F:$I,4,FALSE),VLOOKUP($B91&$B93,'Base de données'!$F:$I,4,FALSE)),VLOOKUP($B90&$B93,'Base de données'!$F:$I,4,FALSE)),VLOOKUP($B89&$B93,'Base de données'!$F:$I,4,FALSE)),\"\")=0,\"\",IFERROR(IFERROR(IFERROR(IFERROR(VLOOKUP($B92&$B93,'Base de données'!$F:$I,4,FALSE),VLOOKUP($B91&$B93,'Base de données'!$F:$I,4,FALSE)),VLOOKUP($B90&$B93,'Base de données'!$F:$I,4,FALSE)),VLOOKUP($B89&$B93,'Base de données'!$F:$I,4,FALSE)),\"\"))","v":""}]
[null,null,null,{"$f":"IF(IFERROR(IFERROR(IFERROR(IFERROR(VLOOKUP($B93&$B94,'Base de données'!$F:$I,2,FALSE),VLOOKUP($B92&$B94,'Base de données'!$F:$I,2,FALSE)),VLOOKUP($B91&$B94,'Base de données'!$F:$I,2,FALSE)),VLOOKUP($B90&$B94,'Base de données'!$F:$I,2,FALSE)),\"\")=0,\"\",IFERROR(IFERROR(IFERROR(IFERROR(VLOOKUP($B93&$B94,'Base de données'!$F:$I,2,FALSE),VLOOKUP($B92&$B94,'Base de données'!$F:$I,2,FALSE)),VLOOKUP($B91&$B94,'Base de données'!$F:$I,2,FALSE)),VLOOKUP($B90&$B94,'Base de données'!$F:$I,2,FALSE)),\"\"))","v":""},{"$f":"IF(IFERROR(IFERROR(IFERROR(IFERROR(VLOOKUP($B93&$B94,'Base de données'!$F:$I,3,FALSE),VLOOKUP($B92&$B94,'Base de données'!$F:$I,3,FALSE)),VLOOKUP($B91&$B94,'Base de données'!$F:$I,3,FALSE)),VLOOKUP($B90&$B94,'Base de données'!$F:$I,3,FALSE)),\"\")=0,\"\",IFERROR(IFERROR(IFERROR(IFERROR(VLOOKUP($B93&$B94,'Base de données'!$F:$I,3,FALSE),VLOOKUP($B92&$B94,'Base de données'!$F:$I,3,FALSE)),VLOOKUP($B91&$B94,'Base de données'!$F:$I,3,FALSE)),VLOOKUP($B90&$B94,'Base de données'!$F:$I,3,FALSE)),\"\"))","v":""},{"$f":"IF(IFERROR(IFERROR(IFERROR(IFERROR(VLOOKUP($B93&$B94,'Base de données'!$F:$I,4,FALSE),VLOOKUP($B92&$B94,'Base de données'!$F:$I,4,FALSE)),VLOOKUP($B91&$B94,'Base de données'!$F:$I,4,FALSE)),VLOOKUP($B90&$B94,'Base de données'!$F:$I,4,FALSE)),\"\")=0,\"\",IFERROR(IFERROR(IFERROR(IFERROR(VLOOKUP($B93&$B94,'Base de données'!$F:$I,4,FALSE),VLOOKUP($B92&$B94,'Base de données'!$F:$I,4,FALSE)),VLOOKUP($B91&$B94,'Base de données'!$F:$I,4,FALSE)),VLOOKUP($B90&$B94,'Base de données'!$F:$I,4,FALSE)),\"\"))","v":""}]
[null,null,null,{"$f":"IF(IFERROR(IFERROR(IFERROR(IFERROR(VLOOKUP($B94&$B95,'Base de données'!$F:$I,2,FALSE),VLOOKUP($B93&$B95,'Base de données'!$F:$I,2,FALSE)),VLOOKUP($B92&$B95,'Base de données'!$F:$I,2,FALSE)),VLOOKUP($B91&$B95,'Base de données'!$F:$I,2,FALSE)),\"\")=0,\"\",IFERROR(IFERROR(IFERROR(IFERROR(VLOOKUP($B94&$B95,'Base de données'!$F:$I,2,FALSE),VLOOKUP($B93&$B95,'Base de données'!$F:$I,2,FALSE)),VLOOKUP($B92&$B95,'Base de données'!$F:$I,2,FALSE)),VLOOKUP($B91&$B95,'Base de données'!$F:$I,2,FALSE)),\"\"))","v":""},{"$f":"IF(IFERROR(IFERROR(IFERROR(IFERROR(VLOOKUP($B94&$B95,'Base de données'!$F:$I,3,FALSE),VLOOKUP($B93&$B95,'Base de données'!$F:$I,3,FALSE)),VLOOKUP($B92&$B95,'Base de données'!$F:$I,3,FALSE)),VLOOKUP($B91&$B95,'Base de données'!$F:$I,3,FALSE)),\"\")=0,\"\",IFERROR(IFERROR(IFERROR(IFERROR(VLOOKUP($B94&$B95,'Base de données'!$F:$I,3,FALSE),VLOOKUP($B93&$B95,'Base de données'!$F:$I,3,FALSE)),VLOOKUP($B92&$B95,'Base de données'!$F:$I,3,FALSE)),VLOOKUP($B91&$B95,'Base de données'!$F:$I,3,FALSE)),\"\"))","v":""},{"$f":"IF(IFERROR(IFERROR(IFERROR(IFERROR(VLOOKUP($B94&$B95,'Base de données'!$F:$I,4,FALSE),VLOOKUP($B93&$B95,'Base de données'!$F:$I,4,FALSE)),VLOOKUP($B92&$B95,'Base de données'!$F:$I,4,FALSE)),VLOOKUP($B91&$B95,'Base de données'!$F:$I,4,FALSE)),\"\")=0,\"\",IFERROR(IFERROR(IFERROR(IFERROR(VLOOKUP($B94&$B95,'Base de données'!$F:$I,4,FALSE),VLOOKUP($B93&$B95,'Base de données'!$F:$I,4,FALSE)),VLOOKUP($B92&$B95,'Base de données'!$F:$I,4,FALSE)),VLOOKUP($B91&$B95,'Base de données'!$F:$I,4,FALSE)),\"\"))","v":""}]
[null,null,null,{"$f":"IF(IFERROR(IFERROR(IFERROR(IFERROR(VLOOKUP($B95&$B96,'Base de données'!$F:$I,2,FALSE),VLOOKUP($B94&$B96,'Base de données'!$F:$I,2,FALSE)),VLOOKUP($B93&$B96,'Base de données'!$F:$I,2,FALSE)),VLOOKUP($B92&$B96,'Base de données'!$F:$I,2,FALSE)),\"\")=0,\"\",IFERROR(IFERROR(IFERROR(IFERROR(VLOOKUP($B95&$B96,'Base de données'!$F:$I,2,FALSE),VLOOKUP($B94&$B96,'Base de données'!$F:$I,2,FALSE)),VLOOKUP($B93&$B96,'Base de données'!$F:$I,2,FALSE)),VLOOKUP($B92&$B96,'Base de données'!$F:$I,2,FALSE)),\"\"))","v":""},{"$f":"IF(IFERROR(IFERROR(IFERROR(IFERROR(VLOOKUP($B95&$B96,'Base de données'!$F:$I,3,FALSE),VLOOKUP($B94&$B96,'Base de données'!$F:$I,3,FALSE)),VLOOKUP($B93&$B96,'Base de données'!$F:$I,3,FALSE)),VLOOKUP($B92&$B96,'Base de données'!$F:$I,3,FALSE)),\"\")=0,\"\",IFERROR(IFERROR(IFERROR(IFERROR(VLOOKUP($B95&$B96,'Base de données'!$F:$I,3,FALSE),VLOOKUP($B94&$B96,'Base de données'!$F:$I,3,FALSE)),VLOOKUP($B93&$B96,'Base de données'!$F:$I,3,FALSE)),VLOOKUP($B92&$B96,'Base de données'!$F:$I,3,FALSE)),\"\"))","v":""},{"$f":"IF(IFERROR(IFERROR(IFERROR(IFERROR(VLOOKUP($B95&$B96,'Base de données'!$F:$I,4,FALSE),VLOOKUP($B94&$B96,'Base de données'!$F:$I,4,FALSE)),VLOOKUP($B93&$B96,'Base de données'!$F:$I,4,FALSE)),VLOOKUP($B92&$B96,'Base de données'!$F:$I,4,FALSE)),\"\")=0,\"\",IFERROR(IFERROR(IFERROR(IFERROR(VLOOKUP($B95&$B96,'Base de données'!$F:$I,4,FALSE),VLOOKUP($B94&$B96,'Base de données'!$F:$I,4,FALSE)),VLOOKUP($B93&$B96,'Base de données'!$F:$I,4,FALSE)),VLOOKUP($B92&$B96,'Base de données'!$F:$I,4,FALSE)),\"\"))","v":""}]
[null,null,null,{"$f":"IF(IFERROR(IFERROR(IFERROR(IFERROR(VLOOKUP($B96&$B97,'Base de données'!$F:$I,2,FALSE),VLOOKUP($B95&$B97,'Base de données'!$F:$I,2,FALSE)),VLOOKUP($B94&$B97,'Base de données'!$F:$I,2,FALSE)),VLOOKUP($B93&$B97,'Base de données'!$F:$I,2,FALSE)),\"\")=0,\"\",IFERROR(IFERROR(IFERROR(IFERROR(VLOOKUP($B96&$B97,'Base de données'!$F:$I,2,FALSE),VLOOKUP($B95&$B97,'Base de données'!$F:$I,2,FALSE)),VLOOKUP($B94&$B97,'Base de données'!$F:$I,2,FALSE)),VLOOKUP($B93&$B97,'Base de données'!$F:$I,2,FALSE)),\"\"))","v":""},{"$f":"IF(IFERROR(IFERROR(IFERROR(IFERROR(VLOOKUP($B96&$B97,'Base de données'!$F:$I,3,FALSE),VLOOKUP($B95&$B97,'Base de données'!$F:$I,3,FALSE)),VLOOKUP($B94&$B97,'Base de données'!$F:$I,3,FALSE)),VLOOKUP($B93&$B97,'Base de données'!$F:$I,3,FALSE)),\"\")=0,\"\",IFERROR(IFERROR(IFERROR(IFERROR(VLOOKUP($B96&$B97,'Base de données'!$F:$I,3,FALSE),VLOOKUP($B95&$B97,'Base de données'!$F:$I,3,FALSE)),VLOOKUP($B94&$B97,'Base de données'!$F:$I,3,FALSE)),VLOOKUP($B93&$B97,'Base de données'!$F:$I,3,FALSE)),\"\"))","v":""},{"$f":"IF(IFERROR(IFERROR(IFERROR(IFERROR(VLOOKUP($B96&$B97,'Base de données'!$F:$I,4,FALSE),VLOOKUP($B95&$B97,'Base de données'!$F:$I,4,FALSE)),VLOOKUP($B94&$B97,'Base de données'!$F:$I,4,FALSE)),VLOOKUP($B93&$B97,'Base de données'!$F:$I,4,FALSE)),\"\")=0,\"\",IFERROR(IFERROR(IFERROR(IFERROR(VLOOKUP($B96&$B97,'Base de données'!$F:$I,4,FALSE),VLOOKUP($B95&$B97,'Base de données'!$F:$I,4,FALSE)),VLOOKUP($B94&$B97,'Base de données'!$F:$I,4,FALSE)),VLOOKUP($B93&$B97,'Base de données'!$F:$I,4,FALSE)),\"\"))","v":""}]
[null,null,null,{"$f":"IF(IFERROR(IFERROR(IFERROR(IFERROR(VLOOKUP($B97&$B98,'Base de données'!$F:$I,2,FALSE),VLOOKUP($B96&$B98,'Base de données'!$F:$I,2,FALSE)),VLOOKUP($B95&$B98,'Base de données'!$F:$I,2,FALSE)),VLOOKUP($B94&$B98,'Base de données'!$F:$I,2,FALSE)),\"\")=0,\"\",IFERROR(IFERROR(IFERROR(IFERROR(VLOOKUP($B97&$B98,'Base de données'!$F:$I,2,FALSE),VLOOKUP($B96&$B98,'Base de données'!$F:$I,2,FALSE)),VLOOKUP($B95&$B98,'Base de données'!$F:$I,2,FALSE)),VLOOKUP($B94&$B98,'Base de données'!$F:$I,2,FALSE)),\"\"))","v":""},{"$f":"IF(IFERROR(IFERROR(IFERROR(IFERROR(VLOOKUP($B97&$B98,'Base de données'!$F:$I,3,FALSE),VLOOKUP($B96&$B98,'Base de données'!$F:$I,3,FALSE)),VLOOKUP($B95&$B98,'Base de données'!$F:$I,3,FALSE)),VLOOKUP($B94&$B98,'Base de données'!$F:$I,3,FALSE)),\"\")=0,\"\",IFERROR(IFERROR(IFERROR(IFERROR(VLOOKUP($B97&$B98,'Base de données'!$F:$I,3,FALSE),VLOOKUP($B96&$B98,'Base de données'!$F:$I,3,FALSE)),VLOOKUP($B95&$B98,'Base de données'!$F:$I,3,FALSE)),VLOOKUP($B94&$B98,'Base de données'!$F:$I,3,FALSE)),\"\"))","v":""},{"$f":"IF(IFERROR(IFERROR(IFERROR(IFERROR(VLOOKUP($B97&$B98,'Base de données'!$F:$I,4,FALSE),VLOOKUP($B96&$B98,'Base de données'!$F:$I,4,FALSE)),VLOOKUP($B95&$B98,'Base de données'!$F:$I,4,FALSE)),VLOOKUP($B94&$B98,'Base de données'!$F:$I,4,FALSE)),\"\")=0,\"\",IFERROR(IFERROR(IFERROR(IFERROR(VLOOKUP($B97&$B98,'Base de données'!$F:$I,4,FALSE),VLOOKUP($B96&$B98,'Base de données'!$F:$I,4,FALSE)),VLOOKUP($B95&$B98,'Base de données'!$F:$I,4,FALSE)),VLOOKUP($B94&$B98,'Base de données'!$F:$I,4,FALSE)),\"\"))","v":""}]
[null,null,null,{"$f":"IF(IFERROR(IFERROR(IFERROR(IFERROR(VLOOKUP($B98&$B99,'Base de données'!$F:$I,2,FALSE),VLOOKUP($B97&$B99,'Base de données'!$F:$I,2,FALSE)),VLOOKUP($B96&$B99,'Base de données'!$F:$I,2,FALSE)),VLOOKUP($B95&$B99,'Base de données'!$F:$I,2,FALSE)),\"\")=0,\"\",IFERROR(IFERROR(IFERROR(IFERROR(VLOOKUP($B98&$B99,'Base de données'!$F:$I,2,FALSE),VLOOKUP($B97&$B99,'Base de données'!$F:$I,2,FALSE)),VLOOKUP($B96&$B99,'Base de données'!$F:$I,2,FALSE)),VLOOKUP($B95&$B99,'Base de données'!$F:$I,2,FALSE)),\"\"))","v":""},{"$f":"IF(IFERROR(IFERROR(IFERROR(IFERROR(VLOOKUP($B98&$B99,'Base de données'!$F:$I,3,FALSE),VLOOKUP($B97&$B99,'Base de données'!$F:$I,3,FALSE)),VLOOKUP($B96&$B99,'Base de données'!$F:$I,3,FALSE)),VLOOKUP($B95&$B99,'Base de données'!$F:$I,3,FALSE)),\"\")=0,\"\",IFERROR(IFERROR(IFERROR(IFERROR(VLOOKUP($B98&$B99,'Base de données'!$F:$I,3,FALSE),VLOOKUP($B97&$B99,'Base de données'!$F:$I,3,FALSE)),VLOOKUP($B96&$B99,'Base de données'!$F:$I,3,FALSE)),VLOOKUP($B95&$B99,'Base de données'!$F:$I,3,FALSE)),\"\"))","v":""},{"$f":"IF(IFERROR(IFERROR(IFERROR(IFERROR(VLOOKUP($B98&$B99,'Base de données'!$F:$I,4,FALSE),VLOOKUP($B97&$B99,'Base de données'!$F:$I,4,FALSE)),VLOOKUP($B96&$B99,'Base de données'!$F:$I,4,FALSE)),VLOOKUP($B95&$B99,'Base de données'!$F:$I,4,FALSE)),\"\")=0,\"\",IFERROR(IFERROR(IFERROR(IFERROR(VLOOKUP($B98&$B99,'Base de données'!$F:$I,4,FALSE),VLOOKUP($B97&$B99,'Base de données'!$F:$I,4,FALSE)),VLOOKUP($B96&$B99,'Base de données'!$F:$I,4,FALSE)),VLOOKUP($B95&$B99,'Base de données'!$F:$I,4,FALSE)),\"\"))","v":""}]
[null,null,null,{"$f":"IF(IFERROR(IFERROR(IFERROR(IFERROR(VLOOKUP($B99&$B100,'Base de données'!$F:$I,2,FALSE),VLOOKUP($B98&$B100,'Base de données'!$F:$I,2,FALSE)),VLOOKUP($B97&$B100,'Base de données'!$F:$I,2,FALSE)),VLOOKUP($B96&$B100,'Base de données'!$F:$I,2,FALSE)),\"\")=0,\"\",IFERROR(IFERROR(IFERROR(IFERROR(VLOOKUP($B99&$B100,'Base de données'!$F:$I,2,FALSE),VLOOKUP($B98&$B100,'Base de données'!$F:$I,2,FALSE)),VLOOKUP($B97&$B100,'Base de données'!$F:$I,2,FALSE)),VLOOKUP($B96&$B100,'Base de données'!$F:$I,2,FALSE)),\"\"))","v":""},{"$f":"IF(IFERROR(IFERROR(IFERROR(IFERROR(VLOOKUP($B99&$B100,'Base de données'!$F:$I,3,FALSE),VLOOKUP($B98&$B100,'Base de données'!$F:$I,3,FALSE)),VLOOKUP($B97&$B100,'Base de données'!$F:$I,3,FALSE)),VLOOKUP($B96&$B100,'Base de données'!$F:$I,3,FALSE)),\"\")=0,\"\",IFERROR(IFERROR(IFERROR(IFERROR(VLOOKUP($B99&$B100,'Base de données'!$F:$I,3,FALSE),VLOOKUP($B98&$B100,'Base de données'!$F:$I,3,FALSE)),VLOOKUP($B97&$B100,'Base de données'!$F:$I,3,FALSE)),VLOOKUP($B96&$B100,'Base de données'!$F:$I,3,FALSE)),\"\"))","v":""},{"$f":"IF(IFERROR(IFERROR(IFERROR(IFERROR(VLOOKUP($B99&$B100,'Base de données'!$F:$I,4,FALSE),VLOOKUP($B98&$B100,'Base de données'!$F:$I,4,FALSE)),VLOOKUP($B97&$B100,'Base de données'!$F:$I,4,FALSE)),VLOOKUP($B96&$B100,'Base de données'!$F:$I,4,FALSE)),\"\")=0,\"\",IFERROR(IFERROR(IFERROR(IFERROR(VLOOKUP($B99&$B100,'Base de données'!$F:$I,4,FALSE),VLOOKUP($B98&$B100,'Base de données'!$F:$I,4,FALSE)),VLOOKUP($B97&$B100,'Base de données'!$F:$I,4,FALSE)),VLOOKUP($B96&$B100,'Base de données'!$F:$I,4,FALSE)),\"\"))","v":""}]
[null,null,null,{"$f":"IF(IFERROR(IFERROR(IFERROR(IFERROR(VLOOKUP($B100&$B101,'Base de données'!$F:$I,2,FALSE),VLOOKUP($B99&$B101,'Base de données'!$F:$I,2,FALSE)),VLOOKUP($B98&$B101,'Base de données'!$F:$I,2,FALSE)),VLOOKUP($B97&$B101,'Base de données'!$F:$I,2,FALSE)),\"\")=0,\"\",IFERROR(IFERROR(IFERROR(IFERROR(VLOOKUP($B100&$B101,'Base de données'!$F:$I,2,FALSE),VLOOKUP($B99&$B101,'Base de données'!$F:$I,2,FALSE)),VLOOKUP($B98&$B101,'Base de données'!$F:$I,2,FALSE)),VLOOKUP($B97&$B101,'Base de données'!$F:$I,2,FALSE)),\"\"))","v":""},{"$f":"IF(IFERROR(IFERROR(IFERROR(IFERROR(VLOOKUP($B100&$B101,'Base de données'!$F:$I,3,FALSE),VLOOKUP($B99&$B101,'Base de données'!$F:$I,3,FALSE)),VLOOKUP($B98&$B101,'Base de données'!$F:$I,3,FALSE)),VLOOKUP($B97&$B101,'Base de données'!$F:$I,3,FALSE)),\"\")=0,\"\",IFERROR(IFERROR(IFERROR(IFERROR(VLOOKUP($B100&$B101,'Base de données'!$F:$I,3,FALSE),VLOOKUP($B99&$B101,'Base de données'!$F:$I,3,FALSE)),VLOOKUP($B98&$B101,'Base de données'!$F:$I,3,FALSE)),VLOOKUP($B97&$B101,'Base de données'!$F:$I,3,FALSE)),\"\"))","v":""},{"$f":"IF(IFERROR(IFERROR(IFERROR(IFERROR(VLOOKUP($B100&$B101,'Base de données'!$F:$I,4,FALSE),VLOOKUP($B99&$B101,'Base de données'!$F:$I,4,FALSE)),VLOOKUP($B98&$B101,'Base de données'!$F:$I,4,FALSE)),VLOOKUP($B97&$B101,'Base de données'!$F:$I,4,FALSE)),\"\")=0,\"\",IFERROR(IFERROR(IFERROR(IFERROR(VLOOKUP($B100&$B101,'Base de données'!$F:$I,4,FALSE),VLOOKUP($B99&$B101,'Base de données'!$F:$I,4,FALSE)),VLOOKUP($B98&$B101,'Base de données'!$F:$I,4,FALSE)),VLOOKUP($B97&$B101,'Base de données'!$F:$I,4,FALSE)),\"\"))","v":""}]
[null,null,null,{"$f":"IF(IFERROR(IFERROR(IFERROR(IFERROR(VLOOKUP($B101&$B102,'Base de données'!$F:$I,2,FALSE),VLOOKUP($B100&$B102,'Base de données'!$F:$I,2,FALSE)),VLOOKUP($B99&$B102,'Base de données'!$F:$I,2,FALSE)),VLOOKUP($B98&$B102,'Base de données'!$F:$I,2,FALSE)),\"\")=0,\"\",IFERROR(IFERROR(IFERROR(IFERROR(VLOOKUP($B101&$B102,'Base de données'!$F:$I,2,FALSE),VLOOKUP($B100&$B102,'Base de données'!$F:$I,2,FALSE)),VLOOKUP($B99&$B102,'Base de données'!$F:$I,2,FALSE)),VLOOKUP($B98&$B102,'Base de données'!$F:$I,2,FALSE)),\"\"))","v":""},{"$f":"IF(IFERROR(IFERROR(IFERROR(IFERROR(VLOOKUP($B101&$B102,'Base de données'!$F:$I,3,FALSE),VLOOKUP($B100&$B102,'Base de données'!$F:$I,3,FALSE)),VLOOKUP($B99&$B102,'Base de données'!$F:$I,3,FALSE)),VLOOKUP($B98&$B102,'Base de données'!$F:$I,3,FALSE)),\"\")=0,\"\",IFERROR(IFERROR(IFERROR(IFERROR(VLOOKUP($B101&$B102,'Base de données'!$F:$I,3,FALSE),VLOOKUP($B100&$B102,'Base de données'!$F:$I,3,FALSE)),VLOOKUP($B99&$B102,'Base de données'!$F:$I,3,FALSE)),VLOOKUP($B98&$B102,'Base de données'!$F:$I,3,FALSE)),\"\"))","v":""},{"$f":"IF(IFERROR(IFERROR(IFERROR(IFERROR(VLOOKUP($B101&$B102,'Base de données'!$F:$I,4,FALSE),VLOOKUP($B100&$B102,'Base de données'!$F:$I,4,FALSE)),VLOOKUP($B99&$B102,'Base de données'!$F:$I,4,FALSE)),VLOOKUP($B98&$B102,'Base de données'!$F:$I,4,FALSE)),\"\")=0,\"\",IFERROR(IFERROR(IFERROR(IFERROR(VLOOKUP($B101&$B102,'Base de données'!$F:$I,4,FALSE),VLOOKUP($B100&$B102,'Base de données'!$F:$I,4,FALSE)),VLOOKUP($B99&$B102,'Base de données'!$F:$I,4,FALSE)),VLOOKUP($B98&$B102,'Base de données'!$F:$I,4,FALSE)),\"\"))","v":""}]
[null,null,null,{"$f":"IF(IFERROR(IFERROR(IFERROR(IFERROR(VLOOKUP($B102&$B103,'Base de données'!$F:$I,2,FALSE),VLOOKUP($B101&$B103,'Base de données'!$F:$I,2,FALSE)),VLOOKUP($B100&$B103,'Base de données'!$F:$I,2,FALSE)),VLOOKUP($B99&$B103,'Base de données'!$F:$I,2,FALSE)),\"\")=0,\"\",IFERROR(IFERROR(IFERROR(IFERROR(VLOOKUP($B102&$B103,'Base de données'!$F:$I,2,FALSE),VLOOKUP($B101&$B103,'Base de données'!$F:$I,2,FALSE)),VLOOKUP($B100&$B103,'Base de données'!$F:$I,2,FALSE)),VLOOKUP($B99&$B103,'Base de données'!$F:$I,2,FALSE)),\"\"))","v":""},{"$f":"IF(IFERROR(IFERROR(IFERROR(IFERROR(VLOOKUP($B102&$B103,'Base de données'!$F:$I,3,FALSE),VLOOKUP($B101&$B103,'Base de données'!$F:$I,3,FALSE)),VLOOKUP($B100&$B103,'Base de données'!$F:$I,3,FALSE)),VLOOKUP($B99&$B103,'Base de données'!$F:$I,3,FALSE)),\"\")=0,\"\",IFERROR(IFERROR(IFERROR(IFERROR(VLOOKUP($B102&$B103,'Base de données'!$F:$I,3,FALSE),VLOOKUP($B101&$B103,'Base de données'!$F:$I,3,FALSE)),VLOOKUP($B100&$B103,'Base de données'!$F:$I,3,FALSE)),VLOOKUP($B99&$B103,'Base de données'!$F:$I,3,FALSE)),\"\"))","v":""},{"$f":"IF(IFERROR(IFERROR(IFERROR(IFERROR(VLOOKUP($B102&$B103,'Base de données'!$F:$I,4,FALSE),VLOOKUP($B101&$B103,'Base de données'!$F:$I,4,FALSE)),VLOOKUP($B100&$B103,'Base de données'!$F:$I,4,FALSE)),VLOOKUP($B99&$B103,'Base de données'!$F:$I,4,FALSE)),\"\")=0,\"\",IFERROR(IFERROR(IFERROR(IFERROR(VLOOKUP($B102&$B103,'Base de données'!$F:$I,4,FALSE),VLOOKUP($B101&$B103,'Base de données'!$F:$I,4,FALSE)),VLOOKUP($B100&$B103,'Base de données'!$F:$I,4,FALSE)),VLOOKUP($B99&$B103,'Base de données'!$F:$I,4,FALSE)),\"\"))","v":""}]
[null,null,null,{"$f":"IF(IFERROR(IFERROR(IFERROR(IFERROR(VLOOKUP($B103&$B104,'Base de données'!$F:$I,2,FALSE),VLOOKUP($B102&$B104,'Base de données'!$F:$I,2,FALSE)),VLOOKUP($B101&$B104,'Base de données'!$F:$I,2,FALSE)),VLOOKUP($B100&$B104,'Base de données'!$F:$I,2,FALSE)),\"\")=0,\"\",IFERROR(IFERROR(IFERROR(IFERROR(VLOOKUP($B103&$B104,'Base de données'!$F:$I,2,FALSE),VLOOKUP($B102&$B104,'Base de données'!$F:$I,2,FALSE)),VLOOKUP($B101&$B104,'Base de données'!$F:$I,2,FALSE)),VLOOKUP($B100&$B104,'Base de données'!$F:$I,2,FALSE)),\"\"))","v":""},{"$f":"IF(IFERROR(IFERROR(IFERROR(IFERROR(VLOOKUP($B103&$B104,'Base de données'!$F:$I,3,FALSE),VLOOKUP($B102&$B104,'Base de données'!$F:$I,3,FALSE)),VLOOKUP($B101&$B104,'Base de données'!$F:$I,3,FALSE)),VLOOKUP($B100&$B104,'Base de données'!$F:$I,3,FALSE)),\"\")=0,\"\",IFERROR(IFERROR(IFERROR(IFERROR(VLOOKUP($B103&$B104,'Base de données'!$F:$I,3,FALSE),VLOOKUP($B102&$B104,'Base de données'!$F:$I,3,FALSE)),VLOOKUP($B101&$B104,'Base de données'!$F:$I,3,FALSE)),VLOOKUP($B100&$B104,'Base de données'!$F:$I,3,FALSE)),\"\"))","v":""},{"$f":"IF(IFERROR(IFERROR(IFERROR(IFERROR(VLOOKUP($B103&$B104,'Base de données'!$F:$I,4,FALSE),VLOOKUP($B102&$B104,'Base de données'!$F:$I,4,FALSE)),VLOOKUP($B101&$B104,'Base de données'!$F:$I,4,FALSE)),VLOOKUP($B100&$B104,'Base de données'!$F:$I,4,FALSE)),\"\")=0,\"\",IFERROR(IFERROR(IFERROR(IFERROR(VLOOKUP($B103&$B104,'Base de données'!$F:$I,4,FALSE),VLOOKUP($B102&$B104,'Base de données'!$F:$I,4,FALSE)),VLOOKUP($B101&$B104,'Base de données'!$F:$I,4,FALSE)),VLOOKUP($B100&$B104,'Base de données'!$F:$I,4,FALSE)),\"\"))","v":""}]
[null,null,null,{"$f":"IF(IFERROR(IFERROR(IFERROR(IFERROR(VLOOKUP($B104&$B105,'Base de données'!$F:$I,2,FALSE),VLOOKUP($B103&$B105,'Base de données'!$F:$I,2,FALSE)),VLOOKUP($B102&$B105,'Base de données'!$F:$I,2,FALSE)),VLOOKUP($B101&$B105,'Base de données'!$F:$I,2,FALSE)),\"\")=0,\"\",IFERROR(IFERROR(IFERROR(IFERROR(VLOOKUP($B104&$B105,'Base de données'!$F:$I,2,FALSE),VLOOKUP($B103&$B105,'Base de données'!$F:$I,2,FALSE)),VLOOKUP($B102&$B105,'Base de données'!$F:$I,2,FALSE)),VLOOKUP($B101&$B105,'Base de données'!$F:$I,2,FALSE)),\"\"))","v":""},{"$f":"IF(IFERROR(IFERROR(IFERROR(IFERROR(VLOOKUP($B104&$B105,'Base de données'!$F:$I,3,FALSE),VLOOKUP($B103&$B105,'Base de données'!$F:$I,3,FALSE)),VLOOKUP($B102&$B105,'Base de données'!$F:$I,3,FALSE)),VLOOKUP($B101&$B105,'Base de données'!$F:$I,3,FALSE)),\"\")=0,\"\",IFERROR(IFERROR(IFERROR(IFERROR(VLOOKUP($B104&$B105,'Base de données'!$F:$I,3,FALSE),VLOOKUP($B103&$B105,'Base de données'!$F:$I,3,FALSE)),VLOOKUP($B102&$B105,'Base de données'!$F:$I,3,FALSE)),VLOOKUP($B101&$B105,'Base de données'!$F:$I,3,FALSE)),\"\"))","v":""},{"$f":"IF(IFERROR(IFERROR(IFERROR(IFERROR(VLOOKUP($B104&$B105,'Base de données'!$F:$I,4,FALSE),VLOOKUP($B103&$B105,'Base de données'!$F:$I,4,FALSE)),VLOOKUP($B102&$B105,'Base de données'!$F:$I,4,FALSE)),VLOOKUP($B101&$B105,'Base de données'!$F:$I,4,FALSE)),\"\")=0,\"\",IFERROR(IFERROR(IFERROR(IFERROR(VLOOKUP($B104&$B105,'Base de données'!$F:$I,4,FALSE),VLOOKUP($B103&$B105,'Base de données'!$F:$I,4,FALSE)),VLOOKUP($B102&$B105,'Base de données'!$F:$I,4,FALSE)),VLOOKUP($B101&$B105,'Base de données'!$F:$I,4,FALSE)),\"\"))","v":""}]
[null,null,null,{"$f":"IF(IFERROR(IFERROR(IFERROR(IFERROR(VLOOKUP($B105&$B106,'Base de données'!$F:$I,2,FALSE),VLOOKUP($B104&$B106,'Base de données'!$F:$I,2,FALSE)),VLOOKUP($B103&$B106,'Base de données'!$F:$I,2,FALSE)),VLOOKUP($B102&$B106,'Base de données'!$F:$I,2,FALSE)),\"\")=0,\"\",IFERROR(IFERROR(IFERROR(IFERROR(VLOOKUP($B105&$B106,'Base de données'!$F:$I,2,FALSE),VLOOKUP($B104&$B106,'Base de données'!$F:$I,2,FALSE)),VLOOKUP($B103&$B106,'Base de données'!$F:$I,2,FALSE)),VLOOKUP($B102&$B106,'Base de données'!$F:$I,2,FALSE)),\"\"))","v":""},{"$f":"IF(IFERROR(IFERROR(IFERROR(IFERROR(VLOOKUP($B105&$B106,'Base de données'!$F:$I,3,FALSE),VLOOKUP($B104&$B106,'Base de données'!$F:$I,3,FALSE)),VLOOKUP($B103&$B106,'Base de données'!$F:$I,3,FALSE)),VLOOKUP($B102&$B106,'Base de données'!$F:$I,3,FALSE)),\"\")=0,\"\",IFERROR(IFERROR(IFERROR(IFERROR(VLOOKUP($B105&$B106,'Base de données'!$F:$I,3,FALSE),VLOOKUP($B104&$B106,'Base de données'!$F:$I,3,FALSE)),VLOOKUP($B103&$B106,'Base de données'!$F:$I,3,FALSE)),VLOOKUP($B102&$B106,'Base de données'!$F:$I,3,FALSE)),\"\"))","v":""},{"$f":"IF(IFERROR(IFERROR(IFERROR(IFERROR(VLOOKUP($B105&$B106,'Base de données'!$F:$I,4,FALSE),VLOOKUP($B104&$B106,'Base de données'!$F:$I,4,FALSE)),VLOOKUP($B103&$B106,'Base de données'!$F:$I,4,FALSE)),VLOOKUP($B102&$B106,'Base de données'!$F:$I,4,FALSE)),\"\")=0,\"\",IFERROR(IFERROR(IFERROR(IFERROR(VLOOKUP($B105&$B106,'Base de données'!$F:$I,4,FALSE),VLOOKUP($B104&$B106,'Base de données'!$F:$I,4,FALSE)),VLOOKUP($B103&$B106,'Base de données'!$F:$I,4,FALSE)),VLOOKUP($B102&$B106,'Base de données'!$F:$I,4,FALSE)),\"\"))","v":""}]
[null,null,null,{"$f":"IF(IFERROR(IFERROR(IFERROR(IFERROR(VLOOKUP($B106&$B107,'Base de données'!$F:$I,2,FALSE),VLOOKUP($B105&$B107,'Base de données'!$F:$I,2,FALSE)),VLOOKUP($B104&$B107,'Base de données'!$F:$I,2,FALSE)),VLOOKUP($B103&$B107,'Base de données'!$F:$I,2,FALSE)),\"\")=0,\"\",IFERROR(IFERROR(IFERROR(IFERROR(VLOOKUP($B106&$B107,'Base de données'!$F:$I,2,FALSE),VLOOKUP($B105&$B107,'Base de données'!$F:$I,2,FALSE)),VLOOKUP($B104&$B107,'Base de données'!$F:$I,2,FALSE)),VLOOKUP($B103&$B107,'Base de données'!$F:$I,2,FALSE)),\"\"))","v":""},{"$f":"IF(IFERROR(IFERROR(IFERROR(IFERROR(VLOOKUP($B106&$B107,'Base de données'!$F:$I,3,FALSE),VLOOKUP($B105&$B107,'Base de données'!$F:$I,3,FALSE)),VLOOKUP($B104&$B107,'Base de données'!$F:$I,3,FALSE)),VLOOKUP($B103&$B107,'Base de données'!$F:$I,3,FALSE)),\"\")=0,\"\",IFERROR(IFERROR(IFERROR(IFERROR(VLOOKUP($B106&$B107,'Base de données'!$F:$I,3,FALSE),VLOOKUP($B105&$B107,'Base de données'!$F:$I,3,FALSE)),VLOOKUP($B104&$B107,'Base de données'!$F:$I,3,FALSE)),VLOOKUP($B103&$B107,'Base de données'!$F:$I,3,FALSE)),\"\"))","v":""},{"$f":"IF(IFERROR(IFERROR(IFERROR(IFERROR(VLOOKUP($B106&$B107,'Base de données'!$F:$I,4,FALSE),VLOOKUP($B105&$B107,'Base de données'!$F:$I,4,FALSE)),VLOOKUP($B104&$B107,'Base de données'!$F:$I,4,FALSE)),VLOOKUP($B103&$B107,'Base de données'!$F:$I,4,FALSE)),\"\")=0,\"\",IFERROR(IFERROR(IFERROR(IFERROR(VLOOKUP($B106&$B107,'Base de données'!$F:$I,4,FALSE),VLOOKUP($B105&$B107,'Base de données'!$F:$I,4,FALSE)),VLOOKUP($B104&$B107,'Base de données'!$F:$I,4,FALSE)),VLOOKUP($B103&$B107,'Base de données'!$F:$I,4,FALSE)),\"\"))","v":""}]
[null,null,null,{"$f":"IF(IFERROR(IFERROR(IFERROR(IFERROR(VLOOKUP($B107&$B108,'Base de données'!$F:$I,2,FALSE),VLOOKUP($B106&$B108,'Base de données'!$F:$I,2,FALSE)),VLOOKUP($B105&$B108,'Base de données'!$F:$I,2,FALSE)),VLOOKUP($B104&$B108,'Base de données'!$F:$I,2,FALSE)),\"\")=0,\"\",IFERROR(IFERROR(IFERROR(IFERROR(VLOOKUP($B107&$B108,'Base de données'!$F:$I,2,FALSE),VLOOKUP($B106&$B108,'Base de données'!$F:$I,2,FALSE)),VLOOKUP($B105&$B108,'Base de données'!$F:$I,2,FALSE)),VLOOKUP($B104&$B108,'Base de données'!$F:$I,2,FALSE)),\"\"))","v":""},{"$f":"IF(IFERROR(IFERROR(IFERROR(IFERROR(VLOOKUP($B107&$B108,'Base de données'!$F:$I,3,FALSE),VLOOKUP($B106&$B108,'Base de données'!$F:$I,3,FALSE)),VLOOKUP($B105&$B108,'Base de données'!$F:$I,3,FALSE)),VLOOKUP($B104&$B108,'Base de données'!$F:$I,3,FALSE)),\"\")=0,\"\",IFERROR(IFERROR(IFERROR(IFERROR(VLOOKUP($B107&$B108,'Base de données'!$F:$I,3,FALSE),VLOOKUP($B106&$B108,'Base de données'!$F:$I,3,FALSE)),VLOOKUP($B105&$B108,'Base de données'!$F:$I,3,FALSE)),VLOOKUP($B104&$B108,'Base de données'!$F:$I,3,FALSE)),\"\"))","v":""},{"$f":"IF(IFERROR(IFERROR(IFERROR(IFERROR(VLOOKUP($B107&$B108,'Base de données'!$F:$I,4,FALSE),VLOOKUP($B106&$B108,'Base de données'!$F:$I,4,FALSE)),VLOOKUP($B105&$B108,'Base de données'!$F:$I,4,FALSE)),VLOOKUP($B104&$B108,'Base de données'!$F:$I,4,FALSE)),\"\")=0,\"\",IFERROR(IFERROR(IFERROR(IFERROR(VLOOKUP($B107&$B108,'Base de données'!$F:$I,4,FALSE),VLOOKUP($B106&$B108,'Base de données'!$F:$I,4,FALSE)),VLOOKUP($B105&$B108,'Base de données'!$F:$I,4,FALSE)),VLOOKUP($B104&$B108,'Base de données'!$F:$I,4,FALSE)),\"\"))","v":""}]
[null,null,null,{"$f":"IF(IFERROR(IFERROR(IFERROR(IFERROR(VLOOKUP($B108&$B109,'Base de données'!$F:$I,2,FALSE),VLOOKUP($B107&$B109,'Base de données'!$F:$I,2,FALSE)),VLOOKUP($B106&$B109,'Base de données'!$F:$I,2,FALSE)),VLOOKUP($B105&$B109,'Base de données'!$F:$I,2,FALSE)),\"\")=0,\"\",IFERROR(IFERROR(IFERROR(IFERROR(VLOOKUP($B108&$B109,'Base de données'!$F:$I,2,FALSE),VLOOKUP($B107&$B109,'Base de données'!$F:$I,2,FALSE)),VLOOKUP($B106&$B109,'Base de données'!$F:$I,2,FALSE)),VLOOKUP($B105&$B109,'Base de données'!$F:$I,2,FALSE)),\"\"))","v":""},{"$f":"IF(IFERROR(IFERROR(IFERROR(IFERROR(VLOOKUP($B108&$B109,'Base de données'!$F:$I,3,FALSE),VLOOKUP($B107&$B109,'Base de données'!$F:$I,3,FALSE)),VLOOKUP($B106&$B109,'Base de données'!$F:$I,3,FALSE)),VLOOKUP($B105&$B109,'Base de données'!$F:$I,3,FALSE)),\"\")=0,\"\",IFERROR(IFERROR(IFERROR(IFERROR(VLOOKUP($B108&$B109,'Base de données'!$F:$I,3,FALSE),VLOOKUP($B107&$B109,'Base de données'!$F:$I,3,FALSE)),VLOOKUP($B106&$B109,'Base de données'!$F:$I,3,FALSE)),VLOOKUP($B105&$B109,'Base de données'!$F:$I,3,FALSE)),\"\"))","v":""},{"$f":"IF(IFERROR(IFERROR(IFERROR(IFERROR(VLOOKUP($B108&$B109,'Base de données'!$F:$I,4,FALSE),VLOOKUP($B107&$B109,'Base de données'!$F:$I,4,FALSE)),VLOOKUP($B106&$B109,'Base de données'!$F:$I,4,FALSE)),VLOOKUP($B105&$B109,'Base de données'!$F:$I,4,FALSE)),\"\")=0,\"\",IFERROR(IFERROR(IFERROR(IFERROR(VLOOKUP($B108&$B109,'Base de données'!$F:$I,4,FALSE),VLOOKUP($B107&$B109,'Base de données'!$F:$I,4,FALSE)),VLOOKUP($B106&$B109,'Base de données'!$F:$I,4,FALSE)),VLOOKUP($B105&$B109,'Base de données'!$F:$I,4,FALSE)),\"\"))","v":""}]
[null,null,null,{"$f":"IF(IFERROR(IFERROR(IFERROR(IFERROR(VLOOKUP($B109&$B110,'Base de données'!$F:$I,2,FALSE),VLOOKUP($B108&$B110,'Base de données'!$F:$I,2,FALSE)),VLOOKUP($B107&$B110,'Base de données'!$F:$I,2,FALSE)),VLOOKUP($B106&$B110,'Base de données'!$F:$I,2,FALSE)),\"\")=0,\"\",IFERROR(IFERROR(IFERROR(IFERROR(VLOOKUP($B109&$B110,'Base de données'!$F:$I,2,FALSE),VLOOKUP($B108&$B110,'Base de données'!$F:$I,2,FALSE)),VLOOKUP($B107&$B110,'Base de données'!$F:$I,2,FALSE)),VLOOKUP($B106&$B110,'Base de données'!$F:$I,2,FALSE)),\"\"))","v":""},{"$f":"IF(IFERROR(IFERROR(IFERROR(IFERROR(VLOOKUP($B109&$B110,'Base de données'!$F:$I,3,FALSE),VLOOKUP($B108&$B110,'Base de données'!$F:$I,3,FALSE)),VLOOKUP($B107&$B110,'Base de données'!$F:$I,3,FALSE)),VLOOKUP($B106&$B110,'Base de données'!$F:$I,3,FALSE)),\"\")=0,\"\",IFERROR(IFERROR(IFERROR(IFERROR(VLOOKUP($B109&$B110,'Base de données'!$F:$I,3,FALSE),VLOOKUP($B108&$B110,'Base de données'!$F:$I,3,FALSE)),VLOOKUP($B107&$B110,'Base de données'!$F:$I,3,FALSE)),VLOOKUP($B106&$B110,'Base de données'!$F:$I,3,FALSE)),\"\"))","v":""},{"$f":"IF(IFERROR(IFERROR(IFERROR(IFERROR(VLOOKUP($B109&$B110,'Base de données'!$F:$I,4,FALSE),VLOOKUP($B108&$B110,'Base de données'!$F:$I,4,FALSE)),VLOOKUP($B107&$B110,'Base de données'!$F:$I,4,FALSE)),VLOOKUP($B106&$B110,'Base de données'!$F:$I,4,FALSE)),\"\")=0,\"\",IFERROR(IFERROR(IFERROR(IFERROR(VLOOKUP($B109&$B110,'Base de données'!$F:$I,4,FALSE),VLOOKUP($B108&$B110,'Base de données'!$F:$I,4,FALSE)),VLOOKUP($B107&$B110,'Base de données'!$F:$I,4,FALSE)),VLOOKUP($B106&$B110,'Base de données'!$F:$I,4,FALSE)),\"\"))","v":""}]
[null,null,null,{"$f":"IF(IFERROR(IFERROR(IFERROR(IFERROR(VLOOKUP($B110&$B111,'Base de données'!$F:$I,2,FALSE),VLOOKUP($B109&$B111,'Base de données'!$F:$I,2,FALSE)),VLOOKUP($B108&$B111,'Base de données'!$F:$I,2,FALSE)),VLOOKUP($B107&$B111,'Base de données'!$F:$I,2,FALSE)),\"\")=0,\"\",IFERROR(IFERROR(IFERROR(IFERROR(VLOOKUP($B110&$B111,'Base de données'!$F:$I,2,FALSE),VLOOKUP($B109&$B111,'Base de données'!$F:$I,2,FALSE)),VLOOKUP($B108&$B111,'Base de données'!$F:$I,2,FALSE)),VLOOKUP($B107&$B111,'Base de données'!$F:$I,2,FALSE)),\"\"))","v":""},{"$f":"IF(IFERROR(IFERROR(IFERROR(IFERROR(VLOOKUP($B110&$B111,'Base de données'!$F:$I,3,FALSE),VLOOKUP($B109&$B111,'Base de données'!$F:$I,3,FALSE)),VLOOKUP($B108&$B111,'Base de données'!$F:$I,3,FALSE)),VLOOKUP($B107&$B111,'Base de données'!$F:$I,3,FALSE)),\"\")=0,\"\",IFERROR(IFERROR(IFERROR(IFERROR(VLOOKUP($B110&$B111,'Base de données'!$F:$I,3,FALSE),VLOOKUP($B109&$B111,'Base de données'!$F:$I,3,FALSE)),VLOOKUP($B108&$B111,'Base de données'!$F:$I,3,FALSE)),VLOOKUP($B107&$B111,'Base de données'!$F:$I,3,FALSE)),\"\"))","v":""},{"$f":"IF(IFERROR(IFERROR(IFERROR(IFERROR(VLOOKUP($B110&$B111,'Base de données'!$F:$I,4,FALSE),VLOOKUP($B109&$B111,'Base de données'!$F:$I,4,FALSE)),VLOOKUP($B108&$B111,'Base de données'!$F:$I,4,FALSE)),VLOOKUP($B107&$B111,'Base de données'!$F:$I,4,FALSE)),\"\")=0,\"\",IFERROR(IFERROR(IFERROR(IFERROR(VLOOKUP($B110&$B111,'Base de données'!$F:$I,4,FALSE),VLOOKUP($B109&$B111,'Base de données'!$F:$I,4,FALSE)),VLOOKUP($B108&$B111,'Base de données'!$F:$I,4,FALSE)),VLOOKUP($B107&$B111,'Base de données'!$F:$I,4,FALSE)),\"\"))","v":""}]
[null,null,null,{"$f":"IF(IFERROR(IFERROR(IFERROR(IFERROR(VLOOKUP($B111&$B112,'Base de données'!$F:$I,2,FALSE),VLOOKUP($B110&$B112,'Base de données'!$F:$I,2,FALSE)),VLOOKUP($B109&$B112,'Base de données'!$F:$I,2,FALSE)),VLOOKUP($B108&$B112,'Base de données'!$F:$I,2,FALSE)),\"\")=0,\"\",IFERROR(IFERROR(IFERROR(IFERROR(VLOOKUP($B111&$B112,'Base de données'!$F:$I,2,FALSE),VLOOKUP($B110&$B112,'Base de données'!$F:$I,2,FALSE)),VLOOKUP($B109&$B112,'Base de données'!$F:$I,2,FALSE)),VLOOKUP($B108&$B112,'Base de données'!$F:$I,2,FALSE)),\"\"))","v":""},{"$f":"IF(IFERROR(IFERROR(IFERROR(IFERROR(VLOOKUP($B111&$B112,'Base de données'!$F:$I,3,FALSE),VLOOKUP($B110&$B112,'Base de données'!$F:$I,3,FALSE)),VLOOKUP($B109&$B112,'Base de données'!$F:$I,3,FALSE)),VLOOKUP($B108&$B112,'Base de données'!$F:$I,3,FALSE)),\"\")=0,\"\",IFERROR(IFERROR(IFERROR(IFERROR(VLOOKUP($B111&$B112,'Base de données'!$F:$I,3,FALSE),VLOOKUP($B110&$B112,'Base de données'!$F:$I,3,FALSE)),VLOOKUP($B109&$B112,'Base de données'!$F:$I,3,FALSE)),VLOOKUP($B108&$B112,'Base de données'!$F:$I,3,FALSE)),\"\"))","v":""},{"$f":"IF(IFERROR(IFERROR(IFERROR(IFERROR(VLOOKUP($B111&$B112,'Base de données'!$F:$I,4,FALSE),VLOOKUP($B110&$B112,'Base de données'!$F:$I,4,FALSE)),VLOOKUP($B109&$B112,'Base de données'!$F:$I,4,FALSE)),VLOOKUP($B108&$B112,'Base de données'!$F:$I,4,FALSE)),\"\")=0,\"\",IFERROR(IFERROR(IFERROR(IFERROR(VLOOKUP($B111&$B112,'Base de données'!$F:$I,4,FALSE),VLOOKUP($B110&$B112,'Base de données'!$F:$I,4,FALSE)),VLOOKUP($B109&$B112,'Base de données'!$F:$I,4,FALSE)),VLOOKUP($B108&$B112,'Base de données'!$F:$I,4,FALSE)),\"\"))","v":""}]

{"sheet":"Explication des termes utilisés","index":1,"n_rows":18,"n_cols":2,"rows_kept":18,"cut":false,"hidden":false,"merged":[]}
["Nom de compétence","Définition"]
["Systèmes d'information","Cette compétence désigne la capacité à utiliser un système d'information pour en extraire des données, créer un tableau de bords ou le paramétrer"]
["Relations humaines","Cette compétence démontre la capacité à travailler avec d'autres personnes, en groupe ou avec des partenaires (fournisseurs, clients, administration publique…)"]
["Contrôle de gestion","Cette compétence désigne la capacité à analyser des chiffres et d'en tirer des conclusions et recommandations"]
["Langages web","Cette compétence est la capacité à produire des applications/site internet/tableaux de bord dynamiques via la technologie web"]
["Gestion de projet","Cette compétence désigne la capacité à mener un projet de A à Z, en le cadrant, anticipant et/ou surmontant les problèmes pour le mener à bien"]
["Comptabilité","Cette compétence désigne la capacité à comprendre les documents comptables et à réaliser des écritures comptables"]
["Management","Cette compétence désigne l'utilisation ou l'apprentissage des sciences de gestion en général"]
["Webmarketing","Cette compétence désigne la capacité à promouvoir un produit ou un service sur internet"]
["Langues","Cette compétence désigne la capacité à utiliser une langue étrangère (anglais ou allemand)"]
["Adaptation à une nouvelle culture","Cette compétence désigne la capacité à s'adapter à un nouvel environnement"]
["Formation","Cette compétence désigne la capacité à former des agents à l'utilisation d'un outil/d'une procédure/…"]
["Recherche d'informations","Cette compétence désigne la capacité à trouver des informations sur un sujet inconnu et d'en comprendre les enjeux"]
["Expression devant un large publique","Cette compétence désigne la capacité à s'exprimer devant un nombre important de personnes"]
["Communication","Cette compétence désigne la capacité à transmettre des informations"]
["CMS","Cette compétence désigne la capacité à utiliser des outils pour créer des applications/tableaux de bords en utilisant la technologie web via des Content Management System (CMS)"]
["Mathématiques","Mathématiques désignent de solides connaissances dans cette matière"]
["Economie","Economie désigne une capacité à comprendre les enjeux et à analyser une situation économique complexe"]

{"sheet":"Base de données","index":2,"n_rows":1048576,"n_cols":24,"rows_kept":4500,"cut":true,"hidden":false,"merged":[],"bounds":{"rows_first":2000,"rows_last":500,"rows_between":2000,"halvings":0},"read":"row_number_cap"}
["Date début","Durée (mois)","Rubrique","Organisation","Tâche","Concaténation","Compétence 1","Compétence 2","Compétence 3",null,null,null,null,null,null,null,"En nombre"]
["2016-05-01",2,"Expérience","CHRU Nancy","Audit des besoins pour un outil décisionnel",{"$f":"D2&E2","v":"CHRU NancyAudit des besoins pour un outil décisionnel"},"Systèmes d'information","Relations humaines","Contrôle de gestion",null,null,null,null,null,null,null,"En durée"]
["2016-03-15",1.5,"Expérience","CHRU Nancy","Création d'un outil de reporting","CHRU NancyCréation d'un outil de reporting","Contrôle de gestion","Langages web","Gestion de projet"]
["2016-01-01",2.5,"Expérience","CHRU Nancy","Analyses ad hoc et reporting","CHRU NancyAnalyses ad hoc et reporting","Contrôle de gestion","Comptabilité","Systèmes d'information"]
["2015-09-01",4,"Formation","ICN Business School","Spécialisation Finance/Contrôle","ICN Business SchoolSpécialisation Finance/Contrôle","Contrôle de gestion","Comptabilité","Management"]
["2015-04-01",9,"Expérience","Walliks","Gestion de l'activité","WalliksGestion de l'activité","Management","Webmarketing","Contrôle de gestion"]
["2015-03-01",1,"Expérience","Walliks","Création administrative","WalliksCréation administrative","Relations humaines","Management"]
["2015-01-01",4.5,"Formation","Eastern Michigan University","Cours généraux de Management","Eastern Michigan UniversityCours généraux de Management","Management","Langues","Adaptation à une nouvelle culture",null,null,null,null,null,null,null,"Compétences les plus développées","Compétence 1","Compétence 2","Compétence 3","TOTAL",null,"Tâches les plus réalisées"]
["2014-10-01",6,"Expérience","Walliks","Création de la plateforme web","WalliksCréation de la plateforme web","Langages Web","Gestion de projet",null,null,null,null,null,null,null,null,"Systèmes d'information",{"$f":"IFERROR(IF(COUNTIF('Curriculum Vitae'!D:D,$Q9)=0,\"\",COUNTIF('Curriculum Vitae'!D:D,$Q9)),\"\")","v":2},{"$f":"IFERROR(IF(COUNTIF('Curriculum Vitae'!E:E,$Q9)=0,\"\",COUNTIF('Curriculum Vitae'!E:E,$Q9)),\"\")","v":1},{"$f":"IFERROR(IF(COUNTIF('Curriculum Vitae'!F:F,$Q9)=0,\"\",COUNTIF('Curriculum Vitae'!F:F,$Q9)),\"\")","v":2},{"$f":"IF('Curriculum Vitae'!$B$22=\"En durée\",(SUMIF('Curriculum Vitae'!D:D,Q9,'Curriculum Vitae'!C:C)+SUMIF('Curriculum Vitae'!E:E,Q9,'Curriculum Vitae'!C:C)+SUMIF('Curriculum Vitae'!F:F,Q9,'Curriculum Vitae'!C:C)),SUM(R9:T9))","v":14.5},null,"Audit des besoins pour un outil décisionnel",{"$f":"IF('Curriculum Vitae'!$B$22=\"En durée\",SUMIF('Curriculum Vitae'!B:B,W9,'Curriculum Vitae'!C:C),COUNTIF('Curriculum Vitae'!B:B,W9))","v":2}]
["2014-08-01",2,"Expérience","Walliks","Création du Business Model","WalliksCréation du Business Model","Management","Relations humaines",null,null,null,null,null,null,null,null,"Relations humaines",{"$f":"IFERROR(IF(COUNTIF('Curriculum Vitae'!D:D,$Q10)=0,\"\",COUNTIF('Curriculum Vitae'!D:D,$Q10)),\"\")","v":2},{"$f":"IFERROR(IF(COUNTIF('Curriculum Vitae'!E:E,$Q10)=0,\"\",COUNTIF('Curriculum Vitae'!E:E,$Q10)),\"\")","v":2},{"$f":"IFERROR(IF(COUNTIF('Curriculum Vitae'!F:F,$Q10)=0,\"\",COUNTIF('Curriculum Vitae'!F:F,$Q10)),\"\")","v":""},{"$f":"IF('Curriculum Vitae'!$B$22=\"En durée\",(SUMIF('Curriculum Vitae'!D:D,Q10,'Curriculum Vitae'!C:C)+SUMIF('Curriculum Vitae'!E:E,Q10,'Curriculum Vitae'!C:C)+SUMIF('Curriculum Vitae'!F:F,Q10,'Curriculum Vitae'!C:C)),SUM(R10:T10))","v":8},null,"Création d'un outil de reporting",{"$f":"IF('Curriculum Vitae'!$B$22=\"En durée\",SUMIF('Curriculum Vitae'!B:B,W10,'Curriculum Vitae'!C:C),COUNTIF('Curriculum Vitae'!B:B,W10))","v":5.5}]
["2014-07-01",1,"Expérience","Solis-Bioone","Conduite du changement","Solis-BiooneConduite du changement","Relations humaines","Formation","Gestion de projet",null,null,null,null,null,null,null,"Contrôle de gestion",{"$f":"IFERROR(IF(COUNTIF('Curriculum Vitae'!D:D,$Q11)=0,\"\",COUNTIF('Curriculum Vitae'!D:D,$Q11)),\"\")","v":6},{"$f":"IFERROR(IF(COUNTIF('Curriculum Vitae'!E:E,$Q11)=0,\"\",COUNTIF('Curriculum Vitae'!E:E,$Q11)),\"\")","v":""},{"$f":"IFERROR(IF(COUNTIF('Curriculum Vitae'!F:F,$Q11)=0,\"\",COUNTIF('Curriculum Vitae'!F:F,$Q11)),\"\")","v":3},{"$f":"IF('Curriculum Vitae'!$B$22=\"En durée\",(SUMIF('Curriculum Vitae'!D:D,Q11,'Curriculum Vitae'!C:C)+SUMIF('Curriculum Vitae'!E:E,Q11,'Curriculum Vitae'!C:C)+SUMIF('Curriculum Vitae'!F:F,Q11,'Curriculum Vitae'!C:C)),SUM(R11:T11))","v":53},null,"Analyses ad hoc et reporting",{"$f":"IF('Curriculum Vitae'!$B$22=\"En durée\",SUMIF('Curriculum Vitae'!B:B,W11,'Curriculum Vitae'!C:C),COUNTIF('Curriculum Vitae'!B:B,W11))","v":2.5}]
["2014-06-01",1,"Expérience","Solis-Bioone","Implémentation d'un CRM","Solis-BiooneImplémentation d'un CRM","Systèmes d'information","Gestion de projet","Langages Web",null,null,null,null,null,null,null,"Langages web",{"$f":"IFERROR(IF(COUNTIF('Curriculum Vitae'!D:D,$Q12)=0,\"\",COUNTIF('Curriculum Vitae'!D:D,$Q12)),\"\")","v":1},{"$f":"IFERROR(IF(COUNTIF('Curriculum Vitae'!E:E,$Q12)=0,\"\",COUNTIF('Curriculum Vitae'!E:E,$Q12)),\"\")","v":1},{"$f":"IFERROR(IF(COUNTIF('Curriculum Vitae'!F:F,$Q12)=0,\"\",COUNTIF('Curriculum Vitae'!F:F,$Q12)),\"\")","v":2},{"$f":"IF('Curriculum Vitae'!$B$22=\"En durée\",(SUMIF('Curriculum Vitae'!D:D,Q12,'Curriculum Vitae'!C:C)+SUMIF('Curriculum Vitae'!E:E,Q12,'Curriculum Vitae'!C:C)+SUMIF('Curriculum Vitae'!F:F,Q12,'Curriculum Vitae'!C:C)),SUM(R12:T12))","v":11.5},null,"Spécialisation Finance/Contrôle",{"$f":"IF('Curriculum Vitae'!$B$22=\"En durée\",SUMIF('Curriculum Vitae'!B:B,W12,'Curriculum Vitae'!C:C),COUNTIF('Curriculum Vitae'!B:B,W12))","v":16}]
["2014-03-01",26,"Loisir","Radio Campus Lorraine","Animation d'émission de radio","Radio Campus LorraineAnimation d'émission de radio","Management","Recherche d'informations","Expression devant un large publique",null,null,null,null,null,null,null,"Gestion de projet",{"$f":"IFERROR(IF(COUNTIF('Curriculum Vitae'!D:D,$Q13)=0,\"\",COUNTIF('Curriculum Vitae'!D:D,$Q13)),\"\")","v":1},{"$f":"IFERROR(IF(COUNTIF('Curriculum Vitae'!E:E,$Q13)=0,\"\",COUNTIF('Curriculum Vitae'!E:E,$Q13)),\"\")","v":2},{"$f":"IFERROR(IF(COUNTIF('Curriculum Vitae'!F:F,$Q13)=0,\"\",COUNTIF('Curriculum Vitae'!F:F,$Q13)),\"\")","v":3},{"$f":"IF('Curriculum Vitae'!$B$22=\"En durée\",(SUMIF('Curriculum Vitae'!D:D,Q13,'Curriculum Vitae'!C:C)+SUMIF('Curriculum Vitae'!E:E,Q13,'Curriculum Vitae'!C:C)+SUMIF('Curriculum Vitae'!F:F,Q13,'Curriculum Vitae'!C:C)),SUM(R13:T13))","v":15.5},null,"Gestion de l'activité",{"$f":"IF('Curriculum Vitae'!$B$22=\"En durée\",SUMIF('Curriculum Vitae'!B:B,W13,'Curriculum Vitae'!C:C),COUNTIF('Curriculum Vitae'!B:B,W13))","v":9}]
["2013-09-01",12,"Formation","ICN Business School","Spécialisation Finance/Contrôle","ICN Business SchoolSpécialisation Finance/Contrôle","Contrôle de gestion","Comptabilité","Management",null,null,null,null,null,null,null,"Comptabilité",{"$f":"IFERROR(IF(COUNTIF('Curriculum Vitae'!D:D,$Q14)=0,\"\",COUNTIF('Curriculum Vitae'!D:D,$Q14)),\"\")","v":""},{"$f":"IFERROR(IF(COUNTIF('Curriculum Vitae'!E:E,$Q14)=0,\"\",COUNTIF('Curriculum Vitae'!E:E,$Q14)),\"\")","v":4},{"$f":"IFERROR(IF(COUNTIF('Curriculum Vitae'!F:F,$Q14)=0,\"\",COUNTIF('Curriculum Vitae'!F:F,$Q14)),\"\")","v":""},{"$f":"IF('Curriculum Vitae'!$B$22=\"En durée\",(SUMIF('Curriculum Vitae'!D:D,Q14,'Curriculum Vitae'!C:C)+SUMIF('Curriculum Vitae'!E:E,Q14,'Curriculum Vitae'!C:C)+SUMIF('Curriculum Vitae'!F:F,Q14,'Curriculum Vitae'!C:C)),SUM(R14:T14))","v":36.5},null,"Création administrative",{"$f":"IF('Curriculum Vitae'!$B$22=\"En durée\",SUMIF('Curriculum Vitae'!B:B,W14,'Curriculum Vitae'!C:C),COUNTIF('Curriculum Vitae'!B:B,W14))","v":1}]
["2013-09-01",36,"Loisir","Improdisiaque","Jouteur","ImprodisiaqueJouteur","Expression devant un large publique","Management","Communication",null,null,null,null,null,null,null,"Management",{"$f":"IFERROR(IF(COUNTIF('Curriculum Vitae'!D:D,$Q15)=0,\"\",COUNTIF('Curriculum Vitae'!D:D,$Q15)),\"\")","v":5},{"$f":"IFERROR(IF(COUNTIF('Curriculum Vitae'!E:E,$Q15)=0,\"\",COUNTIF('Curriculum Vitae'!E:E,$Q15)),\"\")","v":2},{"$f":"IFERROR(IF(COUNTIF('Curriculum Vitae'!F:F,$Q15)=0,\"\",COUNTIF('Curriculum Vitae'!F:F,$Q15)),\"\")","v":1},{"$f":"IF('Curriculum Vitae'!$B$22=\"En durée\",(SUMIF('Curriculum Vitae'!D:D,Q15,'Curriculum Vitae'!C:C)+SUMIF('Curriculum Vitae'!E:E,Q15,'Curriculum Vitae'!C:C)+SUMIF('Curriculum Vitae'!F:F,Q15,'Curriculum Vitae'!C:C)),SUM(R15:T15))","v":106.5},null,"Cours généraux de Management",{"$f":"IF('Curriculum Vitae'!$B$22=\"En durée\",SUMIF('Curriculum Vitae'!B:B,W15,'Curriculum Vitae'!C:C),COUNTIF('Curriculum Vitae'!B:B,W15))","v":16.5}]
["2013-07-01",2,"Expérience","Solis-Bioone","Conduite du changement","Solis-BiooneConduite du changement","Relations humaines","Formation","Gestion de projet",null,null,null,null,null,null,null,"Webmarketing",{"$f":"IFERROR(IF(COUNTIF('Curriculum Vitae'!D:D,$Q16)=0,\"\",COUNTIF('Curriculum Vitae'!D:D,$Q16)),\"\")","v":""},{"$f":"IFERROR(IF(COUNTIF('Curriculum Vitae'!E:E,$Q16)=0,\"\",COUNTIF('Curriculum Vitae'!E:E,$Q16)),\"\")","v":1},{"$f":"IFERROR(IF(COUNTIF('Curriculum Vitae'!F:F,$Q16)=0,\"\",COUNTIF('Curriculum Vitae'!F:F,$Q16)),\"\")","v":""},{"$f":"IF('Curriculum Vitae'!$B$22=\"En durée\",(SUMIF('Curriculum Vitae'!D:D,Q16,'Curriculum Vitae'!C:C)+SUMIF('Curriculum Vitae'!E:E,Q16,'Curriculum Vitae'!C:C)+SUMIF('Curriculum Vitae'!F:F,Q16,'Curriculum Vitae'!C:C)),SUM(R16:T16))","v":9},null,"Création de la plateforme web",{"$f":"IF('Curriculum Vitae'!$B$22=\"En durée\",SUMIF('Curriculum Vitae'!B:B,W16,'Curriculum Vitae'!C:C),COUNTIF('Curriculum Vitae'!B:B,W16))","v":6}]
["2013-06-01",1,"Expérience","Solis-Bioone","Création d'un outil de reporting","Solis-BiooneCréation d'un outil de reporting","Contrôle de gestion","CMS","Gestion de projet",null,null,null,null,null,null,null,null,{"$f":"IFERROR(IF(COUNTIF('Curriculum Vitae'!D:D,$Q17)=0,\"\",COUNTIF('Curriculum Vitae'!D:D,$Q17)),\"\")","v":""},{"$f":"IFERROR(IF(COUNTIF('Curriculum Vitae'!E:E,$Q17)=0,\"\",COUNTIF('Curriculum Vitae'!E:E,$Q17)),\"\")","v":""},{"$f":"IFERROR(IF(COUNTIF('Curriculum Vitae'!F:F,$Q17)=0,\"\",COUNTIF('Curriculum Vitae'!F:F,$Q17)),\"\")","v":""},{"$f":"IF('Curriculum Vitae'!$B$22=\"En durée\",(SUMIF('Curriculum Vitae'!D:D,Q17,'Curriculum Vitae'!C:C)+SUMIF('Curriculum Vitae'!E:E,Q17,'Curriculum Vitae'!C:C)+SUMIF('Curriculum Vitae'!F:F,Q17,'Curriculum Vitae'!C:C)),SUM(R17:T17))","v":0},null,"Création du Business Model",{"$f":"IF('Curriculum Vitae'!$B$22=\"En durée\",SUMIF('Curriculum Vitae'!B:B,W17,'Curriculum Vitae'!C:C),COUNTIF('Curriculum Vitae'!B:B,W17))","v":2}]
["2012-09-01",12,"Formation","ICN Business School","Cours généraux de Management","ICN Business SchoolCours généraux de Management","Management","Comptabilité","Contrôle de gestion",null,null,null,null,null,null,null,"Langues",{"$f":"IFERROR(IF(COUNTIF('Curriculum Vitae'!D:D,$Q18)=0,\"\",COUNTIF('Curriculum Vitae'!D:D,$Q18)),\"\")","v":""},{"$f":"IFERROR(IF(COUNTIF('Curriculum Vitae'!E:E,$Q18)=0,\"\",COUNTIF('Curriculum Vitae'!E:E,$Q18)),\"\")","v":1},{"$f":"IFERROR(IF(COUNTIF('Curriculum Vitae'!F:F,$Q18)=0,\"\",COUNTIF('Curriculum Vitae'!F:F,$Q18)),\"\")","v":1},{"$f":"IF('Curriculum Vitae'!$B$22=\"En durée\",(SUMIF('Curriculum Vitae'!D:D,Q18,'Curriculum Vitae'!C:C)+SUMIF('Curriculum Vitae'!E:E,Q18,'Curriculum Vitae'!C:C)+SUMIF('Curriculum Vitae'!F:F,Q18,'Curriculum Vitae'!C:C)),SUM(R18:T18))","v":28.5},null,"Conduite du changement",{"$f":"IF('Curriculum Vitae'!$B$22=\"En durée\",SUMIF('Curriculum Vitae'!B:B,W18,'Curriculum Vitae'!C:C),COUNTIF('Curriculum Vitae'!B:B,W18))","v":3}]
["2010-09-01",24,"Formation","Classes préparatoires ECE","Cours généraux","Classes préparatoires ECECours généraux","Mathématiques","Economie","Langues",null,null,null,null,null,null,null,"Adaptation à une nouvelle culture",{"$f":"IFERROR(IF(COUNTIF('Curriculum Vitae'!D:D,$Q19)=0,\"\",COUNTIF('Curriculum Vitae'!D:D,$Q19)),\"\")","v":""},{"$f":"IFERROR(IF(COUNTIF('Curriculum Vitae'!E:E,$Q19)=0,\"\",COUNTIF('Curriculum Vitae'!E:E,$Q19)),\"\")","v":""},{"$f":"IFERROR(IF(COUNTIF('Curriculum Vitae'!F:F,$Q19)=0,\"\",COUNTIF('Curriculum Vitae'!F:F,$Q19)),\"\")","v":1},{"$f":"IF('Curriculum Vitae'!$B$22=\"En durée\",(SUMIF('Curriculum Vitae'!D:D,Q19,'Curriculum Vitae'!C:C)+SUMIF('Curriculum Vitae'!E:E,Q19,'Curriculum Vitae'!C:C)+SUMIF('Curriculum Vitae'!F:F,Q19,'Curriculum Vitae'!C:C)),SUM(R19:T19))","v":4.5},null,"Implémentation d'un CRM",{"$f":"IF('Curriculum Vitae'!$B$22=\"En durée\",SUMIF('Curriculum Vitae'!B:B,W19,'Curriculum Vitae'!C:C),COUNTIF('Curriculum Vitae'!B:B,W19))","v":1}]
["2016-09-12",{"$f":"(4+MONTH(TODAY()))/2","v":6},"Expérience","Audition Santé","Reporting régulier","Audition SantéReporting régulier","Contrôle de gestion","Comptabilité","Systèmes d'information",null,null,null,null,null,null,null,null,{"$f":"IFERROR(IF(COUNTIF('Curriculum Vitae'!D:D,$Q20)=0,\"\",COUNTIF('Curriculum Vitae'!D:D,$Q20)),\"\")","v":""},{"$f":"IFERROR(IF(COUNTIF('Curriculum Vitae'!E:E,$Q20)=0,\"\",COUNTIF('Curriculum Vitae'!E:E,$Q20)),\"\")","v":""},{"$f":"IFERROR(IF(COUNTIF('Curriculum Vitae'!F:F,$Q20)=0,\"\",COUNTIF('Curriculum Vitae'!F:F,$Q20)),\"\")","v":""},{"$f":"IF('Curriculum Vitae'!$B$22=\"En durée\",(SUMIF('Curriculum Vitae'!D:D,Q20,'Curriculum Vitae'!C:C)+SUMIF('Curriculum Vitae'!E:E,Q20,'Curriculum Vitae'!C:C)+SUMIF('Curriculum Vitae'!F:F,Q20,'Curriculum Vitae'!C:C)),SUM(R20:T20))","v":0},null,"Animation d'émission de radio",{"$f":"IF('Curriculum Vitae'!$B$22=\"En durée\",SUMIF('Curriculum Vitae'!B:B,W20,'Curriculum Vitae'!C:C),COUNTIF('Curriculum Vitae'!B:B,W20))","v":26}]
["2016-09-12",{"$f":"(4+MONTH(TODAY()))/4","v":3},"Expérience","Audition Santé","Analyse ponctuelle",{"$f":"D21&E21","v":"Audition SantéAnalyse ponctuelle"},"Contrôle de gestion","Mathématiques",null,null,null,null,null,null,null,null,null,{"$f":"IFERROR(IF(COUNTIF('Curriculum Vitae'!D:D,$Q21)=0,\"\",COUNTIF('Curriculum Vitae'!D:D,$Q21)),\"\")","v":""},{"$f":"IFERROR(IF(COUNTIF('Curriculum Vitae'!E:E,$Q21)=0,\"\",COUNTIF('Curriculum Vitae'!E:E,$Q21)),\"\")","v":""},{"$f":"IFERROR(IF(COUNTIF('Curriculum Vitae'!F:F,$Q21)=0,\"\",COUNTIF('Curriculum Vitae'!F:F,$Q21)),\"\")","v":""},{"$f":"IF('Curriculum Vitae'!$B$22=\"En durée\",(SUMIF('Curriculum Vitae'!D:D,Q21,'Curriculum Vitae'!C:C)+SUMIF('Curriculum Vitae'!E:E,Q21,'Curriculum Vitae'!C:C)+SUMIF('Curriculum Vitae'!F:F,Q21,'Curriculum Vitae'!C:C)),SUM(R21:T21))","v":0},null,"Jouteur",{"$f":"IF('Curriculum Vitae'!$B$22=\"En durée\",SUMIF('Curriculum Vitae'!B:B,W21,'Curriculum Vitae'!C:C),COUNTIF('Curriculum Vitae'!B:B,W21))","v":36}]
["2016-09-12",{"$f":"(4+MONTH(TODAY()))/4","v":3},"Expérience","Audition Santé","Création d'un outil de reporting",{"$f":"D22&E22","v":"Audition SantéCréation d'un outil de reporting"},"Gestion de projet","Systèmes d'information","Langages Web",null,null,null,null,null,null,null,"Formation",{"$f":"IFERROR(IF(COUNTIF('Curriculum Vitae'!D:D,$Q22)=0,\"\",COUNTIF('Curriculum Vitae'!D:D,$Q22)),\"\")","v":""},{"$f":"IFERROR(IF(COUNTIF('Curriculum Vitae'!E:E,$Q22)=0,\"\",COUNTIF('Curriculum Vitae'!E:E,$Q22)),\"\")","v":1},{"$f":"IFERROR(IF(COUNTIF('Curriculum Vitae'!F:F,$Q22)=0,\"\",COUNTIF('Curriculum Vitae'!F:F,$Q22)),\"\")","v":""},{"$f":"IF('Curriculum Vitae'!$B$22=\"En durée\",(SUMIF('Curriculum Vitae'!D:D,Q22,'Curriculum Vitae'!C:C)+SUMIF('Curriculum Vitae'!E:E,Q22,'Curriculum Vitae'!C:C)+SUMIF('Curriculum Vitae'!F:F,Q22,'Curriculum Vitae'!C:C)),SUM(R22:T22))","v":3},null,"Cours généraux",{"$f":"IF('Curriculum Vitae'!$B$22=\"En durée\",SUMIF('Curriculum Vitae'!B:B,W22,'Curriculum Vitae'!C:C),COUNTIF('Curriculum Vitae'!B:B,W22))","v":24}]
[null,null,null,null,null,"",null,null,null,null,null,null,null,null,null,null,"Recherche d'informations",{"$f":"IFERROR(IF(COUNTIF('Curriculum Vitae'!D:D,$Q23)=0,\"\",COUNTIF('Curriculum Vitae'!D:D,$Q23)),\"\")","v":""},{"$f":"IFERROR(IF(COUNTIF('Curriculum Vitae'!E:E,$Q23)=0,\"\",COUNTIF('Curriculum Vitae'!E:E,$Q23)),\"\")","v":1},{"$f":"IFERROR(IF(COUNTIF('Curriculum Vitae'!F:F,$Q23)=0,\"\",COUNTIF('Curriculum Vitae'!F:F,$Q23)),\"\")","v":""},{"$f":"IF('Curriculum Vitae'!$B$22=\"En durée\",(SUMIF('Curriculum Vitae'!D:D,Q23,'Curriculum Vitae'!C:C)+SUMIF('Curriculum Vitae'!E:E,Q23,'Curriculum Vitae'!C:C)+SUMIF('Curriculum Vitae'!F:F,Q23,'Curriculum Vitae'!C:C)),SUM(R23:T23))","v":26},null,"Reporting régulier",{"$f":"IF('Curriculum Vitae'!$B$22=\"En durée\",SUMIF('Curriculum Vitae'!B:B,W23,'Curriculum Vitae'!C:C),COUNTIF('Curriculum Vitae'!B:B,W23))","v":6}]
[null,null,null,null,null,"",null,null,null,null,null,null,null,null,null,null,"Expression devant un large publique",{"$f":"IFERROR(IF(COUNTIF('Curriculum Vitae'!D:D,$Q24)=0,\"\",COUNTIF('Curriculum Vitae'!D:D,$Q24)),\"\")","v":1},{"$f":"IFERROR(IF(COUNTIF('Curriculum Vitae'!E:E,$Q24)=0,\"\",COUNTIF('Curriculum Vitae'!E:E,$Q24)),\"\")","v":""},{"$f":"IFERROR(IF(COUNTIF('Curriculum Vitae'!F:F,$Q24)=0,\"\",COUNTIF('Curriculum Vitae'!F:F,$Q24)),\"\")","v":1},{"$f":"IF('Curriculum Vitae'!$B$22=\"En durée\",(SUMIF('Curriculum Vitae'!D:D,Q24,'Curriculum Vitae'!C:C)+SUMIF('Curriculum Vitae'!E:E,Q24,'Curriculum Vitae'!C:C)+SUMIF('Curriculum Vitae'!F:F,Q24,'Curriculum Vitae'!C:C)),SUM(R24:T24))","v":62},null,"Analyse ponctuelle",{"$f":"IF('Curriculum Vitae'!$B$22=\"En durée\",SUMIF('Curriculum Vitae'!B:B,W24,'Curriculum Vitae'!C:C),COUNTIF('Curriculum Vitae'!B:B,W24))","v":3}]
[null,null,null,null,null,"",null,null,null,null,null,null,null,null,null,null,"Communication",{"$f":"IFERROR(IF(COUNTIF('Curriculum Vitae'!D:D,$Q25)=0,\"\",COUNTIF('Curriculum Vitae'!D:D,$Q25)),\"\")","v":""},{"$f":"IFERROR(IF(COUNTIF('Curriculum Vitae'!E:E,$Q25)=0,\"\",COUNTIF('Curriculum Vitae'!E:E,$Q25)),\"\")","v":""},{"$f":"IFERROR(IF(COUNTIF('Curriculum Vitae'!F:F,$Q25)=0,\"\",COUNTIF('Curriculum Vitae'!F:F,$Q25)),\"\")","v":1},{"$f":"IF('Curriculum Vitae'!$B$22=\"En durée\",(SUMIF('Curriculum Vitae'!D:D,Q25,'Curriculum Vitae'!C:C)+SUMIF('Curriculum Vitae'!E:E,Q25,'Curriculum Vitae'!C:C)+SUMIF('Curriculum Vitae'!F:F,Q25,'Curriculum Vitae'!C:C)),SUM(R25:T25))","v":36},null,null,{"$f":"IF('Curriculum Vitae'!$B$22=\"En durée\",SUMIF('Curriculum Vitae'!B:B,W25,'Curriculum Vitae'!C:C),COUNTIF('Curriculum Vitae'!B:B,W25))","v":0}]
[null,null,null,null,null,"",null,null,null,null,null,null,null,null,null,null,"CMS",{"$f":"IFERROR(IF(COUNTIF('Curriculum Vitae'!D:D,$Q26)=0,\"\",COUNTIF('Curriculum Vitae'!D:D,$Q26)),\"\")","v":""},{"$f":"IFERROR(IF(COUNTIF('Curriculum Vitae'!E:E,$Q26)=0,\"\",COUNTIF('Curriculum Vitae'!E:E,$Q26)),\"\")","v":1},{"$f":"IFERROR(IF(COUNTIF('Curriculum Vitae'!F:F,$Q26)=0,\"\",COUNTIF('Curriculum Vitae'!F:F,$Q26)),\"\")","v":""},{"$f":"IF('Curriculum Vitae'!$B$22=\"En durée\",(SUMIF('Curriculum Vitae'!D:D,Q26,'Curriculum Vitae'!C:C)+SUMIF('Curriculum Vitae'!E:E,Q26,'Curriculum Vitae'!C:C)+SUMIF('Curriculum Vitae'!F:F,Q26,'Curriculum Vitae'!C:C)),SUM(R26:T26))","v":1},null,null,{"$f":"IF('Curriculum Vitae'!$B$22=\"En durée\",SUMIF('Curriculum Vitae'!B:B,W26,'Curriculum Vitae'!C:C),COUNTIF('Curriculum Vitae'!B:B,W26))","v":0}]
[null,null,null,null,null,"",null,null,null,null,null,null,null,null,null,null,"Mathématiques",{"$f":"IFERROR(IF(COUNTIF('Curriculum Vitae'!D:D,$Q27)=0,\"\",COUNTIF('Curriculum Vitae'!D:D,$Q27)),\"\")","v":1},{"$f":"IFERROR(IF(COUNTIF('Curriculum Vitae'!E:E,$Q27)=0,\"\",COUNTIF('Curriculum Vitae'!E:E,$Q27)),\"\")","v":1},{"$f":"IFERROR(IF(COUNTIF('Curriculum Vitae'!F:F,$Q27)=0,\"\",COUNTIF('Curriculum Vitae'!F:F,$Q27)),\"\")","v":""},{"$f":"IF('Curriculum Vitae'!$B$22=\"En durée\",(SUMIF('Curriculum Vitae'!D:D,Q27,'Curriculum Vitae'!C:C)+SUMIF('Curriculum Vitae'!E:E,Q27,'Curriculum Vitae'!C:C)+SUMIF('Curriculum Vitae'!F:F,Q27,'Curriculum Vitae'!C:C)),SUM(R27:T27))","v":27},null,null,{"$f":"IF('Curriculum Vitae'!$B$22=\"En durée\",SUMIF('Curriculum Vitae'!B:B,W27,'Curriculum Vitae'!C:C),COUNTIF('Curriculum Vitae'!B:B,W27))","v":0}]
[null,null,null,null,null,"",null,null,null,null,null,null,null,null,null,null,"Economie",{"$f":"IFERROR(IF(COUNTIF('Curriculum Vitae'!D:D,$Q28)=0,\"\",COUNTIF('Curriculum Vitae'!D:D,$Q28)),\"\")","v":""},{"$f":"IFERROR(IF(COUNTIF('Curriculum Vitae'!E:E,$Q28)=0,\"\",COUNTIF('Curriculum Vitae'!E:E,$Q28)),\"\")","v":1},{"$f":"IFERROR(IF(COUNTIF('Curriculum Vitae'!F:F,$Q28)=0,\"\",COUNTIF('Curriculum Vitae'!F:F,$Q28)),\"\")","v":""},{"$f":"IF('Curriculum Vitae'!$B$22=\"En durée\",(SUMIF('Curriculum Vitae'!D:D,Q28,'Curriculum Vitae'!C:C)+SUMIF('Curriculum Vitae'!E:E,Q28,'Curriculum Vitae'!C:C)+SUMIF('Curriculum Vitae'!F:F,Q28,'Curriculum Vitae'!C:C)),SUM(R28:T28))","v":24},null,null,{"$f":"IF('Curriculum Vitae'!$B$22=\"En durée\",SUMIF('Curriculum Vitae'!B:B,W28,'Curriculum Vitae'!C:C),COUNTIF('Curriculum Vitae'!B:B,W28))","v":0}]
[null,null,null,null,null,"",null,null,null,null,null,null,null,null,null,null,null,{"$f":"IFERROR(IF(COUNTIF('Curriculum Vitae'!D:D,$Q29)=0,\"\",COUNTIF('Curriculum Vitae'!D:D,$Q29)),\"\")","v":""},{"$f":"IFERROR(IF(COUNTIF('Curriculum Vitae'!E:E,$Q29)=0,\"\",COUNTIF('Curriculum Vitae'!E:E,$Q29)),\"\")","v":""},{"$f":"IFERROR(IF(COUNTIF('Curriculum Vitae'!F:F,$Q29)=0,\"\",COUNTIF('Curriculum Vitae'!F:F,$Q29)),\"\")","v":""},{"$f":"IF('Curriculum Vitae'!$B$22=\"En durée\",(SUMIF('Curriculum Vitae'!D:D,Q29,'Curriculum Vitae'!C:C)+SUMIF('Curriculum Vitae'!E:E,Q29,'Curriculum Vitae'!C:C)+SUMIF('Curriculum Vitae'!F:F,Q29,'Curriculum Vitae'!C:C)),SUM(R29:T29))","v":0},null,null,{"$f":"IF('Curriculum Vitae'!$B$22=\"En durée\",SUMIF('Curriculum Vitae'!B:B,W29,'Curriculum Vitae'!C:C),COUNTIF('Curriculum Vitae'!B:B,W29))","v":0}]
[null,null,null,null,null,"",null,null,null,null,null,null,null,null,null,null,null,{"$f":"IFERROR(IF(COUNTIF('Curriculum Vitae'!D:D,$Q30)=0,\"\",COUNTIF('Curriculum Vitae'!D:D,$Q30)),\"\")","v":""},{"$f":"IFERROR(IF(COUNTIF('Curriculum Vitae'!E:E,$Q30)=0,\"\",COUNTIF('Curriculum Vitae'!E:E,$Q30)),\"\")","v":""},{"$f":"IFERROR(IF(COUNTIF('Curriculum Vitae'!F:F,$Q30)=0,\"\",COUNTIF('Curriculum Vitae'!F:F,$Q30)),\"\")","v":""},{"$f":"IF('Curriculum Vitae'!$B$22=\"En durée\",(SUMIF('Curriculum Vitae'!D:D,Q30,'Curriculum Vitae'!C:C)+SUMIF('Curriculum Vitae'!E:E,Q30,'Curriculum Vitae'!C:C)+SUMIF('Curriculum Vitae'!F:F,Q30,'Curriculum Vitae'!C:C)),SUM(R30:T30))","v":0},null,null,{"$f":"IF('Curriculum Vitae'!$B$22=\"En durée\",SUMIF('Curriculum Vitae'!B:B,W30,'Curriculum Vitae'!C:C),COUNTIF('Curriculum Vitae'!B:B,W30))","v":0}]
[null,null,null,null,null,"",null,null,null,null,null,null,null,null,null,null,null,{"$f":"IFERROR(IF(COUNTIF('Curriculum Vitae'!D:D,$Q31)=0,\"\",COUNTIF('Curriculum Vitae'!D:D,$Q31)),\"\")","v":""},{"$f":"IFERROR(IF(COUNTIF('Curriculum Vitae'!E:E,$Q31)=0,\"\",COUNTIF('Curriculum Vitae'!E:E,$Q31)),\"\")","v":""},{"$f":"IFERROR(IF(COUNTIF('Curriculum Vitae'!F:F,$Q31)=0,\"\",COUNTIF('Curriculum Vitae'!F:F,$Q31)),\"\")","v":""},{"$f":"IF('Curriculum Vitae'!$B$22=\"En durée\",(SUMIF('Curriculum Vitae'!D:D,Q31,'Curriculum Vitae'!C:C)+SUMIF('Curriculum Vitae'!E:E,Q31,'Curriculum Vitae'!C:C)+SUMIF('Curriculum Vitae'!F:F,Q31,'Curriculum Vitae'!C:C)),SUM(R31:T31))","v":0},null,null,{"$f":"IF('Curriculum Vitae'!$B$22=\"En durée\",SUMIF('Curriculum Vitae'!B:B,W31,'Curriculum Vitae'!C:C),COUNTIF('Curriculum Vitae'!B:B,W31))","v":0}]
[null,null,null,null,null,"",null,null,null,null,null,null,null,null,null,null,null,{"$f":"IFERROR(IF(COUNTIF('Curriculum Vitae'!D:D,$Q32)=0,\"\",COUNTIF('Curriculum Vitae'!D:D,$Q32)),\"\")","v":""},{"$f":"IFERROR(IF(COUNTIF('Curriculum Vitae'!E:E,$Q32)=0,\"\",COUNTIF('Curriculum Vitae'!E:E,$Q32)),\"\")","v":""},{"$f":"IFERROR(IF(COUNTIF('Curriculum Vitae'!F:F,$Q32)=0,\"\",COUNTIF('Curriculum Vitae'!F:F,$Q32)),\"\")","v":""},{"$f":"IF('Curriculum Vitae'!$B$22=\"En durée\",(SUMIF('Curriculum Vitae'!D:D,Q32,'Curriculum Vitae'!C:C)+SUMIF('Curriculum Vitae'!E:E,Q32,'Curriculum Vitae'!C:C)+SUMIF('Curriculum Vitae'!F:F,Q32,'Curriculum Vitae'!C:C)),SUM(R32:T32))","v":0},null,null,{"$f":"IF('Curriculum Vitae'!$B$22=\"En durée\",SUMIF('Curriculum Vitae'!B:B,W32,'Curriculum Vitae'!C:C),COUNTIF('Curriculum Vitae'!B:B,W32))","v":0}]
[null,null,null,null,null,"",null,null,null,null,null,null,null,null,null,null,null,{"$f":"IFERROR(IF(COUNTIF('Curriculum Vitae'!D:D,$Q33)=0,\"\",COUNTIF('Curriculum Vitae'!D:D,$Q33)),\"\")","v":""},{"$f":"IFERROR(IF(COUNTIF('Curriculum Vitae'!E:E,$Q33)=0,\"\",COUNTIF('Curriculum Vitae'!E:E,$Q33)),\"\")","v":""},{"$f":"IFERROR(IF(COUNTIF('Curriculum Vitae'!F:F,$Q33)=0,\"\",COUNTIF('Curriculum Vitae'!F:F,$Q33)),\"\")","v":""},{"$f":"IF('Curriculum Vitae'!$B$22=\"En durée\",(SUMIF('Curriculum Vitae'!D:D,Q33,'Curriculum Vitae'!C:C)+SUMIF('Curriculum Vitae'!E:E,Q33,'Curriculum Vitae'!C:C)+SUMIF('Curriculum Vitae'!F:F,Q33,'Curriculum Vitae'!C:C)),SUM(R33:T33))","v":0},null,null,{"$f":"IF('Curriculum Vitae'!$B$22=\"En durée\",SUMIF('Curriculum Vitae'!B:B,W33,'Curriculum Vitae'!C:C),COUNTIF('Curriculum Vitae'!B:B,W33))","v":0}]
[null,null,null,null,null,"",null,null,null,null,null,null,null,null,null,null,null,{"$f":"IFERROR(IF(COUNTIF('Curriculum Vitae'!D:D,$Q34)=0,\"\",COUNTIF('Curriculum Vitae'!D:D,$Q34)),\"\")","v":""},{"$f":"IFERROR(IF(COUNTIF('Curriculum Vitae'!E:E,$Q34)=0,\"\",COUNTIF('Curriculum Vitae'!E:E,$Q34)),\"\")","v":""},{"$f":"IFERROR(IF(COUNTIF('Curriculum Vitae'!F:F,$Q34)=0,\"\",COUNTIF('Curriculum Vitae'!F:F,$Q34)),\"\")","v":""},{"$f":"IF('Curriculum Vitae'!$B$22=\"En durée\",(SUMIF('Curriculum Vitae'!D:D,Q34,'Curriculum Vitae'!C:C)+SUMIF('Curriculum Vitae'!E:E,Q34,'Curriculum Vitae'!C:C)+SUMIF('Curriculum Vitae'!F:F,Q34,'Curriculum Vitae'!C:C)),SUM(R34:T34))","v":0},null,null,{"$f":"IF('Curriculum Vitae'!$B$22=\"En durée\",SUMIF('Curriculum Vitae'!B:B,W34,'Curriculum Vitae'!C:C),COUNTIF('Curriculum Vitae'!B:B,W34))","v":0}]
[null,null,null,null,null,"",null,null,null,null,null,null,null,null,null,null,null,{"$f":"IFERROR(IF(COUNTIF('Curriculum Vitae'!D:D,$Q35)=0,\"\",COUNTIF('Curriculum Vitae'!D:D,$Q35)),\"\")","v":""},{"$f":"IFERROR(IF(COUNTIF('Curriculum Vitae'!E:E,$Q35)=0,\"\",COUNTIF('Curriculum Vitae'!E:E,$Q35)),\"\")","v":""},{"$f":"IFERROR(IF(COUNTIF('Curriculum Vitae'!F:F,$Q35)=0,\"\",COUNTIF('Curriculum Vitae'!F:F,$Q35)),\"\")","v":""},{"$f":"IF('Curriculum Vitae'!$B$22=\"En durée\",(SUMIF('Curriculum Vitae'!D:D,Q35,'Curriculum Vitae'!C:C)+SUMIF('Curriculum Vitae'!E:E,Q35,'Curriculum Vitae'!C:C)+SUMIF('Curriculum Vitae'!F:F,Q35,'Curriculum Vitae'!C:C)),SUM(R35:T35))","v":0},null,null,{"$f":"IF('Curriculum Vitae'!$B$22=\"En durée\",SUMIF('Curriculum Vitae'!B:B,W35,'Curriculum Vitae'!C:C),COUNTIF('Curriculum Vitae'!B:B,W35))","v":0}]
[null,null,null,null,null,"",null,null,null,null,null,null,null,null,null,null,null,{"$f":"IFERROR(IF(COUNTIF('Curriculum Vitae'!D:D,$Q36)=0,\"\",COUNTIF('Curriculum Vitae'!D:D,$Q36)),\"\")","v":""},{"$f":"IFERROR(IF(COUNTIF('Curriculum Vitae'!E:E,$Q36)=0,\"\",COUNTIF('Curriculum Vitae'!E:E,$Q36)),\"\")","v":""},{"$f":"IFERROR(IF(COUNTIF('Curriculum Vitae'!F:F,$Q36)=0,\"\",COUNTIF('Curriculum Vitae'!F:F,$Q36)),\"\")","v":""},{"$f":"IF('Curriculum Vitae'!$B$22=\"En durée\",(SUMIF('Curriculum Vitae'!D:D,Q36,'Curriculum Vitae'!C:C)+SUMIF('Curriculum Vitae'!E:E,Q36,'Curriculum Vitae'!C:C)+SUMIF('Curriculum Vitae'!F:F,Q36,'Curriculum Vitae'!C:C)),SUM(R36:T36))","v":0},null,null,{"$f":"IF('Curriculum Vitae'!$B$22=\"En durée\",SUMIF('Curriculum Vitae'!B:B,W36,'Curriculum Vitae'!C:C),COUNTIF('Curriculum Vitae'!B:B,W36))","v":0}]
[null,null,null,null,null,"",null,null,null,null,null,null,null,null,null,null,null,{"$f":"IFERROR(IF(COUNTIF('Curriculum Vitae'!D:D,$Q37)=0,\"\",COUNTIF('Curriculum Vitae'!D:D,$Q37)),\"\")","v":""},{"$f":"IFERROR(IF(COUNTIF('Curriculum Vitae'!E:E,$Q37)=0,\"\",COUNTIF('Curriculum Vitae'!E:E,$Q37)),\"\")","v":""},{"$f":"IFERROR(IF(COUNTIF('Curriculum Vitae'!F:F,$Q37)=0,\"\",COUNTIF('Curriculum Vitae'!F:F,$Q37)),\"\")","v":""},{"$f":"IF('Curriculum Vitae'!$B$22=\"En durée\",(SUMIF('Curriculum Vitae'!D:D,Q37,'Curriculum Vitae'!C:C)+SUMIF('Curriculum Vitae'!E:E,Q37,'Curriculum Vitae'!C:C)+SUMIF('Curriculum Vitae'!F:F,Q37,'Curriculum Vitae'!C:C)),SUM(R37:T37))","v":0},null,null,{"$f":"IF('Curriculum Vitae'!$B$22=\"En durée\",SUMIF('Curriculum Vitae'!B:B,W37,'Curriculum Vitae'!C:C),COUNTIF('Curriculum Vitae'!B:B,W37))","v":0}]
[null,null,null,null,null,"",null,null,null,null,null,null,null,null,null,null,null,{"$f":"IFERROR(IF(COUNTIF('Curriculum Vitae'!D:D,$Q38)=0,\"\",COUNTIF('Curriculum Vitae'!D:D,$Q38)),\"\")","v":""},{"$f":"IFERROR(IF(COUNTIF('Curriculum Vitae'!E:E,$Q38)=0,\"\",COUNTIF('Curriculum Vitae'!E:E,$Q38)),\"\")","v":""},{"$f":"IFERROR(IF(COUNTIF('Curriculum Vitae'!F:F,$Q38)=0,\"\",COUNTIF('Curriculum Vitae'!F:F,$Q38)),\"\")","v":""},{"$f":"IF('Curriculum Vitae'!$B$22=\"En durée\",(SUMIF('Curriculum Vitae'!D:D,Q38,'Curriculum Vitae'!C:C)+SUMIF('Curriculum Vitae'!E:E,Q38,'Curriculum Vitae'!C:C)+SUMIF('Curriculum Vitae'!F:F,Q38,'Curriculum Vitae'!C:C)),SUM(R38:T38))","v":0},null,null,{"$f":"IF('Curriculum Vitae'!$B$22=\"En durée\",SUMIF('Curriculum Vitae'!B:B,W38,'Curriculum Vitae'!C:C),COUNTIF('Curriculum Vitae'!B:B,W38))","v":0}]
[null,null,null,null,null,"",null,null,null,null,null,null,null,null,null,null,null,{"$f":"IFERROR(IF(COUNTIF('Curriculum Vitae'!D:D,$Q39)=0,\"\",COUNTIF('Curriculum Vitae'!D:D,$Q39)),\"\")","v":""},{"$f":"IFERROR(IF(COUNTIF('Curriculum Vitae'!E:E,$Q39)=0,\"\",COUNTIF('Curriculum Vitae'!E:E,$Q39)),\"\")","v":""},{"$f":"IFERROR(IF(COUNTIF('Curriculum Vitae'!F:F,$Q39)=0,\"\",COUNTIF('Curriculum Vitae'!F:F,$Q39)),\"\")","v":""},{"$f":"IF('Curriculum Vitae'!$B$22=\"En durée\",(SUMIF('Curriculum Vitae'!D:D,Q39,'Curriculum Vitae'!C:C)+SUMIF('Curriculum Vitae'!E:E,Q39,'Curriculum Vitae'!C:C)+SUMIF('Curriculum Vitae'!F:F,Q39,'Curriculum Vitae'!C:C)),SUM(R39:T39))","v":0},null,null,{"$f":"IF('Curriculum Vitae'!$B$22=\"En durée\",SUMIF('Curriculum Vitae'!B:B,W39,'Curriculum Vitae'!C:C),COUNTIF('Curriculum Vitae'!B:B,W39))","v":0}]
[null,null,null,null,null,"",null,null,null,null,null,null,null,null,null,null,null,{"$f":"IFERROR(IF(COUNTIF('Curriculum Vitae'!D:D,$Q40)=0,\"\",COUNTIF('Curriculum Vitae'!D:D,$Q40)),\"\")","v":""},{"$f":"IFERROR(IF(COUNTIF('Curriculum Vitae'!E:E,$Q40)=0,\"\",COUNTIF('Curriculum Vitae'!E:E,$Q40)),\"\")","v":""},{"$f":"IFERROR(IF(COUNTIF('Curriculum Vitae'!F:F,$Q40)=0,\"\",COUNTIF('Curriculum Vitae'!F:F,$Q40)),\"\")","v":""},{"$f":"IF('Curriculum Vitae'!$B$22=\"En durée\",(SUMIF('Curriculum Vitae'!D:D,Q40,'Curriculum Vitae'!C:C)+SUMIF('Curriculum Vitae'!E:E,Q40,'Curriculum Vitae'!C:C)+SUMIF('Curriculum Vitae'!F:F,Q40,'Curriculum Vitae'!C:C)),SUM(R40:T40))","v":0},null,null,{"$f":"IF('Curriculum Vitae'!$B$22=\"En durée\",SUMIF('Curriculum Vitae'!B:B,W40,'Curriculum Vitae'!C:C),COUNTIF('Curriculum Vitae'!B:B,W40))","v":0}]
[null,null,null,null,null,"",null,null,null,null,null,null,null,null,null,null,null,{"$f":"IFERROR(IF(COUNTIF('Curriculum Vitae'!D:D,$Q41)=0,\"\",COUNTIF('Curriculum Vitae'!D:D,$Q41)),\"\")","v":""},{"$f":"IFERROR(IF(COUNTIF('Curriculum Vitae'!E:E,$Q41)=0,\"\",COUNTIF('Curriculum Vitae'!E:E,$Q41)),\"\")","v":""},{"$f":"IFERROR(IF(COUNTIF('Curriculum Vitae'!F:F,$Q41)=0,\"\",COUNTIF('Curriculum Vitae'!F:F,$Q41)),\"\")","v":""},{"$f":"IF('Curriculum Vitae'!$B$22=\"En durée\",(SUMIF('Curriculum Vitae'!D:D,Q41,'Curriculum Vitae'!C:C)+SUMIF('Curriculum Vitae'!E:E,Q41,'Curriculum Vitae'!C:C)+SUMIF('Curriculum Vitae'!F:F,Q41,'Curriculum Vitae'!C:C)),SUM(R41:T41))","v":0},null,null,{"$f":"IF('Curriculum Vitae'!$B$22=\"En durée\",SUMIF('Curriculum Vitae'!B:B,W41,'Curriculum Vitae'!C:C),COUNTIF('Curriculum Vitae'!B:B,W41))","v":0}]
[null,null,null,null,null,"",null,null,null,null,null,null,null,null,null,null,null,{"$f":"IFERROR(IF(COUNTIF('Curriculum Vitae'!D:D,$Q42)=0,\"\",COUNTIF('Curriculum Vitae'!D:D,$Q42)),\"\")","v":""},{"$f":"IFERROR(IF(COUNTIF('Curriculum Vitae'!E:E,$Q42)=0,\"\",COUNTIF('Curriculum Vitae'!E:E,$Q42)),\"\")","v":""},{"$f":"IFERROR(IF(COUNTIF('Curriculum Vitae'!F:F,$Q42)=0,\"\",COUNTIF('Curriculum Vitae'!F:F,$Q42)),\"\")","v":""},{"$f":"IF('Curriculum Vitae'!$B$22=\"En durée\",(SUMIF('Curriculum Vitae'!D:D,Q42,'Curriculum Vitae'!C:C)+SUMIF('Curriculum Vitae'!E:E,Q42,'Curriculum Vitae'!C:C)+SUMIF('Curriculum Vitae'!F:F,Q42,'Curriculum Vitae'!C:C)),SUM(R42:T42))","v":0},null,null,{"$f":"IF('Curriculum Vitae'!$B$22=\"En durée\",SUMIF('Curriculum Vitae'!B:B,W42,'Curriculum Vitae'!C:C),COUNTIF('Curriculum Vitae'!B:B,W42))","v":0}]
[null,null,null,null,null,"",null,null,null,null,null,null,null,null,null,null,null,{"$f":"IFERROR(IF(COUNTIF('Curriculum Vitae'!D:D,$Q43)=0,\"\",COUNTIF('Curriculum Vitae'!D:D,$Q43)),\"\")","v":""},{"$f":"IFERROR(IF(COUNTIF('Curriculum Vitae'!E:E,$Q43)=0,\"\",COUNTIF('Curriculum Vitae'!E:E,$Q43)),\"\")","v":""},{"$f":"IFERROR(IF(COUNTIF('Curriculum Vitae'!F:F,$Q43)=0,\"\",COUNTIF('Curriculum Vitae'!F:F,$Q43)),\"\")","v":""},{"$f":"IF('Curriculum Vitae'!$B$22=\"En durée\",(SUMIF('Curriculum Vitae'!D:D,Q43,'Curriculum Vitae'!C:C)+SUMIF('Curriculum Vitae'!E:E,Q43,'Curriculum Vitae'!C:C)+SUMIF('Curriculum Vitae'!F:F,Q43,'Curriculum Vitae'!C:C)),SUM(R43:T43))","v":0},null,null,{"$f":"IF('Curriculum Vitae'!$B$22=\"En durée\",SUMIF('Curriculum Vitae'!B:B,W43,'Curriculum Vitae'!C:C),COUNTIF('Curriculum Vitae'!B:B,W43))","v":0}]
[null,null,null,null,null,"",null,null,null,null,null,null,null,null,null,null,null,{"$f":"IFERROR(IF(COUNTIF('Curriculum Vitae'!D:D,$Q44)=0,\"\",COUNTIF('Curriculum Vitae'!D:D,$Q44)),\"\")","v":""},{"$f":"IFERROR(IF(COUNTIF('Curriculum Vitae'!E:E,$Q44)=0,\"\",COUNTIF('Curriculum Vitae'!E:E,$Q44)),\"\")","v":""},{"$f":"IFERROR(IF(COUNTIF('Curriculum Vitae'!F:F,$Q44)=0,\"\",COUNTIF('Curriculum Vitae'!F:F,$Q44)),\"\")","v":""},{"$f":"IF('Curriculum Vitae'!$B$22=\"En durée\",(SUMIF('Curriculum Vitae'!D:D,Q44,'Curriculum Vitae'!C:C)+SUMIF('Curriculum Vitae'!E:E,Q44,'Curriculum Vitae'!C:C)+SUMIF('Curriculum Vitae'!F:F,Q44,'Curriculum Vitae'!C:C)),SUM(R44:T44))","v":0},null,null,{"$f":"IF('Curriculum Vitae'!$B$22=\"En durée\",SUMIF('Curriculum Vitae'!B:B,W44,'Curriculum Vitae'!C:C),COUNTIF('Curriculum Vitae'!B:B,W44))","v":0}]
[null,null,null,null,null,"",null,null,null,null,null,null,null,null,null,null,null,{"$f":"IFERROR(IF(COUNTIF('Curriculum Vitae'!D:D,$Q45)=0,\"\",COUNTIF('Curriculum Vitae'!D:D,$Q45)),\"\")","v":""},{"$f":"IFERROR(IF(COUNTIF('Curriculum Vitae'!E:E,$Q45)=0,\"\",COUNTIF('Curriculum Vitae'!E:E,$Q45)),\"\")","v":""},{"$f":"IFERROR(IF(COUNTIF('Curriculum Vitae'!F:F,$Q45)=0,\"\",COUNTIF('Curriculum Vitae'!F:F,$Q45)),\"\")","v":""},{"$f":"IF('Curriculum Vitae'!$B$22=\"En durée\",(SUMIF('Curriculum Vitae'!D:D,Q45,'Curriculum Vitae'!C:C)+SUMIF('Curriculum Vitae'!E:E,Q45,'Curriculum Vitae'!C:C)+SUMIF('Curriculum Vitae'!F:F,Q45,'Curriculum Vitae'!C:C)),SUM(R45:T45))","v":0},null,null,{"$f":"IF('Curriculum Vitae'!$B$22=\"En durée\",SUMIF('Curriculum Vitae'!B:B,W45,'Curriculum Vitae'!C:C),COUNTIF('Curriculum Vitae'!B:B,W45))","v":0}]
[null,null,null,null,null,"",null,null,null,null,null,null,null,null,null,null,null,{"$f":"IFERROR(IF(COUNTIF('Curriculum Vitae'!D:D,$Q46)=0,\"\",COUNTIF('Curriculum Vitae'!D:D,$Q46)),\"\")","v":""},{"$f":"IFERROR(IF(COUNTIF('Curriculum Vitae'!E:E,$Q46)=0,\"\",COUNTIF('Curriculum Vitae'!E:E,$Q46)),\"\")","v":""},{"$f":"IFERROR(IF(COUNTIF('Curriculum Vitae'!F:F,$Q46)=0,\"\",COUNTIF('Curriculum Vitae'!F:F,$Q46)),\"\")","v":""},{"$f":"IF('Curriculum Vitae'!$B$22=\"En durée\",(SUMIF('Curriculum Vitae'!D:D,Q46,'Curriculum Vitae'!C:C)+SUMIF('Curriculum Vitae'!E:E,Q46,'Curriculum Vitae'!C:C)+SUMIF('Curriculum Vitae'!F:F,Q46,'Curriculum Vitae'!C:C)),SUM(R46:T46))","v":0},null,null,{"$f":"IF('Curriculum Vitae'!$B$22=\"En durée\",SUMIF('Curriculum Vitae'!B:B,W46,'Curriculum Vitae'!C:C),COUNTIF('Curriculum Vitae'!B:B,W46))","v":0}]
[null,null,null,null,null,"",null,null,null,null,null,null,null,null,null,null,null,{"$f":"IFERROR(IF(COUNTIF('Curriculum Vitae'!D:D,$Q47)=0,\"\",COUNTIF('Curriculum Vitae'!D:D,$Q47)),\"\")","v":""},{"$f":"IFERROR(IF(COUNTIF('Curriculum Vitae'!E:E,$Q47)=0,\"\",COUNTIF('Curriculum Vitae'!E:E,$Q47)),\"\")","v":""},{"$f":"IFERROR(IF(COUNTIF('Curriculum Vitae'!F:F,$Q47)=0,\"\",COUNTIF('Curriculum Vitae'!F:F,$Q47)),\"\")","v":""},{"$f":"IF('Curriculum Vitae'!$B$22=\"En durée\",(SUMIF('Curriculum Vitae'!D:D,Q47,'Curriculum Vitae'!C:C)+SUMIF('Curriculum Vitae'!E:E,Q47,'Curriculum Vitae'!C:C)+SUMIF('Curriculum Vitae'!F:F,Q47,'Curriculum Vitae'!C:C)),SUM(R47:T47))","v":0},null,null,{"$f":"IF('Curriculum Vitae'!$B$22=\"En durée\",SUMIF('Curriculum Vitae'!B:B,W47,'Curriculum Vitae'!C:C),COUNTIF('Curriculum Vitae'!B:B,W47))","v":0}]
[null,null,null,null,null,"",null,null,null,null,null,null,null,null,null,null,null,{"$f":"IFERROR(IF(COUNTIF('Curriculum Vitae'!D:D,$Q48)=0,\"\",COUNTIF('Curriculum Vitae'!D:D,$Q48)),\"\")","v":""},{"$f":"IFERROR(IF(COUNTIF('Curriculum Vitae'!E:E,$Q48)=0,\"\",COUNTIF('Curriculum Vitae'!E:E,$Q48)),\"\")","v":""},{"$f":"IFERROR(IF(COUNTIF('Curriculum Vitae'!F:F,$Q48)=0,\"\",COUNTIF('Curriculum Vitae'!F:F,$Q48)),\"\")","v":""},{"$f":"IF('Curriculum Vitae'!$B$22=\"En durée\",(SUMIF('Curriculum Vitae'!D:D,Q48,'Curriculum Vitae'!C:C)+SUMIF('Curriculum Vitae'!E:E,Q48,'Curriculum Vitae'!C:C)+SUMIF('Curriculum Vitae'!F:F,Q48,'Curriculum Vitae'!C:C)),SUM(R48:T48))","v":0},null,null,{"$f":"IF('Curriculum Vitae'!$B$22=\"En durée\",SUMIF('Curriculum Vitae'!B:B,W48,'Curriculum Vitae'!C:C),COUNTIF('Curriculum Vitae'!B:B,W48))","v":0}]
[null,null,null,null,null,"",null,null,null,null,null,null,null,null,null,null,null,{"$f":"IFERROR(IF(COUNTIF('Curriculum Vitae'!D:D,$Q49)=0,\"\",COUNTIF('Curriculum Vitae'!D:D,$Q49)),\"\")","v":""},{"$f":"IFERROR(IF(COUNTIF('Curriculum Vitae'!E:E,$Q49)=0,\"\",COUNTIF('Curriculum Vitae'!E:E,$Q49)),\"\")","v":""},{"$f":"IFERROR(IF(COUNTIF('Curriculum Vitae'!F:F,$Q49)=0,\"\",COUNTIF('Curriculum Vitae'!F:F,$Q49)),\"\")","v":""},{"$f":"IF('Curriculum Vitae'!$B$22=\"En durée\",(SUMIF('Curriculum Vitae'!D:D,Q49,'Curriculum Vitae'!C:C)+SUMIF('Curriculum Vitae'!E:E,Q49,'Curriculum Vitae'!C:C)+SUMIF('Curriculum Vitae'!F:F,Q49,'Curriculum Vitae'!C:C)),SUM(R49:T49))","v":0},null,null,{"$f":"IF('Curriculum Vitae'!$B$22=\"En durée\",SUMIF('Curriculum Vitae'!B:B,W49,'Curriculum Vitae'!C:C),COUNTIF('Curriculum Vitae'!B:B,W49))","v":0}]
[null,null,null,null,null,"",null,null,null,null,null,null,null,null,null,null,null,{"$f":"IFERROR(IF(COUNTIF('Curriculum Vitae'!D:D,$Q50)=0,\"\",COUNTIF('Curriculum Vitae'!D:D,$Q50)),\"\")","v":""},{"$f":"IFERROR(IF(COUNTIF('Curriculum Vitae'!E:E,$Q50)=0,\"\",COUNTIF('Curriculum Vitae'!E:E,$Q50)),\"\")","v":""},{"$f":"IFERROR(IF(COUNTIF('Curriculum Vitae'!F:F,$Q50)=0,\"\",COUNTIF('Curriculum Vitae'!F:F,$Q50)),\"\")","v":""},{"$f":"IF('Curriculum Vitae'!$B$22=\"En durée\",(SUMIF('Curriculum Vitae'!D:D,Q50,'Curriculum Vitae'!C:C)+SUMIF('Curriculum Vitae'!E:E,Q50,'Curriculum Vitae'!C:C)+SUMIF('Curriculum Vitae'!F:F,Q50,'Curriculum Vitae'!C:C)),SUM(R50:T50))","v":0},null,null,{"$f":"IF('Curriculum Vitae'!$B$22=\"En durée\",SUMIF('Curriculum Vitae'!B:B,W50,'Curriculum Vitae'!C:C),COUNTIF('Curriculum Vitae'!B:B,W50))","v":0}]
[null,null,null,null,null,"",null,null,null,null,null,null,null,null,null,null,null,{"$f":"IFERROR(IF(COUNTIF('Curriculum Vitae'!D:D,$Q51)=0,\"\",COUNTIF('Curriculum Vitae'!D:D,$Q51)),\"\")","v":""},{"$f":"IFERROR(IF(COUNTIF('Curriculum Vitae'!E:E,$Q51)=0,\"\",COUNTIF('Curriculum Vitae'!E:E,$Q51)),\"\")","v":""},{"$f":"IFERROR(IF(COUNTIF('Curriculum Vitae'!F:F,$Q51)=0,\"\",COUNTIF('Curriculum Vitae'!F:F,$Q51)),\"\")","v":""},{"$f":"IF('Curriculum Vitae'!$B$22=\"En durée\",(SUMIF('Curriculum Vitae'!D:D,Q51,'Curriculum Vitae'!C:C)+SUMIF('Curriculum Vitae'!E:E,Q51,'Curriculum Vitae'!C:C)+SUMIF('Curriculum Vitae'!F:F,Q51,'Curriculum Vitae'!C:C)),SUM(R51:T51))","v":0},null,null,{"$f":"IF('Curriculum Vitae'!$B$22=\"En durée\",SUMIF('Curriculum Vitae'!B:B,W51,'Curriculum Vitae'!C:C),COUNTIF('Curriculum Vitae'!B:B,W51))","v":0}]
[null,null,null,null,null,"",null,null,null,null,null,null,null,null,null,null,null,{"$f":"IFERROR(IF(COUNTIF('Curriculum Vitae'!D:D,$Q52)=0,\"\",COUNTIF('Curriculum Vitae'!D:D,$Q52)),\"\")","v":""},{"$f":"IFERROR(IF(COUNTIF('Curriculum Vitae'!E:E,$Q52)=0,\"\",COUNTIF('Curriculum Vitae'!E:E,$Q52)),\"\")","v":""},{"$f":"IFERROR(IF(COUNTIF('Curriculum Vitae'!F:F,$Q52)=0,\"\",COUNTIF('Curriculum Vitae'!F:F,$Q52)),\"\")","v":""},{"$f":"IF('Curriculum Vitae'!$B$22=\"En durée\",(SUMIF('Curriculum Vitae'!D:D,Q52,'Curriculum Vitae'!C:C)+SUMIF('Curriculum Vitae'!E:E,Q52,'Curriculum Vitae'!C:C)+SUMIF('Curriculum Vitae'!F:F,Q52,'Curriculum Vitae'!C:C)),SUM(R52:T52))","v":0},null,null,{"$f":"IF('Curriculum Vitae'!$B$22=\"En durée\",SUMIF('Curriculum Vitae'!B:B,W52,'Curriculum Vitae'!C:C),COUNTIF('Curriculum Vitae'!B:B,W52))","v":0}]
[null,null,null,null,null,"",null,null,null,null,null,null,null,null,null,null,null,{"$f":"IFERROR(IF(COUNTIF('Curriculum Vitae'!D:D,$Q53)=0,\"\",COUNTIF('Curriculum Vitae'!D:D,$Q53)),\"\")","v":""},{"$f":"IFERROR(IF(COUNTIF('Curriculum Vitae'!E:E,$Q53)=0,\"\",COUNTIF('Curriculum Vitae'!E:E,$Q53)),\"\")","v":""},{"$f":"IFERROR(IF(COUNTIF('Curriculum Vitae'!F:F,$Q53)=0,\"\",COUNTIF('Curriculum Vitae'!F:F,$Q53)),\"\")","v":""},{"$f":"IF('Curriculum Vitae'!$B$22=\"En durée\",(SUMIF('Curriculum Vitae'!D:D,Q53,'Curriculum Vitae'!C:C)+SUMIF('Curriculum Vitae'!E:E,Q53,'Curriculum Vitae'!C:C)+SUMIF('Curriculum Vitae'!F:F,Q53,'Curriculum Vitae'!C:C)),SUM(R53:T53))","v":0},null,null,{"$f":"IF('Curriculum Vitae'!$B$22=\"En durée\",SUMIF('Curriculum Vitae'!B:B,W53,'Curriculum Vitae'!C:C),COUNTIF('Curriculum Vitae'!B:B,W53))","v":0}]
[null,null,null,null,null,"",null,null,null,null,null,null,null,null,null,null,null,{"$f":"IFERROR(IF(COUNTIF('Curriculum Vitae'!D:D,$Q54)=0,\"\",COUNTIF('Curriculum Vitae'!D:D,$Q54)),\"\")","v":""},{"$f":"IFERROR(IF(COUNTIF('Curriculum Vitae'!E:E,$Q54)=0,\"\",COUNTIF('Curriculum Vitae'!E:E,$Q54)),\"\")","v":""},{"$f":"IFERROR(IF(COUNTIF('Curriculum Vitae'!F:F,$Q54)=0,\"\",COUNTIF('Curriculum Vitae'!F:F,$Q54)),\"\")","v":""},{"$f":"IF('Curriculum Vitae'!$B$22=\"En durée\",(SUMIF('Curriculum Vitae'!D:D,Q54,'Curriculum Vitae'!C:C)+SUMIF('Curriculum Vitae'!E:E,Q54,'Curriculum Vitae'!C:C)+SUMIF('Curriculum Vitae'!F:F,Q54,'Curriculum Vitae'!C:C)),SUM(R54:T54))","v":0},null,null,{"$f":"IF('Curriculum Vitae'!$B$22=\"En durée\",SUMIF('Curriculum Vitae'!B:B,W54,'Curriculum Vitae'!C:C),COUNTIF('Curriculum Vitae'!B:B,W54))","v":0}]
[null,null,null,null,null,"",null,null,null,null,null,null,null,null,null,null,null,{"$f":"IFERROR(IF(COUNTIF('Curriculum Vitae'!D:D,$Q55)=0,\"\",COUNTIF('Curriculum Vitae'!D:D,$Q55)),\"\")","v":""},{"$f":"IFERROR(IF(COUNTIF('Curriculum Vitae'!E:E,$Q55)=0,\"\",COUNTIF('Curriculum Vitae'!E:E,$Q55)),\"\")","v":""},{"$f":"IFERROR(IF(COUNTIF('Curriculum Vitae'!F:F,$Q55)=0,\"\",COUNTIF('Curriculum Vitae'!F:F,$Q55)),\"\")","v":""},{"$f":"IF('Curriculum Vitae'!$B$22=\"En durée\",(SUMIF('Curriculum Vitae'!D:D,Q55,'Curriculum Vitae'!C:C)+SUMIF('Curriculum Vitae'!E:E,Q55,'Curriculum Vitae'!C:C)+SUMIF('Curriculum Vitae'!F:F,Q55,'Curriculum Vitae'!C:C)),SUM(R55:T55))","v":0},null,null,{"$f":"IF('Curriculum Vitae'!$B$22=\"En durée\",SUMIF('Curriculum Vitae'!B:B,W55,'Curriculum Vitae'!C:C),COUNTIF('Curriculum Vitae'!B:B,W55))","v":0}]
[null,null,null,null,null,"",null,null,null,null,null,null,null,null,null,null,null,{"$f":"IFERROR(IF(COUNTIF('Curriculum Vitae'!D:D,$Q56)=0,\"\",COUNTIF('Curriculum Vitae'!D:D,$Q56)),\"\")","v":""},{"$f":"IFERROR(IF(COUNTIF('Curriculum Vitae'!E:E,$Q56)=0,\"\",COUNTIF('Curriculum Vitae'!E:E,$Q56)),\"\")","v":""},{"$f":"IFERROR(IF(COUNTIF('Curriculum Vitae'!F:F,$Q56)=0,\"\",COUNTIF('Curriculum Vitae'!F:F,$Q56)),\"\")","v":""},{"$f":"IF('Curriculum Vitae'!$B$22=\"En durée\",(SUMIF('Curriculum Vitae'!D:D,Q56,'Curriculum Vitae'!C:C)+SUMIF('Curriculum Vitae'!E:E,Q56,'Curriculum Vitae'!C:C)+SUMIF('Curriculum Vitae'!F:F,Q56,'Curriculum Vitae'!C:C)),SUM(R56:T56))","v":0},null,null,{"$f":"IF('Curriculum Vitae'!$B$22=\"En durée\",SUMIF('Curriculum Vitae'!B:B,W56,'Curriculum Vitae'!C:C),COUNTIF('Curriculum Vitae'!B:B,W56))","v":0}]
[null,null,null,null,null,"",null,null,null,null,null,null,null,null,null,null,null,{"$f":"IFERROR(IF(COUNTIF('Curriculum Vitae'!D:D,$Q57)=0,\"\",COUNTIF('Curriculum Vitae'!D:D,$Q57)),\"\")","v":""},{"$f":"IFERROR(IF(COUNTIF('Curriculum Vitae'!E:E,$Q57)=0,\"\",COUNTIF('Curriculum Vitae'!E:E,$Q57)),\"\")","v":""},{"$f":"IFERROR(IF(COUNTIF('Curriculum Vitae'!F:F,$Q57)=0,\"\",COUNTIF('Curriculum Vitae'!F:F,$Q57)),\"\")","v":""},{"$f":"IF('Curriculum Vitae'!$B$22=\"En durée\",(SUMIF('Curriculum Vitae'!D:D,Q57,'Curriculum Vitae'!C:C)+SUMIF('Curriculum Vitae'!E:E,Q57,'Curriculum Vitae'!C:C)+SUMIF('Curriculum Vitae'!F:F,Q57,'Curriculum Vitae'!C:C)),SUM(R57:T57))","v":0},null,null,{"$f":"IF('Curriculum Vitae'!$B$22=\"En durée\",SUMIF('Curriculum Vitae'!B:B,W57,'Curriculum Vitae'!C:C),COUNTIF('Curriculum Vitae'!B:B,W57))","v":0}]
[null,null,null,null,null,"",null,null,null,null,null,null,null,null,null,null,null,{"$f":"IFERROR(IF(COUNTIF('Curriculum Vitae'!D:D,$Q58)=0,\"\",COUNTIF('Curriculum Vitae'!D:D,$Q58)),\"\")","v":""},{"$f":"IFERROR(IF(COUNTIF('Curriculum Vitae'!E:E,$Q58)=0,\"\",COUNTIF('Curriculum Vitae'!E:E,$Q58)),\"\")","v":""},{"$f":"IFERROR(IF(COUNTIF('Curriculum Vitae'!F:F,$Q58)=0,\"\",COUNTIF('Curriculum Vitae'!F:F,$Q58)),\"\")","v":""},{"$f":"IF('Curriculum Vitae'!$B$22=\"En durée\",(SUMIF('Curriculum Vitae'!D:D,Q58,'Curriculum Vitae'!C:C)+SUMIF('Curriculum Vitae'!E:E,Q58,'Curriculum Vitae'!C:C)+SUMIF('Curriculum Vitae'!F:F,Q58,'Curriculum Vitae'!C:C)),SUM(R58:T58))","v":0},null,null,{"$f":"IF('Curriculum Vitae'!$B$22=\"En durée\",SUMIF('Curriculum Vitae'!B:B,W58,'Curriculum Vitae'!C:C),COUNTIF('Curriculum Vitae'!B:B,W58))","v":0}]
[null,null,null,null,null,"",null,null,null,null,null,null,null,null,null,null,null,{"$f":"IFERROR(IF(COUNTIF('Curriculum Vitae'!D:D,$Q59)=0,\"\",COUNTIF('Curriculum Vitae'!D:D,$Q59)),\"\")","v":""},{"$f":"IFERROR(IF(COUNTIF('Curriculum Vitae'!E:E,$Q59)=0,\"\",COUNTIF('Curriculum Vitae'!E:E,$Q59)),\"\")","v":""},{"$f":"IFERROR(IF(COUNTIF('Curriculum Vitae'!F:F,$Q59)=0,\"\",COUNTIF('Curriculum Vitae'!F:F,$Q59)),\"\")","v":""},{"$f":"IF('Curriculum Vitae'!$B$22=\"En durée\",(SUMIF('Curriculum Vitae'!D:D,Q59,'Curriculum Vitae'!C:C)+SUMIF('Curriculum Vitae'!E:E,Q59,'Curriculum Vitae'!C:C)+SUMIF('Curriculum Vitae'!F:F,Q59,'Curriculum Vitae'!C:C)),SUM(R59:T59))","v":0},null,null,{"$f":"IF('Curriculum Vitae'!$B$22=\"En durée\",SUMIF('Curriculum Vitae'!B:B,W59,'Curriculum Vitae'!C:C),COUNTIF('Curriculum Vitae'!B:B,W59))","v":0}]
[null,null,null,null,null,"",null,null,null,null,null,null,null,null,null,null,null,{"$f":"IFERROR(IF(COUNTIF('Curriculum Vitae'!D:D,$Q60)=0,\"\",COUNTIF('Curriculum Vitae'!D:D,$Q60)),\"\")","v":""},{"$f":"IFERROR(IF(COUNTIF('Curriculum Vitae'!E:E,$Q60)=0,\"\",COUNTIF('Curriculum Vitae'!E:E,$Q60)),\"\")","v":""},{"$f":"IFERROR(IF(COUNTIF('Curriculum Vitae'!F:F,$Q60)=0,\"\",COUNTIF('Curriculum Vitae'!F:F,$Q60)),\"\")","v":""},{"$f":"IF('Curriculum Vitae'!$B$22=\"En durée\",(SUMIF('Curriculum Vitae'!D:D,Q60,'Curriculum Vitae'!C:C)+SUMIF('Curriculum Vitae'!E:E,Q60,'Curriculum Vitae'!C:C)+SUMIF('Curriculum Vitae'!F:F,Q60,'Curriculum Vitae'!C:C)),SUM(R60:T60))","v":0},null,null,{"$f":"IF('Curriculum Vitae'!$B$22=\"En durée\",SUMIF('Curriculum Vitae'!B:B,W60,'Curriculum Vitae'!C:C),COUNTIF('Curriculum Vitae'!B:B,W60))","v":0}]
[null,null,null,null,null,"",null,null,null,null,null,null,null,null,null,null,null,{"$f":"IFERROR(IF(COUNTIF('Curriculum Vitae'!D:D,$Q61)=0,\"\",COUNTIF('Curriculum Vitae'!D:D,$Q61)),\"\")","v":""},{"$f":"IFERROR(IF(COUNTIF('Curriculum Vitae'!E:E,$Q61)=0,\"\",COUNTIF('Curriculum Vitae'!E:E,$Q61)),\"\")","v":""},{"$f":"IFERROR(IF(COUNTIF('Curriculum Vitae'!F:F,$Q61)=0,\"\",COUNTIF('Curriculum Vitae'!F:F,$Q61)),\"\")","v":""},{"$f":"IF('Curriculum Vitae'!$B$22=\"En durée\",(SUMIF('Curriculum Vitae'!D:D,Q61,'Curriculum Vitae'!C:C)+SUMIF('Curriculum Vitae'!E:E,Q61,'Curriculum Vitae'!C:C)+SUMIF('Curriculum Vitae'!F:F,Q61,'Curriculum Vitae'!C:C)),SUM(R61:T61))","v":0},null,null,{"$f":"IF('Curriculum Vitae'!$B$22=\"En durée\",SUMIF('Curriculum Vitae'!B:B,W61,'Curriculum Vitae'!C:C),COUNTIF('Curriculum Vitae'!B:B,W61))","v":0}]
[null,null,null,null,null,"",null,null,null,null,null,null,null,null,null,null,null,{"$f":"IFERROR(IF(COUNTIF('Curriculum Vitae'!D:D,$Q62)=0,\"\",COUNTIF('Curriculum Vitae'!D:D,$Q62)),\"\")","v":""},{"$f":"IFERROR(IF(COUNTIF('Curriculum Vitae'!E:E,$Q62)=0,\"\",COUNTIF('Curriculum Vitae'!E:E,$Q62)),\"\")","v":""},{"$f":"IFERROR(IF(COUNTIF('Curriculum Vitae'!F:F,$Q62)=0,\"\",COUNTIF('Curriculum Vitae'!F:F,$Q62)),\"\")","v":""},{"$f":"IF('Curriculum Vitae'!$B$22=\"En durée\",(SUMIF('Curriculum Vitae'!D:D,Q62,'Curriculum Vitae'!C:C)+SUMIF('Curriculum Vitae'!E:E,Q62,'Curriculum Vitae'!C:C)+SUMIF('Curriculum Vitae'!F:F,Q62,'Curriculum Vitae'!C:C)),SUM(R62:T62))","v":0},null,null,{"$f":"IF('Curriculum Vitae'!$B$22=\"En durée\",SUMIF('Curriculum Vitae'!B:B,W62,'Curriculum Vitae'!C:C),COUNTIF('Curriculum Vitae'!B:B,W62))","v":0}]
[null,null,null,null,null,"",null,null,null,null,null,null,null,null,null,null,null,{"$f":"IFERROR(IF(COUNTIF('Curriculum Vitae'!D:D,$Q63)=0,\"\",COUNTIF('Curriculum Vitae'!D:D,$Q63)),\"\")","v":""},{"$f":"IFERROR(IF(COUNTIF('Curriculum Vitae'!E:E,$Q63)=0,\"\",COUNTIF('Curriculum Vitae'!E:E,$Q63)),\"\")","v":""},{"$f":"IFERROR(IF(COUNTIF('Curriculum Vitae'!F:F,$Q63)=0,\"\",COUNTIF('Curriculum Vitae'!F:F,$Q63)),\"\")","v":""},{"$f":"IF('Curriculum Vitae'!$B$22=\"En durée\",(SUMIF('Curriculum Vitae'!D:D,Q63,'Curriculum Vitae'!C:C)+SUMIF('Curriculum Vitae'!E:E,Q63,'Curriculum Vitae'!C:C)+SUMIF('Curriculum Vitae'!F:F,Q63,'Curriculum Vitae'!C:C)),SUM(R63:T63))","v":0},null,null,{"$f":"IF('Curriculum Vitae'!$B$22=\"En durée\",SUMIF('Curriculum Vitae'!B:B,W63,'Curriculum Vitae'!C:C),COUNTIF('Curriculum Vitae'!B:B,W63))","v":0}]
[null,null,null,null,null,"",null,null,null,null,null,null,null,null,null,null,null,{"$f":"IFERROR(IF(COUNTIF('Curriculum Vitae'!D:D,$Q64)=0,\"\",COUNTIF('Curriculum Vitae'!D:D,$Q64)),\"\")","v":""},{"$f":"IFERROR(IF(COUNTIF('Curriculum Vitae'!E:E,$Q64)=0,\"\",COUNTIF('Curriculum Vitae'!E:E,$Q64)),\"\")","v":""},{"$f":"IFERROR(IF(COUNTIF('Curriculum Vitae'!F:F,$Q64)=0,\"\",COUNTIF('Curriculum Vitae'!F:F,$Q64)),\"\")","v":""},{"$f":"IF('Curriculum Vitae'!$B$22=\"En durée\",(SUMIF('Curriculum Vitae'!D:D,Q64,'Curriculum Vitae'!C:C)+SUMIF('Curriculum Vitae'!E:E,Q64,'Curriculum Vitae'!C:C)+SUMIF('Curriculum Vitae'!F:F,Q64,'Curriculum Vitae'!C:C)),SUM(R64:T64))","v":0},null,null,{"$f":"IF('Curriculum Vitae'!$B$22=\"En durée\",SUMIF('Curriculum Vitae'!B:B,W64,'Curriculum Vitae'!C:C),COUNTIF('Curriculum Vitae'!B:B,W64))","v":0}]
[null,null,null,null,null,"",null,null,null,null,null,null,null,null,null,null,null,{"$f":"IFERROR(IF(COUNTIF('Curriculum Vitae'!D:D,$Q65)=0,\"\",COUNTIF('Curriculum Vitae'!D:D,$Q65)),\"\")","v":""},{"$f":"IFERROR(IF(COUNTIF('Curriculum Vitae'!E:E,$Q65)=0,\"\",COUNTIF('Curriculum Vitae'!E:E,$Q65)),\"\")","v":""},{"$f":"IFERROR(IF(COUNTIF('Curriculum Vitae'!F:F,$Q65)=0,\"\",COUNTIF('Curriculum Vitae'!F:F,$Q65)),\"\")","v":""},{"$f":"IF('Curriculum Vitae'!$B$22=\"En durée\",(SUMIF('Curriculum Vitae'!D:D,Q65,'Curriculum Vitae'!C:C)+SUMIF('Curriculum Vitae'!E:E,Q65,'Curriculum Vitae'!C:C)+SUMIF('Curriculum Vitae'!F:F,Q65,'Curriculum Vitae'!C:C)),SUM(R65:T65))","v":0},null,null,{"$f":"IF('Curriculum Vitae'!$B$22=\"En durée\",SUMIF('Curriculum Vitae'!B:B,W65,'Curriculum Vitae'!C:C),COUNTIF('Curriculum Vitae'!B:B,W65))","v":0}]
[null,null,null,null,null,{"$f":"D66&E66","v":""},null,null,null,null,null,null,null,null,null,null,null,{"$f":"IFERROR(IF(COUNTIF('Curriculum Vitae'!D:D,$Q66)=0,\"\",COUNTIF('Curriculum Vitae'!D:D,$Q66)),\"\")","v":""},{"$f":"IFERROR(IF(COUNTIF('Curriculum Vitae'!E:E,$Q66)=0,\"\",COUNTIF('Curriculum Vitae'!E:E,$Q66)),\"\")","v":""},{"$f":"IFERROR(IF(COUNTIF('Curriculum Vitae'!F:F,$Q66)=0,\"\",COUNTIF('Curriculum Vitae'!F:F,$Q66)),\"\")","v":""},{"$f":"IF('Curriculum Vitae'!$B$22=\"En durée\",(SUMIF('Curriculum Vitae'!D:D,Q66,'Curriculum Vitae'!C:C)+SUMIF('Curriculum Vitae'!E:E,Q66,'Curriculum Vitae'!C:C)+SUMIF('Curriculum Vitae'!F:F,Q66,'Curriculum Vitae'!C:C)),SUM(R66:T66))","v":0},null,null,{"$f":"IF('Curriculum Vitae'!$B$22=\"En durée\",SUMIF('Curriculum Vitae'!B:B,W66,'Curriculum Vitae'!C:C),COUNTIF('Curriculum Vitae'!B:B,W66))","v":0}]
[null,null,null,null,null,"",null,null,null,null,null,null,null,null,null,null,null,{"$f":"IFERROR(IF(COUNTIF('Curriculum Vitae'!D:D,$Q67)=0,\"\",COUNTIF('Curriculum Vitae'!D:D,$Q67)),\"\")","v":""},{"$f":"IFERROR(IF(COUNTIF('Curriculum Vitae'!E:E,$Q67)=0,\"\",COUNTIF('Curriculum Vitae'!E:E,$Q67)),\"\")","v":""},{"$f":"IFERROR(IF(COUNTIF('Curriculum Vitae'!F:F,$Q67)=0,\"\",COUNTIF('Curriculum Vitae'!F:F,$Q67)),\"\")","v":""},{"$f":"IF('Curriculum Vitae'!$B$22=\"En durée\",(SUMIF('Curriculum Vitae'!D:D,Q67,'Curriculum Vitae'!C:C)+SUMIF('Curriculum Vitae'!E:E,Q67,'Curriculum Vitae'!C:C)+SUMIF('Curriculum Vitae'!F:F,Q67,'Curriculum Vitae'!C:C)),SUM(R67:T67))","v":0},null,null,{"$f":"IF('Curriculum Vitae'!$B$22=\"En durée\",SUMIF('Curriculum Vitae'!B:B,W67,'Curriculum Vitae'!C:C),COUNTIF('Curriculum Vitae'!B:B,W67))","v":0}]
[null,null,null,null,null,"",null,null,null,null,null,null,null,null,null,null,null,{"$f":"IFERROR(IF(COUNTIF('Curriculum Vitae'!D:D,$Q68)=0,\"\",COUNTIF('Curriculum Vitae'!D:D,$Q68)),\"\")","v":""},{"$f":"IFERROR(IF(COUNTIF('Curriculum Vitae'!E:E,$Q68)=0,\"\",COUNTIF('Curriculum Vitae'!E:E,$Q68)),\"\")","v":""},{"$f":"IFERROR(IF(COUNTIF('Curriculum Vitae'!F:F,$Q68)=0,\"\",COUNTIF('Curriculum Vitae'!F:F,$Q68)),\"\")","v":""},{"$f":"IF('Curriculum Vitae'!$B$22=\"En durée\",(SUMIF('Curriculum Vitae'!D:D,Q68,'Curriculum Vitae'!C:C)+SUMIF('Curriculum Vitae'!E:E,Q68,'Curriculum Vitae'!C:C)+SUMIF('Curriculum Vitae'!F:F,Q68,'Curriculum Vitae'!C:C)),SUM(R68:T68))","v":0},null,null,{"$f":"IF('Curriculum Vitae'!$B$22=\"En durée\",SUMIF('Curriculum Vitae'!B:B,W68,'Curriculum Vitae'!C:C),COUNTIF('Curriculum Vitae'!B:B,W68))","v":0}]
[null,null,null,null,null,"",null,null,null,null,null,null,null,null,null,null,null,{"$f":"IFERROR(IF(COUNTIF('Curriculum Vitae'!D:D,$Q69)=0,\"\",COUNTIF('Curriculum Vitae'!D:D,$Q69)),\"\")","v":""},{"$f":"IFERROR(IF(COUNTIF('Curriculum Vitae'!E:E,$Q69)=0,\"\",COUNTIF('Curriculum Vitae'!E:E,$Q69)),\"\")","v":""},{"$f":"IFERROR(IF(COUNTIF('Curriculum Vitae'!F:F,$Q69)=0,\"\",COUNTIF('Curriculum Vitae'!F:F,$Q69)),\"\")","v":""},{"$f":"IF('Curriculum Vitae'!$B$22=\"En durée\",(SUMIF('Curriculum Vitae'!D:D,Q69,'Curriculum Vitae'!C:C)+SUMIF('Curriculum Vitae'!E:E,Q69,'Curriculum Vitae'!C:C)+SUMIF('Curriculum Vitae'!F:F,Q69,'Curriculum Vitae'!C:C)),SUM(R69:T69))","v":0},null,null,{"$f":"IF('Curriculum Vitae'!$B$22=\"En durée\",SUMIF('Curriculum Vitae'!B:B,W69,'Curriculum Vitae'!C:C),COUNTIF('Curriculum Vitae'!B:B,W69))","v":0}]
[null,null,null,null,null,"",null,null,null,null,null,null,null,null,null,null,null,{"$f":"IFERROR(IF(COUNTIF('Curriculum Vitae'!D:D,$Q70)=0,\"\",COUNTIF('Curriculum Vitae'!D:D,$Q70)),\"\")","v":""},{"$f":"IFERROR(IF(COUNTIF('Curriculum Vitae'!E:E,$Q70)=0,\"\",COUNTIF('Curriculum Vitae'!E:E,$Q70)),\"\")","v":""},{"$f":"IFERROR(IF(COUNTIF('Curriculum Vitae'!F:F,$Q70)=0,\"\",COUNTIF('Curriculum Vitae'!F:F,$Q70)),\"\")","v":""},{"$f":"IF('Curriculum Vitae'!$B$22=\"En durée\",(SUMIF('Curriculum Vitae'!D:D,Q70,'Curriculum Vitae'!C:C)+SUMIF('Curriculum Vitae'!E:E,Q70,'Curriculum Vitae'!C:C)+SUMIF('Curriculum Vitae'!F:F,Q70,'Curriculum Vitae'!C:C)),SUM(R70:T70))","v":0},null,null,{"$f":"IF('Curriculum Vitae'!$B$22=\"En durée\",SUMIF('Curriculum Vitae'!B:B,W70,'Curriculum Vitae'!C:C),COUNTIF('Curriculum Vitae'!B:B,W70))","v":0}]
[null,null,null,null,null,"",null,null,null,null,null,null,null,null,null,null,null,{"$f":"IFERROR(IF(COUNTIF('Curriculum Vitae'!D:D,$Q71)=0,\"\",COUNTIF('Curriculum Vitae'!D:D,$Q71)),\"\")","v":""},{"$f":"IFERROR(IF(COUNTIF('Curriculum Vitae'!E:E,$Q71)=0,\"\",COUNTIF('Curriculum Vitae'!E:E,$Q71)),\"\")","v":""},{"$f":"IFERROR(IF(COUNTIF('Curriculum Vitae'!F:F,$Q71)=0,\"\",COUNTIF('Curriculum Vitae'!F:F,$Q71)),\"\")","v":""},{"$f":"IF('Curriculum Vitae'!$B$22=\"En durée\",(SUMIF('Curriculum Vitae'!D:D,Q71,'Curriculum Vitae'!C:C)+SUMIF('Curriculum Vitae'!E:E,Q71,'Curriculum Vitae'!C:C)+SUMIF('Curriculum Vitae'!F:F,Q71,'Curriculum Vitae'!C:C)),SUM(R71:T71))","v":0},null,null,{"$f":"IF('Curriculum Vitae'!$B$22=\"En durée\",SUMIF('Curriculum Vitae'!B:B,W71,'Curriculum Vitae'!C:C),COUNTIF('Curriculum Vitae'!B:B,W71))","v":0}]
[null,null,null,null,null,"",null,null,null,null,null,null,null,null,null,null,null,{"$f":"IFERROR(IF(COUNTIF('Curriculum Vitae'!D:D,$Q72)=0,\"\",COUNTIF('Curriculum Vitae'!D:D,$Q72)),\"\")","v":""},{"$f":"IFERROR(IF(COUNTIF('Curriculum Vitae'!E:E,$Q72)=0,\"\",COUNTIF('Curriculum Vitae'!E:E,$Q72)),\"\")","v":""},{"$f":"IFERROR(IF(COUNTIF('Curriculum Vitae'!F:F,$Q72)=0,\"\",COUNTIF('Curriculum Vitae'!F:F,$Q72)),\"\")","v":""},{"$f":"IF('Curriculum Vitae'!$B$22=\"En durée\",(SUMIF('Curriculum Vitae'!D:D,Q72,'Curriculum Vitae'!C:C)+SUMIF('Curriculum Vitae'!E:E,Q72,'Curriculum Vitae'!C:C)+SUMIF('Curriculum Vitae'!F:F,Q72,'Curriculum Vitae'!C:C)),SUM(R72:T72))","v":0},null,null,{"$f":"IF('Curriculum Vitae'!$B$22=\"En durée\",SUMIF('Curriculum Vitae'!B:B,W72,'Curriculum Vitae'!C:C),COUNTIF('Curriculum Vitae'!B:B,W72))","v":0}]
[null,null,null,null,null,"",null,null,null,null,null,null,null,null,null,null,null,{"$f":"IFERROR(IF(COUNTIF('Curriculum Vitae'!D:D,$Q73)=0,\"\",COUNTIF('Curriculum Vitae'!D:D,$Q73)),\"\")","v":""},{"$f":"IFERROR(IF(COUNTIF('Curriculum Vitae'!E:E,$Q73)=0,\"\",COUNTIF('Curriculum Vitae'!E:E,$Q73)),\"\")","v":""},{"$f":"IFERROR(IF(COUNTIF('Curriculum Vitae'!F:F,$Q73)=0,\"\",COUNTIF('Curriculum Vitae'!F:F,$Q73)),\"\")","v":""},{"$f":"IF('Curriculum Vitae'!$B$22=\"En durée\",(SUMIF('Curriculum Vitae'!D:D,Q73,'Curriculum Vitae'!C:C)+SUMIF('Curriculum Vitae'!E:E,Q73,'Curriculum Vitae'!C:C)+SUMIF('Curriculum Vitae'!F:F,Q73,'Curriculum Vitae'!C:C)),SUM(R73:T73))","v":0},null,null,{"$f":"IF('Curriculum Vitae'!$B$22=\"En durée\",SUMIF('Curriculum Vitae'!B:B,W73,'Curriculum Vitae'!C:C),COUNTIF('Curriculum Vitae'!B:B,W73))","v":0}]
[null,null,null,null,null,"",null,null,null,null,null,null,null,null,null,null,null,{"$f":"IFERROR(IF(COUNTIF('Curriculum Vitae'!D:D,$Q74)=0,\"\",COUNTIF('Curriculum Vitae'!D:D,$Q74)),\"\")","v":""},{"$f":"IFERROR(IF(COUNTIF('Curriculum Vitae'!E:E,$Q74)=0,\"\",COUNTIF('Curriculum Vitae'!E:E,$Q74)),\"\")","v":""},{"$f":"IFERROR(IF(COUNTIF('Curriculum Vitae'!F:F,$Q74)=0,\"\",COUNTIF('Curriculum Vitae'!F:F,$Q74)),\"\")","v":""},{"$f":"IF('Curriculum Vitae'!$B$22=\"En durée\",(SUMIF('Curriculum Vitae'!D:D,Q74,'Curriculum Vitae'!C:C)+SUMIF('Curriculum Vitae'!E:E,Q74,'Curriculum Vitae'!C:C)+SUMIF('Curriculum Vitae'!F:F,Q74,'Curriculum Vitae'!C:C)),SUM(R74:T74))","v":0},null,null,{"$f":"IF('Curriculum Vitae'!$B$22=\"En durée\",SUMIF('Curriculum Vitae'!B:B,W74,'Curriculum Vitae'!C:C),COUNTIF('Curriculum Vitae'!B:B,W74))","v":0}]
[null,null,null,null,null,"",null,null,null,null,null,null,null,null,null,null,null,{"$f":"IFERROR(IF(COUNTIF('Curriculum Vitae'!D:D,$Q75)=0,\"\",COUNTIF('Curriculum Vitae'!D:D,$Q75)),\"\")","v":""},{"$f":"IFERROR(IF(COUNTIF('Curriculum Vitae'!E:E,$Q75)=0,\"\",COUNTIF('Curriculum Vitae'!E:E,$Q75)),\"\")","v":""},{"$f":"IFERROR(IF(COUNTIF('Curriculum Vitae'!F:F,$Q75)=0,\"\",COUNTIF('Curriculum Vitae'!F:F,$Q75)),\"\")","v":""},{"$f":"IF('Curriculum Vitae'!$B$22=\"En durée\",(SUMIF('Curriculum Vitae'!D:D,Q75,'Curriculum Vitae'!C:C)+SUMIF('Curriculum Vitae'!E:E,Q75,'Curriculum Vitae'!C:C)+SUMIF('Curriculum Vitae'!F:F,Q75,'Curriculum Vitae'!C:C)),SUM(R75:T75))","v":0},null,null,{"$f":"IF('Curriculum Vitae'!$B$22=\"En durée\",SUMIF('Curriculum Vitae'!B:B,W75,'Curriculum Vitae'!C:C),COUNTIF('Curriculum Vitae'!B:B,W75))","v":0}]
[null,null,null,null,null,"",null,null,null,null,null,null,null,null,null,null,null,{"$f":"IFERROR(IF(COUNTIF('Curriculum Vitae'!D:D,$Q76)=0,\"\",COUNTIF('Curriculum Vitae'!D:D,$Q76)),\"\")","v":""},{"$f":"IFERROR(IF(COUNTIF('Curriculum Vitae'!E:E,$Q76)=0,\"\",COUNTIF('Curriculum Vitae'!E:E,$Q76)),\"\")","v":""},{"$f":"IFERROR(IF(COUNTIF('Curriculum Vitae'!F:F,$Q76)=0,\"\",COUNTIF('Curriculum Vitae'!F:F,$Q76)),\"\")","v":""},{"$f":"IF('Curriculum Vitae'!$B$22=\"En durée\",(SUMIF('Curriculum Vitae'!D:D,Q76,'Curriculum Vitae'!C:C)+SUMIF('Curriculum Vitae'!E:E,Q76,'Curriculum Vitae'!C:C)+SUMIF('Curriculum Vitae'!F:F,Q76,'Curriculum Vitae'!C:C)),SUM(R76:T76))","v":0},null,null,{"$f":"IF('Curriculum Vitae'!$B$22=\"En durée\",SUMIF('Curriculum Vitae'!B:B,W76,'Curriculum Vitae'!C:C),COUNTIF('Curriculum Vitae'!B:B,W76))","v":0}]
[null,null,null,null,null,"",null,null,null,null,null,null,null,null,null,null,null,{"$f":"IFERROR(IF(COUNTIF('Curriculum Vitae'!D:D,$Q77)=0,\"\",COUNTIF('Curriculum Vitae'!D:D,$Q77)),\"\")","v":""},{"$f":"IFERROR(IF(COUNTIF('Curriculum Vitae'!E:E,$Q77)=0,\"\",COUNTIF('Curriculum Vitae'!E:E,$Q77)),\"\")","v":""},{"$f":"IFERROR(IF(COUNTIF('Curriculum Vitae'!F:F,$Q77)=0,\"\",COUNTIF('Curriculum Vitae'!F:F,$Q77)),\"\")","v":""},{"$f":"IF('Curriculum Vitae'!$B$22=\"En durée\",(SUMIF('Curriculum Vitae'!D:D,Q77,'Curriculum Vitae'!C:C)+SUMIF('Curriculum Vitae'!E:E,Q77,'Curriculum Vitae'!C:C)+SUMIF('Curriculum Vitae'!F:F,Q77,'Curriculum Vitae'!C:C)),SUM(R77:T77))","v":0},null,null,{"$f":"IF('Curriculum Vitae'!$B$22=\"En durée\",SUMIF('Curriculum Vitae'!B:B,W77,'Curriculum Vitae'!C:C),COUNTIF('Curriculum Vitae'!B:B,W77))","v":0}]
[null,null,null,null,null,"",null,null,null,null,null,null,null,null,null,null,null,{"$f":"IFERROR(IF(COUNTIF('Curriculum Vitae'!D:D,$Q78)=0,\"\",COUNTIF('Curriculum Vitae'!D:D,$Q78)),\"\")","v":""},{"$f":"IFERROR(IF(COUNTIF('Curriculum Vitae'!E:E,$Q78)=0,\"\",COUNTIF('Curriculum Vitae'!E:E,$Q78)),\"\")","v":""},{"$f":"IFERROR(IF(COUNTIF('Curriculum Vitae'!F:F,$Q78)=0,\"\",COUNTIF('Curriculum Vitae'!F:F,$Q78)),\"\")","v":""},{"$f":"IF('Curriculum Vitae'!$B$22=\"En durée\",(SUMIF('Curriculum Vitae'!D:D,Q78,'Curriculum Vitae'!C:C)+SUMIF('Curriculum Vitae'!E:E,Q78,'Curriculum Vitae'!C:C)+SUMIF('Curriculum Vitae'!F:F,Q78,'Curriculum Vitae'!C:C)),SUM(R78:T78))","v":0},null,null,{"$f":"IF('Curriculum Vitae'!$B$22=\"En durée\",SUMIF('Curriculum Vitae'!B:B,W78,'Curriculum Vitae'!C:C),COUNTIF('Curriculum Vitae'!B:B,W78))","v":0}]
[null,null,null,null,null,"",null,null,null,null,null,null,null,null,null,null,null,{"$f":"IFERROR(IF(COUNTIF('Curriculum Vitae'!D:D,$Q79)=0,\"\",COUNTIF('Curriculum Vitae'!D:D,$Q79)),\"\")","v":""},{"$f":"IFERROR(IF(COUNTIF('Curriculum Vitae'!E:E,$Q79)=0,\"\",COUNTIF('Curriculum Vitae'!E:E,$Q79)),\"\")","v":""},{"$f":"IFERROR(IF(COUNTIF('Curriculum Vitae'!F:F,$Q79)=0,\"\",COUNTIF('Curriculum Vitae'!F:F,$Q79)),\"\")","v":""},{"$f":"IF('Curriculum Vitae'!$B$22=\"En durée\",(SUMIF('Curriculum Vitae'!D:D,Q79,'Curriculum Vitae'!C:C)+SUMIF('Curriculum Vitae'!E:E,Q79,'Curriculum Vitae'!C:C)+SUMIF('Curriculum Vitae'!F:F,Q79,'Curriculum Vitae'!C:C)),SUM(R79:T79))","v":0},null,null,{"$f":"IF('Curriculum Vitae'!$B$22=\"En durée\",SUMIF('Curriculum Vitae'!B:B,W79,'Curriculum Vitae'!C:C),COUNTIF('Curriculum Vitae'!B:B,W79))","v":0}]
[null,null,null,null,null,"",null,null,null,null,null,null,null,null,null,null,null,{"$f":"IFERROR(IF(COUNTIF('Curriculum Vitae'!D:D,$Q80)=0,\"\",COUNTIF('Curriculum Vitae'!D:D,$Q80)),\"\")","v":""},{"$f":"IFERROR(IF(COUNTIF('Curriculum Vitae'!E:E,$Q80)=0,\"\",COUNTIF('Curriculum Vitae'!E:E,$Q80)),\"\")","v":""},{"$f":"IFERROR(IF(COUNTIF('Curriculum Vitae'!F:F,$Q80)=0,\"\",COUNTIF('Curriculum Vitae'!F:F,$Q80)),\"\")","v":""},{"$f":"IF('Curriculum Vitae'!$B$22=\"En durée\",(SUMIF('Curriculum Vitae'!D:D,Q80,'Curriculum Vitae'!C:C)+SUMIF('Curriculum Vitae'!E:E,Q80,'Curriculum Vitae'!C:C)+SUMIF('Curriculum Vitae'!F:F,Q80,'Curriculum Vitae'!C:C)),SUM(R80:T80))","v":0},null,null,{"$f":"IF('Curriculum Vitae'!$B$22=\"En durée\",SUMIF('Curriculum Vitae'!B:B,W80,'Curriculum Vitae'!C:C),COUNTIF('Curriculum Vitae'!B:B,W80))","v":0}]
[null,null,null,null,null,"",null,null,null,null,null,null,null,null,null,null,null,{"$f":"IFERROR(IF(COUNTIF('Curriculum Vitae'!D:D,$Q81)=0,\"\",COUNTIF('Curriculum Vitae'!D:D,$Q81)),\"\")","v":""},{"$f":"IFERROR(IF(COUNTIF('Curriculum Vitae'!E:E,$Q81)=0,\"\",COUNTIF('Curriculum Vitae'!E:E,$Q81)),\"\")","v":""},{"$f":"IFERROR(IF(COUNTIF('Curriculum Vitae'!F:F,$Q81)=0,\"\",COUNTIF('Curriculum Vitae'!F:F,$Q81)),\"\")","v":""},{"$f":"IF('Curriculum Vitae'!$B$22=\"En durée\",(SUMIF('Curriculum Vitae'!D:D,Q81,'Curriculum Vitae'!C:C)+SUMIF('Curriculum Vitae'!E:E,Q81,'Curriculum Vitae'!C:C)+SUMIF('Curriculum Vitae'!F:F,Q81,'Curriculum Vitae'!C:C)),SUM(R81:T81))","v":0},null,null,{"$f":"IF('Curriculum Vitae'!$B$22=\"En durée\",SUMIF('Curriculum Vitae'!B:B,W81,'Curriculum Vitae'!C:C),COUNTIF('Curriculum Vitae'!B:B,W81))","v":0}]
[null,null,null,null,null,"",null,null,null,null,null,null,null,null,null,null,null,{"$f":"IFERROR(IF(COUNTIF('Curriculum Vitae'!D:D,$Q82)=0,\"\",COUNTIF('Curriculum Vitae'!D:D,$Q82)),\"\")","v":""},{"$f":"IFERROR(IF(COUNTIF('Curriculum Vitae'!E:E,$Q82)=0,\"\",COUNTIF('Curriculum Vitae'!E:E,$Q82)),\"\")","v":""},{"$f":"IFERROR(IF(COUNTIF('Curriculum Vitae'!F:F,$Q82)=0,\"\",COUNTIF('Curriculum Vitae'!F:F,$Q82)),\"\")","v":""},{"$f":"IF('Curriculum Vitae'!$B$22=\"En durée\",(SUMIF('Curriculum Vitae'!D:D,Q82,'Curriculum Vitae'!C:C)+SUMIF('Curriculum Vitae'!E:E,Q82,'Curriculum Vitae'!C:C)+SUMIF('Curriculum Vitae'!F:F,Q82,'Curriculum Vitae'!C:C)),SUM(R82:T82))","v":0},null,null,{"$f":"IF('Curriculum Vitae'!$B$22=\"En durée\",SUMIF('Curriculum Vitae'!B:B,W82,'Curriculum Vitae'!C:C),COUNTIF('Curriculum Vitae'!B:B,W82))","v":0}]
[null,null,null,null,null,"",null,null,null,null,null,null,null,null,null,null,null,{"$f":"IFERROR(IF(COUNTIF('Curriculum Vitae'!D:D,$Q83)=0,\"\",COUNTIF('Curriculum Vitae'!D:D,$Q83)),\"\")","v":""},{"$f":"IFERROR(IF(COUNTIF('Curriculum Vitae'!E:E,$Q83)=0,\"\",COUNTIF('Curriculum Vitae'!E:E,$Q83)),\"\")","v":""},{"$f":"IFERROR(IF(COUNTIF('Curriculum Vitae'!F:F,$Q83)=0,\"\",COUNTIF('Curriculum Vitae'!F:F,$Q83)),\"\")","v":""},{"$f":"IF('Curriculum Vitae'!$B$22=\"En durée\",(SUMIF('Curriculum Vitae'!D:D,Q83,'Curriculum Vitae'!C:C)+SUMIF('Curriculum Vitae'!E:E,Q83,'Curriculum Vitae'!C:C)+SUMIF('Curriculum Vitae'!F:F,Q83,'Curriculum Vitae'!C:C)),SUM(R83:T83))","v":0},null,null,{"$f":"IF('Curriculum Vitae'!$B$22=\"En durée\",SUMIF('Curriculum Vitae'!B:B,W83,'Curriculum Vitae'!C:C),COUNTIF('Curriculum Vitae'!B:B,W83))","v":0}]
[null,null,null,null,null,"",null,null,null,null,null,null,null,null,null,null,null,{"$f":"IFERROR(IF(COUNTIF('Curriculum Vitae'!D:D,$Q84)=0,\"\",COUNTIF('Curriculum Vitae'!D:D,$Q84)),\"\")","v":""},{"$f":"IFERROR(IF(COUNTIF('Curriculum Vitae'!E:E,$Q84)=0,\"\",COUNTIF('Curriculum Vitae'!E:E,$Q84)),\"\")","v":""},{"$f":"IFERROR(IF(COUNTIF('Curriculum Vitae'!F:F,$Q84)=0,\"\",COUNTIF('Curriculum Vitae'!F:F,$Q84)),\"\")","v":""},{"$f":"IF('Curriculum Vitae'!$B$22=\"En durée\",(SUMIF('Curriculum Vitae'!D:D,Q84,'Curriculum Vitae'!C:C)+SUMIF('Curriculum Vitae'!E:E,Q84,'Curriculum Vitae'!C:C)+SUMIF('Curriculum Vitae'!F:F,Q84,'Curriculum Vitae'!C:C)),SUM(R84:T84))","v":0},null,null,{"$f":"IF('Curriculum Vitae'!$B$22=\"En durée\",SUMIF('Curriculum Vitae'!B:B,W84,'Curriculum Vitae'!C:C),COUNTIF('Curriculum Vitae'!B:B,W84))","v":0}]
[null,null,null,null,null,"",null,null,null,null,null,null,null,null,null,null,null,{"$f":"IFERROR(IF(COUNTIF('Curriculum Vitae'!D:D,$Q85)=0,\"\",COUNTIF('Curriculum Vitae'!D:D,$Q85)),\"\")","v":""},{"$f":"IFERROR(IF(COUNTIF('Curriculum Vitae'!E:E,$Q85)=0,\"\",COUNTIF('Curriculum Vitae'!E:E,$Q85)),\"\")","v":""},{"$f":"IFERROR(IF(COUNTIF('Curriculum Vitae'!F:F,$Q85)=0,\"\",COUNTIF('Curriculum Vitae'!F:F,$Q85)),\"\")","v":""},{"$f":"IF('Curriculum Vitae'!$B$22=\"En durée\",(SUMIF('Curriculum Vitae'!D:D,Q85,'Curriculum Vitae'!C:C)+SUMIF('Curriculum Vitae'!E:E,Q85,'Curriculum Vitae'!C:C)+SUMIF('Curriculum Vitae'!F:F,Q85,'Curriculum Vitae'!C:C)),SUM(R85:T85))","v":0},null,null,{"$f":"IF('Curriculum Vitae'!$B$22=\"En durée\",SUMIF('Curriculum Vitae'!B:B,W85,'Curriculum Vitae'!C:C),COUNTIF('Curriculum Vitae'!B:B,W85))","v":0}]
[null,null,null,null,null,"",null,null,null,null,null,null,null,null,null,null,null,{"$f":"IFERROR(IF(COUNTIF('Curriculum Vitae'!D:D,$Q86)=0,\"\",COUNTIF('Curriculum Vitae'!D:D,$Q86)),\"\")","v":""},{"$f":"IFERROR(IF(COUNTIF('Curriculum Vitae'!E:E,$Q86)=0,\"\",COUNTIF('Curriculum Vitae'!E:E,$Q86)),\"\")","v":""},{"$f":"IFERROR(IF(COUNTIF('Curriculum Vitae'!F:F,$Q86)=0,\"\",COUNTIF('Curriculum Vitae'!F:F,$Q86)),\"\")","v":""},{"$f":"IF('Curriculum Vitae'!$B$22=\"En durée\",(SUMIF('Curriculum Vitae'!D:D,Q86,'Curriculum Vitae'!C:C)+SUMIF('Curriculum Vitae'!E:E,Q86,'Curriculum Vitae'!C:C)+SUMIF('Curriculum Vitae'!F:F,Q86,'Curriculum Vitae'!C:C)),SUM(R86:T86))","v":0},null,null,{"$f":"IF('Curriculum Vitae'!$B$22=\"En durée\",SUMIF('Curriculum Vitae'!B:B,W86,'Curriculum Vitae'!C:C),COUNTIF('Curriculum Vitae'!B:B,W86))","v":0}]
[null,null,null,null,null,"",null,null,null,null,null,null,null,null,null,null,null,{"$f":"IFERROR(IF(COUNTIF('Curriculum Vitae'!D:D,$Q87)=0,\"\",COUNTIF('Curriculum Vitae'!D:D,$Q87)),\"\")","v":""},{"$f":"IFERROR(IF(COUNTIF('Curriculum Vitae'!E:E,$Q87)=0,\"\",COUNTIF('Curriculum Vitae'!E:E,$Q87)),\"\")","v":""},{"$f":"IFERROR(IF(COUNTIF('Curriculum Vitae'!F:F,$Q87)=0,\"\",COUNTIF('Curriculum Vitae'!F:F,$Q87)),\"\")","v":""},{"$f":"IF('Curriculum Vitae'!$B$22=\"En durée\",(SUMIF('Curriculum Vitae'!D:D,Q87,'Curriculum Vitae'!C:C)+SUMIF('Curriculum Vitae'!E:E,Q87,'Curriculum Vitae'!C:C)+SUMIF('Curriculum Vitae'!F:F,Q87,'Curriculum Vitae'!C:C)),SUM(R87:T87))","v":0},null,null,{"$f":"IF('Curriculum Vitae'!$B$22=\"En durée\",SUMIF('Curriculum Vitae'!B:B,W87,'Curriculum Vitae'!C:C),COUNTIF('Curriculum Vitae'!B:B,W87))","v":0}]
[null,null,null,null,null,"",null,null,null,null,null,null,null,null,null,null,null,{"$f":"IFERROR(IF(COUNTIF('Curriculum Vitae'!D:D,$Q88)=0,\"\",COUNTIF('Curriculum Vitae'!D:D,$Q88)),\"\")","v":""},{"$f":"IFERROR(IF(COUNTIF('Curriculum Vitae'!E:E,$Q88)=0,\"\",COUNTIF('Curriculum Vitae'!E:E,$Q88)),\"\")","v":""},{"$f":"IFERROR(IF(COUNTIF('Curriculum Vitae'!F:F,$Q88)=0,\"\",COUNTIF('Curriculum Vitae'!F:F,$Q88)),\"\")","v":""},{"$f":"IF('Curriculum Vitae'!$B$22=\"En durée\",(SUMIF('Curriculum Vitae'!D:D,Q88,'Curriculum Vitae'!C:C)+SUMIF('Curriculum Vitae'!E:E,Q88,'Curriculum Vitae'!C:C)+SUMIF('Curriculum Vitae'!F:F,Q88,'Curriculum Vitae'!C:C)),SUM(R88:T88))","v":0},null,null,{"$f":"IF('Curriculum Vitae'!$B$22=\"En durée\",SUMIF('Curriculum Vitae'!B:B,W88,'Curriculum Vitae'!C:C),COUNTIF('Curriculum Vitae'!B:B,W88))","v":0}]
[null,null,null,null,null,"",null,null,null,null,null,null,null,null,null,null,null,{"$f":"IFERROR(IF(COUNTIF('Curriculum Vitae'!D:D,$Q89)=0,\"\",COUNTIF('Curriculum Vitae'!D:D,$Q89)),\"\")","v":""},{"$f":"IFERROR(IF(COUNTIF('Curriculum Vitae'!E:E,$Q89)=0,\"\",COUNTIF('Curriculum Vitae'!E:E,$Q89)),\"\")","v":""},{"$f":"IFERROR(IF(COUNTIF('Curriculum Vitae'!F:F,$Q89)=0,\"\",COUNTIF('Curriculum Vitae'!F:F,$Q89)),\"\")","v":""},{"$f":"IF('Curriculum Vitae'!$B$22=\"En durée\",(SUMIF('Curriculum Vitae'!D:D,Q89,'Curriculum Vitae'!C:C)+SUMIF('Curriculum Vitae'!E:E,Q89,'Curriculum Vitae'!C:C)+SUMIF('Curriculum Vitae'!F:F,Q89,'Curriculum Vitae'!C:C)),SUM(R89:T89))","v":0},null,null,{"$f":"IF('Curriculum Vitae'!$B$22=\"En durée\",SUMIF('Curriculum Vitae'!B:B,W89,'Curriculum Vitae'!C:C),COUNTIF('Curriculum Vitae'!B:B,W89))","v":0}]
[null,null,null,null,null,"",null,null,null,null,null,null,null,null,null,null,null,{"$f":"IFERROR(IF(COUNTIF('Curriculum Vitae'!D:D,$Q90)=0,\"\",COUNTIF('Curriculum Vitae'!D:D,$Q90)),\"\")","v":""},{"$f":"IFERROR(IF(COUNTIF('Curriculum Vitae'!E:E,$Q90)=0,\"\",COUNTIF('Curriculum Vitae'!E:E,$Q90)),\"\")","v":""},{"$f":"IFERROR(IF(COUNTIF('Curriculum Vitae'!F:F,$Q90)=0,\"\",COUNTIF('Curriculum Vitae'!F:F,$Q90)),\"\")","v":""},{"$f":"IF('Curriculum Vitae'!$B$22=\"En durée\",(SUMIF('Curriculum Vitae'!D:D,Q90,'Curriculum Vitae'!C:C)+SUMIF('Curriculum Vitae'!E:E,Q90,'Curriculum Vitae'!C:C)+SUMIF('Curriculum Vitae'!F:F,Q90,'Curriculum Vitae'!C:C)),SUM(R90:T90))","v":0},null,null,{"$f":"IF('Curriculum Vitae'!$B$22=\"En durée\",SUMIF('Curriculum Vitae'!B:B,W90,'Curriculum Vitae'!C:C),COUNTIF('Curriculum Vitae'!B:B,W90))","v":0}]
[null,null,null,null,null,"",null,null,null,null,null,null,null,null,null,null,null,{"$f":"IFERROR(IF(COUNTIF('Curriculum Vitae'!D:D,$Q91)=0,\"\",COUNTIF('Curriculum Vitae'!D:D,$Q91)),\"\")","v":""},{"$f":"IFERROR(IF(COUNTIF('Curriculum Vitae'!E:E,$Q91)=0,\"\",COUNTIF('Curriculum Vitae'!E:E,$Q91)),\"\")","v":""},{"$f":"IFERROR(IF(COUNTIF('Curriculum Vitae'!F:F,$Q91)=0,\"\",COUNTIF('Curriculum Vitae'!F:F,$Q91)),\"\")","v":""},{"$f":"IF('Curriculum Vitae'!$B$22=\"En durée\",(SUMIF('Curriculum Vitae'!D:D,Q91,'Curriculum Vitae'!C:C)+SUMIF('Curriculum Vitae'!E:E,Q91,'Curriculum Vitae'!C:C)+SUMIF('Curriculum Vitae'!F:F,Q91,'Curriculum Vitae'!C:C)),SUM(R91:T91))","v":0},null,null,{"$f":"IF('Curriculum Vitae'!$B$22=\"En durée\",SUMIF('Curriculum Vitae'!B:B,W91,'Curriculum Vitae'!C:C),COUNTIF('Curriculum Vitae'!B:B,W91))","v":0}]
[null,null,null,null,null,"",null,null,null,null,null,null,null,null,null,null,null,{"$f":"IFERROR(IF(COUNTIF('Curriculum Vitae'!D:D,$Q92)=0,\"\",COUNTIF('Curriculum Vitae'!D:D,$Q92)),\"\")","v":""},{"$f":"IFERROR(IF(COUNTIF('Curriculum Vitae'!E:E,$Q92)=0,\"\",COUNTIF('Curriculum Vitae'!E:E,$Q92)),\"\")","v":""},{"$f":"IFERROR(IF(COUNTIF('Curriculum Vitae'!F:F,$Q92)=0,\"\",COUNTIF('Curriculum Vitae'!F:F,$Q92)),\"\")","v":""},{"$f":"IF('Curriculum Vitae'!$B$22=\"En durée\",(SUMIF('Curriculum Vitae'!D:D,Q92,'Curriculum Vitae'!C:C)+SUMIF('Curriculum Vitae'!E:E,Q92,'Curriculum Vitae'!C:C)+SUMIF('Curriculum Vitae'!F:F,Q92,'Curriculum Vitae'!C:C)),SUM(R92:T92))","v":0},null,null,{"$f":"IF('Curriculum Vitae'!$B$22=\"En durée\",SUMIF('Curriculum Vitae'!B:B,W92,'Curriculum Vitae'!C:C),COUNTIF('Curriculum Vitae'!B:B,W92))","v":0}]
[null,null,null,null,null,"",null,null,null,null,null,null,null,null,null,null,null,{"$f":"IFERROR(IF(COUNTIF('Curriculum Vitae'!D:D,$Q93)=0,\"\",COUNTIF('Curriculum Vitae'!D:D,$Q93)),\"\")","v":""},{"$f":"IFERROR(IF(COUNTIF('Curriculum Vitae'!E:E,$Q93)=0,\"\",COUNTIF('Curriculum Vitae'!E:E,$Q93)),\"\")","v":""},{"$f":"IFERROR(IF(COUNTIF('Curriculum Vitae'!F:F,$Q93)=0,\"\",COUNTIF('Curriculum Vitae'!F:F,$Q93)),\"\")","v":""},{"$f":"IF('Curriculum Vitae'!$B$22=\"En durée\",(SUMIF('Curriculum Vitae'!D:D,Q93,'Curriculum Vitae'!C:C)+SUMIF('Curriculum Vitae'!E:E,Q93,'Curriculum Vitae'!C:C)+SUMIF('Curriculum Vitae'!F:F,Q93,'Curriculum Vitae'!C:C)),SUM(R93:T93))","v":0},null,null,{"$f":"IF('Curriculum Vitae'!$B$22=\"En durée\",SUMIF('Curriculum Vitae'!B:B,W93,'Curriculum Vitae'!C:C),COUNTIF('Curriculum Vitae'!B:B,W93))","v":0}]
[null,null,null,null,null,"",null,null,null,null,null,null,null,null,null,null,null,{"$f":"IFERROR(IF(COUNTIF('Curriculum Vitae'!D:D,$Q94)=0,\"\",COUNTIF('Curriculum Vitae'!D:D,$Q94)),\"\")","v":""},{"$f":"IFERROR(IF(COUNTIF('Curriculum Vitae'!E:E,$Q94)=0,\"\",COUNTIF('Curriculum Vitae'!E:E,$Q94)),\"\")","v":""},{"$f":"IFERROR(IF(COUNTIF('Curriculum Vitae'!F:F,$Q94)=0,\"\",COUNTIF('Curriculum Vitae'!F:F,$Q94)),\"\")","v":""},{"$f":"IF('Curriculum Vitae'!$B$22=\"En durée\",(SUMIF('Curriculum Vitae'!D:D,Q94,'Curriculum Vitae'!C:C)+SUMIF('Curriculum Vitae'!E:E,Q94,'Curriculum Vitae'!C:C)+SUMIF('Curriculum Vitae'!F:F,Q94,'Curriculum Vitae'!C:C)),SUM(R94:T94))","v":0},null,null,{"$f":"IF('Curriculum Vitae'!$B$22=\"En durée\",SUMIF('Curriculum Vitae'!B:B,W94,'Curriculum Vitae'!C:C),COUNTIF('Curriculum Vitae'!B:B,W94))","v":0}]
[null,null,null,null,null,"",null,null,null,null,null,null,null,null,null,null,null,{"$f":"IFERROR(IF(COUNTIF('Curriculum Vitae'!D:D,$Q95)=0,\"\",COUNTIF('Curriculum Vitae'!D:D,$Q95)),\"\")","v":""},{"$f":"IFERROR(IF(COUNTIF('Curriculum Vitae'!E:E,$Q95)=0,\"\",COUNTIF('Curriculum Vitae'!E:E,$Q95)),\"\")","v":""},{"$f":"IFERROR(IF(COUNTIF('Curriculum Vitae'!F:F,$Q95)=0,\"\",COUNTIF('Curriculum Vitae'!F:F,$Q95)),\"\")","v":""},{"$f":"IF('Curriculum Vitae'!$B$22=\"En durée\",(SUMIF('Curriculum Vitae'!D:D,Q95,'Curriculum Vitae'!C:C)+SUMIF('Curriculum Vitae'!E:E,Q95,'Curriculum Vitae'!C:C)+SUMIF('Curriculum Vitae'!F:F,Q95,'Curriculum Vitae'!C:C)),SUM(R95:T95))","v":0},null,null,{"$f":"IF('Curriculum Vitae'!$B$22=\"En durée\",SUMIF('Curriculum Vitae'!B:B,W95,'Curriculum Vitae'!C:C),COUNTIF('Curriculum Vitae'!B:B,W95))","v":0}]
[null,null,null,null,null,"",null,null,null,null,null,null,null,null,null,null,null,{"$f":"IFERROR(IF(COUNTIF('Curriculum Vitae'!D:D,$Q96)=0,\"\",COUNTIF('Curriculum Vitae'!D:D,$Q96)),\"\")","v":""},{"$f":"IFERROR(IF(COUNTIF('Curriculum Vitae'!E:E,$Q96)=0,\"\",COUNTIF('Curriculum Vitae'!E:E,$Q96)),\"\")","v":""},{"$f":"IFERROR(IF(COUNTIF('Curriculum Vitae'!F:F,$Q96)=0,\"\",COUNTIF('Curriculum Vitae'!F:F,$Q96)),\"\")","v":""},{"$f":"IF('Curriculum Vitae'!$B$22=\"En durée\",(SUMIF('Curriculum Vitae'!D:D,Q96,'Curriculum Vitae'!C:C)+SUMIF('Curriculum Vitae'!E:E,Q96,'Curriculum Vitae'!C:C)+SUMIF('Curriculum Vitae'!F:F,Q96,'Curriculum Vitae'!C:C)),SUM(R96:T96))","v":0},null,null,{"$f":"IF('Curriculum Vitae'!$B$22=\"En durée\",SUMIF('Curriculum Vitae'!B:B,W96,'Curriculum Vitae'!C:C),COUNTIF('Curriculum Vitae'!B:B,W96))","v":0}]
[null,null,null,null,null,"",null,null,null,null,null,null,null,null,null,null,null,{"$f":"IFERROR(IF(COUNTIF('Curriculum Vitae'!D:D,$Q97)=0,\"\",COUNTIF('Curriculum Vitae'!D:D,$Q97)),\"\")","v":""},{"$f":"IFERROR(IF(COUNTIF('Curriculum Vitae'!E:E,$Q97)=0,\"\",COUNTIF('Curriculum Vitae'!E:E,$Q97)),\"\")","v":""},{"$f":"IFERROR(IF(COUNTIF('Curriculum Vitae'!F:F,$Q97)=0,\"\",COUNTIF('Curriculum Vitae'!F:F,$Q97)),\"\")","v":""},{"$f":"IF('Curriculum Vitae'!$B$22=\"En durée\",(SUMIF('Curriculum Vitae'!D:D,Q97,'Curriculum Vitae'!C:C)+SUMIF('Curriculum Vitae'!E:E,Q97,'Curriculum Vitae'!C:C)+SUMIF('Curriculum Vitae'!F:F,Q97,'Curriculum Vitae'!C:C)),SUM(R97:T97))","v":0},null,null,{"$f":"IF('Curriculum Vitae'!$B$22=\"En durée\",SUMIF('Curriculum Vitae'!B:B,W97,'Curriculum Vitae'!C:C),COUNTIF('Curriculum Vitae'!B:B,W97))","v":0}]
[null,null,null,null,null,"",null,null,null,null,null,null,null,null,null,null,null,{"$f":"IFERROR(IF(COUNTIF('Curriculum Vitae'!D:D,$Q98)=0,\"\",COUNTIF('Curriculum Vitae'!D:D,$Q98)),\"\")","v":""},{"$f":"IFERROR(IF(COUNTIF('Curriculum Vitae'!E:E,$Q98)=0,\"\",COUNTIF('Curriculum Vitae'!E:E,$Q98)),\"\")","v":""},{"$f":"IFERROR(IF(COUNTIF('Curriculum Vitae'!F:F,$Q98)=0,\"\",COUNTIF('Curriculum Vitae'!F:F,$Q98)),\"\")","v":""},{"$f":"IF('Curriculum Vitae'!$B$22=\"En durée\",(SUMIF('Curriculum Vitae'!D:D,Q98,'Curriculum Vitae'!C:C)+SUMIF('Curriculum Vitae'!E:E,Q98,'Curriculum Vitae'!C:C)+SUMIF('Curriculum Vitae'!F:F,Q98,'Curriculum Vitae'!C:C)),SUM(R98:T98))","v":0},null,null,{"$f":"IF('Curriculum Vitae'!$B$22=\"En durée\",SUMIF('Curriculum Vitae'!B:B,W98,'Curriculum Vitae'!C:C),COUNTIF('Curriculum Vitae'!B:B,W98))","v":0}]
[null,null,null,null,null,"",null,null,null,null,null,null,null,null,null,null,null,{"$f":"IFERROR(IF(COUNTIF('Curriculum Vitae'!D:D,$Q99)=0,\"\",COUNTIF('Curriculum Vitae'!D:D,$Q99)),\"\")","v":""},{"$f":"IFERROR(IF(COUNTIF('Curriculum Vitae'!E:E,$Q99)=0,\"\",COUNTIF('Curriculum Vitae'!E:E,$Q99)),\"\")","v":""},{"$f":"IFERROR(IF(COUNTIF('Curriculum Vitae'!F:F,$Q99)=0,\"\",COUNTIF('Curriculum Vitae'!F:F,$Q99)),\"\")","v":""},{"$f":"IF('Curriculum Vitae'!$B$22=\"En durée\",(SUMIF('Curriculum Vitae'!D:D,Q99,'Curriculum Vitae'!C:C)+SUMIF('Curriculum Vitae'!E:E,Q99,'Curriculum Vitae'!C:C)+SUMIF('Curriculum Vitae'!F:F,Q99,'Curriculum Vitae'!C:C)),SUM(R99:T99))","v":0},null,null,{"$f":"IF('Curriculum Vitae'!$B$22=\"En durée\",SUMIF('Curriculum Vitae'!B:B,W99,'Curriculum Vitae'!C:C),COUNTIF('Curriculum Vitae'!B:B,W99))","v":0}]
[null,null,null,null,null,"",null,null,null,null,null,null,null,null,null,null,null,{"$f":"IFERROR(IF(COUNTIF('Curriculum Vitae'!D:D,$Q100)=0,\"\",COUNTIF('Curriculum Vitae'!D:D,$Q100)),\"\")","v":""},{"$f":"IFERROR(IF(COUNTIF('Curriculum Vitae'!E:E,$Q100)=0,\"\",COUNTIF('Curriculum Vitae'!E:E,$Q100)),\"\")","v":""},{"$f":"IFERROR(IF(COUNTIF('Curriculum Vitae'!F:F,$Q100)=0,\"\",COUNTIF('Curriculum Vitae'!F:F,$Q100)),\"\")","v":""},{"$f":"IF('Curriculum Vitae'!$B$22=\"En durée\",(SUMIF('Curriculum Vitae'!D:D,Q100,'Curriculum Vitae'!C:C)+SUMIF('Curriculum Vitae'!E:E,Q100,'Curriculum Vitae'!C:C)+SUMIF('Curriculum Vitae'!F:F,Q100,'Curriculum Vitae'!C:C)),SUM(R100:T100))","v":0},null,null,{"$f":"IF('Curriculum Vitae'!$B$22=\"En durée\",SUMIF('Curriculum Vitae'!B:B,W100,'Curriculum Vitae'!C:C),COUNTIF('Curriculum Vitae'!B:B,W100))","v":0}]
[null,null,null,null,null,"",null,null,null,null,null,null,null,null,null,null,null,{"$f":"IFERROR(IF(COUNTIF('Curriculum Vitae'!D:D,$Q101)=0,\"\",COUNTIF('Curriculum Vitae'!D:D,$Q101)),\"\")","v":""},{"$f":"IFERROR(IF(COUNTIF('Curriculum Vitae'!E:E,$Q101)=0,\"\",COUNTIF('Curriculum Vitae'!E:E,$Q101)),\"\")","v":""},{"$f":"IFERROR(IF(COUNTIF('Curriculum Vitae'!F:F,$Q101)=0,\"\",COUNTIF('Curriculum Vitae'!F:F,$Q101)),\"\")","v":""},{"$f":"IF('Curriculum Vitae'!$B$22=\"En durée\",(SUMIF('Curriculum Vitae'!D:D,Q101,'Curriculum Vitae'!C:C)+SUMIF('Curriculum Vitae'!E:E,Q101,'Curriculum Vitae'!C:C)+SUMIF('Curriculum Vitae'!F:F,Q101,'Curriculum Vitae'!C:C)),SUM(R101:T101))","v":0},null,null,{"$f":"IF('Curriculum Vitae'!$B$22=\"En durée\",SUMIF('Curriculum Vitae'!B:B,W101,'Curriculum Vitae'!C:C),COUNTIF('Curriculum Vitae'!B:B,W101))","v":0}]
[null,null,null,null,null,"",null,null,null,null,null,null,null,null,null,null,null,{"$f":"IFERROR(IF(COUNTIF('Curriculum Vitae'!D:D,$Q102)=0,\"\",COUNTIF('Curriculum Vitae'!D:D,$Q102)),\"\")","v":""},{"$f":"IFERROR(IF(COUNTIF('Curriculum Vitae'!E:E,$Q102)=0,\"\",COUNTIF('Curriculum Vitae'!E:E,$Q102)),\"\")","v":""},{"$f":"IFERROR(IF(COUNTIF('Curriculum Vitae'!F:F,$Q102)=0,\"\",COUNTIF('Curriculum Vitae'!F:F,$Q102)),\"\")","v":""},{"$f":"IF('Curriculum Vitae'!$B$22=\"En durée\",(SUMIF('Curriculum Vitae'!D:D,Q102,'Curriculum Vitae'!C:C)+SUMIF('Curriculum Vitae'!E:E,Q102,'Curriculum Vitae'!C:C)+SUMIF('Curriculum Vitae'!F:F,Q102,'Curriculum Vitae'!C:C)),SUM(R102:T102))","v":0},null,null,{"$f":"IF('Curriculum Vitae'!$B$22=\"En durée\",SUMIF('Curriculum Vitae'!B:B,W102,'Curriculum Vitae'!C:C),COUNTIF('Curriculum Vitae'!B:B,W102))","v":0}]
[null,null,null,null,null,"",null,null,null,null,null,null,null,null,null,null,null,{"$f":"IFERROR(IF(COUNTIF('Curriculum Vitae'!D:D,$Q103)=0,\"\",COUNTIF('Curriculum Vitae'!D:D,$Q103)),\"\")","v":""},{"$f":"IFERROR(IF(COUNTIF('Curriculum Vitae'!E:E,$Q103)=0,\"\",COUNTIF('Curriculum Vitae'!E:E,$Q103)),\"\")","v":""},{"$f":"IFERROR(IF(COUNTIF('Curriculum Vitae'!F:F,$Q103)=0,\"\",COUNTIF('Curriculum Vitae'!F:F,$Q103)),\"\")","v":""},{"$f":"IF('Curriculum Vitae'!$B$22=\"En durée\",(SUMIF('Curriculum Vitae'!D:D,Q103,'Curriculum Vitae'!C:C)+SUMIF('Curriculum Vitae'!E:E,Q103,'Curriculum Vitae'!C:C)+SUMIF('Curriculum Vitae'!F:F,Q103,'Curriculum Vitae'!C:C)),SUM(R103:T103))","v":0},null,null,{"$f":"IF('Curriculum Vitae'!$B$22=\"En durée\",SUMIF('Curriculum Vitae'!B:B,W103,'Curriculum Vitae'!C:C),COUNTIF('Curriculum Vitae'!B:B,W103))","v":0}]
[null,null,null,null,null,"",null,null,null,null,null,null,null,null,null,null,null,{"$f":"IFERROR(IF(COUNTIF('Curriculum Vitae'!D:D,$Q104)=0,\"\",COUNTIF('Curriculum Vitae'!D:D,$Q104)),\"\")","v":""},{"$f":"IFERROR(IF(COUNTIF('Curriculum Vitae'!E:E,$Q104)=0,\"\",COUNTIF('Curriculum Vitae'!E:E,$Q104)),\"\")","v":""},{"$f":"IFERROR(IF(COUNTIF('Curriculum Vitae'!F:F,$Q104)=0,\"\",COUNTIF('Curriculum Vitae'!F:F,$Q104)),\"\")","v":""},{"$f":"IF('Curriculum Vitae'!$B$22=\"En durée\",(SUMIF('Curriculum Vitae'!D:D,Q104,'Curriculum Vitae'!C:C)+SUMIF('Curriculum Vitae'!E:E,Q104,'Curriculum Vitae'!C:C)+SUMIF('Curriculum Vitae'!F:F,Q104,'Curriculum Vitae'!C:C)),SUM(R104:T104))","v":0},null,null,{"$f":"IF('Curriculum Vitae'!$B$22=\"En durée\",SUMIF('Curriculum Vitae'!B:B,W104,'Curriculum Vitae'!C:C),COUNTIF('Curriculum Vitae'!B:B,W104))","v":0}]
[null,null,null,null,null,"",null,null,null,null,null,null,null,null,null,null,null,{"$f":"IFERROR(IF(COUNTIF('Curriculum Vitae'!D:D,$Q105)=0,\"\",COUNTIF('Curriculum Vitae'!D:D,$Q105)),\"\")","v":""},{"$f":"IFERROR(IF(COUNTIF('Curriculum Vitae'!E:E,$Q105)=0,\"\",COUNTIF('Curriculum Vitae'!E:E,$Q105)),\"\")","v":""},{"$f":"IFERROR(IF(COUNTIF('Curriculum Vitae'!F:F,$Q105)=0,\"\",COUNTIF('Curriculum Vitae'!F:F,$Q105)),\"\")","v":""},{"$f":"IF('Curriculum Vitae'!$B$22=\"En durée\",(SUMIF('Curriculum Vitae'!D:D,Q105,'Curriculum Vitae'!C:C)+SUMIF('Curriculum Vitae'!E:E,Q105,'Curriculum Vitae'!C:C)+SUMIF('Curriculum Vitae'!F:F,Q105,'Curriculum Vitae'!C:C)),SUM(R105:T105))","v":0},null,null,{"$f":"IF('Curriculum Vitae'!$B$22=\"En durée\",SUMIF('Curriculum Vitae'!B:B,W105,'Curriculum Vitae'!C:C),COUNTIF('Curriculum Vitae'!B:B,W105))","v":0}]
[null,null,null,null,null,"",null,null,null,null,null,null,null,null,null,null,null,{"$f":"IFERROR(IF(COUNTIF('Curriculum Vitae'!D:D,$Q106)=0,\"\",COUNTIF('Curriculum Vitae'!D:D,$Q106)),\"\")","v":""},{"$f":"IFERROR(IF(COUNTIF('Curriculum Vitae'!E:E,$Q106)=0,\"\",COUNTIF('Curriculum Vitae'!E:E,$Q106)),\"\")","v":""},{"$f":"IFERROR(IF(COUNTIF('Curriculum Vitae'!F:F,$Q106)=0,\"\",COUNTIF('Curriculum Vitae'!F:F,$Q106)),\"\")","v":""},{"$f":"IF('Curriculum Vitae'!$B$22=\"En durée\",(SUMIF('Curriculum Vitae'!D:D,Q106,'Curriculum Vitae'!C:C)+SUMIF('Curriculum Vitae'!E:E,Q106,'Curriculum Vitae'!C:C)+SUMIF('Curriculum Vitae'!F:F,Q106,'Curriculum Vitae'!C:C)),SUM(R106:T106))","v":0},null,null,{"$f":"IF('Curriculum Vitae'!$B$22=\"En durée\",SUMIF('Curriculum Vitae'!B:B,W106,'Curriculum Vitae'!C:C),COUNTIF('Curriculum Vitae'!B:B,W106))","v":0}]
[null,null,null,null,null,"",null,null,null,null,null,null,null,null,null,null,null,{"$f":"IFERROR(IF(COUNTIF('Curriculum Vitae'!D:D,$Q107)=0,\"\",COUNTIF('Curriculum Vitae'!D:D,$Q107)),\"\")","v":""},{"$f":"IFERROR(IF(COUNTIF('Curriculum Vitae'!E:E,$Q107)=0,\"\",COUNTIF('Curriculum Vitae'!E:E,$Q107)),\"\")","v":""},{"$f":"IFERROR(IF(COUNTIF('Curriculum Vitae'!F:F,$Q107)=0,\"\",COUNTIF('Curriculum Vitae'!F:F,$Q107)),\"\")","v":""},{"$f":"IF('Curriculum Vitae'!$B$22=\"En durée\",(SUMIF('Curriculum Vitae'!D:D,Q107,'Curriculum Vitae'!C:C)+SUMIF('Curriculum Vitae'!E:E,Q107,'Curriculum Vitae'!C:C)+SUMIF('Curriculum Vitae'!F:F,Q107,'Curriculum Vitae'!C:C)),SUM(R107:T107))","v":0},null,null,{"$f":"IF('Curriculum Vitae'!$B$22=\"En durée\",SUMIF('Curriculum Vitae'!B:B,W107,'Curriculum Vitae'!C:C),COUNTIF('Curriculum Vitae'!B:B,W107))","v":0}]
[null,null,null,null,null,"",null,null,null,null,null,null,null,null,null,null,null,{"$f":"IFERROR(IF(COUNTIF('Curriculum Vitae'!D:D,$Q108)=0,\"\",COUNTIF('Curriculum Vitae'!D:D,$Q108)),\"\")","v":""},{"$f":"IFERROR(IF(COUNTIF('Curriculum Vitae'!E:E,$Q108)=0,\"\",COUNTIF('Curriculum Vitae'!E:E,$Q108)),\"\")","v":""},{"$f":"IFERROR(IF(COUNTIF('Curriculum Vitae'!F:F,$Q108)=0,\"\",COUNTIF('Curriculum Vitae'!F:F,$Q108)),\"\")","v":""},{"$f":"IF('Curriculum Vitae'!$B$22=\"En durée\",(SUMIF('Curriculum Vitae'!D:D,Q108,'Curriculum Vitae'!C:C)+SUMIF('Curriculum Vitae'!E:E,Q108,'Curriculum Vitae'!C:C)+SUMIF('Curriculum Vitae'!F:F,Q108,'Curriculum Vitae'!C:C)),SUM(R108:T108))","v":0},null,null,{"$f":"IF('Curriculum Vitae'!$B$22=\"En durée\",SUMIF('Curriculum Vitae'!B:B,W108,'Curriculum Vitae'!C:C),COUNTIF('Curriculum Vitae'!B:B,W108))","v":0}]
[null,null,null,null,null,"",null,null,null,null,null,null,null,null,null,null,null,{"$f":"IFERROR(IF(COUNTIF('Curriculum Vitae'!D:D,$Q109)=0,\"\",COUNTIF('Curriculum Vitae'!D:D,$Q109)),\"\")","v":""},{"$f":"IFERROR(IF(COUNTIF('Curriculum Vitae'!E:E,$Q109)=0,\"\",COUNTIF('Curriculum Vitae'!E:E,$Q109)),\"\")","v":""},{"$f":"IFERROR(IF(COUNTIF('Curriculum Vitae'!F:F,$Q109)=0,\"\",COUNTIF('Curriculum Vitae'!F:F,$Q109)),\"\")","v":""},{"$f":"IF('Curriculum Vitae'!$B$22=\"En durée\",(SUMIF('Curriculum Vitae'!D:D,Q109,'Curriculum Vitae'!C:C)+SUMIF('Curriculum Vitae'!E:E,Q109,'Curriculum Vitae'!C:C)+SUMIF('Curriculum Vitae'!F:F,Q109,'Curriculum Vitae'!C:C)),SUM(R109:T109))","v":0},null,null,{"$f":"IF('Curriculum Vitae'!$B$22=\"En durée\",SUMIF('Curriculum Vitae'!B:B,W109,'Curriculum Vitae'!C:C),COUNTIF('Curriculum Vitae'!B:B,W109))","v":0}]
[null,null,null,null,null,"",null,null,null,null,null,null,null,null,null,null,null,null,null,null,null,null,null,{"$f":"IF('Curriculum Vitae'!$B$22=\"En durée\",SUMIF('Curriculum Vitae'!B:B,W110,'Curriculum Vitae'!C:C),COUNTIF('Curriculum Vitae'!B:B,W110))","v":0}]
[null,null,null,null,null,"",null,null,null,null,null,null,null,null,null,null,null,null,null,null,null,null,null,{"$f":"IF('Curriculum Vitae'!$B$22=\"En durée\",SUMIF('Curriculum Vitae'!B:B,W111,'Curriculum Vitae'!C:C),COUNTIF('Curriculum Vitae'!B:B,W111))","v":0}]
[null,null,null,null,null,"",null,null,null,null,null,null,null,null,null,null,null,null,null,null,null,null,null,{"$f":"IF('Curriculum Vitae'!$B$22=\"En durée\",SUMIF('Curriculum Vitae'!B:B,W112,'Curriculum Vitae'!C:C),COUNTIF('Curriculum Vitae'!B:B,W112))","v":0}]
[null,null,null,null,null,"",null,null,null,null,null,null,null,null,null,null,null,null,null,null,null,null,null,{"$f":"IF('Curriculum Vitae'!$B$22=\"En durée\",SUMIF('Curriculum Vitae'!B:B,W113,'Curriculum Vitae'!C:C),COUNTIF('Curriculum Vitae'!B:B,W113))","v":0}]
[null,null,null,null,null,"",null,null,null,null,null,null,null,null,null,null,null,null,null,null,null,null,null,{"$f":"IF('Curriculum Vitae'!$B$22=\"En durée\",SUMIF('Curriculum Vitae'!B:B,W114,'Curriculum Vitae'!C:C),COUNTIF('Curriculum Vitae'!B:B,W114))","v":0}]
[null,null,null,null,null,"",null,null,null,null,null,null,null,null,null,null,null,null,null,null,null,null,null,{"$f":"IF('Curriculum Vitae'!$B$22=\"En durée\",SUMIF('Curriculum Vitae'!B:B,W115,'Curriculum Vitae'!C:C),COUNTIF('Curriculum Vitae'!B:B,W115))","v":0}]
[null,null,null,null,null,"",null,null,null,null,null,null,null,null,null,null,null,null,null,null,null,null,null,{"$f":"IF('Curriculum Vitae'!$B$22=\"En durée\",SUMIF('Curriculum Vitae'!B:B,W116,'Curriculum Vitae'!C:C),COUNTIF('Curriculum Vitae'!B:B,W116))","v":0}]
[null,null,null,null,null,"",null,null,null,null,null,null,null,null,null,null,null,null,null,null,null,null,null,{"$f":"IF('Curriculum Vitae'!$B$22=\"En durée\",SUMIF('Curriculum Vitae'!B:B,W117,'Curriculum Vitae'!C:C),COUNTIF('Curriculum Vitae'!B:B,W117))","v":0}]
[null,null,null,null,null,"",null,null,null,null,null,null,null,null,null,null,null,null,null,null,null,null,null,{"$f":"IF('Curriculum Vitae'!$B$22=\"En durée\",SUMIF('Curriculum Vitae'!B:B,W118,'Curriculum Vitae'!C:C),COUNTIF('Curriculum Vitae'!B:B,W118))","v":0}]
[null,null,null,null,null,"",null,null,null,null,null,null,null,null,null,null,null,null,null,null,null,null,null,{"$f":"IF('Curriculum Vitae'!$B$22=\"En durée\",SUMIF('Curriculum Vitae'!B:B,W119,'Curriculum Vitae'!C:C),COUNTIF('Curriculum Vitae'!B:B,W119))","v":0}]
[null,null,null,null,null,"",null,null,null,null,null,null,null,null,null,null,null,null,null,null,null,null,null,{"$f":"IF('Curriculum Vitae'!$B$22=\"En durée\",SUMIF('Curriculum Vitae'!B:B,W120,'Curriculum Vitae'!C:C),COUNTIF('Curriculum Vitae'!B:B,W120))","v":0}]
[null,null,null,null,null,"",null,null,null,null,null,null,null,null,null,null,null,null,null,null,null,null,null,{"$f":"IF('Curriculum Vitae'!$B$22=\"En durée\",SUMIF('Curriculum Vitae'!B:B,W121,'Curriculum Vitae'!C:C),COUNTIF('Curriculum Vitae'!B:B,W121))","v":0}]
[null,null,null,null,null,"",null,null,null,null,null,null,null,null,null,null,null,null,null,null,null,null,null,{"$f":"IF('Curriculum Vitae'!$B$22=\"En durée\",SUMIF('Curriculum Vitae'!B:B,W122,'Curriculum Vitae'!C:C),COUNTIF('Curriculum Vitae'!B:B,W122))","v":0}]
[null,null,null,null,null,"",null,null,null,null,null,null,null,null,null,null,null,null,null,null,null,null,null,{"$f":"IF('Curriculum Vitae'!$B$22=\"En durée\",SUMIF('Curriculum Vitae'!B:B,W123,'Curriculum Vitae'!C:C),COUNTIF('Curriculum Vitae'!B:B,W123))","v":0}]
[null,null,null,null,null,"",null,null,null,null,null,null,null,null,null,null,null,null,null,null,null,null,null,{"$f":"IF('Curriculum Vitae'!$B$22=\"En durée\",SUMIF('Curriculum Vitae'!B:B,W124,'Curriculum Vitae'!C:C),COUNTIF('Curriculum Vitae'!B:B,W124))","v":0}]
[null,null,null,null,null,"",null,null,null,null,null,null,null,null,null,null,null,null,null,null,null,null,null,{"$f":"IF('Curriculum Vitae'!$B$22=\"En durée\",SUMIF('Curriculum Vitae'!B:B,W125,'Curriculum Vitae'!C:C),COUNTIF('Curriculum Vitae'!B:B,W125))","v":0}]
[null,null,null,null,null,"",null,null,null,null,null,null,null,null,null,null,null,null,null,null,null,null,null,{"$f":"IF('Curriculum Vitae'!$B$22=\"En durée\",SUMIF('Curriculum Vitae'!B:B,W126,'Curriculum Vitae'!C:C),COUNTIF('Curriculum Vitae'!B:B,W126))","v":0}]
[null,null,null,null,null,"",null,null,null,null,null,null,null,null,null,null,null,null,null,null,null,null,null,{"$f":"IF('Curriculum Vitae'!$B$22=\"En durée\",SUMIF('Curriculum Vitae'!B:B,W127,'Curriculum Vitae'!C:C),COUNTIF('Curriculum Vitae'!B:B,W127))","v":0}]
[null,null,null,null,null,"",null,null,null,null,null,null,null,null,null,null,null,null,null,null,null,null,null,{"$f":"IF('Curriculum Vitae'!$B$22=\"En durée\",SUMIF('Curriculum Vitae'!B:B,W128,'Curriculum Vitae'!C:C),COUNTIF('Curriculum Vitae'!B:B,W128))","v":0}]
[null,null,null,null,null,"",null,null,null,null,null,null,null,null,null,null,null,null,null,null,null,null,null,{"$f":"IF('Curriculum Vitae'!$B$22=\"En durée\",SUMIF('Curriculum Vitae'!B:B,W129,'Curriculum Vitae'!C:C),COUNTIF('Curriculum Vitae'!B:B,W129))","v":0}]
[null,null,null,null,null,{"$f":"D130&E130","v":""},null,null,null,null,null,null,null,null,null,null,null,null,null,null,null,null,null,{"$f":"IF('Curriculum Vitae'!$B$22=\"En durée\",SUMIF('Curriculum Vitae'!B:B,W130,'Curriculum Vitae'!C:C),COUNTIF('Curriculum Vitae'!B:B,W130))","v":0}]
[null,null,null,null,null,"",null,null,null,null,null,null,null,null,null,null,null,null,null,null,null,null,null,{"$f":"IF('Curriculum Vitae'!$B$22=\"En durée\",SUMIF('Curriculum Vitae'!B:B,W131,'Curriculum Vitae'!C:C),COUNTIF('Curriculum Vitae'!B:B,W131))","v":0}]
[null,null,null,null,null,"",null,null,null,null,null,null,null,null,null,null,null,null,null,null,null,null,null,{"$f":"IF('Curriculum Vitae'!$B$22=\"En durée\",SUMIF('Curriculum Vitae'!B:B,W132,'Curriculum Vitae'!C:C),COUNTIF('Curriculum Vitae'!B:B,W132))","v":0}]
[null,null,null,null,null,"",null,null,null,null,null,null,null,null,null,null,null,null,null,null,null,null,null,{"$f":"IF('Curriculum Vitae'!$B$22=\"En durée\",SUMIF('Curriculum Vitae'!B:B,W133,'Curriculum Vitae'!C:C),COUNTIF('Curriculum Vitae'!B:B,W133))","v":0}]
[null,null,null,null,null,"",null,null,null,null,null,null,null,null,null,null,null,null,null,null,null,null,null,{"$f":"IF('Curriculum Vitae'!$B$22=\"En durée\",SUMIF('Curriculum Vitae'!B:B,W134,'Curriculum Vitae'!C:C),COUNTIF('Curriculum Vitae'!B:B,W134))","v":0}]
[null,null,null,null,null,"",null,null,null,null,null,null,null,null,null,null,null,null,null,null,null,null,null,{"$f":"IF('Curriculum Vitae'!$B$22=\"En durée\",SUMIF('Curriculum Vitae'!B:B,W135,'Curriculum Vitae'!C:C),COUNTIF('Curriculum Vitae'!B:B,W135))","v":0}]
[null,null,null,null,null,"",null,null,null,null,null,null,null,null,null,null,null,null,null,null,null,null,null,{"$f":"IF('Curriculum Vitae'!$B$22=\"En durée\",SUMIF('Curriculum Vitae'!B:B,W136,'Curriculum Vitae'!C:C),COUNTIF('Curriculum Vitae'!B:B,W136))","v":0}]
[null,null,null,null,null,"",null,null,null,null,null,null,null,null,null,null,null,null,null,null,null,null,null,{"$f":"IF('Curriculum Vitae'!$B$22=\"En durée\",SUMIF('Curriculum Vitae'!B:B,W137,'Curriculum Vitae'!C:C),COUNTIF('Curriculum Vitae'!B:B,W137))","v":0}]
[null,null,null,null,null,"",null,null,null,null,null,null,null,null,null,null,null,null,null,null,null,null,null,{"$f":"IF('Curriculum Vitae'!$B$22=\"En durée\",SUMIF('Curriculum Vitae'!B:B,W138,'Curriculum Vitae'!C:C),COUNTIF('Curriculum Vitae'!B:B,W138))","v":0}]
[null,null,null,null,null,"",null,null,null,null,null,null,null,null,null,null,null,null,null,null,null,null,null,{"$f":"IF('Curriculum Vitae'!$B$22=\"En durée\",SUMIF('Curriculum Vitae'!B:B,W139,'Curriculum Vitae'!C:C),COUNTIF('Curriculum Vitae'!B:B,W139))","v":0}]
[null,null,null,null,null,"",null,null,null,null,null,null,null,null,null,null,null,null,null,null,null,null,null,{"$f":"IF('Curriculum Vitae'!$B$22=\"En durée\",SUMIF('Curriculum Vitae'!B:B,W140,'Curriculum Vitae'!C:C),COUNTIF('Curriculum Vitae'!B:B,W140))","v":0}]
[null,null,null,null,null,"",null,null,null,null,null,null,null,null,null,null,null,null,null,null,null,null,null,{"$f":"IF('Curriculum Vitae'!$B$22=\"En durée\",SUMIF('Curriculum Vitae'!B:B,W141,'Curriculum Vitae'!C:C),COUNTIF('Curriculum Vitae'!B:B,W141))","v":0}]
[null,null,null,null,null,"",null,null,null,null,null,null,null,null,null,null,null,null,null,null,null,null,null,{"$f":"IF('Curriculum Vitae'!$B$22=\"En durée\",SUMIF('Curriculum Vitae'!B:B,W142,'Curriculum Vitae'!C:C),COUNTIF('Curriculum Vitae'!B:B,W142))","v":0}]
[null,null,null,null,null,"",null,null,null,null,null,null,null,null,null,null,null,null,null,null,null,null,null,{"$f":"IF('Curriculum Vitae'!$B$22=\"En durée\",SUMIF('Curriculum Vitae'!B:B,W143,'Curriculum Vitae'!C:C),COUNTIF('Curriculum Vitae'!B:B,W143))","v":0}]
[null,null,null,null,null,"",null,null,null,null,null,null,null,null,null,null,null,null,null,null,null,null,null,{"$f":"IF('Curriculum Vitae'!$B$22=\"En durée\",SUMIF('Curriculum Vitae'!B:B,W144,'Curriculum Vitae'!C:C),COUNTIF('Curriculum Vitae'!B:B,W144))","v":0}]
[null,null,null,null,null,"",null,null,null,null,null,null,null,null,null,null,null,null,null,null,null,null,null,{"$f":"IF('Curriculum Vitae'!$B$22=\"En durée\",SUMIF('Curriculum Vitae'!B:B,W145,'Curriculum Vitae'!C:C),COUNTIF('Curriculum Vitae'!B:B,W145))","v":0}]
[null,null,null,null,null,"",null,null,null,null,null,null,null,null,null,null,null,null,null,null,null,null,null,{"$f":"IF('Curriculum Vitae'!$B$22=\"En durée\",SUMIF('Curriculum Vitae'!B:B,W146,'Curriculum Vitae'!C:C),COUNTIF('Curriculum Vitae'!B:B,W146))","v":0}]
[null,null,null,null,null,""]
[null,null,null,null,null,""]
[null,null,null,null,null,""]
[null,null,null,null,null,""]
[null,null,null,null,null,""]
[null,null,null,null,null,""]
[null,null,null,null,null,""]
[null,null,null,null,null,""]
[null,null,null,null,null,""]
[null,null,null,null,null,""]
[null,null,null,null,null,""]
[null,null,null,null,null,""]
[null,null,null,null,null,""]
[null,null,null,null,null,""]
[null,null,null,null,null,""]
[null,null,null,null,null,""]
[null,null,null,null,null,""]
[null,null,null,null,null,""]
[null,null,null,null,null,""]
[null,null,null,null,null,""]
[null,null,null,null,null,""]
[null,null,null,null,null,""]
[null,null,null,null,null,""]
[null,null,null,null,null,""]
[null,null,null,null,null,""]
[null,null,null,null,null,""]
[null,null,null,null,null,""]
[null,null,null,null,null,""]
[null,null,null,null,null,""]
[null,null,null,null,null,""]
[null,null,null,null,null,""]
[null,null,null,null,null,""]
[null,null,null,null,null,""]
[null,null,null,null,null,""]
[null,null,null,null,null,""]
[null,null,null,null,null,""]
[null,null,null,null,null,""]
[null,null,null,null,null,""]
[null,null,null,null,null,""]
[null,null,null,null,null,""]
[null,null,null,null,null,""]
[null,null,null,null,null,""]
[null,null,null,null,null,""]
[null,null,null,null,null,""]
[null,null,null,null,null,""]
[null,null,null,null,null,""]
[null,null,null,null,null,""]
[null,null,null,null,null,{"$f":"D194&E194","v":""}]
[null,null,null,null,null,""]
[null,null,null,null,null,""]
[null,null,null,null,null,""]
[null,null,null,null,null,""]
[null,null,null,null,null,""]
[null,null,null,null,null,""]
[null,null,null,null,null,""]
[null,null,null,null,null,""]
[null,null,null,null,null,""]
[null,null,null,null,null,""]
[null,null,null,null,null,""]
[null,null,null,null,null,""]
[null,null,null,null,null,""]
[null,null,null,null,null,""]
[null,null,null,null,null,""]
[null,null,null,null,null,""]
[null,null,null,null,null,""]
[null,null,null,null,null,""]
[null,null,null,null,null,""]
[null,null,null,null,null,""]
[null,null,null,null,null,""]
[null,null,null,null,null,""]
[null,null,null,null,null,""]
[null,null,null,null,null,""]
[null,null,null,null,null,""]
[null,null,null,null,null,""]
[null,null,null,null,null,""]
[null,null,null,null,null,""]
[null,null,null,null,null,""]
[null,null,null,null,null,""]
[null,null,null,null,null,""]
[null,null,null,null,null,""]
[null,null,null,null,null,""]
[null,null,null,null,null,""]
[null,null,null,null,null,""]
[null,null,null,null,null,""]
[null,null,null,null,null,""]
[null,null,null,null,null,""]
[null,null,null,null,null,""]
[null,null,null,null,null,""]
[null,null,null,null,null,""]
[null,null,null,null,null,""]
[null,null,null,null,null,""]
[null,null,null,null,null,""]
[null,null,null,null,null,""]
[null,null,null,null,null,""]
[null,null,null,null,null,""]
[null,null,null,null,null,""]
[null,null,null,null,null,""]
[null,null,null,null,null,""]
[null,null,null,null,null,""]
[null,null,null,null,null,""]
[null,null,null,null,null,""]
[null,null,null,null,null,""]
[null,null,null,null,null,""]
[null,null,null,null,null,""]
[null,null,null,null,null,""]
[null,null,null,null,null,""]
[null,null,null,null,null,""]
[null,null,null,null,null,""]
[null,null,null,null,null,""]
[null,null,null,null,null,""]
[null,null,null,null,null,""]
[null,null,null,null,null,{"$f":"D258&E258","v":""}]
[null,null,null,null,null,""]
[null,null,null,null,null,""]
[null,null,null,null,null,""]
[null,null,null,null,null,""]
[null,null,null,null,null,""]
[null,null,null,null,null,""]
[null,null,null,null,null,""]
[null,null,null,null,null,""]
[null,null,null,null,null,""]
[null,null,null,null,null,""]
[null,null,null,null,null,""]
[null,null,null,null,null,""]
[null,null,null,null,null,""]
[null,null,null,null,null,""]
[null,null,null,null,null,""]
[null,null,null,null,null,""]
[null,null,null,null,null,""]
[null,null,null,null,null,""]
[null,null,null,null,null,""]
[null,null,null,null,null,""]
[null,null,null,null,null,""]
[null,null,null,null,null,""]
[null,null,null,null,null,""]
[null,null,null,null,null,""]
[null,null,null,null,null,""]
[null,null,null,null,null,""]
[null,null,null,null,null,""]
[null,null,null,null,null,""]
[null,null,null,null,null,""]
[null,null,null,null,null,""]
[null,null,null,null,null,""]
[null,null,null,null,null,""]
[null,null,null,null,null,""]
[null,null,null,null,null,""]
[null,null,null,null,null,""]
[null,null,null,null,null,""]
[null,null,null,null,null,""]
[null,null,null,null,null,""]
[null,null,null,null,null,""]
[null,null,null,null,null,""]
[null,null,null,null,null,""]
[null,null,null,null,null,""]
[null,null,null,null,null,""]
[null,null,null,null,null,""]
[null,null,null,null,null,""]
[null,null,null,null,null,""]
[null,null,null,null,null,""]
[null,null,null,null,null,""]
[null,null,null,null,null,""]
[null,null,null,null,null,""]
[null,null,null,null,null,""]
[null,null,null,null,null,""]
[null,null,null,null,null,""]
[null,null,null,null,null,""]
[null,null,null,null,null,""]
[null,null,null,null,null,""]
[null,null,null,null,null,""]
[null,null,null,null,null,""]
[null,null,null,null,null,""]
[null,null,null,null,null,""]
[null,null,null,null,null,""]
[null,null,null,null,null,""]
[null,null,null,null,null,""]
[null,null,null,null,null,{"$f":"D322&E322","v":""}]
[null,null,null,null,null,""]
[null,null,null,null,null,""]
[null,null,null,null,null,""]
[null,null,null,null,null,""]
[null,null,null,null,null,""]
[null,null,null,null,null,""]
[null,null,null,null,null,""]
[null,null,null,null,null,""]
[null,null,null,null,null,""]
[null,null,null,null,null,""]
[null,null,null,null,null,""]
[null,null,null,null,null,""]
[null,null,null,null,null,""]
[null,null,null,null,null,""]
[null,null,null,null,null,""]
[null,null,null,null,null,""]
[null,null,null,null,null,""]
[null,null,null,null,null,""]
[null,null,null,null,null,""]
[null,null,null,null,null,""]
[null,null,null,null,null,""]
[null,null,null,null,null,""]
[null,null,null,null,null,""]
[null,null,null,null,null,""]
[null,null,null,null,null,""]
[null,null,null,null,null,""]
[null,null,null,null,null,""]
[null,null,null,null,null,""]
[null,null,null,null,null,""]
[null,null,null,null,null,""]
[null,null,null,null,null,""]
[null,null,null,null,null,""]
[null,null,null,null,null,""]
[null,null,null,null,null,""]
[null,null,null,null,null,""]
[null,null,null,null,null,""]
[null,null,null,null,null,""]
[null,null,null,null,null,""]
[null,null,null,null,null,""]
[null,null,null,null,null,""]
[null,null,null,null,null,""]
[null,null,null,null,null,""]
[null,null,null,null,null,""]
[null,null,null,null,null,""]
[null,null,null,null,null,""]
[null,null,null,null,null,""]
[null,null,null,null,null,""]
[null,null,null,null,null,""]
[null,null,null,null,null,""]
[null,null,null,null,null,""]
[null,null,null,null,null,""]
[null,null,null,null,null,""]
[null,null,null,null,null,""]
[null,null,null,null,null,""]
[null,null,null,null,null,""]
[null,null,null,null,null,""]
[null,null,null,null,null,""]
[null,null,null,null,null,""]
[null,null,null,null,null,""]
[null,null,null,null,null,""]
[null,null,null,null,null,""]
[null,null,null,null,null,""]
[null,null,null,null,null,""]
[null,null,null,null,null,{"$f":"D386&E386","v":""}]
[null,null,null,null,null,""]
[null,null,null,null,null,""]
[null,null,null,null,null,""]
[null,null,null,null,null,""]
[null,null,null,null,null,""]
[null,null,null,null,null,""]
[null,null,null,null,null,""]
[null,null,null,null,null,""]
[null,null,null,null,null,""]
[null,null,null,null,null,""]
[null,null,null,null,null,""]
[null,null,null,null,null,""]
[null,null,null,null,null,""]
[null,null,null,null,null,""]
[null,null,null,null,null,""]
[null,null,null,null,null,""]
[null,null,null,null,null,""]
[null,null,null,null,null,""]
[null,null,null,null,null,""]
[null,null,null,null,null,""]
[null,null,null,null,null,""]
[null,null,null,null,null,""]
[null,null,null,null,null,""]
[null,null,null,null,null,""]
[null,null,null,null,null,""]
[null,null,null,null,null,""]
[null,null,null,null,null,""]
[null,null,null,null,null,""]
[null,null,null,null,null,""]
[null,null,null,null,null,""]
[null,null,null,null,null,""]
[null,null,null,null,null,""]
[null,null,null,null,null,""]
[null,null,null,null,null,""]
[null,null,null,null,null,""]
[null,null,null,null,null,""]
[null,null,null,null,null,""]
[null,null,null,null,null,""]
[null,null,null,null,null,""]
[null,null,null,null,null,""]
[null,null,null,null,null,""]
[null,null,null,null,null,""]
[null,null,null,null,null,""]
[null,null,null,null,null,""]
[null,null,null,null,null,""]
[null,null,null,null,null,""]
[null,null,null,null,null,""]
[null,null,null,null,null,""]
[null,null,null,null,null,""]
[null,null,null,null,null,""]
[null,null,null,null,null,""]
[null,null,null,null,null,""]
[null,null,null,null,null,""]
[null,null,null,null,null,""]
[null,null,null,null,null,""]
[null,null,null,null,null,""]
[null,null,null,null,null,""]
[null,null,null,null,null,""]
[null,null,null,null,null,""]
[null,null,null,null,null,""]
[null,null,null,null,null,""]
[null,null,null,null,null,""]
[null,null,null,null,null,""]
[null,null,null,null,null,{"$f":"D450&E450","v":""}]
[null,null,null,null,null,""]
[null,null,null,null,null,""]
[null,null,null,null,null,""]
[null,null,null,null,null,""]
[null,null,null,null,null,""]
[null,null,null,null,null,""]
[null,null,null,null,null,""]
[null,null,null,null,null,""]
[null,null,null,null,null,""]
[null,null,null,null,null,""]
[null,null,null,null,null,""]
[null,null,null,null,null,""]
[null,null,null,null,null,""]
[null,null,null,null,null,""]
[null,null,null,null,null,""]
[null,null,null,null,null,""]
[null,null,null,null,null,""]
[null,null,null,null,null,""]
[null,null,null,null,null,""]
[null,null,null,null,null,""]
[null,null,null,null,null,""]
[null,null,null,null,null,""]
[null,null,null,null,null,""]
[null,null,null,null,null,""]
[null,null,null,null,null,""]
[null,null,null,null,null,""]
[null,null,null,null,null,""]
[null,null,null,null,null,""]
[null,null,null,null,null,""]
[null,null,null,null,null,""]
[null,null,null,null,null,""]
[null,null,null,null,null,""]
[null,null,null,null,null,""]
[null,null,null,null,null,""]
[null,null,null,null,null,""]
[null,null,null,null,null,""]
[null,null,null,null,null,""]
[null,null,null,null,null,""]
[null,null,null,null,null,""]
[null,null,null,null,null,""]
[null,null,null,null,null,""]
[null,null,null,null,null,""]
[null,null,null,null,null,""]
[null,null,null,null,null,""]
[null,null,null,null,null,""]
[null,null,null,null,null,""]
[null,null,null,null,null,""]
[null,null,null,null,null,""]
[null,null,null,null,null,""]
[null,null,null,null,null,""]
[null,null,null,null,null,""]
[null,null,null,null,null,""]
[null,null,null,null,null,""]
[null,null,null,null,null,""]
[null,null,null,null,null,""]
[null,null,null,null,null,""]
[null,null,null,null,null,""]
[null,null,null,null,null,""]
[null,null,null,null,null,""]
[null,null,null,null,null,""]
[null,null,null,null,null,""]
[null,null,null,null,null,""]
[null,null,null,null,null,""]
[null,null,null,null,null,{"$f":"D514&E514","v":""}]
[null,null,null,null,null,""]
[null,null,null,null,null,""]
[null,null,null,null,null,""]
[null,null,null,null,null,""]
[null,null,null,null,null,""]
[null,null,null,null,null,""]
[null,null,null,null,null,""]
[null,null,null,null,null,""]
[null,null,null,null,null,""]
[null,null,null,null,null,""]
[null,null,null,null,null,""]
[null,null,null,null,null,""]
[null,null,null,null,null,""]
[null,null,null,null,null,""]
[null,null,null,null,null,""]
[null,null,null,null,null,""]
[null,null,null,null,null,""]
[null,null,null,null,null,""]
[null,null,null,null,null,""]
[null,null,null,null,null,""]
[null,null,null,null,null,""]
[null,null,null,null,null,""]
[null,null,null,null,null,""]
[null,null,null,null,null,""]
[null,null,null,null,null,""]
[null,null,null,null,null,""]
[null,null,null,null,null,""]
[null,null,null,null,null,""]
[null,null,null,null,null,""]
[null,null,null,null,null,""]
[null,null,null,null,null,""]
[null,null,null,null,null,""]
[null,null,null,null,null,""]
[null,null,null,null,null,""]
[null,null,null,null,null,""]
[null,null,null,null,null,""]
[null,null,null,null,null,""]
[null,null,null,null,null,""]
[null,null,null,null,null,""]
[null,null,null,null,null,""]
[null,null,null,null,null,""]
[null,null,null,null,null,""]
[null,null,null,null,null,""]
[null,null,null,null,null,""]
[null,null,null,null,null,""]
[null,null,null,null,null,""]
[null,null,null,null,null,""]
[null,null,null,null,null,""]
[null,null,null,null,null,""]
[null,null,null,null,null,""]
[null,null,null,null,null,""]
[null,null,null,null,null,""]
[null,null,null,null,null,""]
[null,null,null,null,null,""]
[null,null,null,null,null,""]
[null,null,null,null,null,""]
[null,null,null,null,null,""]
[null,null,null,null,null,""]
[null,null,null,null,null,""]
[null,null,null,null,null,""]
[null,null,null,null,null,""]
[null,null,null,null,null,""]
[null,null,null,null,null,""]
[null,null,null,null,null,{"$f":"D578&E578","v":""}]
[null,null,null,null,null,""]
[null,null,null,null,null,""]
[null,null,null,null,null,""]
[null,null,null,null,null,""]
[null,null,null,null,null,""]
[null,null,null,null,null,""]
[null,null,null,null,null,""]
[null,null,null,null,null,""]
[null,null,null,null,null,""]
[null,null,null,null,null,""]
[null,null,null,null,null,""]
[null,null,null,null,null,""]
[null,null,null,null,null,""]
[null,null,null,null,null,""]
[null,null,null,null,null,""]
[null,null,null,null,null,""]
[null,null,null,null,null,""]
[null,null,null,null,null,""]
[null,null,null,null,null,""]
[null,null,null,null,null,""]
[null,null,null,null,null,""]
[null,null,null,null,null,""]
[null,null,null,null,null,""]
[null,null,null,null,null,""]
[null,null,null,null,null,""]
[null,null,null,null,null,""]
[null,null,null,null,null,""]
[null,null,null,null,null,""]
[null,null,null,null,null,""]
[null,null,null,null,null,""]
[null,null,null,null,null,""]
[null,null,null,null,null,""]
[null,null,null,null,null,""]
[null,null,null,null,null,""]
[null,null,null,null,null,""]
[null,null,null,null,null,""]
[null,null,null,null,null,""]
[null,null,null,null,null,""]
[null,null,null,null,null,""]
[null,null,null,null,null,""]
[null,null,null,null,null,""]
[null,null,null,null,null,""]
[null,null,null,null,null,""]
[null,null,null,null,null,""]
[null,null,null,null,null,""]
[null,null,null,null,null,""]
[null,null,null,null,null,""]
[null,null,null,null,null,""]
[null,null,null,null,null,""]
[null,null,null,null,null,""]
[null,null,null,null,null,""]
[null,null,null,null,null,""]
[null,null,null,null,null,""]
[null,null,null,null,null,""]
[null,null,null,null,null,""]
[null,null,null,null,null,""]
[null,null,null,null,null,""]
[null,null,null,null,null,""]
[null,null,null,null,null,""]
[null,null,null,null,null,""]
[null,null,null,null,null,""]
[null,null,null,null,null,""]
[null,null,null,null,null,""]
[null,null,null,null,null,{"$f":"D642&E642","v":""}]
[null,null,null,null,null,""]
[null,null,null,null,null,""]
[null,null,null,null,null,""]
[null,null,null,null,null,""]
[null,null,null,null,null,""]
[null,null,null,null,null,""]
[null,null,null,null,null,""]
[null,null,null,null,null,""]
[null,null,null,null,null,""]
[null,null,null,null,null,""]
[null,null,null,null,null,""]
[null,null,null,null,null,""]
[null,null,null,null,null,""]
[null,null,null,null,null,""]
[null,null,null,null,null,""]
[null,null,null,null,null,""]
[null,null,null,null,null,""]
[null,null,null,null,null,""]
[null,null,null,null,null,""]
[null,null,null,null,null,""]
[null,null,null,null,null,""]
[null,null,null,null,null,""]
[null,null,null,null,null,""]
[null,null,null,null,null,""]
[null,null,null,null,null,""]
[null,null,null,null,null,""]
[null,null,null,null,null,""]
[null,null,null,null,null,""]
[null,null,null,null,null,""]
[null,null,null,null,null,""]
[null,null,null,null,null,""]
[null,null,null,null,null,""]
[null,null,null,null,null,""]
[null,null,null,null,null,""]
[null,null,null,null,null,""]
[null,null,null,null,null,""]
[null,null,null,null,null,""]
[null,null,null,null,null,""]
[null,null,null,null,null,""]
[null,null,null,null,null,""]
[null,null,null,null,null,""]
[null,null,null,null,null,""]
[null,null,null,null,null,""]
[null,null,null,null,null,""]
[null,null,null,null,null,""]
[null,null,null,null,null,""]
[null,null,null,null,null,""]
[null,null,null,null,null,""]
[null,null,null,null,null,""]
[null,null,null,null,null,""]
[null,null,null,null,null,""]
[null,null,null,null,null,""]
[null,null,null,null,null,""]
[null,null,null,null,null,""]
[null,null,null,null,null,""]
[null,null,null,null,null,""]
[null,null,null,null,null,""]
[null,null,null,null,null,""]
[null,null,null,null,null,""]
[null,null,null,null,null,""]
[null,null,null,null,null,""]
[null,null,null,null,null,""]
[null,null,null,null,null,""]
[null,null,null,null,null,{"$f":"D706&E706","v":""}]
[null,null,null,null,null,""]
[null,null,null,null,null,""]
[null,null,null,null,null,""]
[null,null,null,null,null,""]
[null,null,null,null,null,""]
[null,null,null,null,null,""]
[null,null,null,null,null,""]
[null,null,null,null,null,""]
[null,null,null,null,null,""]
[null,null,null,null,null,""]
[null,null,null,null,null,""]
[null,null,null,null,null,""]
[null,null,null,null,null,""]
[null,null,null,null,null,""]
[null,null,null,null,null,""]
[null,null,null,null,null,""]
[null,null,null,null,null,""]
[null,null,null,null,null,""]
[null,null,null,null,null,""]
[null,null,null,null,null,""]
[null,null,null,null,null,""]
[null,null,null,null,null,""]
[null,null,null,null,null,""]
[null,null,null,null,null,""]
[null,null,null,null,null,""]
[null,null,null,null,null,""]
[null,null,null,null,null,""]
[null,null,null,null,null,""]
[null,null,null,null,null,""]
[null,null,null,null,null,""]
[null,null,null,null,null,""]
[null,null,null,null,null,""]
[null,null,null,null,null,""]
[null,null,null,null,null,""]
[null,null,null,null,null,""]
[null,null,null,null,null,""]
[null,null,null,null,null,""]
[null,null,null,null,null,""]
[null,null,null,null,null,""]
[null,null,null,null,null,""]
[null,null,null,null,null,""]
[null,null,null,null,null,""]
[null,null,null,null,null,""]
[null,null,null,null,null,""]
[null,null,null,null,null,""]
[null,null,null,null,null,""]
[null,null,null,null,null,""]
[null,null,null,null,null,""]
[null,null,null,null,null,""]
[null,null,null,null,null,""]
[null,null,null,null,null,""]
[null,null,null,null,null,""]
[null,null,null,null,null,""]
[null,null,null,null,null,""]
[null,null,null,null,null,""]
[null,null,null,null,null,""]
[null,null,null,null,null,""]
[null,null,null,null,null,""]
[null,null,null,null,null,""]
[null,null,null,null,null,""]
[null,null,null,null,null,""]
[null,null,null,null,null,""]
[null,null,null,null,null,""]
[null,null,null,null,null,{"$f":"D770&E770","v":""}]
[null,null,null,null,null,""]
[null,null,null,null,null,""]
[null,null,null,null,null,""]
[null,null,null,null,null,""]
[null,null,null,null,null,""]
[null,null,null,null,null,""]
[null,null,null,null,null,""]
[null,null,null,null,null,""]
[null,null,null,null,null,""]
[null,null,null,null,null,""]
[null,null,null,null,null,""]
[null,null,null,null,null,""]
[null,null,null,null,null,""]
[null,null,null,null,null,""]
[null,null,null,null,null,""]
[null,null,null,null,null,""]
[null,null,null,null,null,""]
[null,null,null,null,null,""]
[null,null,null,null,null,""]
[null,null,null,null,null,""]
[null,null,null,null,null,""]
[null,null,null,null,null,""]
[null,null,null,null,null,""]
[null,null,null,null,null,""]
[null,null,null,null,null,""]
[null,null,null,null,null,""]
[null,null,null,null,null,""]
[null,null,null,null,null,""]
[null,null,null,null,null,""]
[null,null,null,null,null,""]
[null,null,null,null,null,""]
[null,null,null,null,null,""]
[null,null,null,null,null,""]
[null,null,null,null,null,""]
[null,null,null,null,null,""]
[null,null,null,null,null,""]
[null,null,null,null,null,""]
[null,null,null,null,null,""]
[null,null,null,null,null,""]
[null,null,null,null,null,""]
[null,null,null,null,null,""]
[null,null,null,null,null,""]
[null,null,null,null,null,""]
[null,null,null,null,null,""]
[null,null,null,null,null,""]
[null,null,null,null,null,""]
[null,null,null,null,null,""]
[null,null,null,null,null,""]
[null,null,null,null,null,""]
[null,null,null,null,null,""]
[null,null,null,null,null,""]
[null,null,null,null,null,""]
[null,null,null,null,null,""]
[null,null,null,null,null,""]
[null,null,null,null,null,""]
[null,null,null,null,null,""]
[null,null,null,null,null,""]
[null,null,null,null,null,""]
[null,null,null,null,null,""]
[null,null,null,null,null,""]
[null,null,null,null,null,""]
[null,null,null,null,null,""]
[null,null,null,null,null,""]
[null,null,null,null,null,{"$f":"D834&E834","v":""}]
[null,null,null,null,null,""]
[null,null,null,null,null,""]
[null,null,null,null,null,""]
[null,null,null,null,null,""]
[null,null,null,null,null,""]
[null,null,null,null,null,""]
[null,null,null,null,null,""]
[null,null,null,null,null,""]
[null,null,null,null,null,""]
[null,null,null,null,null,""]
[null,null,null,null,null,""]
[null,null,null,null,null,""]
[null,null,null,null,null,""]
[null,null,null,null,null,""]
[null,null,null,null,null,""]
[null,null,null,null,null,""]
[null,null,null,null,null,""]
[null,null,null,null,null,""]
[null,null,null,null,null,""]
[null,null,null,null,null,""]
[null,null,null,null,null,""]
[null,null,null,null,null,""]
[null,null,null,null,null,""]
[null,null,null,null,null,""]
[null,null,null,null,null,""]
[null,null,null,null,null,""]
[null,null,null,null,null,""]
[null,null,null,null,null,""]
[null,null,null,null,null,""]
[null,null,null,null,null,""]
[null,null,null,null,null,""]
[null,null,null,null,null,""]
[null,null,null,null,null,""]
[null,null,null,null,null,""]
[null,null,null,null,null,""]
[null,null,null,null,null,""]
[null,null,null,null,null,""]
[null,null,null,null,null,""]
[null,null,null,null,null,""]
[null,null,null,null,null,""]
[null,null,null,null,null,""]
[null,null,null,null,null,""]
[null,null,null,null,null,""]
[null,null,null,null,null,""]
[null,null,null,null,null,""]
[null,null,null,null,null,""]
[null,null,null,null,null,""]
[null,null,null,null,null,""]
[null,null,null,null,null,""]
[null,null,null,null,null,""]
[null,null,null,null,null,""]
[null,null,null,null,null,""]
[null,null,null,null,null,""]
[null,null,null,null,null,""]
[null,null,null,null,null,""]
[null,null,null,null,null,""]
[null,null,null,null,null,""]
[null,null,null,null,null,""]
[null,null,null,null,null,""]
[null,null,null,null,null,""]
[null,null,null,null,null,""]
[null,null,null,null,null,""]
[null,null,null,null,null,""]
[null,null,null,null,null,{"$f":"D898&E898","v":""}]
[null,null,null,null,null,""]
[null,null,null,null,null,""]
[null,null,null,null,null,""]
[null,null,null,null,null,""]
[null,null,null,null,null,""]
[null,null,null,null,null,""]
[null,null,null,null,null,""]
[null,null,null,null,null,""]
[null,null,null,null,null,""]
[null,null,null,null,null,""]
[null,null,null,null,null,""]
[null,null,null,null,null,""]
[null,null,null,null,null,""]
[null,null,null,null,null,""]
[null,null,null,null,null,""]
[null,null,null,null,null,""]
[null,null,null,null,null,""]
[null,null,null,null,null,""]
[null,null,null,null,null,""]
[null,null,null,null,null,""]
[null,null,null,null,null,""]
[null,null,null,null,null,""]
[null,null,null,null,null,""]
[null,null,null,null,null,""]
[null,null,null,null,null,""]
[null,null,null,null,null,""]
[null,null,null,null,null,""]
[null,null,null,null,null,""]
[null,null,null,null,null,""]
[null,null,null,null,null,""]
[null,null,null,null,null,""]
[null,null,null,null,null,""]
[null,null,null,null,null,""]
[null,null,null,null,null,""]
[null,null,null,null,null,""]
[null,null,null,null,null,""]
[null,null,null,null,null,""]
[null,null,null,null,null,""]
[null,null,null,null,null,""]
[null,null,null,null,null,""]
[null,null,null,null,null,""]
[null,null,null,null,null,""]
[null,null,null,null,null,""]
[null,null,null,null,null,""]
[null,null,null,null,null,""]
[null,null,null,null,null,""]
[null,null,null,null,null,""]
[null,null,null,null,null,""]
[null,null,null,null,null,""]
[null,null,null,null,null,""]
[null,null,null,null,null,""]
[null,null,null,null,null,""]
[null,null,null,null,null,""]
[null,null,null,null,null,""]
[null,null,null,null,null,""]
[null,null,null,null,null,""]
[null,null,null,null,null,""]
[null,null,null,null,null,""]
[null,null,null,null,null,""]
[null,null,null,null,null,""]
[null,null,null,null,null,""]
[null,null,null,null,null,""]
[null,null,null,null,null,""]
[null,null,null,null,null,{"$f":"D962&E962","v":""}]
[null,null,null,null,null,""]
[null,null,null,null,null,""]
[null,null,null,null,null,""]
[null,null,null,null,null,""]
[null,null,null,null,null,""]
[null,null,null,null,null,""]
[null,null,null,null,null,""]
[null,null,null,null,null,""]
[null,null,null,null,null,""]
[null,null,null,null,null,""]
[null,null,null,null,null,""]
[null,null,null,null,null,""]
[null,null,null,null,null,""]
[null,null,null,null,null,""]
[null,null,null,null,null,""]
[null,null,null,null,null,""]
[null,null,null,null,null,""]
[null,null,null,null,null,""]
[null,null,null,null,null,""]
[null,null,null,null,null,""]
[null,null,null,null,null,""]
[null,null,null,null,null,""]
[null,null,null,null,null,""]
[null,null,null,null,null,""]
[null,null,null,null,null,""]
[null,null,null,null,null,""]
[null,null,null,null,null,""]
[null,null,null,null,null,""]
[null,null,null,null,null,""]
[null,null,null,null,null,""]
[null,null,null,null,null,""]
[null,null,null,null,null,""]
[null,null,null,null,null,""]
[null,null,null,null,null,""]
[null,null,null,null,null,""]
[null,null,null,null,null,""]
[null,null,null,null,null,""]
[null,null,null,null,null,""]
[null,null,null,null,null,""]
[null,null,null,null,null,""]
[null,null,null,null,null,""]
[null,null,null,null,null,""]
[null,null,null,null,null,""]
[null,null,null,null,null,""]
[null,null,null,null,null,""]
[null,null,null,null,null,""]
[null,null,null,null,null,""]
[null,null,null,null,null,""]
[null,null,null,null,null,""]
[null,null,null,null,null,""]
[null,null,null,null,null,""]
[null,null,null,null,null,""]
[null,null,null,null,null,""]
[null,null,null,null,null,""]
[null,null,null,null,null,""]
[null,null,null,null,null,""]
[null,null,null,null,null,""]
[null,null,null,null,null,""]
[null,null,null,null,null,""]
[null,null,null,null,null,""]
[null,null,null,null,null,""]
[null,null,null,null,null,""]
[null,null,null,null,null,""]
[null,null,null,null,null,{"$f":"D1026&E1026","v":""}]
[null,null,null,null,null,""]
[null,null,null,null,null,""]
[null,null,null,null,null,""]
[null,null,null,null,null,""]
[null,null,null,null,null,""]
[null,null,null,null,null,""]
[null,null,null,null,null,""]
[null,null,null,null,null,""]
[null,null,null,null,null,""]
[null,null,null,null,null,""]
[null,null,null,null,null,""]
[null,null,null,null,null,""]
[null,null,null,null,null,""]
[null,null,null,null,null,""]
[null,null,null,null,null,""]
[null,null,null,null,null,""]
[null,null,null,null,null,""]
[null,null,null,null,null,""]
[null,null,null,null,null,""]
[null,null,null,null,null,""]
[null,null,null,null,null,""]
[null,null,null,null,null,""]
[null,null,null,null,null,""]
[null,null,null,null,null,""]
[null,null,null,null,null,""]
[null,null,null,null,null,""]
[null,null,null,null,null,""]
[null,null,null,null,null,""]
[null,null,null,null,null,""]
[null,null,null,null,null,""]
[null,null,null,null,null,""]
[null,null,null,null,null,""]
[null,null,null,null,null,""]
[null,null,null,null,null,""]
[null,null,null,null,null,""]
[null,null,null,null,null,""]
[null,null,null,null,null,""]
[null,null,null,null,null,""]
[null,null,null,null,null,""]
[null,null,null,null,null,""]
[null,null,null,null,null,""]
[null,null,null,null,null,""]
[null,null,null,null,null,""]
[null,null,null,null,null,""]
[null,null,null,null,null,""]
[null,null,null,null,null,""]
[null,null,null,null,null,""]
[null,null,null,null,null,""]
[null,null,null,null,null,""]
[null,null,null,null,null,""]
[null,null,null,null,null,""]
[null,null,null,null,null,""]
[null,null,null,null,null,""]
[null,null,null,null,null,""]
[null,null,null,null,null,""]
[null,null,null,null,null,""]
[null,null,null,null,null,""]
[null,null,null,null,null,""]
[null,null,null,null,null,""]
[null,null,null,null,null,""]
[null,null,null,null,null,""]
[null,null,null,null,null,""]
[null,null,null,null,null,""]
[null,null,null,null,null,{"$f":"D1090&E1090","v":""}]
[null,null,null,null,null,""]
[null,null,null,null,null,""]
[null,null,null,null,null,""]
[null,null,null,null,null,""]
[null,null,null,null,null,""]
[null,null,null,null,null,""]
[null,null,null,null,null,""]
[null,null,null,null,null,""]
[null,null,null,null,null,""]
[null,null,null,null,null,""]
[null,null,null,null,null,""]
[null,null,null,null,null,""]
[null,null,null,null,null,""]
[null,null,null,null,null,""]
[null,null,null,null,null,""]
[null,null,null,null,null,""]
[null,null,null,null,null,""]
[null,null,null,null,null,""]
[null,null,null,null,null,""]
[null,null,null,null,null,""]
[null,null,null,null,null,""]
[null,null,null,null,null,""]
[null,null,null,null,null,""]
[null,null,null,null,null,""]
[null,null,null,null,null,""]
[null,null,null,null,null,""]
[null,null,null,null,null,""]
[null,null,null,null,null,""]
[null,null,null,null,null,""]
[null,null,null,null,null,""]
[null,null,null,null,null,""]
[null,null,null,null,null,""]
[null,null,null,null,null,""]
[null,null,null,null,null,""]
[null,null,null,null,null,""]
[null,null,null,null,null,""]
[null,null,null,null,null,""]
[null,null,null,null,null,""]
[null,null,null,null,null,""]
[null,null,null,null,null,""]
[null,null,null,null,null,""]
[null,null,null,null,null,""]
[null,null,null,null,null,""]
[null,null,null,null,null,""]
[null,null,null,null,null,""]
[null,null,null,null,null,""]
[null,null,null,null,null,""]
[null,null,null,null,null,""]
[null,null,null,null,null,""]
[null,null,null,null,null,""]
[null,null,null,null,null,""]
[null,null,null,null,null,""]
[null,null,null,null,null,""]
[null,null,null,null,null,""]
[null,null,null,null,null,""]
[null,null,null,null,null,""]
[null,null,null,null,null,""]
[null,null,null,null,null,""]
[null,null,null,null,null,""]
[null,null,null,null,null,""]
[null,null,null,null,null,""]
[null,null,null,null,null,""]
[null,null,null,null,null,""]
[null,null,null,null,null,{"$f":"D1154&E1154","v":""}]
[null,null,null,null,null,""]
[null,null,null,null,null,""]
[null,null,null,null,null,""]
[null,null,null,null,null,""]
[null,null,null,null,null,""]
[null,null,null,null,null,""]
[null,null,null,null,null,""]
[null,null,null,null,null,""]
[null,null,null,null,null,""]
[null,null,null,null,null,""]
[null,null,null,null,null,""]
[null,null,null,null,null,""]
[null,null,null,null,null,""]
[null,null,null,null,null,""]
[null,null,null,null,null,""]
[null,null,null,null,null,""]
[null,null,null,null,null,""]
[null,null,null,null,null,""]
[null,null,null,null,null,""]
[null,null,null,null,null,""]
[null,null,null,null,null,""]
[null,null,null,null,null,""]
[null,null,null,null,null,""]
[null,null,null,null,null,""]
[null,null,null,null,null,""]
[null,null,null,null,null,""]
[null,null,null,null,null,""]
[null,null,null,null,null,""]
[null,null,null,null,null,""]
[null,null,null,null,null,""]
[null,null,null,null,null,""]
[null,null,null,null,null,""]
[null,null,null,null,null,""]
[null,null,null,null,null,""]
[null,null,null,null,null,""]
[null,null,null,null,null,""]
[null,null,null,null,null,""]
[null,null,null,null,null,""]
[null,null,null,null,null,""]
[null,null,null,null,null,""]
[null,null,null,null,null,""]
[null,null,null,null,null,""]
[null,null,null,null,null,""]
[null,null,null,null,null,""]
[null,null,null,null,null,""]
[null,null,null,null,null,""]
[null,null,null,null,null,""]
[null,null,null,null,null,""]
[null,null,null,null,null,""]
[null,null,null,null,null,""]
[null,null,null,null,null,""]
[null,null,null,null,null,""]
[null,null,null,null,null,""]
[null,null,null,null,null,""]
[null,null,null,null,null,""]
[null,null,null,null,null,""]
[null,null,null,null,null,""]
[null,null,null,null,null,""]
[null,null,null,null,null,""]
[null,null,null,null,null,""]
[null,null,null,null,null,""]
[null,null,null,null,null,""]
[null,null,null,null,null,""]
[null,null,null,null,null,{"$f":"D1218&E1218","v":""}]
[null,null,null,null,null,""]
[null,null,null,null,null,""]
[null,null,null,null,null,""]
[null,null,null,null,null,""]
[null,null,null,null,null,""]
[null,null,null,null,null,""]
[null,null,null,null,null,""]
[null,null,null,null,null,""]
[null,null,null,null,null,""]
[null,null,null,null,null,""]
[null,null,null,null,null,""]
[null,null,null,null,null,""]
[null,null,null,null,null,""]
[null,null,null,null,null,""]
[null,null,null,null,null,""]
[null,null,null,null,null,""]
[null,null,null,null,null,""]
[null,null,null,null,null,""]
[null,null,null,null,null,""]
[null,null,null,null,null,""]
[null,null,null,null,null,""]
[null,null,null,null,null,""]
[null,null,null,null,null,""]
[null,null,null,null,null,""]
[null,null,null,null,null,""]
[null,null,null,null,null,""]
[null,null,null,null,null,""]
[null,null,null,null,null,""]
[null,null,null,null,null,""]
[null,null,null,null,null,""]
[null,null,null,null,null,""]
[null,null,null,null,null,""]
[null,null,null,null,null,""]
[null,null,null,null,null,""]
[null,null,null,null,null,""]
[null,null,null,null,null,""]
[null,null,null,null,null,""]
[null,null,null,null,null,""]
[null,null,null,null,null,""]
[null,null,null,null,null,""]
[null,null,null,null,null,""]
[null,null,null,null,null,""]
[null,null,null,null,null,""]
[null,null,null,null,null,""]
[null,null,null,null,null,""]
[null,null,null,null,null,""]
[null,null,null,null,null,""]
[null,null,null,null,null,""]
[null,null,null,null,null,""]
[null,null,null,null,null,""]
[null,null,null,null,null,""]
[null,null,null,null,null,""]
[null,null,null,null,null,""]
[null,null,null,null,null,""]
[null,null,null,null,null,""]
[null,null,null,null,null,""]
[null,null,null,null,null,""]
[null,null,null,null,null,""]
[null,null,null,null,null,""]
[null,null,null,null,null,""]
[null,null,null,null,null,""]
[null,null,null,null,null,""]
[null,null,null,null,null,""]
[null,null,null,null,null,{"$f":"D1282&E1282","v":""}]
[null,null,null,null,null,""]
[null,null,null,null,null,""]
[null,null,null,null,null,""]
[null,null,null,null,null,""]
[null,null,null,null,null,""]
[null,null,null,null,null,""]
[null,null,null,null,null,""]
[null,null,null,null,null,""]
[null,null,null,null,null,""]
[null,null,null,null,null,""]
[null,null,null,null,null,""]
[null,null,null,null,null,""]
[null,null,null,null,null,""]
[null,null,null,null,null,""]
[null,null,null,null,null,""]
[null,null,null,null,null,""]
[null,null,null,null,null,""]
[null,null,null,null,null,""]
[null,null,null,null,null,""]
[null,null,null,null,null,""]
[null,null,null,null,null,""]
[null,null,null,null,null,""]
[null,null,null,null,null,""]
[null,null,null,null,null,""]
[null,null,null,null,null,""]
[null,null,null,null,null,""]
[null,null,null,null,null,""]
[null,null,null,null,null,""]
[null,null,null,null,null,""]
[null,null,null,null,null,""]
[null,null,null,null,null,""]
[null,null,null,null,null,""]
[null,null,null,null,null,""]
[null,null,null,null,null,""]
[null,null,null,null,null,""]
[null,null,null,null,null,""]
[null,null,null,null,null,""]
[null,null,null,null,null,""]
[null,null,null,null,null,""]
[null,null,null,null,null,""]
[null,null,null,null,null,""]
[null,null,null,null,null,""]
[null,null,null,null,null,""]
[null,null,null,null,null,""]
[null,null,null,null,null,""]
[null,null,null,null,null,""]
[null,null,null,null,null,""]
[null,null,null,null,null,""]
[null,null,null,null,null,""]
[null,null,null,null,null,""]
[null,null,null,null,null,""]
[null,null,null,null,null,""]
[null,null,null,null,null,""]
[null,null,null,null,null,""]
[null,null,null,null,null,""]
[null,null,null,null,null,""]
[null,null,null,null,null,""]
[null,null,null,null,null,""]
[null,null,null,null,null,""]
[null,null,null,null,null,""]
[null,null,null,null,null,""]
[null,null,null,null,null,""]
[null,null,null,null,null,""]
[null,null,null,null,null,{"$f":"D1346&E1346","v":""}]
[null,null,null,null,null,""]
[null,null,null,null,null,""]
[null,null,null,null,null,""]
[null,null,null,null,null,""]
[null,null,null,null,null,""]
[null,null,null,null,null,""]
[null,null,null,null,null,""]
[null,null,null,null,null,""]
[null,null,null,null,null,""]
[null,null,null,null,null,""]
[null,null,null,null,null,""]
[null,null,null,null,null,""]
[null,null,null,null,null,""]
[null,null,null,null,null,""]
[null,null,null,null,null,""]
[null,null,null,null,null,""]
[null,null,null,null,null,""]
[null,null,null,null,null,""]
[null,null,null,null,null,""]
[null,null,null,null,null,""]
[null,null,null,null,null,""]
[null,null,null,null,null,""]
[null,null,null,null,null,""]
[null,null,null,null,null,""]
[null,null,null,null,null,""]
[null,null,null,null,null,""]
[null,null,null,null,null,""]
[null,null,null,null,null,""]
[null,null,null,null,null,""]
[null,null,null,null,null,""]
[null,null,null,null,null,""]
[null,null,null,null,null,""]
[null,null,null,null,null,""]
[null,null,null,null,null,""]
[null,null,null,null,null,""]
[null,null,null,null,null,""]
[null,null,null,null,null,""]
[null,null,null,null,null,""]
[null,null,null,null,null,""]
[null,null,null,null,null,""]
[null,null,null,null,null,""]
[null,null,null,null,null,""]
[null,null,null,null,null,""]
[null,null,null,null,null,""]
[null,null,null,null,null,""]
[null,null,null,null,null,""]
[null,null,null,null,null,""]
[null,null,null,null,null,""]
[null,null,null,null,null,""]
[null,null,null,null,null,""]
[null,null,null,null,null,""]
[null,null,null,null,null,""]
[null,null,null,null,null,""]
[null,null,null,null,null,""]
[null,null,null,null,null,""]
[null,null,null,null,null,""]
[null,null,null,null,null,""]
[null,null,null,null,null,""]
[null,null,null,null,null,""]
[null,null,null,null,null,""]
[null,null,null,null,null,""]
[null,null,null,null,null,""]
[null,null,null,null,null,""]
[null,null,null,null,null,{"$f":"D1410&E1410","v":""}]
[null,null,null,null,null,""]
[null,null,null,null,null,""]
[null,null,null,null,null,""]
[null,null,null,null,null,""]
[null,null,null,null,null,""]
[null,null,null,null,null,""]
[null,null,null,null,null,""]
[null,null,null,null,null,""]
[null,null,null,null,null,""]
[null,null,null,null,null,""]
[null,null,null,null,null,""]
[null,null,null,null,null,""]
[null,null,null,null,null,""]
[null,null,null,null,null,""]
[null,null,null,null,null,""]
[null,null,null,null,null,""]
[null,null,null,null,null,""]
[null,null,null,null,null,""]
[null,null,null,null,null,""]
[null,null,null,null,null,""]
[null,null,null,null,null,""]
[null,null,null,null,null,""]
[null,null,null,null,null,""]
[null,null,null,null,null,""]
[null,null,null,null,null,""]
[null,null,null,null,null,""]
[null,null,null,null,null,""]
[null,null,null,null,null,""]
[null,null,null,null,null,""]
[null,null,null,null,null,""]
[null,null,null,null,null,""]
[null,null,null,null,null,""]
[null,null,null,null,null,""]
[null,null,null,null,null,""]
[null,null,null,null,null,""]
[null,null,null,null,null,""]
[null,null,null,null,null,""]
[null,null,null,null,null,""]
[null,null,null,null,null,""]
[null,null,null,null,null,""]
[null,null,null,null,null,""]
[null,null,null,null,null,""]
[null,null,null,null,null,""]
[null,null,null,null,null,""]
[null,null,null,null,null,""]
[null,null,null,null,null,""]
[null,null,null,null,null,""]
[null,null,null,null,null,""]
[null,null,null,null,null,""]
[null,null,null,null,null,""]
[null,null,null,null,null,""]
[null,null,null,null,null,""]
[null,null,null,null,null,""]
[null,null,null,null,null,""]
[null,null,null,null,null,""]
[null,null,null,null,null,""]
[null,null,null,null,null,""]
[null,null,null,null,null,""]
[null,null,null,null,null,""]
[null,null,null,null,null,""]
[null,null,null,null,null,""]
[null,null,null,null,null,""]
[null,null,null,null,null,""]
[null,null,null,null,null,{"$f":"D1474&E1474","v":""}]
[null,null,null,null,null,""]
[null,null,null,null,null,""]
[null,null,null,null,null,""]
[null,null,null,null,null,""]
[null,null,null,null,null,""]
[null,null,null,null,null,""]
[null,null,null,null,null,""]
[null,null,null,null,null,""]
[null,null,null,null,null,""]
[null,null,null,null,null,""]
[null,null,null,null,null,""]
[null,null,null,null,null,""]
[null,null,null,null,null,""]
[null,null,null,null,null,""]
[null,null,null,null,null,""]
[null,null,null,null,null,""]
[null,null,null,null,null,""]
[null,null,null,null,null,""]
[null,null,null,null,null,""]
[null,null,null,null,null,""]
[null,null,null,null,null,""]
[null,null,null,null,null,""]
[null,null,null,null,null,""]
[null,null,null,null,null,""]
[null,null,null,null,null,""]
[null,null,null,null,null,""]
[null,null,null,null,null,""]
[null,null,null,null,null,""]
[null,null,null,null,null,""]
[null,null,null,null,null,""]
[null,null,null,null,null,""]
[null,null,null,null,null,""]
[null,null,null,null,null,""]
[null,null,null,null,null,""]
[null,null,null,null,null,""]
[null,null,null,null,null,""]
[null,null,null,null,null,""]
[null,null,null,null,null,""]
[null,null,null,null,null,""]
[null,null,null,null,null,""]
[null,null,null,null,null,""]
[null,null,null,null,null,""]
[null,null,null,null,null,""]
[null,null,null,null,null,""]
[null,null,null,null,null,""]
[null,null,null,null,null,""]
[null,null,null,null,null,""]
[null,null,null,null,null,""]
[null,null,null,null,null,""]
[null,null,null,null,null,""]
[null,null,null,null,null,""]
[null,null,null,null,null,""]
[null,null,null,null,null,""]
[null,null,null,null,null,""]
[null,null,null,null,null,""]
[null,null,null,null,null,""]
[null,null,null,null,null,""]
[null,null,null,null,null,""]
[null,null,null,null,null,""]
[null,null,null,null,null,""]
[null,null,null,null,null,""]
[null,null,null,null,null,""]
[null,null,null,null,null,""]
[null,null,null,null,null,{"$f":"D1538&E1538","v":""}]
[null,null,null,null,null,""]
[null,null,null,null,null,""]
[null,null,null,null,null,""]
[null,null,null,null,null,""]
[null,null,null,null,null,""]
[null,null,null,null,null,""]
[null,null,null,null,null,""]
[null,null,null,null,null,""]
[null,null,null,null,null,""]
[null,null,null,null,null,""]
[null,null,null,null,null,""]
[null,null,null,null,null,""]
[null,null,null,null,null,""]
[null,null,null,null,null,""]
[null,null,null,null,null,""]
[null,null,null,null,null,""]
[null,null,null,null,null,""]
[null,null,null,null,null,""]
[null,null,null,null,null,""]
[null,null,null,null,null,""]
[null,null,null,null,null,""]
[null,null,null,null,null,""]
[null,null,null,null,null,""]
[null,null,null,null,null,""]
[null,null,null,null,null,""]
[null,null,null,null,null,""]
[null,null,null,null,null,""]
[null,null,null,null,null,""]
[null,null,null,null,null,""]
[null,null,null,null,null,""]
[null,null,null,null,null,""]
[null,null,null,null,null,""]
[null,null,null,null,null,""]
[null,null,null,null,null,""]
[null,null,null,null,null,""]
[null,null,null,null,null,""]
[null,null,null,null,null,""]
[null,null,null,null,null,""]
[null,null,null,null,null,""]
[null,null,null,null,null,""]
[null,null,null,null,null,""]
[null,null,null,null,null,""]
[null,null,null,null,null,""]
[null,null,null,null,null,""]
[null,null,null,null,null,""]
[null,null,null,null,null,""]
[null,null,null,null,null,""]
[null,null,null,null,null,""]
[null,null,null,null,null,""]
[null,null,null,null,null,""]
[null,null,null,null,null,""]
[null,null,null,null,null,""]
[null,null,null,null,null,""]
[null,null,null,null,null,""]
[null,null,null,null,null,""]
[null,null,null,null,null,""]
[null,null,null,null,null,""]
[null,null,null,null,null,""]
[null,null,null,null,null,""]
[null,null,null,null,null,""]
[null,null,null,null,null,""]
[null,null,null,null,null,""]
[null,null,null,null,null,""]
[null,null,null,null,null,{"$f":"D1602&E1602","v":""}]
[null,null,null,null,null,""]
[null,null,null,null,null,""]
[null,null,null,null,null,""]
[null,null,null,null,null,""]
[null,null,null,null,null,""]
[null,null,null,null,null,""]
[null,null,null,null,null,""]
[null,null,null,null,null,""]
[null,null,null,null,null,""]
[null,null,null,null,null,""]
[null,null,null,null,null,""]
[null,null,null,null,null,""]
[null,null,null,null,null,""]
[null,null,null,null,null,""]
[null,null,null,null,null,""]
[null,null,null,null,null,""]
[null,null,null,null,null,""]
[null,null,null,null,null,""]
[null,null,null,null,null,""]
[null,null,null,null,null,""]
[null,null,null,null,null,""]
[null,null,null,null,null,""]
[null,null,null,null,null,""]
[null,null,null,null,null,""]
[null,null,null,null,null,""]
[null,null,null,null,null,""]
[null,null,null,null,null,""]
[null,null,null,null,null,""]
[null,null,null,null,null,""]
[null,null,null,null,null,""]
[null,null,null,null,null,""]
[null,null,null,null,null,""]
[null,null,null,null,null,""]
[null,null,null,null,null,""]
[null,null,null,null,null,""]
[null,null,null,null,null,""]
[null,null,null,null,null,""]
[null,null,null,null,null,""]
[null,null,null,null,null,""]
[null,null,null,null,null,""]
[null,null,null,null,null,""]
[null,null,null,null,null,""]
[null,null,null,null,null,""]
[null,null,null,null,null,""]
[null,null,null,null,null,""]
[null,null,null,null,null,""]
[null,null,null,null,null,""]
[null,null,null,null,null,""]
[null,null,null,null,null,""]
[null,null,null,null,null,""]
[null,null,null,null,null,""]
[null,null,null,null,null,""]
[null,null,null,null,null,""]
[null,null,null,null,null,""]
[null,null,null,null,null,""]
[null,null,null,null,null,""]
[null,null,null,null,null,""]
[null,null,null,null,null,""]
[null,null,null,null,null,""]
[null,null,null,null,null,""]
[null,null,null,null,null,""]
[null,null,null,null,null,""]
[null,null,null,null,null,""]
[null,null,null,null,null,{"$f":"D1666&E1666","v":""}]
[null,null,null,null,null,""]
[null,null,null,null,null,""]
[null,null,null,null,null,""]
[null,null,null,null,null,""]
[null,null,null,null,null,""]
[null,null,null,null,null,""]
[null,null,null,null,null,""]
[null,null,null,null,null,""]
[null,null,null,null,null,""]
[null,null,null,null,null,""]
[null,null,null,null,null,""]
[null,null,null,null,null,""]
[null,null,null,null,null,""]
[null,null,null,null,null,""]
[null,null,null,null,null,""]
[null,null,null,null,null,""]
[null,null,null,null,null,""]
[null,null,null,null,null,""]
[null,null,null,null,null,""]
[null,null,null,null,null,""]
[null,null,null,null,null,""]
[null,null,null,null,null,""]
[null,null,null,null,null,""]
[null,null,null,null,null,""]
[null,null,null,null,null,""]
[null,null,null,null,null,""]
[null,null,null,null,null,""]
[null,null,null,null,null,""]
[null,null,null,null,null,""]
[null,null,null,null,null,""]
[null,null,null,null,null,""]
[null,null,null,null,null,""]
[null,null,null,null,null,""]
[null,null,null,null,null,""]
[null,null,null,null,null,""]
[null,null,null,null,null,""]
[null,null,null,null,null,""]
[null,null,null,null,null,""]
[null,null,null,null,null,""]
[null,null,null,null,null,""]
[null,null,null,null,null,""]
[null,null,null,null,null,""]
[null,null,null,null,null,""]
[null,null,null,null,null,""]
[null,null,null,null,null,""]
[null,null,null,null,null,""]
[null,null,null,null,null,""]
[null,null,null,null,null,""]
[null,null,null,null,null,""]
[null,null,null,null,null,""]
[null,null,null,null,null,""]
[null,null,null,null,null,""]
[null,null,null,null,null,""]
[null,null,null,null,null,""]
[null,null,null,null,null,""]
[null,null,null,null,null,""]
[null,null,null,null,null,""]
[null,null,null,null,null,""]
[null,null,null,null,null,""]
[null,null,null,null,null,""]
[null,null,null,null,null,""]
[null,null,null,null,null,""]
[null,null,null,null,null,""]
[null,null,null,null,null,{"$f":"D1730&E1730","v":""}]
[null,null,null,null,null,""]
[null,null,null,null,null,""]
[null,null,null,null,null,""]
[null,null,null,null,null,""]
[null,null,null,null,null,""]
[null,null,null,null,null,""]
[null,null,null,null,null,""]
[null,null,null,null,null,""]
[null,null,null,null,null,""]
[null,null,null,null,null,""]
[null,null,null,null,null,""]
[null,null,null,null,null,""]
[null,null,null,null,null,""]
[null,null,null,null,null,""]
[null,null,null,null,null,""]
[null,null,null,null,null,""]
[null,null,null,null,null,""]
[null,null,null,null,null,""]
[null,null,null,null,null,""]
[null,null,null,null,null,""]
[null,null,null,null,null,""]
[null,null,null,null,null,""]
[null,null,null,null,null,""]
[null,null,null,null,null,""]
[null,null,null,null,null,""]
[null,null,null,null,null,""]
[null,null,null,null,null,""]
[null,null,null,null,null,""]
[null,null,null,null,null,""]
[null,null,null,null,null,""]
[null,null,null,null,null,""]
[null,null,null,null,null,""]
[null,null,null,null,null,""]
[null,null,null,null,null,""]
[null,null,null,null,null,""]
[null,null,null,null,null,""]
[null,null,null,null,null,""]
[null,null,null,null,null,""]
[null,null,null,null,null,""]
[null,null,null,null,null,""]
[null,null,null,null,null,""]
[null,null,null,null,null,""]
[null,null,null,null,null,""]
[null,null,null,null,null,""]
[null,null,null,null,null,""]
[null,null,null,null,null,""]
[null,null,null,null,null,""]
[null,null,null,null,null,""]
[null,null,null,null,null,""]
[null,null,null,null,null,""]
[null,null,null,null,null,""]
[null,null,null,null,null,""]
[null,null,null,null,null,""]
[null,null,null,null,null,""]
[null,null,null,null,null,""]
[null,null,null,null,null,""]
[null,null,null,null,null,""]
[null,null,null,null,null,""]
[null,null,null,null,null,""]
[null,null,null,null,null,""]
[null,null,null,null,null,""]
[null,null,null,null,null,""]
[null,null,null,null,null,""]
[null,null,null,null,null,{"$f":"D1794&E1794","v":""}]
[null,null,null,null,null,""]
[null,null,null,null,null,""]
[null,null,null,null,null,""]
[null,null,null,null,null,""]
[null,null,null,null,null,""]
[null,null,null,null,null,""]
[null,null,null,null,null,""]
[null,null,null,null,null,""]
[null,null,null,null,null,""]
[null,null,null,null,null,""]
[null,null,null,null,null,""]
[null,null,null,null,null,""]
[null,null,null,null,null,""]
[null,null,null,null,null,""]
[null,null,null,null,null,""]
[null,null,null,null,null,""]
[null,null,null,null,null,""]
[null,null,null,null,null,""]
[null,null,null,null,null,""]
[null,null,null,null,null,""]
[null,null,null,null,null,""]
[null,null,null,null,null,""]
[null,null,null,null,null,""]
[null,null,null,null,null,""]
[null,null,null,null,null,""]
[null,null,null,null,null,""]
[null,null,null,null,null,""]
[null,null,null,null,null,""]
[null,null,null,null,null,""]
[null,null,null,null,null,""]
[null,null,null,null,null,""]
[null,null,null,null,null,""]
[null,null,null,null,null,""]
[null,null,null,null,null,""]
[null,null,null,null,null,""]
[null,null,null,null,null,""]
[null,null,null,null,null,""]
[null,null,null,null,null,""]
[null,null,null,null,null,""]
[null,null,null,null,null,""]
[null,null,null,null,null,""]
[null,null,null,null,null,""]
[null,null,null,null,null,""]
[null,null,null,null,null,""]
[null,null,null,null,null,""]
[null,null,null,null,null,""]
[null,null,null,null,null,""]
[null,null,null,null,null,""]
[null,null,null,null,null,""]
[null,null,null,null,null,""]
[null,null,null,null,null,""]
[null,null,null,null,null,""]
[null,null,null,null,null,""]
[null,null,null,null,null,""]
[null,null,null,null,null,""]
[null,null,null,null,null,""]
[null,null,null,null,null,""]
[null,null,null,null,null,""]
[null,null,null,null,null,""]
[null,null,null,null,null,""]
[null,null,null,null,null,""]
[null,null,null,null,null,""]
[null,null,null,null,null,""]
[null,null,null,null,null,{"$f":"D1858&E1858","v":""}]
[null,null,null,null,null,""]
[null,null,null,null,null,""]
[null,null,null,null,null,""]
[null,null,null,null,null,""]
[null,null,null,null,null,""]
[null,null,null,null,null,""]
[null,null,null,null,null,""]
[null,null,null,null,null,""]
[null,null,null,null,null,""]
[null,null,null,null,null,""]
[null,null,null,null,null,""]
[null,null,null,null,null,""]
[null,null,null,null,null,""]
[null,null,null,null,null,""]
[null,null,null,null,null,""]
[null,null,null,null,null,""]
[null,null,null,null,null,""]
[null,null,null,null,null,""]
[null,null,null,null,null,""]
[null,null,null,null,null,""]
[null,null,null,null,null,""]
[null,null,null,null,null,""]
[null,null,null,null,null,""]
[null,null,null,null,null,""]
[null,null,null,null,null,""]
[null,null,null,null,null,""]
[null,null,null,null,null,""]
[null,null,null,null,null,""]
[null,null,null,null,null,""]
[null,null,null,null,null,""]
[null,null,null,null,null,""]
[null,null,null,null,null,""]
[null,null,null,null,null,""]
[null,null,null,null,null,""]
[null,null,null,null,null,""]
[null,null,null,null,null,""]
[null,null,null,null,null,""]
[null,null,null,null,null,""]
[null,null,null,null,null,""]
[null,null,null,null,null,""]
[null,null,null,null,null,""]
[null,null,null,null,null,""]
[null,null,null,null,null,""]
[null,null,null,null,null,""]
[null,null,null,null,null,""]
[null,null,null,null,null,""]
[null,null,null,null,null,""]
[null,null,null,null,null,""]
[null,null,null,null,null,""]
[null,null,null,null,null,""]
[null,null,null,null,null,""]
[null,null,null,null,null,""]
[null,null,null,null,null,""]
[null,null,null,null,null,""]
[null,null,null,null,null,""]
[null,null,null,null,null,""]
[null,null,null,null,null,""]
[null,null,null,null,null,""]
[null,null,null,null,null,""]
[null,null,null,null,null,""]
[null,null,null,null,null,""]
[null,null,null,null,null,""]
[null,null,null,null,null,""]
[null,null,null,null,null,{"$f":"D1922&E1922","v":""}]
[null,null,null,null,null,""]
[null,null,null,null,null,""]
[null,null,null,null,null,""]
[null,null,null,null,null,""]
[null,null,null,null,null,""]
[null,null,null,null,null,""]
[null,null,null,null,null,""]
[null,null,null,null,null,""]
[null,null,null,null,null,""]
[null,null,null,null,null,""]
[null,null,null,null,null,""]
[null,null,null,null,null,""]
[null,null,null,null,null,""]
[null,null,null,null,null,""]
[null,null,null,null,null,""]
[null,null,null,null,null,""]
[null,null,null,null,null,""]
[null,null,null,null,null,""]
[null,null,null,null,null,""]
[null,null,null,null,null,""]
[null,null,null,null,null,""]
[null,null,null,null,null,""]
[null,null,null,null,null,""]
[null,null,null,null,null,""]
[null,null,null,null,null,""]
[null,null,null,null,null,""]
[null,null,null,null,null,""]
[null,null,null,null,null,""]
[null,null,null,null,null,""]
[null,null,null,null,null,""]
[null,null,null,null,null,""]
[null,null,null,null,null,""]
[null,null,null,null,null,""]
[null,null,null,null,null,""]
[null,null,null,null,null,""]
[null,null,null,null,null,""]
[null,null,null,null,null,""]
[null,null,null,null,null,""]
[null,null,null,null,null,""]
[null,null,null,null,null,""]
[null,null,null,null,null,""]
[null,null,null,null,null,""]
[null,null,null,null,null,""]
[null,null,null,null,null,""]
[null,null,null,null,null,""]
[null,null,null,null,null,""]
[null,null,null,null,null,""]
[null,null,null,null,null,""]
[null,null,null,null,null,""]
[null,null,null,null,null,""]
[null,null,null,null,null,""]
[null,null,null,null,null,""]
[null,null,null,null,null,""]
[null,null,null,null,null,""]
[null,null,null,null,null,""]
[null,null,null,null,null,""]
[null,null,null,null,null,""]
[null,null,null,null,null,""]
[null,null,null,null,null,""]
[null,null,null,null,null,""]
[null,null,null,null,null,""]
[null,null,null,null,null,""]
[null,null,null,null,null,""]
[null,null,null,null,null,{"$f":"D1986&E1986","v":""}]
[null,null,null,null,null,""]
[null,null,null,null,null,""]
[null,null,null,null,null,""]
[null,null,null,null,null,""]
[null,null,null,null,null,""]
[null,null,null,null,null,""]
[null,null,null,null,null,""]
[null,null,null,null,null,""]
[null,null,null,null,null,""]
[null,null,null,null,null,""]
[null,null,null,null,null,""]
[null,null,null,null,null,""]
[null,null,null,null,null,""]
[null,null,null,null,null,""]
[null,null,null,null,null,""]
[null,null,null,null,null,""]
[null,null,null,null,null,""]
[null,null,null,null,null,""]
[null,null,null,null,null,""]
[null,null,null,null,null,""]
[null,null,null,null,null,""]
[null,null,null,null,null,""]
[null,null,null,null,null,""]
[null,null,null,null,null,""]
[null,null,null,null,null,""]
[null,null,null,null,null,""]
[null,null,null,null,null,""]
[null,null,null,null,null,""]
[null,null,null,null,null,""]
[null,null,null,null,null,""]
[null,null,null,null,null,""]
[null,null,null,null,null,""]
[null,null,null,null,null,""]
[null,null,null,null,null,""]
[null,null,null,null,null,""]
[null,null,null,null,null,""]
[null,null,null,null,null,""]
[null,null,null,null,null,""]
[null,null,null,null,null,""]
[null,null,null,null,null,""]
[null,null,null,null,null,""]
[null,null,null,null,null,""]
[null,null,null,null,null,""]
[null,null,null,null,null,""]
[null,null,null,null,null,""]
[null,null,null,null,null,""]
[null,null,null,null,null,""]
[null,null,null,null,null,""]
[null,null,null,null,null,""]
[null,null,null,null,null,""]
[null,null,null,null,null,""]
[null,null,null,null,null,""]
[null,null,null,null,null,""]
[null,null,null,null,null,""]
[null,null,null,null,null,""]
[null,null,null,null,null,""]
[null,null,null,null,null,""]
[null,null,null,null,null,""]
[null,null,null,null,null,""]
[null,null,null,null,null,""]
[null,null,null,null,null,""]
[null,null,null,null,null,""]
[null,null,null,null,null,""]
[null,null,null,null,null,""]
[null,null,null,null,null,""]
[null,null,null,null,null,""]
[null,null,null,null,null,""]
[null,null,null,null,null,""]
[null,null,null,null,null,""]
[null,null,null,null,null,""]
[null,null,null,null,null,""]
[null,null,null,null,null,""]
[null,null,null,null,null,""]
[null,null,null,null,null,""]
[null,null,null,null,null,""]
[null,null,null,null,null,""]
[null,null,null,null,null,""]
[null,null,null,null,null,""]
[null,null,null,null,null,{"$f":"D35842&E35842","v":""}]
[null,null,null,null,null,""]
[null,null,null,null,null,""]
[null,null,null,null,null,""]
[null,null,null,null,null,""]
[null,null,null,null,null,""]
[null,null,null,null,null,""]
[null,null,null,null,null,""]
[null,null,null,null,null,""]
[null,null,null,null,null,""]
[null,null,null,null,null,""]
[null,null,null,null,null,""]
[null,null,null,null,null,""]
[null,null,null,null,null,""]
[null,null,null,null,null,""]
[null,null,null,null,null,""]
[null,null,null,null,null,""]
[null,null,null,null,null,""]
[null,null,null,null,null,""]
[null,null,null,null,null,""]
[null,null,null,null,null,""]
[null,null,null,null,null,""]
[null,null,null,null,null,""]
[null,null,null,null,null,""]
[null,null,null,null,null,""]
[null,null,null,null,null,""]
[null,null,null,null,null,""]
[null,null,null,null,null,""]
[null,null,null,null,null,""]
[null,null,null,null,null,""]
[null,null,null,null,null,""]
[null,null,null,null,null,""]
[null,null,null,null,null,""]
[null,null,null,null,null,""]
[null,null,null,null,null,""]
[null,null,null,null,null,""]
[null,null,null,null,null,""]
[null,null,null,null,null,""]
[null,null,null,null,null,""]
[null,null,null,null,null,{"$f":"D56194&E56194","v":""}]
[null,null,null,null,null,""]
[null,null,null,null,null,""]
[null,null,null,null,null,""]
[null,null,null,null,null,""]
[null,null,null,null,null,""]
[null,null,null,null,null,""]
[null,null,null,null,null,""]
[null,null,null,null,null,""]
[null,null,null,null,null,""]
[null,null,null,null,null,""]
[null,null,null,null,null,""]
[null,null,null,null,null,""]
[null,null,null,null,null,""]
[null,null,null,null,null,""]
[null,null,null,null,null,""]
[null,null,null,null,null,""]
[null,null,null,null,null,""]
[null,null,null,null,null,""]
[null,null,null,null,null,""]
[null,null,null,null,null,""]
[null,null,null,null,null,""]
[null,null,null,null,null,""]
[null,null,null,null,null,""]
[null,null,null,null,null,""]
[null,null,null,null,null,""]
[null,null,null,null,null,""]
[null,null,null,null,null,""]
[null,null,null,null,null,""]
[null,null,null,null,null,""]
[null,null,null,null,null,""]
[null,null,null,null,null,""]
[null,null,null,null,null,""]
[null,null,null,null,null,""]
[null,null,null,null,null,""]
[null,null,null,null,null,""]
[null,null,null,null,null,""]
[null,null,null,null,null,""]
[null,null,null,null,null,""]
[null,null,null,null,null,""]
[null,null,null,null,null,""]
[null,null,null,null,null,""]
[null,null,null,null,null,""]
[null,null,null,null,null,""]
[null,null,null,null,null,""]
[null,null,null,null,null,""]
[null,null,null,null,null,""]
[null,null,null,null,null,""]
[null,null,null,null,null,""]
[null,null,null,null,null,""]
[null,null,null,null,null,""]
[null,null,null,null,null,""]
[null,null,null,null,null,""]
[null,null,null,null,null,""]
[null,null,null,null,null,""]
[null,null,null,null,null,""]
[null,null,null,null,null,""]
[null,null,null,null,null,""]
[null,null,null,null,null,{"$f":"D86466&E86466","v":""}]
[null,null,null,null,null,""]
[null,null,null,null,null,""]
[null,null,null,null,null,""]
[null,null,null,null,null,""]
[null,null,null,null,null,""]
[null,null,null,null,null,""]
[null,null,null,null,null,""]
[null,null,null,null,null,""]
[null,null,null,null,null,""]
[null,null,null,null,null,""]
[null,null,null,null,null,""]
[null,null,null,null,null,""]
[null,null,null,null,null,""]
[null,null,null,null,null,""]
[null,null,null,null,null,""]
[null,null,null,null,null,""]
[null,null,null,null,null,""]
[null,null,null,null,null,""]
[null,null,null,null,null,""]
[null,null,null,null,null,""]
[null,null,null,null,null,""]
[null,null,null,null,null,""]
[null,null,null,null,null,""]
[null,null,null,null,null,""]
[null,null,null,null,null,""]
[null,null,null,null,null,""]
[null,null,null,null,null,""]
[null,null,null,null,null,""]
[null,null,null,null,null,""]
[null,null,null,null,null,""]
[null,null,null,null,null,""]
[null,null,null,null,null,""]
[null,null,null,null,null,""]
[null,null,null,null,null,""]
[null,null,null,null,null,""]
[null,null,null,null,null,""]
[null,null,null,null,null,""]
[null,null,null,null,null,""]
[null,null,null,null,null,{"$f":"D106818&E106818","v":""}]
[null,null,null,null,null,""]
[null,null,null,null,null,""]
[null,null,null,null,null,""]
[null,null,null,null,null,""]
[null,null,null,null,null,""]
[null,null,null,null,null,""]
[null,null,null,null,null,""]
[null,null,null,null,null,""]
[null,null,null,null,null,""]
[null,null,null,null,null,""]
[null,null,null,null,null,""]
[null,null,null,null,null,""]
[null,null,null,null,null,""]
[null,null,null,null,null,""]
[null,null,null,null,null,""]
[null,null,null,null,null,""]
[null,null,null,null,null,""]
[null,null,null,null,null,""]
[null,null,null,null,null,""]
[null,null,null,null,null,""]
[null,null,null,null,null,""]
[null,null,null,null,null,""]
[null,null,null,null,null,""]
[null,null,null,null,null,""]
[null,null,null,null,null,""]
[null,null,null,null,null,""]
[null,null,null,null,null,""]
[null,null,null,null,null,""]
[null,null,null,null,null,""]
[null,null,null,null,null,""]
[null,null,null,null,null,""]
[null,null,null,null,null,""]
[null,null,null,null,null,""]
[null,null,null,null,null,""]
[null,null,null,null,null,""]
[null,null,null,null,null,""]
[null,null,null,null,null,""]
[null,null,null,null,null,""]
[null,null,null,null,null,""]
[null,null,null,null,null,""]
[null,null,null,null,null,""]
[null,null,null,null,null,""]
[null,null,null,null,null,""]
[null,null,null,null,null,""]
[null,null,null,null,null,""]
[null,null,null,null,null,""]
[null,null,null,null,null,""]
[null,null,null,null,null,""]
[null,null,null,null,null,""]
[null,null,null,null,null,""]
[null,null,null,null,null,""]
[null,null,null,null,null,""]
[null,null,null,null,null,""]
[null,null,null,null,null,""]
[null,null,null,null,null,""]
[null,null,null,null,null,""]
[null,null,null,null,null,""]
[null,null,null,null,null,""]
[null,null,null,null,null,""]
[null,null,null,null,null,""]
[null,null,null,null,null,""]
[null,null,null,null,null,""]
[null,null,null,null,null,""]
[null,null,null,null,null,""]
[null,null,null,null,null,""]
[null,null,null,null,null,""]
[null,null,null,null,null,""]
[null,null,null,null,null,""]
[null,null,null,null,null,""]
[null,null,null,null,null,""]
[null,null,null,null,null,""]
[null,null,null,null,null,""]
[null,null,null,null,null,""]
[null,null,null,null,null,""]
[null,null,null,null,null,""]
[null,null,null,null,null,""]
[null,null,null,null,null,""]
[null,null,null,null,null,""]
[null,null,null,null,null,""]
[null,null,null,null,null,""]
[null,null,null,null,null,""]
[null,null,null,null,null,""]
[null,null,null,null,null,""]
[null,null,null,null,null,""]
[null,null,null,null,null,""]
[null,null,null,null,null,""]
[null,null,null,null,null,""]
[null,null,null,null,null,""]
[null,null,null,null,null,""]
[null,null,null,null,null,""]
[null,null,null,null,null,""]
[null,null,null,null,null,""]
[null,null,null,null,null,""]
[null,null,null,null,null,""]
[null,null,null,null,null,""]
[null,null,null,null,null,""]
[null,null,null,null,null,{"$f":"D157442&E157442","v":""}]
[null,null,null,null,null,""]
[null,null,null,null,null,""]
[null,null,null,null,null,""]
[null,null,null,null,null,""]
[null,null,null,null,null,""]
[null,null,null,null,null,""]
[null,null,null,null,null,""]
[null,null,null,null,null,""]
[null,null,null,null,null,""]
[null,null,null,null,null,""]
[null,null,null,null,null,""]
[null,null,null,null,null,""]
[null,null,null,null,null,""]
[null,null,null,null,null,""]
[null,null,null,null,null,""]
[null,null,null,null,null,""]
[null,null,null,null,null,""]
[null,null,null,null,null,""]
[null,null,null,null,null,""]
[null,null,null,null,null,""]
[null,null,null,null,null,""]
[null,null,null,null,null,""]
[null,null,null,null,null,""]
[null,null,null,null,null,""]
[null,null,null,null,null,""]
[null,null,null,null,null,""]
[null,null,null,null,null,""]
[null,null,null,null,null,""]
[null,null,null,null,null,""]
[null,null,null,null,null,""]
[null,null,null,null,null,""]
[null,null,null,null,null,""]
[null,null,null,null,null,""]
[null,null,null,null,null,""]
[null,null,null,null,null,""]
[null,null,null,null,null,""]
[null,null,null,null,null,""]
[null,null,null,null,null,""]
[null,null,null,null,null,{"$f":"D177794&E177794","v":""}]
[null,null,null,null,null,""]
[null,null,null,null,null,""]
[null,null,null,null,null,""]
[null,null,null,null,null,""]
[null,null,null,null,null,""]
[null,null,null,null,null,""]
[null,null,null,null,null,""]
[null,null,null,null,null,""]
[null,null,null,null,null,""]
[null,null,null,null,null,""]
[null,null,null,null,null,""]
[null,null,null,null,null,""]
[null,null,null,null,null,""]
[null,null,null,null,null,""]
[null,null,null,null,null,""]
[null,null,null,null,null,""]
[null,null,null,null,null,""]
[null,null,null,null,null,""]
[null,null,null,null,null,""]
[null,null,null,null,null,""]
[null,null,null,null,null,""]
[null,null,null,null,null,""]
[null,null,null,null,null,""]
[null,null,null,null,null,""]
[null,null,null,null,null,""]
[null,null,null,null,null,""]
[null,null,null,null,null,""]
[null,null,null,null,null,""]
[null,null,null,null,null,""]
[null,null,null,null,null,""]
[null,null,null,null,null,""]
[null,null,null,null,null,""]
[null,null,null,null,null,""]
[null,null,null,null,null,""]
[null,null,null,null,null,""]
[null,null,null,null,null,""]
[null,null,null,null,null,""]
[null,null,null,null,null,""]
[null,null,null,null,null,""]
[null,null,null,null,null,""]
[null,null,null,null,null,""]
[null,null,null,null,null,""]
[null,null,null,null,null,""]
[null,null,null,null,null,""]
[null,null,null,null,null,""]
[null,null,null,null,null,""]
[null,null,null,null,null,""]
[null,null,null,null,null,""]
[null,null,null,null,null,""]
[null,null,null,null,null,""]
[null,null,null,null,null,""]
[null,null,null,null,null,""]
[null,null,null,null,null,""]
[null,null,null,null,null,""]
[null,null,null,null,null,""]
[null,null,null,null,null,""]
[null,null,null,null,null,""]
[null,null,null,null,null,""]
[null,null,null,null,null,""]
[null,null,null,null,null,""]
[null,null,null,null,null,""]
[null,null,null,null,null,""]
[null,null,null,null,null,""]
[null,null,null,null,null,""]
[null,null,null,null,null,""]
[null,null,null,null,null,""]
[null,null,null,null,null,""]
[null,null,null,null,null,""]
[null,null,null,null,null,""]
[null,null,null,null,null,""]
[null,null,null,null,null,""]
[null,null,null,null,null,""]
[null,null,null,null,null,""]
[null,null,null,null,null,""]
[null,null,null,null,null,""]
[null,null,null,null,null,""]
[null,null,null,null,null,""]
[null,null,null,null,null,""]
[null,null,null,null,null,""]
[null,null,null,null,null,""]
[null,null,null,null,null,""]
[null,null,null,null,null,""]
[null,null,null,null,null,""]
[null,null,null,null,null,""]
[null,null,null,null,null,""]
[null,null,null,null,null,""]
[null,null,null,null,null,""]
[null,null,null,null,null,""]
[null,null,null,null,null,""]
[null,null,null,null,null,""]
[null,null,null,null,null,""]
[null,null,null,null,null,""]
[null,null,null,null,null,""]
[null,null,null,null,null,""]
[null,null,null,null,null,""]
[null,null,null,null,null,""]
[null,null,null,null,null,""]
[null,null,null,null,null,""]
[null,null,null,null,null,""]
[null,null,null,null,null,""]
[null,null,null,null,null,""]
[null,null,null,null,null,""]
[null,null,null,null,null,""]
[null,null,null,null,null,""]
[null,null,null,null,null,""]
[null,null,null,null,null,""]
[null,null,null,null,null,""]
[null,null,null,null,null,""]
[null,null,null,null,null,""]
[null,null,null,null,null,""]
[null,null,null,null,null,""]
[null,null,null,null,null,""]
[null,null,null,null,null,""]
[null,null,null,null,null,""]
[null,null,null,null,null,""]
[null,null,null,null,null,""]
[null,null,null,null,null,""]
[null,null,null,null,null,""]
[null,null,null,null,null,""]
[null,null,null,null,null,""]
[null,null,null,null,null,""]
[null,null,null,null,null,""]
[null,null,null,null,null,""]
[null,null,null,null,null,""]
[null,null,null,null,null,""]
[null,null,null,null,null,""]
[null,null,null,null,null,""]
[null,null,null,null,null,""]
[null,null,null,null,null,""]
[null,null,null,null,null,""]
[null,null,null,null,null,""]
[null,null,null,null,null,{"$f":"D247298&E247298","v":""}]
[null,null,null,null,null,""]
[null,null,null,null,null,""]
[null,null,null,null,null,""]
[null,null,null,null,null,""]
[null,null,null,null,null,""]
[null,null,null,null,null,""]
[null,null,null,null,null,""]
[null,null,null,null,null,""]
[null,null,null,null,null,""]
[null,null,null,null,null,""]
[null,null,null,null,null,""]
[null,null,null,null,null,""]
[null,null,null,null,null,""]
[null,null,null,null,null,""]
[null,null,null,null,null,""]
[null,null,null,null,null,""]
[null,null,null,null,null,""]
[null,null,null,null,null,""]
[null,null,null,null,null,""]
[null,null,null,null,null,""]
[null,null,null,null,null,""]
[null,null,null,null,null,""]
[null,null,null,null,null,""]
[null,null,null,null,null,""]
[null,null,null,null,null,""]
[null,null,null,null,null,""]
[null,null,null,null,null,""]
[null,null,null,null,null,""]
[null,null,null,null,null,""]
[null,null,null,null,null,""]
[null,null,null,null,null,""]
[null,null,null,null,null,""]
[null,null,null,null,null,""]
[null,null,null,null,null,""]
[null,null,null,null,null,""]
[null,null,null,null,null,""]
[null,null,null,null,null,""]
[null,null,null,null,null,""]
[null,null,null,null,null,""]
[null,null,null,null,null,""]
[null,null,null,null,null,""]
[null,null,null,null,null,""]
[null,null,null,null,null,""]
[null,null,null,null,null,""]
[null,null,null,null,null,""]
[null,null,null,null,null,""]
[null,null,null,null,null,""]
[null,null,null,null,null,""]
[null,null,null,null,null,""]
[null,null,null,null,null,""]
[null,null,null,null,null,""]
[null,null,null,null,null,""]
[null,null,null,null,null,""]
[null,null,null,null,null,""]
[null,null,null,null,null,""]
[null,null,null,null,null,""]
[null,null,null,null,null,""]
[null,null,null,null,null,""]
[null,null,null,null,null,""]
[null,null,null,null,null,""]
[null,null,null,null,null,""]
[null,null,null,null,null,""]
[null,null,null,null,null,""]
[null,null,null,null,null,""]
[null,null,null,null,null,""]
[null,null,null,null,null,""]
[null,null,null,null,null,""]
[null,null,null,null,null,""]
[null,null,null,null,null,""]
[null,null,null,null,null,""]
[null,null,null,null,null,""]
[null,null,null,null,null,""]
[null,null,null,null,null,""]
[null,null,null,null,null,""]
[null,null,null,null,null,""]
[null,null,null,null,null,""]
[null,null,null,null,null,""]
[null,null,null,null,null,""]
[null,null,null,null,null,""]
[null,null,null,null,null,""]
[null,null,null,null,null,""]
[null,null,null,null,null,""]
[null,null,null,null,null,""]
[null,null,null,null,null,""]
[null,null,null,null,null,""]
[null,null,null,null,null,""]
[null,null,null,null,null,""]
[null,null,null,null,null,""]
[null,null,null,null,null,""]
[null,null,null,null,null,""]
[null,null,null,null,null,""]
[null,null,null,null,null,""]
[null,null,null,null,null,""]
[null,null,null,null,null,""]
[null,null,null,null,null,""]
[null,null,null,null,null,""]
[null,null,null,null,null,{"$f":"D297922&E297922","v":""}]
[null,null,null,null,null,""]
[null,null,null,null,null,""]
[null,null,null,null,null,""]
[null,null,null,null,null,""]
[null,null,null,null,null,""]
[null,null,null,null,null,""]
[null,null,null,null,null,""]
[null,null,null,null,null,""]
[null,null,null,null,null,""]
[null,null,null,null,null,""]
[null,null,null,null,null,""]
[null,null,null,null,null,""]
[null,null,null,null,null,""]
[null,null,null,null,null,""]
[null,null,null,null,null,""]
[null,null,null,null,null,""]
[null,null,null,null,null,""]
[null,null,null,null,null,""]
[null,null,null,null,null,""]
[null,null,null,null,null,""]
[null,null,null,null,null,""]
[null,null,null,null,null,""]
[null,null,null,null,null,""]
[null,null,null,null,null,""]
[null,null,null,null,null,""]
[null,null,null,null,null,""]
[null,null,null,null,null,""]
[null,null,null,null,null,""]
[null,null,null,null,null,""]
[null,null,null,null,null,""]
[null,null,null,null,null,""]
[null,null,null,null,null,""]
[null,null,null,null,null,""]
[null,null,null,null,null,""]
[null,null,null,null,null,""]
[null,null,null,null,null,""]
[null,null,null,null,null,""]
[null,null,null,null,null,""]
[null,null,null,null,null,{"$f":"D318274&E318274","v":""}]
[null,null,null,null,null,""]
[null,null,null,null,null,""]
[null,null,null,null,null,""]
[null,null,null,null,null,""]
[null,null,null,null,null,""]
[null,null,null,null,null,""]
[null,null,null,null,null,""]
[null,null,null,null,null,""]
[null,null,null,null,null,""]
[null,null,null,null,null,""]
[null,null,null,null,null,""]
[null,null,null,null,null,""]
[null,null,null,null,null,""]
[null,null,null,null,null,""]
[null,null,null,null,null,""]
[null,null,null,null,null,""]
[null,null,null,null,null,""]
[null,null,null,null,null,""]
[null,null,null,null,null,""]
[null,null,null,null,null,""]
[null,null,null,null,null,""]
[null,null,null,null,null,""]
[null,null,null,null,null,""]
[null,null,null,null,null,""]
[null,null,null,null,null,""]
[null,null,null,null,null,""]
[null,null,null,null,null,""]
[null,null,null,null,null,""]
[null,null,null,null,null,""]
[null,null,null,null,null,""]
[null,null,null,null,null,""]
[null,null,null,null,null,""]
[null,null,null,null,null,""]
[null,null,null,null,null,""]
[null,null,null,null,null,""]
[null,null,null,null,null,""]
[null,null,null,null,null,""]
[null,null,null,null,null,""]
[null,null,null,null,null,""]
[null,null,null,null,null,""]
[null,null,null,null,null,""]
[null,null,null,null,null,""]
[null,null,null,null,null,""]
[null,null,null,null,null,""]
[null,null,null,null,null,""]
[null,null,null,null,null,""]
[null,null,null,null,null,""]
[null,null,null,null,null,""]
[null,null,null,null,null,""]
[null,null,null,null,null,""]
[null,null,null,null,null,""]
[null,null,null,null,null,""]
[null,null,null,null,null,""]
[null,null,null,null,null,""]
[null,null,null,null,null,""]
[null,null,null,null,null,""]
[null,null,null,null,null,""]
[null,null,null,null,null,{"$f":"D348546&E348546","v":""}]
[null,null,null,null,null,""]
[null,null,null,null,null,""]
[null,null,null,null,null,""]
[null,null,null,null,null,""]
[null,null,null,null,null,""]
[null,null,null,null,null,""]
[null,null,null,null,null,""]
[null,null,null,null,null,""]
[null,null,null,null,null,""]
[null,null,null,null,null,""]
[null,null,null,null,null,""]
[null,null,null,null,null,""]
[null,null,null,null,null,""]
[null,null,null,null,null,""]
[null,null,null,null,null,""]
[null,null,null,null,null,""]
[null,null,null,null,null,""]
[null,null,null,null,null,""]
[null,null,null,null,null,""]
[null,null,null,null,null,""]
[null,null,null,null,null,""]
[null,null,null,null,null,""]
[null,null,null,null,null,""]
[null,null,null,null,null,""]
[null,null,null,null,null,""]
[null,null,null,null,null,""]
[null,null,null,null,null,""]
[null,null,null,null,null,""]
[null,null,null,null,null,""]
[null,null,null,null,null,""]
[null,null,null,null,null,""]
[null,null,null,null,null,""]
[null,null,null,null,null,""]
[null,null,null,null,null,""]
[null,null,null,null,null,""]
[null,null,null,null,null,""]
[null,null,null,null,null,""]
[null,null,null,null,null,""]
[null,null,null,null,null,{"$f":"D368898&E368898","v":""}]
[null,null,null,null,null,""]
[null,null,null,null,null,""]
[null,null,null,null,null,""]
[null,null,null,null,null,""]
[null,null,null,null,null,""]
[null,null,null,null,null,""]
[null,null,null,null,null,""]
[null,null,null,null,null,""]
[null,null,null,null,null,""]
[null,null,null,null,null,""]
[null,null,null,null,null,""]
[null,null,null,null,null,""]
[null,null,null,null,null,""]
[null,null,null,null,null,""]
[null,null,null,null,null,""]
[null,null,null,null,null,""]
[null,null,null,null,null,""]
[null,null,null,null,null,""]
[null,null,null,null,null,""]
[null,null,null,null,null,""]
[null,null,null,null,null,""]
[null,null,null,null,null,""]
[null,null,null,null,null,""]
[null,null,null,null,null,""]
[null,null,null,null,null,""]
[null,null,null,null,null,""]
[null,null,null,null,null,""]
[null,null,null,null,null,""]
[null,null,null,null,null,""]
[null,null,null,null,null,""]
[null,null,null,null,null,""]
[null,null,null,null,null,""]
[null,null,null,null,null,""]
[null,null,null,null,null,""]
[null,null,null,null,null,""]
[null,null,null,null,null,""]
[null,null,null,null,null,""]
[null,null,null,null,null,""]
[null,null,null,null,null,""]
[null,null,null,null,null,""]
[null,null,null,null,null,""]
[null,null,null,null,null,""]
[null,null,null,null,null,""]
[null,null,null,null,null,""]
[null,null,null,null,null,""]
[null,null,null,null,null,""]
[null,null,null,null,null,""]
[null,null,null,null,null,""]
[null,null,null,null,null,""]
[null,null,null,null,null,""]
[null,null,null,null,null,""]
[null,null,null,null,null,""]
[null,null,null,null,null,""]
[null,null,null,null,null,""]
[null,null,null,null,null,""]
[null,null,null,null,null,""]
[null,null,null,null,null,""]
[null,null,null,null,null,""]
[null,null,null,null,null,""]
[null,null,null,null,null,""]
[null,null,null,null,null,""]
[null,null,null,null,null,""]
[null,null,null,null,null,""]
[null,null,null,null,null,""]
[null,null,null,null,null,""]
[null,null,null,null,null,""]
[null,null,null,null,null,""]
[null,null,null,null,null,""]
[null,null,null,null,null,""]
[null,null,null,null,null,""]
[null,null,null,null,null,""]
[null,null,null,null,null,""]
[null,null,null,null,null,""]
[null,null,null,null,null,""]
[null,null,null,null,null,""]
[null,null,null,null,null,""]
[null,null,null,null,null,""]
[null,null,null,null,null,""]
[null,null,null,null,null,""]
[null,null,null,null,null,""]
[null,null,null,null,null,""]
[null,null,null,null,null,""]
[null,null,null,null,null,""]
[null,null,null,null,null,""]
[null,null,null,null,null,""]
[null,null,null,null,null,""]
[null,null,null,null,null,""]
[null,null,null,null,null,""]
[null,null,null,null,null,""]
[null,null,null,null,null,""]
[null,null,null,null,null,""]
[null,null,null,null,null,""]
[null,null,null,null,null,""]
[null,null,null,null,null,""]
[null,null,null,null,null,""]
[null,null,null,null,null,""]
[null,null,null,null,null,{"$f":"D419522&E419522","v":""}]
[null,null,null,null,null,""]
[null,null,null,null,null,""]
[null,null,null,null,null,""]
[null,null,null,null,null,""]
[null,null,null,null,null,""]
[null,null,null,null,null,""]
[null,null,null,null,null,""]
[null,null,null,null,null,""]
[null,null,null,null,null,""]
[null,null,null,null,null,""]
[null,null,null,null,null,""]
[null,null,null,null,null,""]
[null,null,null,null,null,""]
[null,null,null,null,null,""]
[null,null,null,null,null,""]
[null,null,null,null,null,""]
[null,null,null,null,null,""]
[null,null,null,null,null,""]
[null,null,null,null,null,""]
[null,null,null,null,null,""]
[null,null,null,null,null,""]
[null,null,null,null,null,""]
[null,null,null,null,null,""]
[null,null,null,null,null,""]
[null,null,null,null,null,""]
[null,null,null,null,null,""]
[null,null,null,null,null,""]
[null,null,null,null,null,""]
[null,null,null,null,null,""]
[null,null,null,null,null,""]
[null,null,null,null,null,""]
[null,null,null,null,null,""]
[null,null,null,null,null,""]
[null,null,null,null,null,""]
[null,null,null,null,null,""]
[null,null,null,null,null,""]
[null,null,null,null,null,""]
[null,null,null,null,null,""]
[null,null,null,null,null,{"$f":"D439874&E439874","v":""}]
[null,null,null,null,null,""]
[null,null,null,null,null,""]
[null,null,null,null,null,""]
[null,null,null,null,null,""]
[null,null,null,null,null,""]
[null,null,null,null,null,""]
[null,null,null,null,null,""]
[null,null,null,null,null,""]
[null,null,null,null,null,""]
[null,null,null,null,null,""]
[null,null,null,null,null,""]
[null,null,null,null,null,""]
[null,null,null,null,null,""]
[null,null,null,null,null,""]
[null,null,null,null,null,""]
[null,null,null,null,null,""]
[null,null,null,null,null,""]
[null,null,null,null,null,""]
[null,null,null,null,null,""]
[null,null,null,null,null,""]
[null,null,null,null,null,""]
[null,null,null,null,null,""]
[null,null,null,null,null,""]
[null,null,null,null,null,""]
[null,null,null,null,null,""]
[null,null,null,null,null,""]
[null,null,null,null,null,""]
[null,null,null,null,null,""]
[null,null,null,null,null,""]
[null,null,null,null,null,""]
[null,null,null,null,null,""]
[null,null,null,null,null,""]
[null,null,null,null,null,""]
[null,null,null,null,null,""]
[null,null,null,null,null,""]
[null,null,null,null,null,""]
[null,null,null,null,null,""]
[null,null,null,null,null,""]
[null,null,null,null,null,""]
[null,null,null,null,null,""]
[null,null,null,null,null,""]
[null,null,null,null,null,""]
[null,null,null,null,null,""]
[null,null,null,null,null,""]
[null,null,null,null,null,""]
[null,null,null,null,null,""]
[null,null,null,null,null,""]
[null,null,null,null,null,""]
[null,null,null,null,null,""]
[null,null,null,null,null,""]
[null,null,null,null,null,""]
[null,null,null,null,null,""]
[null,null,null,null,null,""]
[null,null,null,null,null,""]
[null,null,null,null,null,""]
[null,null,null,null,null,""]
[null,null,null,null,null,""]
[null,null,null,null,null,{"$f":"D470146&E470146","v":""}]
[null,null,null,null,null,""]
[null,null,null,null,null,""]
[null,null,null,null,null,""]
[null,null,null,null,null,""]
[null,null,null,null,null,""]
[null,null,null,null,null,""]
[null,null,null,null,null,""]
[null,null,null,null,null,""]
[null,null,null,null,null,""]
[null,null,null,null,null,""]
[null,null,null,null,null,""]
[null,null,null,null,null,""]
[null,null,null,null,null,""]
[null,null,null,null,null,""]
[null,null,null,null,null,""]
[null,null,null,null,null,""]
[null,null,null,null,null,""]
[null,null,null,null,null,""]
[null,null,null,null,null,""]
[null,null,null,null,null,""]
[null,null,null,null,null,""]
[null,null,null,null,null,""]
[null,null,null,null,null,""]
[null,null,null,null,null,""]
[null,null,null,null,null,""]
[null,null,null,null,null,""]
[null,null,null,null,null,""]
[null,null,null,null,null,""]
[null,null,null,null,null,""]
[null,null,null,null,null,""]
[null,null,null,null,null,""]
[null,null,null,null,null,""]
[null,null,null,null,null,""]
[null,null,null,null,null,""]
[null,null,null,null,null,""]
[null,null,null,null,null,""]
[null,null,null,null,null,""]
[null,null,null,null,null,""]
[null,null,null,null,null,""]
[null,null,null,null,null,""]
[null,null,null,null,null,""]
[null,null,null,null,null,""]
[null,null,null,null,null,""]
[null,null,null,null,null,""]
[null,null,null,null,null,""]
[null,null,null,null,null,""]
[null,null,null,null,null,""]
[null,null,null,null,null,""]
[null,null,null,null,null,""]
[null,null,null,null,null,""]
[null,null,null,null,null,""]
[null,null,null,null,null,""]
[null,null,null,null,null,""]
[null,null,null,null,null,""]
[null,null,null,null,null,""]
[null,null,null,null,null,""]
[null,null,null,null,null,""]
[null,null,null,null,null,""]
[null,null,null,null,null,""]
[null,null,null,null,null,""]
[null,null,null,null,null,""]
[null,null,null,null,null,""]
[null,null,null,null,null,""]
[null,null,null,null,null,""]
[null,null,null,null,null,""]
[null,null,null,null,null,""]
[null,null,null,null,null,""]
[null,null,null,null,null,""]
[null,null,null,null,null,""]
[null,null,null,null,null,""]
[null,null,null,null,null,""]
[null,null,null,null,null,""]
[null,null,null,null,null,""]
[null,null,null,null,null,""]
[null,null,null,null,null,""]
[null,null,null,null,null,""]
[null,null,null,null,null,""]
[null,null,null,null,null,""]
[null,null,null,null,null,""]
[null,null,null,null,null,""]
[null,null,null,null,null,""]
[null,null,null,null,null,""]
[null,null,null,null,null,""]
[null,null,null,null,null,""]
[null,null,null,null,null,""]
[null,null,null,null,null,""]
[null,null,null,null,null,""]
[null,null,null,null,null,""]
[null,null,null,null,null,""]
[null,null,null,null,null,""]
[null,null,null,null,null,""]
[null,null,null,null,null,""]
[null,null,null,null,null,""]
[null,null,null,null,null,""]
[null,null,null,null,null,""]
[null,null,null,null,null,""]
[null,null,null,null,null,""]
[null,null,null,null,null,""]
[null,null,null,null,null,""]
[null,null,null,null,null,""]
[null,null,null,null,null,""]
[null,null,null,null,null,""]
[null,null,null,null,null,""]
[null,null,null,null,null,""]
[null,null,null,null,null,""]
[null,null,null,null,null,""]
[null,null,null,null,null,""]
[null,null,null,null,null,""]
[null,null,null,null,null,""]
[null,null,null,null,null,""]
[null,null,null,null,null,""]
[null,null,null,null,null,""]
[null,null,null,null,null,""]
[null,null,null,null,null,""]
[null,null,null,null,null,""]
[null,null,null,null,null,""]
[null,null,null,null,null,""]
[null,null,null,null,null,""]
[null,null,null,null,null,""]
[null,null,null,null,null,""]
[null,null,null,null,null,""]
[null,null,null,null,null,""]
[null,null,null,null,null,""]
[null,null,null,null,null,""]
[null,null,null,null,null,""]
[null,null,null,null,null,""]
[null,null,null,null,null,""]
[null,null,null,null,null,""]
[null,null,null,null,null,""]
[null,null,null,null,null,""]
[null,null,null,null,null,""]
[null,null,null,null,null,""]
[null,null,null,null,null,""]
[null,null,null,null,null,""]
[null,null,null,null,null,""]
[null,null,null,null,null,""]
[null,null,null,null,null,""]
[null,null,null,null,null,""]
[null,null,null,null,null,""]
[null,null,null,null,null,""]
[null,null,null,null,null,""]
[null,null,null,null,null,""]
[null,null,null,null,null,""]
[null,null,null,null,null,""]
[null,null,null,null,null,""]
[null,null,null,null,null,""]
[null,null,null,null,null,""]
[null,null,null,null,null,""]
[null,null,null,null,null,""]
[null,null,null,null,null,""]
[null,null,null,null,null,""]
[null,null,null,null,null,""]
[null,null,null,null,null,""]
[null,null,null,null,null,""]
[null,null,null,null,null,""]
[null,null,null,null,null,""]
[null,null,null,null,null,""]
[null,null,null,null,null,""]
[null,null,null,null,null,""]
[null,null,null,null,null,""]
[null,null,null,null,null,{"$f":"D554818&E554818","v":""}]
[null,null,null,null,null,""]
[null,null,null,null,null,""]
[null,null,null,null,null,""]
[null,null,null,null,null,""]
[null,null,null,null,null,""]
[null,null,null,null,null,""]
[null,null,null,null,null,""]
[null,null,null,null,null,""]
[null,null,null,null,null,""]
[null,null,null,null,null,""]
[null,null,null,null,null,""]
[null,null,null,null,null,""]
[null,null,null,null,null,""]
[null,null,null,null,null,""]
[null,null,null,null,null,""]
[null,null,null,null,null,""]
[null,null,null,null,null,""]
[null,null,null,null,null,""]
[null,null,null,null,null,""]
[null,null,null,null,null,""]
[null,null,null,null,null,""]
[null,null,null,null,null,""]
[null,null,null,null,null,""]
[null,null,null,null,null,""]
[null,null,null,null,null,""]
[null,null,null,null,null,""]
[null,null,null,null,null,""]
[null,null,null,null,null,""]
[null,null,null,null,null,""]
[null,null,null,null,null,""]
[null,null,null,null,null,""]
[null,null,null,null,null,""]
[null,null,null,null,null,""]
[null,null,null,null,null,""]
[null,null,null,null,null,""]
[null,null,null,null,null,""]
[null,null,null,null,null,""]
[null,null,null,null,null,""]
[null,null,null,null,null,{"$f":"D575170&E575170","v":""}]
[null,null,null,null,null,""]
[null,null,null,null,null,""]
[null,null,null,null,null,""]
[null,null,null,null,null,""]
[null,null,null,null,null,""]
[null,null,null,null,null,""]
[null,null,null,null,null,""]
[null,null,null,null,null,""]
[null,null,null,null,null,""]
[null,null,null,null,null,""]
[null,null,null,null,null,""]
[null,null,null,null,null,""]
[null,null,null,null,null,""]
[null,null,null,null,null,""]
[null,null,null,null,null,""]
[null,null,null,null,null,""]
[null,null,null,null,null,""]
[null,null,null,null,null,""]
[null,null,null,null,null,""]
[null,null,null,null,null,""]
[null,null,null,null,null,""]
[null,null,null,null,null,""]
[null,null,null,null,null,""]
[null,null,null,null,null,""]
[null,null,null,null,null,""]
[null,null,null,null,null,""]
[null,null,null,null,null,""]
[null,null,null,null,null,""]
[null,null,null,null,null,""]
[null,null,null,null,null,""]
[null,null,null,null,null,""]
[null,null,null,null,null,""]
[null,null,null,null,null,""]
[null,null,null,null,null,""]
[null,null,null,null,null,""]
[null,null,null,null,null,""]
[null,null,null,null,null,""]
[null,null,null,null,null,""]
[null,null,null,null,null,""]
[null,null,null,null,null,""]
[null,null,null,null,null,""]
[null,null,null,null,null,""]
[null,null,null,null,null,""]
[null,null,null,null,null,""]
[null,null,null,null,null,""]
[null,null,null,null,null,""]
[null,null,null,null,null,""]
[null,null,null,null,null,""]
[null,null,null,null,null,""]
[null,null,null,null,null,""]
[null,null,null,null,null,""]
[null,null,null,null,null,""]
[null,null,null,null,null,""]
[null,null,null,null,null,""]
[null,null,null,null,null,""]
[null,null,null,null,null,""]
[null,null,null,null,null,""]
[null,null,null,null,null,""]
[null,null,null,null,null,""]
[null,null,null,null,null,""]
[null,null,null,null,null,""]
[null,null,null,null,null,""]
[null,null,null,null,null,""]
[null,null,null,null,null,""]
[null,null,null,null,null,""]
[null,null,null,null,null,""]
[null,null,null,null,null,""]
[null,null,null,null,null,""]
[null,null,null,null,null,""]
[null,null,null,null,null,""]
[null,null,null,null,null,""]
[null,null,null,null,null,""]
[null,null,null,null,null,""]
[null,null,null,null,null,""]
[null,null,null,null,null,""]
[null,null,null,null,null,""]
[null,null,null,null,null,""]
[null,null,null,null,null,""]
[null,null,null,null,null,""]
[null,null,null,null,null,""]
[null,null,null,null,null,""]
[null,null,null,null,null,""]
[null,null,null,null,null,""]
[null,null,null,null,null,""]
[null,null,null,null,null,""]
[null,null,null,null,null,""]
[null,null,null,null,null,""]
[null,null,null,null,null,""]
[null,null,null,null,null,""]
[null,null,null,null,null,""]
[null,null,null,null,null,""]
[null,null,null,null,null,""]
[null,null,null,null,null,""]
[null,null,null,null,null,""]
[null,null,null,null,null,""]
[null,null,null,null,null,""]
[null,null,null,null,null,{"$f":"D625794&E625794","v":""}]
[null,null,null,null,null,""]
[null,null,null,null,null,""]
[null,null,null,null,null,""]
[null,null,null,null,null,""]
[null,null,null,null,null,""]
[null,null,null,null,null,""]
[null,null,null,null,null,""]
[null,null,null,null,null,""]
[null,null,null,null,null,""]
[null,null,null,null,null,""]
[null,null,null,null,null,""]
[null,null,null,null,null,""]
[null,null,null,null,null,""]
[null,null,null,null,null,""]
[null,null,null,null,null,""]
[null,null,null,null,null,""]
[null,null,null,null,null,""]
[null,null,null,null,null,""]
[null,null,null,null,null,""]
[null,null,null,null,null,""]
[null,null,null,null,null,""]
[null,null,null,null,null,""]
[null,null,null,null,null,""]
[null,null,null,null,null,""]
[null,null,null,null,null,""]
[null,null,null,null,null,""]
[null,null,null,null,null,""]
[null,null,null,null,null,""]
[null,null,null,null,null,""]
[null,null,null,null,null,""]
[null,null,null,null,null,""]
[null,null,null,null,null,""]
[null,null,null,null,null,""]
[null,null,null,null,null,""]
[null,null,null,null,null,""]
[null,null,null,null,null,""]
[null,null,null,null,null,""]
[null,null,null,null,null,""]
[null,null,null,null,null,{"$f":"D646146&E646146","v":""}]
[null,null,null,null,null,""]
[null,null,null,null,null,""]
[null,null,null,null,null,""]
[null,null,null,null,null,""]
[null,null,null,null,null,""]
[null,null,null,null,null,""]
[null,null,null,null,null,""]
[null,null,null,null,null,""]
[null,null,null,null,null,""]
[null,null,null,null,null,""]
[null,null,null,null,null,""]
[null,null,null,null,null,""]
[null,null,null,null,null,""]
[null,null,null,null,null,""]
[null,null,null,null,null,""]
[null,null,null,null,null,""]
[null,null,null,null,null,""]
[null,null,null,null,null,""]
[null,null,null,null,null,""]
[null,null,null,null,null,""]
[null,null,null,null,null,""]
[null,null,null,null,null,""]
[null,null,null,null,null,""]
[null,null,null,null,null,""]
[null,null,null,null,null,""]
[null,null,null,null,null,""]
[null,null,null,null,null,""]
[null,null,null,null,null,""]
[null,null,null,null,null,""]
[null,null,null,null,null,""]
[null,null,null,null,null,""]
[null,null,null,null,null,""]
[null,null,null,null,null,""]
[null,null,null,null,null,""]
[null,null,null,null,null,""]
[null,null,null,null,null,""]
[null,null,null,null,null,""]
[null,null,null,null,null,""]
[null,null,null,null,null,""]
[null,null,null,null,null,""]
[null,null,null,null,null,""]
[null,null,null,null,null,""]
[null,null,null,null,null,""]
[null,null,null,null,null,""]
[null,null,null,null,null,""]
[null,null,null,null,null,""]
[null,null,null,null,null,""]
[null,null,null,null,null,""]
[null,null,null,null,null,""]
[null,null,null,null,null,""]
[null,null,null,null,null,""]
[null,null,null,null,null,""]
[null,null,null,null,null,""]
[null,null,null,null,null,""]
[null,null,null,null,null,""]
[null,null,null,null,null,""]
[null,null,null,null,null,""]
[null,null,null,null,null,""]
[null,null,null,null,null,""]
[null,null,null,null,null,""]
[null,null,null,null,null,""]
[null,null,null,null,null,""]
[null,null,null,null,null,""]
[null,null,null,null,null,""]
[null,null,null,null,null,""]
[null,null,null,null,null,""]
[null,null,null,null,null,""]
[null,null,null,null,null,""]
[null,null,null,null,null,""]
[null,null,null,null,null,""]
[null,null,null,null,null,""]
[null,null,null,null,null,""]
[null,null,null,null,null,""]
[null,null,null,null,null,""]
[null,null,null,null,null,""]
[null,null,null,null,null,""]
[null,null,null,null,null,""]
[null,null,null,null,null,""]
[null,null,null,null,null,""]
[null,null,null,null,null,""]
[null,null,null,null,null,""]
[null,null,null,null,null,""]
[null,null,null,null,null,""]
[null,null,null,null,null,""]
[null,null,null,null,null,""]
[null,null,null,null,null,""]
[null,null,null,null,null,""]
[null,null,null,null,null,""]
[null,null,null,null,null,""]
[null,null,null,null,null,""]
[null,null,null,null,null,""]
[null,null,null,null,null,""]
[null,null,null,null,null,""]
[null,null,null,null,null,""]
[null,null,null,null,null,""]
[null,null,null,null,null,""]
[null,null,null,null,null,{"$f":"D696770&E696770","v":""}]
[null,null,null,null,null,""]
[null,null,null,null,null,""]
[null,null,null,null,null,""]
[null,null,null,null,null,""]
[null,null,null,null,null,""]
[null,null,null,null,null,""]
[null,null,null,null,null,""]
[null,null,null,null,null,""]
[null,null,null,null,null,""]
[null,null,null,null,null,""]
[null,null,null,null,null,""]
[null,null,null,null,null,""]
[null,null,null,null,null,""]
[null,null,null,null,null,""]
[null,null,null,null,null,""]
[null,null,null,null,null,""]
[null,null,null,null,null,""]
[null,null,null,null,null,""]
[null,null,null,null,null,""]
[null,null,null,null,null,""]
[null,null,null,null,null,""]
[null,null,null,null,null,""]
[null,null,null,null,null,""]
[null,null,null,null,null,""]
[null,null,null,null,null,""]
[null,null,null,null,null,""]
[null,null,null,null,null,""]
[null,null,null,null,null,""]
[null,null,null,null,null,""]
[null,null,null,null,null,""]
[null,null,null,null,null,""]
[null,null,null,null,null,""]
[null,null,null,null,null,""]
[null,null,null,null,null,""]
[null,null,null,null,null,""]
[null,null,null,null,null,""]
[null,null,null,null,null,""]
[null,null,null,null,null,""]
[null,null,null,null,null,{"$f":"D717122&E717122","v":""}]
[null,null,null,null,null,""]
[null,null,null,null,null,""]
[null,null,null,null,null,""]
[null,null,null,null,null,""]
[null,null,null,null,null,""]
[null,null,null,null,null,""]
[null,null,null,null,null,""]
[null,null,null,null,null,""]
[null,null,null,null,null,""]
[null,null,null,null,null,""]
[null,null,null,null,null,""]
[null,null,null,null,null,""]
[null,null,null,null,null,""]
[null,null,null,null,null,""]
[null,null,null,null,null,""]
[null,null,null,null,null,""]
[null,null,null,null,null,""]
[null,null,null,null,null,""]
[null,null,null,null,null,""]
[null,null,null,null,null,""]
[null,null,null,null,null,""]
[null,null,null,null,null,""]
[null,null,null,null,null,""]
[null,null,null,null,null,""]
[null,null,null,null,null,""]
[null,null,null,null,null,""]
[null,null,null,null,null,""]
[null,null,null,null,null,""]
[null,null,null,null,null,""]
[null,null,null,null,null,""]
[null,null,null,null,null,""]
[null,null,null,null,null,""]
[null,null,null,null,null,""]
[null,null,null,null,null,""]
[null,null,null,null,null,""]
[null,null,null,null,null,""]
[null,null,null,null,null,""]
[null,null,null,null,null,""]
[null,null,null,null,null,""]
[null,null,null,null,null,""]
[null,null,null,null,null,""]
[null,null,null,null,null,""]
[null,null,null,null,null,""]
[null,null,null,null,null,""]
[null,null,null,null,null,""]
[null,null,null,null,null,""]
[null,null,null,null,null,""]
[null,null,null,null,null,""]
[null,null,null,null,null,""]
[null,null,null,null,null,""]
[null,null,null,null,null,""]
[null,null,null,null,null,""]
[null,null,null,null,null,""]
[null,null,null,null,null,""]
[null,null,null,null,null,""]
[null,null,null,null,null,""]
[null,null,null,null,null,""]
[null,null,null,null,null,{"$f":"D747394&E747394","v":""}]
[null,null,null,null,null,""]
[null,null,null,null,null,""]
[null,null,null,null,null,""]
[null,null,null,null,null,""]
[null,null,null,null,null,""]
[null,null,null,null,null,""]
[null,null,null,null,null,""]
[null,null,null,null,null,""]
[null,null,null,null,null,""]
[null,null,null,null,null,""]
[null,null,null,null,null,""]
[null,null,null,null,null,""]
[null,null,null,null,null,""]
[null,null,null,null,null,""]
[null,null,null,null,null,""]
[null,null,null,null,null,""]
[null,null,null,null,null,""]
[null,null,null,null,null,""]
[null,null,null,null,null,""]
[null,null,null,null,null,""]
[null,null,null,null,null,""]
[null,null,null,null,null,""]
[null,null,null,null,null,""]
[null,null,null,null,null,""]
[null,null,null,null,null,""]
[null,null,null,null,null,""]
[null,null,null,null,null,""]
[null,null,null,null,null,""]
[null,null,null,null,null,""]
[null,null,null,null,null,""]
[null,null,null,null,null,""]
[null,null,null,null,null,""]
[null,null,null,null,null,""]
[null,null,null,null,null,""]
[null,null,null,null,null,""]
[null,null,null,null,null,""]
[null,null,null,null,null,""]
[null,null,null,null,null,""]
[null,null,null,null,null,{"$f":"D767746&E767746","v":""}]
[null,null,null,null,null,""]
[null,null,null,null,null,""]
[null,null,null,null,null,""]
[null,null,null,null,null,""]
[null,null,null,null,null,""]
[null,null,null,null,null,""]
[null,null,null,null,null,""]
[null,null,null,null,null,""]
[null,null,null,null,null,""]
[null,null,null,null,null,""]
[null,null,null,null,null,""]
[null,null,null,null,null,""]
[null,null,null,null,null,""]
[null,null,null,null,null,""]
[null,null,null,null,null,""]
[null,null,null,null,null,""]
[null,null,null,null,null,""]
[null,null,null,null,null,""]
[null,null,null,null,null,""]
[null,null,null,null,null,""]
[null,null,null,null,null,""]
[null,null,null,null,null,""]
[null,null,null,null,null,""]
[null,null,null,null,null,""]
[null,null,null,null,null,""]
[null,null,null,null,null,""]
[null,null,null,null,null,""]
[null,null,null,null,null,""]
[null,null,null,null,null,""]
[null,null,null,null,null,""]
[null,null,null,null,null,""]
[null,null,null,null,null,""]
[null,null,null,null,null,""]
[null,null,null,null,null,""]
[null,null,null,null,null,""]
[null,null,null,null,null,""]
[null,null,null,null,null,""]
[null,null,null,null,null,""]
[null,null,null,null,null,""]
[null,null,null,null,null,""]
[null,null,null,null,null,""]
[null,null,null,null,null,""]
[null,null,null,null,null,""]
[null,null,null,null,null,""]
[null,null,null,null,null,""]
[null,null,null,null,null,""]
[null,null,null,null,null,""]
[null,null,null,null,null,""]
[null,null,null,null,null,""]
[null,null,null,null,null,""]
[null,null,null,null,null,""]
[null,null,null,null,null,""]
[null,null,null,null,null,""]
[null,null,null,null,null,""]
[null,null,null,null,null,""]
[null,null,null,null,null,""]
[null,null,null,null,null,""]
[null,null,null,null,null,""]
[null,null,null,null,null,""]
[null,null,null,null,null,""]
[null,null,null,null,null,""]
[null,null,null,null,null,""]
[null,null,null,null,null,""]
[null,null,null,null,null,""]
[null,null,null,null,null,""]
[null,null,null,null,null,""]
[null,null,null,null,null,""]
[null,null,null,null,null,""]
[null,null,null,null,null,""]
[null,null,null,null,null,""]
[null,null,null,null,null,""]
[null,null,null,null,null,""]
[null,null,null,null,null,""]
[null,null,null,null,null,""]
[null,null,null,null,null,""]
[null,null,null,null,null,""]
[null,null,null,null,null,""]
[null,null,null,null,null,""]
[null,null,null,null,null,""]
[null,null,null,null,null,""]
[null,null,null,null,null,""]
[null,null,null,null,null,""]
[null,null,null,null,null,""]
[null,null,null,null,null,""]
[null,null,null,null,null,""]
[null,null,null,null,null,""]
[null,null,null,null,null,""]
[null,null,null,null,null,""]
[null,null,null,null,null,""]
[null,null,null,null,null,""]
[null,null,null,null,null,""]
[null,null,null,null,null,""]
[null,null,null,null,null,""]
[null,null,null,null,null,""]
[null,null,null,null,null,""]
[null,null,null,null,null,""]
[null,null,null,null,null,""]
[null,null,null,null,null,""]
[null,null,null,null,null,""]
[null,null,null,null,null,""]
[null,null,null,null,null,""]
[null,null,null,null,null,""]
[null,null,null,null,null,""]
[null,null,null,null,null,""]
[null,null,null,null,null,""]
[null,null,null,null,null,""]
[null,null,null,null,null,""]
[null,null,null,null,null,""]
[null,null,null,null,null,""]
[null,null,null,null,null,""]
[null,null,null,null,null,""]
[null,null,null,null,null,""]
[null,null,null,null,null,""]
[null,null,null,null,null,""]
[null,null,null,null,null,""]
[null,null,null,null,null,""]
[null,null,null,null,null,""]
[null,null,null,null,null,""]
[null,null,null,null,null,""]
[null,null,null,null,null,""]
[null,null,null,null,null,""]
[null,null,null,null,null,""]
[null,null,null,null,null,""]
[null,null,null,null,null,""]
[null,null,null,null,null,""]
[null,null,null,null,null,""]
[null,null,null,null,null,""]
[null,null,null,null,null,""]
[null,null,null,null,null,""]
[null,null,null,null,null,""]
[null,null,null,null,null,""]
[null,null,null,null,null,{"$f":"D837250&E837250","v":""}]
[null,null,null,null,null,""]
[null,null,null,null,null,""]
[null,null,null,null,null,""]
[null,null,null,null,null,""]
[null,null,null,null,null,""]
[null,null,null,null,null,""]
[null,null,null,null,null,""]
[null,null,null,null,null,""]
[null,null,null,null,null,""]
[null,null,null,null,null,""]
[null,null,null,null,null,""]
[null,null,null,null,null,""]
[null,null,null,null,null,""]
[null,null,null,null,null,""]
[null,null,null,null,null,""]
[null,null,null,null,null,""]
[null,null,null,null,null,""]
[null,null,null,null,null,""]
[null,null,null,null,null,""]
[null,null,null,null,null,""]
[null,null,null,null,null,""]
[null,null,null,null,null,""]
[null,null,null,null,null,""]
[null,null,null,null,null,""]
[null,null,null,null,null,""]
[null,null,null,null,null,""]
[null,null,null,null,null,""]
[null,null,null,null,null,""]
[null,null,null,null,null,""]
[null,null,null,null,null,""]
[null,null,null,null,null,""]
[null,null,null,null,null,""]
[null,null,null,null,null,""]
[null,null,null,null,null,""]
[null,null,null,null,null,""]
[null,null,null,null,null,""]
[null,null,null,null,null,""]
[null,null,null,null,null,""]
[null,null,null,null,null,""]
[null,null,null,null,null,""]
[null,null,null,null,null,""]
[null,null,null,null,null,""]
[null,null,null,null,null,""]
[null,null,null,null,null,""]
[null,null,null,null,null,""]
[null,null,null,null,null,""]
[null,null,null,null,null,""]
[null,null,null,null,null,""]
[null,null,null,null,null,""]
[null,null,null,null,null,""]
[null,null,null,null,null,""]
[null,null,null,null,null,""]
[null,null,null,null,null,""]
[null,null,null,null,null,""]
[null,null,null,null,null,""]
[null,null,null,null,null,""]
[null,null,null,null,null,""]
[null,null,null,null,null,""]
[null,null,null,null,null,""]
[null,null,null,null,null,""]
[null,null,null,null,null,""]
[null,null,null,null,null,""]
[null,null,null,null,null,""]
[null,null,null,null,null,""]
[null,null,null,null,null,""]
[null,null,null,null,null,""]
[null,null,null,null,null,""]
[null,null,null,null,null,""]
[null,null,null,null,null,""]
[null,null,null,null,null,""]
[null,null,null,null,null,""]
[null,null,null,null,null,""]
[null,null,null,null,null,""]
[null,null,null,null,null,""]
[null,null,null,null,null,""]
[null,null,null,null,null,""]
[null,null,null,null,null,""]
[null,null,null,null,null,""]
[null,null,null,null,null,""]
[null,null,null,null,null,""]
[null,null,null,null,null,""]
[null,null,null,null,null,""]
[null,null,null,null,null,""]
[null,null,null,null,null,""]
[null,null,null,null,null,""]
[null,null,null,null,null,""]
[null,null,null,null,null,""]
[null,null,null,null,null,""]
[null,null,null,null,null,""]
[null,null,null,null,null,""]
[null,null,null,null,null,""]
[null,null,null,null,null,""]
[null,null,null,null,null,""]
[null,null,null,null,null,""]
[null,null,null,null,null,""]
[null,null,null,null,null,""]
[null,null,null,null,null,{"$f":"D887874&E887874","v":""}]
[null,null,null,null,null,""]
[null,null,null,null,null,""]
[null,null,null,null,null,""]
[null,null,null,null,null,""]
[null,null,null,null,null,""]
[null,null,null,null,null,""]
[null,null,null,null,null,""]
[null,null,null,null,null,""]
[null,null,null,null,null,""]
[null,null,null,null,null,""]
[null,null,null,null,null,""]
[null,null,null,null,null,""]
[null,null,null,null,null,""]
[null,null,null,null,null,""]
[null,null,null,null,null,""]
[null,null,null,null,null,""]
[null,null,null,null,null,""]
[null,null,null,null,null,""]
[null,null,null,null,null,""]
[null,null,null,null,null,""]
[null,null,null,null,null,""]
[null,null,null,null,null,""]
[null,null,null,null,null,""]
[null,null,null,null,null,""]
[null,null,null,null,null,""]
[null,null,null,null,null,""]
[null,null,null,null,null,""]
[null,null,null,null,null,""]
[null,null,null,null,null,""]
[null,null,null,null,null,""]
[null,null,null,null,null,""]
[null,null,null,null,null,""]
[null,null,null,null,null,""]
[null,null,null,null,null,""]
[null,null,null,null,null,""]
[null,null,null,null,null,""]
[null,null,null,null,null,""]
[null,null,null,null,null,""]
[null,null,null,null,null,{"$f":"D908226&E908226","v":""}]
[null,null,null,null,null,""]
[null,null,null,null,null,""]
[null,null,null,null,null,""]
[null,null,null,null,null,""]
[null,null,null,null,null,""]
[null,null,null,null,null,""]
[null,null,null,null,null,""]
[null,null,null,null,null,""]
[null,null,null,null,null,""]
[null,null,null,null,null,""]
[null,null,null,null,null,""]
[null,null,null,null,null,""]
[null,null,null,null,null,""]
[null,null,null,null,null,""]
[null,null,null,null,null,""]
[null,null,null,null,null,""]
[null,null,null,null,null,""]
[null,null,null,null,null,""]
[null,null,null,null,null,""]
[null,null,null,null,null,""]
[null,null,null,null,null,""]
[null,null,null,null,null,""]
[null,null,null,null,null,""]
[null,null,null,null,null,""]
[null,null,null,null,null,""]
[null,null,null,null,null,""]
[null,null,null,null,null,""]
[null,null,null,null,null,""]
[null,null,null,null,null,""]
[null,null,null,null,null,""]
[null,null,null,null,null,""]
[null,null,null,null,null,""]
[null,null,null,null,null,""]
[null,null,null,null,null,""]
[null,null,null,null,null,""]
[null,null,null,null,null,""]
[null,null,null,null,null,""]
[null,null,null,null,null,""]
[null,null,null,null,null,""]
[null,null,null,null,null,""]
[null,null,null,null,null,""]
[null,null,null,null,null,""]
[null,null,null,null,null,""]
[null,null,null,null,null,""]
[null,null,null,null,null,""]
[null,null,null,null,null,""]
[null,null,null,null,null,""]
[null,null,null,null,null,""]
[null,null,null,null,null,""]
[null,null,null,null,null,""]
[null,null,null,null,null,""]
[null,null,null,null,null,""]
[null,null,null,null,null,""]
[null,null,null,null,null,""]
[null,null,null,null,null,""]
[null,null,null,null,null,""]
[null,null,null,null,null,""]
[null,null,null,null,null,{"$f":"D938498&E938498","v":""}]
[null,null,null,null,null,""]
[null,null,null,null,null,""]
[null,null,null,null,null,""]
[null,null,null,null,null,""]
[null,null,null,null,null,""]
[null,null,null,null,null,""]
[null,null,null,null,null,""]
[null,null,null,null,null,""]
[null,null,null,null,null,""]
[null,null,null,null,null,""]
[null,null,null,null,null,""]
[null,null,null,null,null,""]
[null,null,null,null,null,""]
[null,null,null,null,null,""]
[null,null,null,null,null,""]
[null,null,null,null,null,""]
[null,null,null,null,null,""]
[null,null,null,null,null,""]
[null,null,null,null,null,""]
[null,null,null,null,null,""]
[null,null,null,null,null,""]
[null,null,null,null,null,""]
[null,null,null,null,null,""]
[null,null,null,null,null,""]
[null,null,null,null,null,""]
[null,null,null,null,null,""]
[null,null,null,null,null,""]
[null,null,null,null,null,""]
[null,null,null,null,null,""]
[null,null,null,null,null,""]
[null,null,null,null,null,""]
[null,null,null,null,null,""]
[null,null,null,null,null,""]
[null,null,null,null,null,""]
[null,null,null,null,null,""]
[null,null,null,null,null,""]
[null,null,null,null,null,""]
[null,null,null,null,null,""]
[null,null,null,null,null,{"$f":"D958850&E958850","v":""}]
[null,null,null,null,null,""]
[null,null,null,null,null,""]
[null,null,null,null,null,""]
[null,null,null,null,null,""]
[null,null,null,null,null,""]
[null,null,null,null,null,""]
[null,null,null,null,null,""]
[null,null,null,null,null,""]
[null,null,null,null,null,""]
[null,null,null,null,null,""]
[null,null,null,null,null,""]
[null,null,null,null,null,""]
[null,null,null,null,null,""]
[null,null,null,null,null,""]
[null,null,null,null,null,""]
[null,null,null,null,null,""]
[null,null,null,null,null,""]
[null,null,null,null,null,""]
[null,null,null,null,null,""]
[null,null,null,null,null,""]
[null,null,null,null,null,""]
[null,null,null,null,null,""]
[null,null,null,null,null,""]
[null,null,null,null,null,""]
[null,null,null,null,null,""]
[null,null,null,null,null,""]
[null,null,null,null,null,""]
[null,null,null,null,null,""]
[null,null,null,null,null,""]
[null,null,null,null,null,""]
[null,null,null,null,null,""]
[null,null,null,null,null,""]
[null,null,null,null,null,""]
[null,null,null,null,null,""]
[null,null,null,null,null,""]
[null,null,null,null,null,""]
[null,null,null,null,null,""]
[null,null,null,null,null,""]
[null,null,null,null,null,""]
[null,null,null,null,null,""]
[null,null,null,null,null,""]
[null,null,null,null,null,""]
[null,null,null,null,null,""]
[null,null,null,null,null,""]
[null,null,null,null,null,""]
[null,null,null,null,null,""]
[null,null,null,null,null,""]
[null,null,null,null,null,""]
[null,null,null,null,null,""]
[null,null,null,null,null,""]
[null,null,null,null,null,""]
[null,null,null,null,null,""]
[null,null,null,null,null,""]
[null,null,null,null,null,""]
[null,null,null,null,null,""]
[null,null,null,null,null,""]
[null,null,null,null,null,""]
[null,null,null,null,null,""]
[null,null,null,null,null,""]
[null,null,null,null,null,""]
[null,null,null,null,null,""]
[null,null,null,null,null,""]
[null,null,null,null,null,""]
[null,null,null,null,null,""]
[null,null,null,null,null,""]
[null,null,null,null,null,""]
[null,null,null,null,null,""]
[null,null,null,null,null,""]
[null,null,null,null,null,""]
[null,null,null,null,null,""]
[null,null,null,null,null,""]
[null,null,null,null,null,""]
[null,null,null,null,null,""]
[null,null,null,null,null,""]
[null,null,null,null,null,""]
[null,null,null,null,null,""]
[null,null,null,null,null,""]
[null,null,null,null,null,""]
[null,null,null,null,null,""]
[null,null,null,null,null,""]
[null,null,null,null,null,""]
[null,null,null,null,null,""]
[null,null,null,null,null,""]
[null,null,null,null,null,""]
[null,null,null,null,null,""]
[null,null,null,null,null,""]
[null,null,null,null,null,""]
[null,null,null,null,null,""]
[null,null,null,null,null,""]
[null,null,null,null,null,""]
[null,null,null,null,null,""]
[null,null,null,null,null,""]
[null,null,null,null,null,""]
[null,null,null,null,null,""]
[null,null,null,null,null,""]
[null,null,null,null,null,""]
[null,null,null,null,null,{"$f":"D1009474&E1009474","v":""}]
[null,null,null,null,null,""]
[null,null,null,null,null,""]
[null,null,null,null,null,""]
[null,null,null,null,null,""]
[null,null,null,null,null,""]
[null,null,null,null,null,""]
[null,null,null,null,null,""]
[null,null,null,null,null,""]
[null,null,null,null,null,""]
[null,null,null,null,null,""]
[null,null,null,null,null,""]
[null,null,null,null,null,""]
[null,null,null,null,null,""]
[null,null,null,null,null,""]
[null,null,null,null,null,""]
[null,null,null,null,null,""]
[null,null,null,null,null,""]
[null,null,null,null,null,""]
[null,null,null,null,null,""]
[null,null,null,null,null,""]
[null,null,null,null,null,""]
[null,null,null,null,null,""]
[null,null,null,null,null,""]
[null,null,null,null,null,""]
[null,null,null,null,null,""]
[null,null,null,null,null,""]
[null,null,null,null,null,""]
[null,null,null,null,null,""]
[null,null,null,null,null,""]
[null,null,null,null,null,""]
[null,null,null,null,null,""]
[null,null,null,null,null,""]
[null,null,null,null,null,""]
[null,null,null,null,null,""]
[null,null,null,null,null,""]
[null,null,null,null,null,""]
[null,null,null,null,null,""]
[null,null,null,null,null,""]
[null,null,null,null,null,{"$f":"D1029826&E1029826","v":""}]
[null,null,null,null,null,""]
[null,null,null,null,null,""]
[null,null,null,null,null,""]
[null,null,null,null,null,""]
[null,null,null,null,null,""]
[null,null,null,null,null,""]
[null,null,null,null,null,""]
[null,null,null,null,null,""]
[null,null,null,null,null,""]
[null,null,null,null,null,""]
[null,null,null,null,null,""]
[null,null,null,null,null,""]
[null,null,null,null,null,""]
[null,null,null,null,null,""]
[null,null,null,null,null,""]
[null,null,null,null,null,""]
[null,null,null,null,null,""]
[null,null,null,null,null,""]
[null,null,null,null,null,""]
[null,null,null,null,null,""]
[null,null,null,null,null,""]
[null,null,null,null,null,""]
[null,null,null,null,null,""]
[null,null,null,null,null,""]
[null,null,null,null,null,""]
[null,null,null,null,null,""]
[null,null,null,null,null,""]
[null,null,null,null,null,""]
[null,null,null,null,null,""]
[null,null,null,null,null,""]
[null,null,null,null,null,""]
[null,null,null,null,null,""]
[null,null,null,null,null,""]
[null,null,null,null,null,""]
[null,null,null,null,null,""]
[null,null,null,null,null,""]
[null,null,null,null,null,""]
[null,null,null,null,null,""]
[null,null,null,null,null,""]
[null,null,null,null,null,""]
[null,null,null,null,null,""]
[null,null,null,null,null,""]
[null,null,null,null,null,""]
[null,null,null,null,null,""]
[null,null,null,null,null,""]
[null,null,null,null,null,""]
[null,null,null,null,null,""]
[null,null,null,null,null,""]
[null,null,null,null,null,""]
[null,null,null,null,null,""]
[null,null,null,null,null,""]
[null,null,null,null,null,""]
[null,null,null,null,null,""]
[null,null,null,null,null,""]
[null,null,null,null,null,""]
[null,null,null,null,null,""]
[null,null,null,null,null,""]
[null,null,null,null,null,""]
[null,null,null,null,null,""]
[null,null,null,null,null,""]
[null,null,null,null,null,""]
[null,null,null,null,null,""]
[null,null,null,null,null,""]
[null,null,null,null,null,""]
[null,null,null,null,null,""]
[null,null,null,null,null,""]
[null,null,null,null,null,""]
[null,null,null,null,null,""]
[null,null,null,null,null,""]
[null,null,null,null,null,""]
[null,null,null,null,null,""]
[null,null,null,null,null,""]
[null,null,null,null,null,""]
[null,null,null,null,null,""]
[null,null,null,null,null,""]
[null,null,null,null,null,""]
[null,null,null,null,null,""]
[null,null,null,null,null,""]
[null,null,null,null,null,""]
[null,null,null,null,null,""]
[null,null,null,null,null,""]
[null,null,null,null,null,""]
[null,null,null,null,null,""]
[null,null,null,null,null,""]
[null,null,null,null,null,""]
[null,null,null,null,null,""]
[null,null,null,null,null,""]
[null,null,null,null,null,{"$f":"D1048130&E1048130","v":""}]
[null,null,null,null,null,""]
[null,null,null,null,null,""]
[null,null,null,null,null,""]
[null,null,null,null,null,""]
[null,null,null,null,null,""]
[null,null,null,null,null,""]
[null,null,null,null,null,""]
[null,null,null,null,null,""]
[null,null,null,null,null,""]
[null,null,null,null,null,""]
[null,null,null,null,null,""]
[null,null,null,null,null,""]
[null,null,null,null,null,""]
[null,null,null,null,null,""]
[null,null,null,null,null,""]
[null,null,null,null,null,""]
[null,null,null,null,null,""]
[null,null,null,null,null,""]
[null,null,null,null,null,""]
[null,null,null,null,null,""]
[null,null,null,null,null,""]
[null,null,null,null,null,""]
[null,null,null,null,null,""]
[null,null,null,null,null,""]
[null,null,null,null,null,""]
[null,null,null,null,null,""]
[null,null,null,null,null,""]
[null,null,null,null,null,""]
[null,null,null,null,null,""]
[null,null,null,null,null,""]
[null,null,null,null,null,""]
[null,null,null,null,null,""]
[null,null,null,null,null,""]
[null,null,null,null,null,""]
[null,null,null,null,null,""]
[null,null,null,null,null,""]
[null,null,null,null,null,""]
[null,null,null,null,null,""]
[null,null,null,null,null,""]
[null,null,null,null,null,""]
[null,null,null,null,null,""]
[null,null,null,null,null,""]
[null,null,null,null,null,""]
[null,null,null,null,null,""]
[null,null,null,null,null,""]
[null,null,null,null,null,""]
[null,null,null,null,null,""]
[null,null,null,null,null,""]
[null,null,null,null,null,""]
[null,null,null,null,null,""]
[null,null,null,null,null,""]
[null,null,null,null,null,""]
[null,null,null,null,null,""]
[null,null,null,null,null,""]
[null,null,null,null,null,""]
[null,null,null,null,null,""]
[null,null,null,null,null,""]
[null,null,null,null,null,""]
[null,null,null,null,null,""]
[null,null,null,null,null,""]
[null,null,null,null,null,""]
[null,null,null,null,null,""]
[null,null,null,null,null,""]
[null,null,null,null,null,{"$f":"D1048194&E1048194","v":""}]
[null,null,null,null,null,""]
[null,null,null,null,null,""]
[null,null,null,null,null,""]
[null,null,null,null,null,""]
[null,null,null,null,null,""]
[null,null,null,null,null,""]
[null,null,null,null,null,""]
[null,null,null,null,null,""]
[null,null,null,null,null,""]
[null,null,null,null,null,""]
[null,null,null,null,null,""]
[null,null,null,null,null,""]
[null,null,null,null,null,""]
[null,null,null,null,null,""]
[null,null,null,null,null,""]
[null,null,null,null,null,""]
[null,null,null,null,null,""]
[null,null,null,null,null,""]
[null,null,null,null,null,""]
[null,null,null,null,null,""]
[null,null,null,null,null,""]
[null,null,null,null,null,""]
[null,null,null,null,null,""]
[null,null,null,null,null,""]
[null,null,null,null,null,""]
[null,null,null,null,null,""]
[null,null,null,null,null,""]
[null,null,null,null,null,""]
[null,null,null,null,null,""]
[null,null,null,null,null,""]
[null,null,null,null,null,""]
[null,null,null,null,null,""]
[null,null,null,null,null,""]
[null,null,null,null,null,""]
[null,null,null,null,null,""]
[null,null,null,null,null,""]
[null,null,null,null,null,""]
[null,null,null,null,null,""]
[null,null,null,null,null,""]
[null,null,null,null,null,""]
[null,null,null,null,null,""]
[null,null,null,null,null,""]
[null,null,null,null,null,""]
[null,null,null,null,null,""]
[null,null,null,null,null,""]
[null,null,null,null,null,""]
[null,null,null,null,null,""]
[null,null,null,null,null,""]
[null,null,null,null,null,""]
[null,null,null,null,null,""]
[null,null,null,null,null,""]
[null,null,null,null,null,""]
[null,null,null,null,null,""]
[null,null,null,null,null,""]
[null,null,null,null,null,""]
[null,null,null,null,null,""]
[null,null,null,null,null,""]
[null,null,null,null,null,""]
[null,null,null,null,null,""]
[null,null,null,null,null,""]
[null,null,null,null,null,""]
[null,null,null,null,null,""]
[null,null,null,null,null,""]
[null,null,null,null,null,{"$f":"D1048258&E1048258","v":""}]
[null,null,null,null,null,""]
[null,null,null,null,null,""]
[null,null,null,null,null,""]
[null,null,null,null,null,""]
[null,null,null,null,null,""]
[null,null,null,null,null,""]
[null,null,null,null,null,""]
[null,null,null,null,null,""]
[null,null,null,null,null,""]
[null,null,null,null,null,""]
[null,null,null,null,null,""]
[null,null,null,null,null,""]
[null,null,null,null,null,""]
[null,null,null,null,null,""]
[null,null,null,null,null,""]
[null,null,null,null,null,""]
[null,null,null,null,null,""]
[null,null,null,null,null,""]
[null,null,null,null,null,""]
[null,null,null,null,null,""]
[null,null,null,null,null,""]
[null,null,null,null,null,""]
[null,null,null,null,null,""]
[null,null,null,null,null,""]
[null,null,null,null,null,""]
[null,null,null,null,null,""]
[null,null,null,null,null,""]
[null,null,null,null,null,""]
[null,null,null,null,null,""]
[null,null,null,null,null,""]
[null,null,null,null,null,""]
[null,null,null,null,null,""]
[null,null,null,null,null,""]
[null,null,null,null,null,""]
[null,null,null,null,null,""]
[null,null,null,null,null,""]
[null,null,null,null,null,""]
[null,null,null,null,null,""]
[null,null,null,null,null,""]
[null,null,null,null,null,""]
[null,null,null,null,null,""]
[null,null,null,null,null,""]
[null,null,null,null,null,""]
[null,null,null,null,null,""]
[null,null,null,null,null,""]
[null,null,null,null,null,""]
[null,null,null,null,null,""]
[null,null,null,null,null,""]
[null,null,null,null,null,""]
[null,null,null,null,null,""]
[null,null,null,null,null,""]
[null,null,null,null,null,""]
[null,null,null,null,null,""]
[null,null,null,null,null,""]
[null,null,null,null,null,""]
[null,null,null,null,null,""]
[null,null,null,null,null,""]
[null,null,null,null,null,""]
[null,null,null,null,null,""]
[null,null,null,null,null,""]
[null,null,null,null,null,""]
[null,null,null,null,null,""]
[null,null,null,null,null,""]
[null,null,null,null,null,{"$f":"D1048322&E1048322","v":""}]
[null,null,null,null,null,""]
[null,null,null,null,null,""]
[null,null,null,null,null,""]
[null,null,null,null,null,""]
[null,null,null,null,null,""]
[null,null,null,null,null,""]
[null,null,null,null,null,""]
[null,null,null,null,null,""]
[null,null,null,null,null,""]
[null,null,null,null,null,""]
[null,null,null,null,null,""]
[null,null,null,null,null,""]
[null,null,null,null,null,""]
[null,null,null,null,null,""]
[null,null,null,null,null,""]
[null,null,null,null,null,""]
[null,null,null,null,null,""]
[null,null,null,null,null,""]
[null,null,null,null,null,""]
[null,null,null,null,null,""]
[null,null,null,null,null,""]
[null,null,null,null,null,""]
[null,null,null,null,null,""]
[null,null,null,null,null,""]
[null,null,null,null,null,""]
[null,null,null,null,null,""]
[null,null,null,null,null,""]
[null,null,null,null,null,""]
[null,null,null,null,null,""]
[null,null,null,null,null,""]
[null,null,null,null,null,""]
[null,null,null,null,null,""]
[null,null,null,null,null,""]
[null,null,null,null,null,""]
[null,null,null,null,null,""]
[null,null,null,null,null,""]
[null,null,null,null,null,""]
[null,null,null,null,null,""]
[null,null,null,null,null,""]
[null,null,null,null,null,""]
[null,null,null,null,null,""]
[null,null,null,null,null,""]
[null,null,null,null,null,""]
[null,null,null,null,null,""]
[null,null,null,null,null,""]
[null,null,null,null,null,""]
[null,null,null,null,null,""]
[null,null,null,null,null,""]
[null,null,null,null,null,""]
[null,null,null,null,null,""]
[null,null,null,null,null,""]
[null,null,null,null,null,""]
[null,null,null,null,null,""]
[null,null,null,null,null,""]
[null,null,null,null,null,""]
[null,null,null,null,null,""]
[null,null,null,null,null,""]
[null,null,null,null,null,""]
[null,null,null,null,null,""]
[null,null,null,null,null,""]
[null,null,null,null,null,""]
[null,null,null,null,null,""]
[null,null,null,null,null,""]
[null,null,null,null,null,{"$f":"D1048386&E1048386","v":""}]
[null,null,null,null,null,""]
[null,null,null,null,null,""]
[null,null,null,null,null,""]
[null,null,null,null,null,""]
[null,null,null,null,null,""]
[null,null,null,null,null,""]
[null,null,null,null,null,""]
[null,null,null,null,null,""]
[null,null,null,null,null,""]
[null,null,null,null,null,""]
[null,null,null,null,null,""]
[null,null,null,null,null,""]
[null,null,null,null,null,""]
[null,null,null,null,null,""]
[null,null,null,null,null,""]
[null,null,null,null,null,""]
[null,null,null,null,null,""]
[null,null,null,null,null,""]
[null,null,null,null,null,""]
[null,null,null,null,null,""]
[null,null,null,null,null,""]
[null,null,null,null,null,""]
[null,null,null,null,null,""]
[null,null,null,null,null,""]
[null,null,null,null,null,""]
[null,null,null,null,null,""]
[null,null,null,null,null,""]
[null,null,null,null,null,""]
[null,null,null,null,null,""]
[null,null,null,null,null,""]
[null,null,null,null,null,""]
[null,null,null,null,null,""]
[null,null,null,null,null,""]
[null,null,null,null,null,""]
[null,null,null,null,null,""]
[null,null,null,null,null,""]
[null,null,null,null,null,""]
[null,null,null,null,null,""]
[null,null,null,null,null,""]
[null,null,null,null,null,""]
[null,null,null,null,null,""]
[null,null,null,null,null,""]
[null,null,null,null,null,""]
[null,null,null,null,null,""]
[null,null,null,null,null,""]
[null,null,null,null,null,""]
[null,null,null,null,null,""]
[null,null,null,null,null,""]
[null,null,null,null,null,""]
[null,null,null,null,null,""]
[null,null,null,null,null,""]
[null,null,null,null,null,""]
[null,null,null,null,null,""]
[null,null,null,null,null,""]
[null,null,null,null,null,""]
[null,null,null,null,null,""]
[null,null,null,null,null,""]
[null,null,null,null,null,""]
[null,null,null,null,null,""]
[null,null,null,null,null,""]
[null,null,null,null,null,""]
[null,null,null,null,null,""]
[null,null,null,null,null,""]
[null,null,null,null,null,{"$f":"D1048450&E1048450","v":""}]
[null,null,null,null,null,""]
[null,null,null,null,null,""]
[null,null,null,null,null,""]
[null,null,null,null,null,""]
[null,null,null,null,null,""]
[null,null,null,null,null,""]
[null,null,null,null,null,""]
[null,null,null,null,null,""]
[null,null,null,null,null,""]
[null,null,null,null,null,""]
[null,null,null,null,null,""]
[null,null,null,null,null,""]
[null,null,null,null,null,""]
[null,null,null,null,null,""]
[null,null,null,null,null,""]
[null,null,null,null,null,""]
[null,null,null,null,null,""]
[null,null,null,null,null,""]
[null,null,null,null,null,""]
[null,null,null,null,null,""]
[null,null,null,null,null,""]
[null,null,null,null,null,""]
[null,null,null,null,null,""]
[null,null,null,null,null,""]
[null,null,null,null,null,""]
[null,null,null,null,null,""]
[null,null,null,null,null,""]
[null,null,null,null,null,""]
[null,null,null,null,null,""]
[null,null,null,null,null,""]
[null,null,null,null,null,""]
[null,null,null,null,null,""]
[null,null,null,null,null,""]
[null,null,null,null,null,""]
[null,null,null,null,null,""]
[null,null,null,null,null,""]
[null,null,null,null,null,""]
[null,null,null,null,null,""]
[null,null,null,null,null,""]
[null,null,null,null,null,""]
[null,null,null,null,null,""]
[null,null,null,null,null,""]
[null,null,null,null,null,""]
[null,null,null,null,null,""]
[null,null,null,null,null,""]
[null,null,null,null,null,""]
[null,null,null,null,null,""]
[null,null,null,null,null,""]
[null,null,null,null,null,""]
[null,null,null,null,null,""]
[null,null,null,null,null,""]
[null,null,null,null,null,""]
[null,null,null,null,null,""]
[null,null,null,null,null,""]
[null,null,null,null,null,""]
[null,null,null,null,null,""]
[null,null,null,null,null,""]
[null,null,null,null,null,""]
[null,null,null,null,null,""]
[null,null,null,null,null,""]
[null,null,null,null,null,""]
[null,null,null,null,null,""]
[null,null,null,null,null,""]
[null,null,null,null,null,{"$f":"D1048514&E1048514","v":""}]
[null,null,null,null,null,""]
[null,null,null,null,null,""]
[null,null,null,null,null,""]
[null,null,null,null,null,""]
[null,null,null,null,null,""]
[null,null,null,null,null,""]
[null,null,null,null,null,""]
[null,null,null,null,null,""]
[null,null,null,null,null,""]
[null,null,null,null,null,""]
[null,null,null,null,null,""]
[null,null,null,null,null,""]
[null,null,null,null,null,""]
[null,null,null,null,null,""]
[null,null,null,null,null,""]
[null,null,null,null,null,""]
[null,null,null,null,null,""]
[null,null,null,null,null,""]
[null,null,null,null,null,""]
[null,null,null,null,null,""]
[null,null,null,null,null,""]
[null,null,null,null,null,""]
[null,null,null,null,null,""]
[null,null,null,null,null,""]
[null,null,null,null,null,""]
[null,null,null,null,null,""]
[null,null,null,null,null,""]
[null,null,null,null,null,""]
[null,null,null,null,null,""]
[null,null,null,null,null,""]
[null,null,null,null,null,""]
[null,null,null,null,null,""]
[null,null,null,null,null,""]
[null,null,null,null,null,""]
[null,null,null,null,null,""]
[null,null,null,null,null,""]
[null,null,null,null,null,""]
[null,null,null,null,null,""]
[null,null,null,null,null,""]
[null,null,null,null,null,""]
[null,null,null,null,null,""]
[null,null,null,null,null,""]
[null,null,null,null,null,""]
[null,null,null,null,null,""]
[null,null,null,null,null,""]
[null,null,null,null,null,""]
[null,null,null,null,null,""]
[null,null,null,null,null,""]
[null,null,null,null,null,""]
[null,null,null,null,null,""]
[null,null,null,null,null,""]
[null,null,null,null,null,""]
[null,null,null,null,null,""]
[null,null,null,null,null,""]
[null,null,null,null,null,""]
[null,null,null,null,null,""]
[null,null,null,null,null,""]
[null,null,null,null,null,""]
[null,null,null,null,null,""]
[null,null,null,null,null,""]
[null,null,null,null,null,""]
[null,null,null,null,null,""]